Workbook

Sheet Inputs
G1: INPUTS
B4: Prepared By : | C4: Rocky Mountain Power | F4: Allocation / Calculation Options:
B5: Jurisdiction : | C5: State of Utah
B6: Test Period : | C6: 12 Months Ended Dec 2010 | F6: Jurisdictional | J6: Target
B7: Method : | C7: =IF(COSFacVal=3,$X$14,IF(COSFacVal=2,$X$13,$X$12)) -> Monthly Wgt Factors | F7: Functional Factors - | J7: Rate of Return
B9: Factor 10: | C9: Demand % = | D9: 0.75 | F9: Distribution | J9: Percent ROR = | L9: =ActualROR+((L10*NetToGross))/TotalRateBase -> 0.06305604955
B10: Factor 11: | C10: Demand % = | D10: 0.5 | F10: Functional Factors - | J10: Dollar Increase = | L10: 0
J11: Stipulated Increase = | L11: 0 | S11: 2 | T11: FuncFactors | U11: 2 | V11: DistFuncFactors | W11: 3 | X11: COSFactors | Y11: 1 | Z11: IncomeTaxOptions | AB11: ROR - WorkArea
B12: Factor 85: | C12: Demand % = | D12: 0.75 | F12: COS Factors - | S12: 2 | T12: Rolled-In Factors | U12: 2 | V12: Rolled-In Factors | W12: 3 | X12: Rolled-In Factors | Z12: Calculated Income Tax
B13: Factor 86: | C13: Demand % = | D13: 0 | T13: MSP Factors | V13: MSP Factors | X13: MSP Factors | Z13: Allocated on Rate Base | AB13: 0.075 | AC13: FALSE
B14: Factor 87: | C14: Demand % = | D14: 0.75 | F14: Income Tax Option- | T14: Option1 | V14: Option1 | X14: Monthly Wgt Factors | AB14: Target Increase - $ | AC14: ='Summary Table'!$M$79 -> 6.891787052e-08
B15: Factor 88: | C15: Demand % = | D15: 0.75 | T15: Option2 | V15: Option2 | X15: Option1
B16: Factor 89: | C16: Demand % = | D16: 0 | T16: Option3 | V16: Option3 | X16: Option2 | AB16: Target ROR - % | AC16: =ActualROR+((AC17*NetToGross))/TotalRateBase -> 0.06305604955
B17: Factor 90: | C17: Demand % = | D17: 0 | F17: Effective Tot Tax % | G17: = | H17: =+H18+H20 -> 0.37951 | K17: Capital | L17: Embedded | M17: Weighted | AC17: 0
B18: Factor 91: | C18: Demand % = | D18: 0 | F18: Effective Fed Tax % | G18: = | H18: =+H19*(1-H20) -> 0.33411 | K18: Structure | L18: Costs | M18: Costs
B19: Factor 92: | C19: Demand % = | D19: 0 | F19: Federal Tax Rate | G19: = | H19: 0.35 | J19: Debt | K19: 0.477 | L19: 0.05876475159 | M19: =(K19*L19) -> 0.02803078651
B20: Factor 93: | C20: Demand % = | D20: 0 | F20: State Tax Rate | G20: = | H20: 0.0454 | J20: Preferred | K20: 0.003 | L20: 0.05421999018 | M20: =(K20*L20) -> 0.0001626599705
B21: Factor 94: | C21: Demand % = | D21: 0 | F21: Net to Gross Factor | G21: = | H21: 0.6189326456 | J21: Common | K21: 0.52 | L21: 0.106 | M21: =(K21*L21) -> 0.05512
B22: Factor 95: | C22: Demand % = | D22: 0.75 | F22: CCS Regulatory Exp | G22: = | H22: 0 | K22: =SUM(K19:K21) -> 1 | M22: =SUM(M19:M21) -> 0.08331344648
B23: Factor 96: | C23: Demand % = | D23: 0
B24: Factor 134: | C24: OverHead % = | D24: 0.3694468414
G25: Coincident Peak Data | J25: Pacificorp System Peak | L25: Distribution Peak Data
B26: Demand | C26: Sec = | D26: 1.10349 | I26: 1-inc | N26: Substation
B27: Loss Factors: | C27: Pri = | D27: 1.07706 | F27: Month/Yr | G27: Date | H27: Time | I27: 0-exc | J27: mW | K27: % | L27: Date | M27: Time | N27: Peaks
C28: Trn = | D28: 1.04975 | F28: 2010-07-01 | G28: 27 | H28: 17:00:00 | I28: 1 | J28: 9398.37975 | K28: =J$28/MAX($J$28:$J$39) -> 0.9978711135 | L28: 19 | M28: 17:00:00 | N28: 107.5833333
F29: 2010-08-01 | G29: 16 | H29: 17:00:00 | I29: 1 | J29: 9418.43052 | K29: =J$29/MAX($J$28:$J$39) -> 1 | L29: 3 | M29: 17:00:00 | N29: 26.17424242
B30: Energy | C30: Sec = | D30: 1.08757 | F30: 2010-09-01 | G30: 3 | H30: 18:00:00 | I30: 1 | J30: 8167.784253 | K30: =J$30/MAX($J$28:$J$39) -> 0.8672128797 | L30: 13 | M30: 17:00:00 | N30: 2.674242424
B31: Loss Factors: | C31: Pri = | D31: 1.05763 | F31: 2010-10-01 | G31: 1 | H31: 17:00:00 | I31: 1 | J31: 7425.91413 | K31: =J$31/MAX($J$28:$J$39) -> 0.7884449659 | L31: 1 | M31: 17:00:00 | N31: 4.174242424
C32: Trn = | D32: 1.03605 | F32: 2010-11-01 | G32: 23 | H32: 19:00:00 | I32: 1 | J32: 8592.433681 | K32: =J$32/MAX($J$28:$J$39) -> 0.9122999488 | L32: 29 | M32: 19:00:00 | N32: 3.174242424
F33: 2010-12-01 | G33: 29 | H33: 19:00:00 | I33: 1 | J33: 8401.511521 | K33: =J$33/MAX($J$28:$J$39) -> 0.8920288261 | L33: 6 | M33: 18:00:00 | N33: 13.67424242
B34: Dist Plant - split: | C34: Sec | D34: Pri | F34: 2010-01-01 | G34: 7 | H34: 19:00:00 | I34: 1 | J34: 8151.595277 | K34: =J$34/MAX($J$28:$J$39) -> 0.8654940183 | L34: 7 | M34: 19:00:00 | N34: 8.174242424
B35: Acct 364 = | C35: =1-D35 -> 0.005689448897 | D35: 0.9943105511 | F35: 2010-02-01 | G35: 22 | H35: 09:00:00 | I35: 1 | J35: 8001.506169 | K35: =J$35/MAX($J$28:$J$39) -> 0.8495583369 | L35: 9 | M35: 20:00:00 | N35: 4.674242424
B36: Acct 365 = | C36: =1-D36 -> 0.5679499232 | D36: 0.4320500768 | F36: 2010-03-01 | G36: 9 | H36: 20:00:00 | I36: 1 | J36: 7574.259834 | K36: =J$36/MAX($J$28:$J$39) -> 0.8041955417 | L36: 9 | M36: 20:00:00 | N36: 0.1742424242
B37: Acct 366 = | C37: =1-D37 -> 0.2621817634 | D37: 0.7378182366 | F37: 2010-04-01 | G37: 6 | H37: 10:00:00 | I37: 1 | J37: 7264.097835 | K37: =J$37/MAX($J$28:$J$39) -> 0.7712641527 | L37: 5 | M37: 13:00:00 | N37: 3.174242424
B38: Acct 367 = | C38: =1-D38 -> 0.3310987957 | D38: 0.6689012043 | F38: 2010-05-01 | G38: 6 | H38: 09:00:00 | I38: 1 | J38: 7092.216323 | K38: =J$38/MAX($J$28:$J$39) -> 0.7530146671 | L38: 17 | M38: 14:00:00 | N38: 5.174242424
B39: Acct 368 = | C39: =1-D39 -> 1 | D39: 0 | F39: 2010-06-01 | G39: 28 | H39: 18:00:00 | I39: 1 | J39: 8824.198107 | K39: =J$39/MAX($J$28:$J$39) -> 0.936907491 | L39: 30 | M39: 17:00:00 | N39: 28.17424242

Sheet Summary Table
A1: Summary
A4: =Inputs!$C$4 -> Rocky Mountain Power
A5: Cost Of Service By Rate Schedule
A6: =Inputs!$C$5 -> State of Utah
A7: =Inputs!$C$6 -> 12 Months Ended Dec 2010
A8: =Inputs!$C$7 -> Monthly Wgt Factors
A9: =TEXT(ActualROR,"?.00%")&" = Earned Return on Rate Base" -> 6.31% = Earned Return on Rate Base
B12: A | C12: B | D12: C | E12: D | F12: E | G12: F | H12: G | I12: H | J12: I | K12: J | L12: K | M12: L | N12: M
E13: Return on | F13: Rate of | G13: Total | H13: Generation | I13: Transmission | J13: Distribution | K13: Retail | L13: Misc | M13: Increase | N13: Percentage
A14: Line | B14: Schedule | C14: Description | D14: Annual | E14: Rate | F14: Return | G14: Cost of | H14: Cost of | I14: Cost of | J14: Cost of | K14: Cost of | L14: Cost of | M14: (Decrease) | N14: Change from
A15: No. | B15: No. | D15: Revenue | E15: Base | F15: Index | G15: Service | H15: Service | I15: Service | J15: Service | K15: Service | L15: Service | M15: to = ROR | N15: Current Revenues
A16: 1 | B16: 1 | C16: Residential | D16: ='G+T+D+R+M'!I$102 -> 604241736.3 | E16: ='G+T+D+R+M'!I$61 -> 0.0584069842 | F16: =(E16/E$30) -> 0.9262709069 | G16: =SUM(H16:L16) -> 614954839 | H16: =Generation!$I101 -> 315860001.8 | I16: =Transmission!$I$101 -> 82869882.08 | J16: =Distribution!$I$101 -> 172626919.2 | K16: =Retail!$I$101 -> 41862046.97 | L16: =Misc!$I$101 -> 1735988.953 | M16: =G16-D16 -> 10713102.68 | N16: ='G+T+D+R+M'!I$111 -> 0.01772982903
A17: =A16+1 -> 2 | B17: 6 | C17: General Service - Large | D17: ='G+T+D+R+M'!J$102 -> 431836542.3 | E17: ='G+T+D+R+M'!J$61 -> 0.07343582652 | F17: 1.164611913 | G17: =SUM(H17:L17) -> 416361582.7 | H17: =Generation!$J101 -> 275605370.7 | I17: =Transmission!$J$101 -> 70260498.16 | J17: =Distribution!$J$101 -> 68600437.87 | K17: =Retail!$J$101 -> 710709.1092 | L17: =Misc!$J$101 -> 1184566.851 | M17: -15474959.66 | N17: ='G+T+D+R+M'!J$111 -> -0.035835225
A18: =A17+1 -> 3 | B18: 8 | C18: General Service - Over 1 MW | D18: ='G+T+D+R+M'!K$102 -> 127021072.6 | E18: ='G+T+D+R+M'!K$61 -> 0.06099849596 | F18: 0.9673694497 | G18: 127963827 | H18: =Generation!$K101 -> 88333273.01 | I18: =Transmission!$K$101 -> 21478300 | J18: =Distribution!$K$101 -> 18209943.23 | K18: =Retail!$K$101 -> -418761.1209 | L18: =Misc!$K$101 -> 361071.8978 | M18: 942754.3997 | N18: ='G+T+D+R+M'!K$111 -> 0.007422031481
A19: 4 | B19: 7,11,12,13 | C19: Street & Area Lighting | D19: ='G+T+D+R+M'!L$102 -> 13381663.41 | E19: ='G+T+D+R+M'!L$61 -> 0.160082897 | F19: 2.53873971 | G19: 10703606.49 | H19: =Generation!$L101 -> 3632972.993 | I19: =Transmission!$L$101 -> 666294.6962 | J19: =Distribution!$L$101 -> 5920398.516 | K19: =Retail!$L$101 -> 456513.745 | L19: =Misc!$L$101 -> 27426.53722 | M19: -2678056.927 | N19: ='G+T+D+R+M'!L$111 -> -0.2001288513
A20: 5 | B20: 9 | C20: General Service - High Voltage | D20: ='G+T+D+R+M'!M$102 -> 197398198.5 | E20: ='G+T+D+R+M'!M$61 -> 0.05150942764 | F20: 0.8168832017 | G20: 204958178.3 | H20: =Generation!$M101 -> 168182610.5 | I20: =Transmission!$M$101 -> 37768265.41 | J20: =Distribution!$M$101 -> -11399.44978 | K20: =Retail!$M$101 -> -1512165.961 | L20: =Misc!$M$101 -> 530867.7769 | M20: 7559979.781 | N20: ='G+T+D+R+M'!M$111 -> 0.03829811942
A21: 6 | B21: 10 | C21: Irrigation | D21: ='G+T+D+R+M'!N$102 -> 13221922.65 | E21: ='G+T+D+R+M'!N$61 -> 0.05474347517 | F21: 0.8681716593 | G21: 13637439.07 | H21: =Generation!$N101 -> 8861044.014 | I21: =Transmission!$N$101 -> 1910266.828 | J21: =Distribution!$N$101 -> 2774743.604 | K21: =Retail!$N$101 -> 53410.2758 | L21: =Misc!$N$101 -> 37974.35178 | M21: 415516.4235 | N21: ='G+T+D+R+M'!N$111 -> 0.03142632388
A22: 7 | B22: 15 | C22: Traffic Signals | D22: ='G+T+D+R+M'!O$102 -> 524612.7714 | E22: ='G+T+D+R+M'!O$61 -> 0.05440779663 | F22: 0.8628481646 | G22: 538500.5924 | H22: =Generation!$O101 -> 228923.3759 | I22: =Transmission!$O$101 -> 46803.89858 | J22: =Distribution!$O$101 -> 144307.7936 | K22: =Retail!$O$101 -> 117303.519 | L22: =Misc!$O$101 -> 1162.005305 | M22: 13887.82102 | N22: ='G+T+D+R+M'!O$111 -> 0.02647251796
A23: 8 | B23: 15 | C23: Outdoor Lighting | D23: ='G+T+D+R+M'!P$102 -> 1112425.14 | E23: ='G+T+D+R+M'!P$61 -> 0.1645195006 | F23: 2.609099393 | G23: 892336.8534 | H23: =Generation!$P101 -> 644004.4242 | I23: =Transmission!$P$101 -> 128500.5036 | J23: =Distribution!$P$101 -> 95199.35917 | K23: =Retail!$P$101 -> 22634.11852 | L23: =Misc!$P$101 -> 1998.447911 | M23: -220088.2866 | N23: ='G+T+D+R+M'!P$111 -> -0.1978454807
A24: =A23+1 -> 9 | B24: 23 | C24: General Service - Small | D24: ='G+T+D+R+M'!Q$102 -> 114530130.7 | E24: ='G+T+D+R+M'!Q$61 -> 0.08100302539 | F24: 1.284619413 | G24: 107711223.5 | H24: =Generation!$Q101 -> 63183726.33 | I24: =Transmission!$Q$101 -> 15924806.97 | J24: =Distribution!$Q$101 -> 26135105.34 | K24: =Retail!$Q$101 -> 2166046.712 | L24: =Misc!$Q$101 -> 301538.1186 | M24: -6818907.264 | N24: ='G+T+D+R+M'!Q$111 -> -0.05953810775
A25: 10 | B25: 25 | C25: Mobile Home Parks | D25: ='G+T+D+R+M'!R$102 -> 911172.9886 | E25: ='G+T+D+R+M'!R$61 -> 0.05760651998 | F25: 0.9135764195 | G25: 931179.1739 | H25: =Generation!$R101 -> 574367.2116 | I25: =Transmission!$R$101 -> 150217.226 | J25: =Distribution!$R$101 -> 204726.9937 | K25: =Retail!$R$101 -> -942.6826644 | L25: =Misc!$R$101 -> 2810.425216 | M25: 20006.18529 | N25: ='G+T+D+R+M'!R$111 -> 0.02195651709
A26: 11 | B26: SpC | C26: Customer A | D26: ='G+T+D+R+M'!S$102 -> 10725335.85 | E26: ='G+T+D+R+M'!S$61 -> 0.05019206759 | F26: 0.7959913117 | G26: 11163327.71 | H26: =Generation!$S101 -> 9172528.422 | I26: =Transmission!$S$101 -> 1899001.204 | J26: =Distribution!$S$101 -> 61884.2747 | K26: =Retail!$S$101 -> 2658.444847 | L26: =Misc!$S$101 -> 27255.36218 | M26: 437991.8601 | N26: ='G+T+D+R+M'!S$111 -> 0.04083712309
A27: 12 | B27: SpC | C27: Customer B | D27: ='G+T+D+R+M'!T$102 -> 27322204.19 | E27: ='G+T+D+R+M'!T$61 -> 0.02088266848 | F27: 0.3311762888 | G27: =SUM(H27:L27) -> 30797331.21 | H27: =Generation!$T101 -> 26830896.7 | I27: =Transmission!$T$101 -> 4199325.438 | J27: =Distribution!$T$101 -> 111400.1387 | K27: =Retail!$T$101 -> -407757.7542 | L27: =Misc!$T$101 -> 63466.69141 | M27: =G27-D27 -> 3475127.017 | N27: ='G+T+D+R+M'!T$111 -> 0.1271905807
A28: 13 | B28: SpC | C28: Customer C | D28: ='G+T+D+R+M'!U$102 -> 18918328.81 | E28: ='G+T+D+R+M'!U$61 -> 0.03703201724 | F28: 0.5872873023 | G28: =SUM(H28:L28) -> 20531974.78 | H28: =Generation!$U101 -> 17028575.13 | I28: =Transmission!$U$101 -> 3365194.562 | J28: =Distribution!$U$101 -> 84583.36046 | K28: =Retail!$U$101 -> 5109.317779 | L28: =Misc!$U$101 -> 48512.40643 | M28: =G28-D28 -> 1613645.969 | N28: ='G+T+D+R+M'!U$111 -> 0.08529537598
A30: =+A28+1 -> 14 | C30: Total Utah Jurisdiction | D30: =SUM(D16:D28) -> 1561145346 | E30: ='G+T+D+R+M'!H61 -> 0.06305604955 | F30: =(E30/E$30) -> 1 | G30: =SUM(G16:G29) -> 1561145346 | H30: =SUM(H16:H28) -> 978138294.6 | I30: 240667357 | J30: 294958250.2 | K30: 43056804.7 | L30: 4324639.825 | M30: -4.936009645e-08 | N30: ='G+T+D+R+M'!H$111 -> 9.214531767e-11
A35: Footnotes :
B36: Column C : | C36: Annual revenues based on Jan 2010 thru Dec 2010 data.
B37: Column D : | C37: Calculated Return on Ratebase per Jan 2010 thru Dec 2010 Embedded Cost of Service Study
B38: Column E : | C38: Rate of Return Index. Rate of return by rate schedule, divided by Utah Jurisdiction's normalized rate of return.
B39: Column F : | C39: Calculated Full Cost of Service at Jurisdictional Rate of Return per the Jan 2010 thru Dec 2010 Embedded COS Study
B40: Column G : | C40: Calculated Generation Cost of Service at Jurisdictional Rate of Return per the Jan 2010 thru Dec 2010 Embedded COS Study.
B41: Column H : | C41: Calculated Transmission Cost of Service at Jurisdictional Rate of Return per the Jan 2010 thru Dec 2010 Embedded COS Study.
B42: Column I : | C42: Calculated Distribution Cost of Service at Jurisdictional Rate of Return per the Jan 2010 thru Dec 2010 Embedded COS Study.
B43: Column J : | C43: Calculated Retail Cost of Service at Jurisdictional Rate of Return per the Jan 2010 thru Dec 2010 Embedded COS Study.
B44: Column K : | C44: Calculated Miscellaneous Cost of Service at Jurisdictional Rate of Return per the Jan 2010 thru Dec 2010 Embedded COS Study.
B45: Column L : | C45: Increase or Decrease Required to Move From Annual Revenue to Full Cost of Service Dollars.
B46: Column M : | C46: Increase or Decrease Required to Move From Annual Revenue to Full Cost of Service Percent.
A53: =Inputs!C4 -> Rocky Mountain Power
A54: Cost Of Service By Rate Schedule
A55: =Inputs!$C$5 -> State of Utah
A56: =Inputs!$C$6 -> 12 Months Ended Dec 2010
A57: =Inputs!$C$7 -> Monthly Wgt Factors
A58: =TEXT(TargetROR,"?.00%")&" = Target Return on Rate Base" -> 6.31% = Target Return on Rate Base
B61: A | C61: B | D61: C | E61: D | F61: E | G61: F | H61: G | I61: H | J61: I | K61: J | L61: K | M61: L | N61: M
E62: Return on | F62: Rate of | G62: Total | H62: Generation | I62: Transmission | J62: Distribution | K62: Retail | L62: Misc | M62: Increase | N62: Percentage
A63: Line | B63: Schedule | C63: Description | D63: Annual | E63: Rate | F63: Return | G63: Cost of | H63: Cost of | I63: Cost of | J63: Cost of | K63: Cost of | L63: Cost of | M63: (Decrease) | N63: Change from
A64: No. | B64: No. | D64: Revenue | E64: Base | F64: Index | G64: Service | H64: Service | I64: Service | J64: Service | K64: Service | L64: Service | M64: to = ROR | N64: Current Revenues
A65: 1 | B65: 1 | C65: Residential | D65: ='Class Summary'!F$80 -> 604241736.3 | E65: =(+'G+T+D+R+M'!I$85+'G+T+D+R+M'!I$29)/'G+T+D+R+M'!I$58 -> 0.0584069842 | F65: =(E65/E$79) -> 0.9262709069 | G65: =SUM(H65:L65) -> 614954839 | H65: ='Generation Summary'!F$68 -> 315860001.8 | I65: ='Transmission Summary'!$F$68 -> 82869882.08 | J65: ='Distribution Summary'!$F$68 -> 172626919.2 | K65: ='Retail Summary'!$F$68 -> 41862046.97 | L65: ='Misc Summary'!$F$68 -> 1735988.953 | M65: =G65-D65 -> 10713102.68 | N65: =M65/D65 -> 0.01772982903
A66: =A65+1 -> 2 | B66: 6 | C66: General Service - Large | D66: ='Class Summary'!G$80 -> 431836542.3 | E66: =(+'G+T+D+R+M'!J$85+'G+T+D+R+M'!J$29)/'G+T+D+R+M'!J$58 -> 0.07343582652 | F66: 1.164611913 | G66: 416361582.7 | H66: ='Generation Summary'!G$68 -> 275605370.7 | I66: ='Transmission Summary'!$G$68 -> 70260498.16 | J66: ='Distribution Summary'!$G$68 -> 68600437.87 | K66: ='Retail Summary'!$G$68 -> 710709.1092 | L66: ='Misc Summary'!$G$68 -> 1184566.851 | M66: -15474959.66 | N66: -0.035835225
A67: =A66+1 -> 3 | B67: 8 | C67: General Service - Over 1 MW | D67: ='Class Summary'!H80 -> 127021072.6 | E67: =(+'G+T+D+R+M'!K$85+'G+T+D+R+M'!K$29)/'G+T+D+R+M'!K$58 -> 0.06099849596 | F67: 0.9673694497 | G67: 127963827 | H67: ='Generation Summary'!H$68 -> 88333273.01 | I67: ='Transmission Summary'!$H$68 -> 21478300 | J67: ='Distribution Summary'!$H$68 -> 18209943.23 | K67: ='Retail Summary'!$H$68 -> -418761.1209 | L67: ='Misc Summary'!$H$68 -> 361071.8978 | M67: 942754.3997 | N67: 0.007422031481
A68: 4 | B68: 7,11,12,13 | C68: Street & Area Lighting | D68: ='Class Summary'!I$80 -> 13381663.41 | E68: =(+'G+T+D+R+M'!L$85+'G+T+D+R+M'!L$29)/'G+T+D+R+M'!L$58 -> 0.160082897 | F68: 2.53873971 | G68: 10703606.49 | H68: ='Generation Summary'!I$68 -> 3632972.993 | I68: ='Transmission Summary'!$I$68 -> 666294.6962 | J68: ='Distribution Summary'!$I$68 -> 5920398.516 | K68: ='Retail Summary'!$I$68 -> 456513.745 | L68: ='Misc Summary'!$I$68 -> 27426.53722 | M68: -2678056.927 | N68: -0.2001288513
A69: 5 | B69: 9 | C69: General Service - High Voltage | D69: ='Class Summary'!J$80 -> 197398198.5 | E69: =(+'G+T+D+R+M'!M$85+'G+T+D+R+M'!M$29)/'G+T+D+R+M'!M$58 -> 0.05150942764 | F69: 0.8168832017 | G69: 204958178.3 | H69: ='Generation Summary'!J$68 -> 168182610.5 | I69: ='Transmission Summary'!$J$68 -> 37768265.41 | J69: ='Distribution Summary'!$J$68 -> -11399.44978 | K69: ='Retail Summary'!$J$68 -> -1512165.961 | L69: ='Misc Summary'!$J$68 -> 530867.7769 | M69: 7559979.781 | N69: 0.03829811942
A70: 6 | B70: 10 | C70: Irrigation | D70: ='Class Summary'!K$80 -> 13221922.65 | E70: =(+'G+T+D+R+M'!N$85+'G+T+D+R+M'!N$29)/'G+T+D+R+M'!N$58 -> 0.05474347517 | F70: 0.8681716593 | G70: 13637439.07 | H70: ='Generation Summary'!K$68 -> 8861044.014 | I70: ='Transmission Summary'!$K$68 -> 1910266.828 | J70: ='Distribution Summary'!$K$68 -> 2774743.604 | K70: ='Retail Summary'!$K$68 -> 53410.2758 | L70: ='Misc Summary'!$K$68 -> 37974.35178 | M70: 415516.4235 | N70: 0.03142632388
A71: 7 | B71: 15 | C71: Traffic Signals | D71: ='Class Summary'!L$80 -> 524612.7714 | E71: =(+'G+T+D+R+M'!O$85+'G+T+D+R+M'!O$29)/'G+T+D+R+M'!O$58 -> 0.05440779663 | F71: 0.8628481646 | G71: 538500.5924 | H71: ='Generation Summary'!L$68 -> 228923.3759 | I71: ='Transmission Summary'!$L$68 -> 46803.89858 | J71: ='Distribution Summary'!$L$68 -> 144307.7936 | K71: ='Retail Summary'!$L$68 -> 117303.519 | L71: ='Misc Summary'!$L$68 -> 1162.005305 | M71: 13887.82102 | N71: 0.02647251796
A72: 8 | B72: 15 | C72: Outdoor Lighting | D72: ='Class Summary'!M$80 -> 1112425.14 | E72: =(+'G+T+D+R+M'!P$85+'G+T+D+R+M'!P$29)/'G+T+D+R+M'!P$58 -> 0.1645195006 | F72: 2.609099393 | G72: 892336.8534 | H72: ='Generation Summary'!M$68 -> 644004.4242 | I72: ='Transmission Summary'!$M$68 -> 128500.5036 | J72: ='Distribution Summary'!$M$68 -> 95199.35917 | K72: ='Retail Summary'!$M$68 -> 22634.11852 | L72: ='Misc Summary'!$M$68 -> 1998.447911 | M72: -220088.2866 | N72: -0.1978454807
A73: =A72+1 -> 9 | B73: 23 | C73: General Service - Small | D73: ='Class Summary'!N$80 -> 114530130.7 | E73: =(+'G+T+D+R+M'!Q$85+'G+T+D+R+M'!Q$29)/'G+T+D+R+M'!Q$58 -> 0.08100302539 | F73: 1.284619413 | G73: 107711223.5 | H73: ='Generation Summary'!N$68 -> 63183726.33 | I73: ='Transmission Summary'!$N$68 -> 15924806.97 | J73: ='Distribution Summary'!$N$68 -> 26135105.34 | K73: ='Retail Summary'!$N$68 -> 2166046.712 | L73: ='Misc Summary'!$N$68 -> 301538.1186 | M73: -6818907.264 | N73: -0.05953810775
A74: 10 | B74: 25 | C74: Mobile Home Parks | D74: ='Class Summary'!O$80 -> 911172.9886 | E74: =(+'G+T+D+R+M'!R$85+'G+T+D+R+M'!R$29)/'G+T+D+R+M'!R$58 -> 0.05760651998 | F74: 0.9135764195 | G74: 931179.1739 | H74: ='Generation Summary'!O$68 -> 574367.2116 | I74: ='Transmission Summary'!$O$68 -> 150217.226 | J74: ='Distribution Summary'!$O$68 -> 204726.9937 | K74: ='Retail Summary'!$O$68 -> -942.6826644 | L74: ='Misc Summary'!$O$68 -> 2810.425216 | M74: 20006.18529 | N74: 0.02195651709
A75: 11 | B75: SpC | C75: Customer A | D75: ='Class Summary'!P$80 -> 10725335.85 | E75: =(+'G+T+D+R+M'!S$85+'G+T+D+R+M'!S$29)/'G+T+D+R+M'!S$58 -> 0.05019206759 | F75: 0.7959913117 | G75: 11163327.71 | H75: ='Generation Summary'!P$68 -> 9172528.422 | I75: ='Transmission Summary'!$P$68 -> 1899001.204 | J75: ='Distribution Summary'!$P$68 -> 61884.2747 | K75: ='Retail Summary'!$P$68 -> 2658.444847 | L75: ='Misc Summary'!$P$68 -> 27255.36218 | M75: 437991.8601 | N75: 0.04083712309
A76: 12 | B76: SpC | C76: Customer B | D76: ='Class Summary'!Q$80 -> 27322204.19 | E76: =(+'G+T+D+R+M'!T$85+'G+T+D+R+M'!T$29)/'G+T+D+R+M'!T$58 -> 0.02088266848 | F76: 0.3311762888 | G76: 30797331.21 | H76: ='Generation Summary'!Q$68 -> 26830896.7 | I76: ='Transmission Summary'!$Q$68 -> 4199325.438 | J76: ='Distribution Summary'!$Q$68 -> 111400.1387 | K76: ='Retail Summary'!$Q$68 -> -407757.7542 | L76: ='Misc Summary'!$Q$68 -> 63466.69141 | M76: 3475127.017 | N76: 0.1271905807
A77: 13 | B77: SpC | C77: Customer C | D77: ='Class Summary'!R$80 -> 18918328.81 | E77: =(+'G+T+D+R+M'!U$85+'G+T+D+R+M'!U$29)/'G+T+D+R+M'!U$58 -> 0.03703201724 | F77: 0.5872873023 | G77: 20531974.78 | H77: ='Generation Summary'!R$68 -> 17028575.13 | I77: ='Transmission Summary'!$R$68 -> 3365194.562 | J77: ='Distribution Summary'!$R$68 -> 84583.36046 | K77: ='Retail Summary'!$R$68 -> 5109.317779 | L77: ='Misc Summary'!$R$68 -> 48512.40643 | M77: 1613645.969 | N77: 0.08529537598
A79: =A77+1 -> 14 | C79: Total Utah Jurisdiction | D79: =SUM(D65:D77) -> 1561145346 | E79: =(+'G+T+D+R+M'!H$85+'G+T+D+R+M'!H$29)/'G+T+D+R+M'!H$58 -> 0.06305604955 | F79: =(E79/E$79) -> 1 | G79: =SUM(G65:G77) -> 1561145346 | H79: 978138294.6 | I79: =SUM(I65:I77) -> 240667357 | J79: =SUM(J65:J77) -> 294958250.2 | K79: =SUM(K65:K77) -> 43056804.7 | L79: =SUM(L65:L77) -> 4324639.825 | M79: =SUM(M65:M77) -> 6.891787052e-08 | N79: =M79/D79 -> 4.414571051e-17
A84: Footnotes :
B85: =+$B36 -> Column C : | C85: =+$C36 -> Annual revenues based on Jan 2010 thru Dec 2010 data.
B86: Column D : | C86: Calculated Return on Ratebase per Jan 2010 thru Dec 2010 Embedded Cost of Service Study
B87: Column E : | C87: Rate of Return Index. Rate of return by rate schedule, divided by Utah Jurisdiction's normalized rate of return.
B88: Column F : | C88: Calculated Full Cost of Service at Jurisdictional Rate of Return per the Jan 2010 thru Dec 2010 Embedded COS Study
B89: Column G : | C89: Calculated Generation Cost of Service at Jurisdictional Rate of Return per the Jan 2010 thru Dec 2010 Embedded COS Study.
B90: Column H : | C90: Calculated Transmission Cost of Service at Jurisdictional Rate of Return per the Jan 2010 thru Dec 2010 Embedded COS Study.
B91: Column I : | C91: Calculated Distribution Cost of Service at Jurisdictional Rate of Return per the Jan 2010 thru Dec 2010 Embedded COS Study.
B92: Column J : | C92: Calculated Retail Cost of Service at Jurisdictional Rate of Return per the Jan 2010 thru Dec 2010 Embedded COS Study.
B93: Column K : | C93: Calculated Miscellaneous Cost of Service at Jurisdictional Rate of Return per the Jan 2010 thru Dec 2010 Embedded COS Study.
B94: Column L : | C94: Increase or Decrease Required to Move From Annual Revenue to Full Cost of Service Dollars.
B95: Column M : | C95: Increase or Decrease Required to Move From Annual Revenue to Full Cost of Service Percent.

Sheet Unit Costs-earned
B1: Unit Costs @ Earned ROR
B2: =Inputs!$C$4 -> Rocky Mountain Power
B3: Cost Of Service By Rate Schedule
B4: =Inputs!$C$5 -> State of Utah
B5: =Inputs!$C$7 -> Monthly Wgt Factors
B6: =Inputs!$C$6 -> 12 Months Ended Dec 2010
G7: =ActualROR -> 0.06305604955 | H7: = Actual Return On Rate Base
C10: ='Hot Sheet'!$H$10 -> Utah | E10: ='Hot Sheet'!$J$10 -> General | F10: ='Hot Sheet'!$K$10 -> General | G10: ='Hot Sheet'!$L$10 -> Street & Area | H10: ='Hot Sheet'!$M$10 -> General | J10: ='Hot Sheet'!$O$10 -> Traffic | K10: ='Hot Sheet'!$P$10 -> Outdoor | L10: ='Hot Sheet'!$Q$10 -> General | M10: ='Hot Sheet'!R$10 -> Mobile
C11: ='Hot Sheet'!$H$11 -> Jurisdiction | D11: ='Hot Sheet'!$I$11 -> Residential | E11: ='Hot Sheet'!$J$11 -> Large Dist. | F11: ='Hot Sheet'!$K$11 -> +1 MW | G11: ='Hot Sheet'!$L$11 -> Lighting | H11: ='Hot Sheet'!$M$11 -> Trans | I11: ='Hot Sheet'!$N$11 -> Irrigation | J11: ='Hot Sheet'!$O$11 -> Signals | K11: ='Hot Sheet'!$P$11 -> Lighting | L11: ='Hot Sheet'!$Q$11 -> Small Dist. | M11: ='Hot Sheet'!R$11 -> Home Park | N11: ='Hot Sheet'!S$11 -> Industrial | O11: ='Hot Sheet'!T$11 -> Industrial | P11: ='Hot Sheet'!U$11 -> Industrial | Q11: Aggregated
B12: Description | C12: ='Hot Sheet'!$H$12 -> Normalized | D12: ='Hot Sheet'!$I$12 -> Sch 1 | E12: ='Hot Sheet'!$J$12 -> Sch 6 | F12: ='Hot Sheet'!$K$12 -> Sch 8 | G12: ='Hot Sheet'!$L$12 -> Sch. 7,11,12 | H12: ='Hot Sheet'!$M$12 -> Sch 9 | I12: ='Hot Sheet'!$N$12 -> Sch 10 | J12: ='Hot Sheet'!$O$12 -> Sch 15 | K12: ='Hot Sheet'!$P$12 -> Sch 15 | L12: ='Hot Sheet'!$Q$12 -> Sch 23 | M12: ='Hot Sheet'!R$12 -> Sch 25 | N12: ='Hot Sheet'!S$12 -> Cust A | O12: ='Hot Sheet'!T$12 -> Cust B | P12: ='Hot Sheet'!U$12 -> Cust C | Q12: Industrial
A14: 14 | B14: UNITS
A15: =+A14+1 -> 15 | B15: NCP kW | C15: =SUM(D15:P15) -> 94753557.35 | D15: ='Dist. Factors'!$P$274 -> 55468973.08 | E15: ='Dist. Factors'!P281 -> 15901498.23 | F15: ='Dist. Factors'!P282 -> 4507445.605 | G15: ='Dist. Factors'!P275+'Dist. Factors'!P283+'Dist. Factors'!P295+'Dist. Factors'!P296 -> 244861.9068 | H15: ='Dist. Factors'!P284 -> 8558135.793 | I15: ='Dist. Factors'!P292 -> 812095.579 | J15: ='Dist. Factors'!P297 -> 7601 | K15: ='Dist. Factors'!P298 -> 42551.09324 | L15: ='Dist. Factors'!P285 -> 6151006.808 | M15: ='Dist. Factors'!P276 -> 101988.2667 | N15: ='Dist. Factors'!P286 -> 374117 | O15: ='Dist. Factors'!P287 -> 1401547 | P15: ='Dist. Factors'!P288 -> 1181736 | Q15: =SUM(N15:P15) -> 2957400
A16: =+A15+1 -> 16 | B16: Annual KWH | C16: =SUM(D16:P16) -> 2.178884205e+10 | D16: ='Energy Factor'!C25*1000 -> 6593562698 | E16: ='Energy Factor'!D25*1000 -> 5794976062 | F16: ='Energy Factor'!E25*1000 -> 1980845727 | G16: ='Energy Factor'!F25*1000 -> 88198984 | H16: ='Energy Factor'!G25*1000 -> 4240972166 | I16: ='Energy Factor'!H25*1000 -> 206386004 | J16: ='Energy Factor'!I25*1000 -> 5543508 | K16: ='Energy Factor'!J25*1000 -> 15435999 | L16: ='Energy Factor'!K25*1000 -> 1322433904 | M16: ='Energy Factor'!L25*1000 -> 12057458.6 | N16: ='Energy Factor'!M25*1000 -> 241536800 | O16: ='Energy Factor'!N25*1000 -> 814593736 | P16: ='Energy Factor'!O25*1000 -> 472299000 | Q16: =SUM(N16:P16) -> 1528429536
A17: =+A16+1 -> 17 | B17: Average Customers | C17: =SUM(D17:P17) -> 809713.25 | D17: ='Cust Factors'!D23 -> 702594.75 | E17: ='Cust Factors'!E23 -> 14637.25 | F17: ='Cust Factors'!F23 -> 277.3333333 | G17: ='Cust Factors'!G23 -> 9880.583333 | H17: ='Cust Factors'!H23 -> 159.5 | I17: ='Cust Factors'!I23 -> 2756.583333 | J17: ='Cust Factors'!J23 -> 2221.416667 | K17: ='Cust Factors'!K23 -> 433.5833333 | L17: ='Cust Factors'!L23 -> 76738.58333 | M17: ='Cust Factors'!M23 -> 10.66666667 | N17: ='Cust Factors'!N23 -> 1 | O17: ='Cust Factors'!O23 -> 1 | P17: ='Cust Factors'!P23 -> 1 | Q17: =SUM(N17:P17) -> 3
A18: =+A17+1 -> 18 | B18: Load Factor | C18: =+C16/(C15*730) -> 0.315003781 | D18: =+D16/(D15*730) -> 0.1628347735 | E18: 0.4992185805 | F18: 0.6020011189 | G18: 0.4934231201 | H18: 0.6788336915 | I18: 0.3481370429 | J18: 0.9990588837 | K18: 0.4969367999 | L18: 0.2945132967 | M18: 0.1619506548 | N18: 0.8844086977 | O18: 0.7961786727 | P18: 0.5474868596 | Q18: =+Q16/(Q15*730) -> 0.7079661495
B19: CP Load Factor | D19: ='Demand Factors'!D29*1000/730/'Demand Factors'!D27 -> 0.7078092891 | E19: ='Demand Factors'!E29*1000/730/'Demand Factors'!E27 -> 0.7926501232 | G19: ='Demand Factors'!G29*1000/730/'Demand Factors'!G27 -> 1.921022233 | H19: ='Demand Factors'!H29*1000/730/'Demand Factors'!H27 -> 1.070755306 | I19: ='Demand Factors'!I29*1000/730/'Demand Factors'!I27 -> 1.009344622 | J19: ='Demand Factors'!J29*1000/730/'Demand Factors'!J27 -> 1.131975811 | K19: ='Demand Factors'!K29*1000/730/'Demand Factors'!K27 -> 1.818310358 | L19: ='Demand Factors'!L29*1000/730/'Demand Factors'!L27 -> 0.811754324 | M19: ='Demand Factors'!M29*1000/730/'Demand Factors'!M27 -> 0.7157942778 | N19: ='Demand Factors'!N29*1000/730/'Demand Factors'!N27 -> 1.235857097 | O19: ='Demand Factors'!O29*1000/730/'Demand Factors'!O27 -> 2.174196276 | P19: ='Demand Factors'!P29*1000/730/'Demand Factors'!P27 -> 1.408107928 | Q19: =SUM('Demand Factors'!O29:P29)*1000/SUM('Demand Factors'!O27:P27)/730 -> 1.812325306
A20: =+A18+1 -> 19
A21: =+A20+1 -> 20 | B21: GTDRM TOTAL | C21: =+C22/$C22 -> 1 | D21: 0.3939126106 | E21: 0.2667026383 | F21: 0.08196791369 | G21: 0.006856252374 | H21: 0.1312870571 | I21: 0.008735534525 | J21: 0.0003449394342 | K21: 0.0005715911433 | L21: 0.06899500019 | M21: 0.0005964717994 | N21: 0.00715072926 | O21: 0.0197273952 | P21: 0.01315186624
A22: =+A21+1 -> 21 | B22: Revenue Requirement | C22: =C100+C106+C34+C40+C52+C58+C70+C76+C82+C88+C94 -> 1561145346 | D22: 614954839 | E22: 416361582.7 | F22: =F100+F106+F34+F40+F52+F58+F70+F76+F82+F88+F94 -> 127963827 | G22: 10703606.49 | H22: 204958178.3 | I22: 13637439.07 | J22: 538500.5924 | K22: 892336.8534 | L22: 107711223.5 | M22: 931179.1739 | N22: 11163327.71 | O22: 30797331.21 | P22: 20531974.78 | Q22: =SUM(N22:P22) -> 62492633.7
A23: 22 | B23: Per NCP kW | C23: =C22/C$15 -> 16.47584946 | D23: 11.08646519 | E23: 26.18379581 | F23: 28.38943345 | G23: 43.7128283 | H23: 23.94892805 | I23: 16.79289905 | J23: 70.84601927 | K23: 20.97095011 | L23: 17.51115335 | M23: 9.130257862 | N23: 29.8391351 | O23: 21.97381266 | P23: 17.37441762 | Q23: 21.13093721
A24: 23 | B24: Per KWH | C24: =C22/C$16 -> 0.07164884408 | D24: 0.09326594243 | E24: 0.07184871485 | F24: =F22/F$16 -> 0.06460060229 | G24: 0.1213574806 | H24: 0.04832811211 | I24: 0.06607734444 | J24: 0.09714076221 | K24: 0.05780881778 | L24: 0.08144923021 | M24: 0.07722847783 | N24: 0.04621791672 | O24: 0.03780698261 | P24: 0.0434724079 | Q24: 0.04088682679
A25: 24 | B25: Per Customer | C25: =C22/C$17 -> 1928.022478 | D25: 875.2625023 | E25: 28445.34203 | F25: =F22/F$17 -> 461408.0301 | G25: 1083.297021 | H25: 1285004.253 | I25: 4947.225396 | J25: 242.4131414 | K25: 2058.051555 | L25: 1403.612352 | M25: =M22/M$17 -> 87298.04756 | N25: 11163327.71 | O25: 30797331.21 | P25: 20531974.78 | Q25: 20830877.9
A26: 25
A27: 26 | B27: GENERATION-TOTAL | C27: =+C28/$C28 -> 1 | D27: 0.3229195744 | E27: 0.2817652393 | F27: 0.09030755006 | G27: 0.003714171108 | H27: 0.1719415459 | I27: 0.009059091196 | J27: 0.000234039887 | K27: 0.0006583981302 | L27: 0.06459590293 | M27: 0.0005872045035 | N27: 0.009377537381 | O27: 0.02743057586 | P27: 0.01740916926 | Q27: 0.05421728251
A28: 27 | B28: Revenue Requirement | C28: =+C34+C40 -> 978138294.6 | D28: 315860001.8 | E28: 275605370.7 | F28: =+F34+F40 -> 88333273.01 | G28: 3632972.993 | H28: 168182610.5 | I28: 8861044.014 | J28: 228923.3759 | K28: 644004.4242 | L28: 63183726.33 | M28: 574367.2116 | N28: 9172528.422 | O28: 26830896.7 | P28: 17028575.13 | Q28: =SUM(N28:P28) -> 53032000.25
A29: 28 | B29: Per NCP kW | C29: =C28/C$15 -> 10.32297174 | D29: 5.694354597 | E29: 17.33203795 | F29: 19.59719113 | G29: 14.83682391 | H29: 19.65178102 | I29: 10.91133143 | J29: 30.117534 | K29: 15.13485025 | L29: 10.27209501 | M29: 5.631698922 | N29: 24.51780706 | O29: 19.14377234 | P29: 14.40979638 | Q29: 17.93196735
A30: 29 | B30: Per KWH | C30: =C28/C$16 -> 0.04489170616 | D30: 0.04790429944 | E30: 0.0475593631 | F30: =F28/F$16 -> 0.04459371661 | G30: 0.04119064448 | H30: 0.03965661738 | I30: 0.04293432617 | J30: 0.04129576 | K30: 0.04172094234 | L30: 0.04777836241 | M30: 0.04763584358 | N30: 0.03797569738 | O30: 0.03293776457 | P30: 0.03605464998 | Q30: 0.03469705276
A31: 30 | B31: Per Customer | C31: =C28/C$17 -> 1208.00579 | D31: 449.5621435 | E31: 18829.04034 | F31: =F28/F$17 -> 318509.3979 | G31: 367.6881082 | H31: 1054436.43 | I31: 3214.502499 | J31: 103.0528758 | K31: 1485.307148 | L31: 823.3632103 | M31: 53846.92609 | N31: 9172528.422 | O31: 26830896.7 | P31: 17028575.13 | Q31: 17677333.42
A32: 31
A33: 32 | B33: GENERATION-DEMAND | C33: =+C34/$C34 -> 1 | D33: 0.3603207088 | E33: 0.300542802 | F33: 0.08851442054 | G33: 0.002231429766 | H33: 0.1409653986 | I33: 0.008429083684 | J33: 0.000184569931 | K33: 0.0004097117977 | L33: 0.06856195999 | M33: 0.0006487899453 | N33: 0.006763651517 | O33: 0.01134448558 | P33: 0.01108298781 | Q33: 0.02919112491
A34: 33 | B34: Revenue Requirement | C34: ='Generation Summary'!E$129 -> 338009868.8 | D34: ='Generation Summary'!F$129 -> 121791955.5 | E34: ='Generation Summary'!G$129 -> 101586433.1 | F34: ='Generation Summary'!H129 -> 29918747.68 | G34: ='Generation Summary'!I$129 -> 754245.2825 | H34: ='Generation Summary'!J$129 -> 47647695.9 | I34: ='Generation Summary'!K$129 -> 2849113.47 | J34: ='Generation Summary'!L$129 -> 62386.45818 | K34: ='Generation Summary'!M$129 -> 138486.631 | L34: ='Generation Summary'!N$129 -> 23174619.1 | M34: ='Generation Summary'!O$129 -> 219297.4043 | N34: ='Generation Summary'!P$129 -> 2286180.962 | O34: ='Generation Summary'!Q$129 -> 3834548.082 | P34: ='Generation Summary'!R$129 -> 3746159.257 | Q34: =SUM(N34:P34) -> 9866888.301
A35: 34 | B35: Per NCP kW | C35: =C34/C$15 -> 3.567252547 | D35: 2.195677128 | E35: 6.388481867 | F35: 6.637628116 | G35: 3.080288365 | H35: 5.567532119 | I35: 3.50834747 | J35: 8.207664542 | K35: 3.254596309 | L35: 3.767613957 | M35: 2.150221897 | N35: 6.110871631 | O35: 2.735939702 | P35: 3.170047504 | Q35: 3.336338777
A36: 35 | B36: Per KWH | C36: =C34/C$16 -> 0.01551297991 | D36: 0.0184713426 | E36: 0.01753008675 | F36: =F34/F$16 -> 0.01510402717 | G36: 0.008551632323 | H36: 0.0112350881 | I36: 0.01380478044 | J36: 0.01125396738 | K36: 0.008971666233 | L36: 0.01752421731 | M36: 0.01818769706 | N36: 0.009465145527 | O36: 0.004707313489 | P36: 0.007931753522 | Q36: 0.006455572905
A37: 36 | B37: Per Customer | C37: =C34/C$17 -> 417.4439147 | D37: 173.3459516 | E37: 6940.267679 | F37: =F34/F$17 -> 107880.0998 | G37: 76.33610861 | H37: 298731.6357 | I37: 1033.566965 | J37: 28.08408666 | K37: 319.4002637 | L37: 301.9943566 | M37: 20559.13165 | N37: 2286180.962 | O37: 3834548.082 | P37: 3746159.257 | Q37: 3288962.767
A38: 37
A39: 38 | B39: GENERATION-ENERGY | C39: =+C40/$C40 -> 1 | D39: 0.3031704866 | E39: 0.2718500391 | F39: 0.09125438424 | G39: 0.004497109635 | H39: 0.1882980192 | I39: 0.009391756874 | J39: 0.0002601617285 | K39: 0.0007897130839 | L39: 0.06250168812 | M39: 0.0005546852679 | N39: 0.0107577592 | O39: 0.03592458589 | P39: 0.02074961108 | Q39: 0.06743195617
A40: 39 | B40: Revenue Requirement | C40: ='Generation Summary'!E$197 -> 640128425.8 | D40: ='Generation Summary'!F$197 -> 194068046.3 | E40: ='Generation Summary'!G$197 -> 174018937.6 | F40: ='Generation Summary'!$H$197 -> 58414525.33 | G40: ='Generation Summary'!I$197 -> 2878727.711 | H40: ='Generation Summary'!J$197 -> 120534914.6 | I40: ='Generation Summary'!K$197 -> 6011930.543 | J40: ='Generation Summary'!L$197 -> 166536.9177 | K40: ='Generation Summary'!M$197 -> 505517.7932 | L40: ='Generation Summary'!N$197 -> 40009107.23 | M40: ='Generation Summary'!O$197 -> 355069.8073 | N40: ='Generation Summary'!P$197 -> 6886347.46 | O40: ='Generation Summary'!Q$197 -> 22996348.61 | P40: ='Generation Summary'!R$197 -> 13282415.88 | Q40: =SUM(N40:P40) -> 43165111.95
A41: 40 | B41: Per NCP kW | C41: =C40/C$15 -> 6.755719191 | D41: 3.498677469 | E41: 10.94355608 | F41: 12.95956301 | G41: 11.75653555 | H41: 14.0842489 | I41: 7.402983958 | J41: 21.90986946 | K41: 11.88025394 | L41: 6.50448105 | M41: 3.481477025 | N41: 18.40693542 | O41: 16.40783264 | P41: 11.23974887 | Q41: 14.59562858
A42: 41 | B42: Per KWH | C42: =C40/C$16 -> 0.02937872625 | D42: 0.02943295684 | E42: 0.03002927635 | F42: =F40/F$16 -> 0.02948968945 | G42: 0.03263901216 | H42: 0.02842152929 | I42: 0.02912954574 | J42: 0.03004179262 | K42: 0.03274927611 | L42: 0.03025414511 | M42: 0.02944814651 | N42: 0.02851055185 | O42: 0.02823045108 | P42: 0.02812289646 | Q42: 0.02824147985
A43: 42 | B43: Per Customer | C43: =C40/C$17 -> 790.5618758 | D43: 276.2161919 | E43: 11888.77266 | F43: =F40/F$17 -> 210629.2981 | G43: 291.3519996 | H43: 755704.7939 | I43: 2180.935534 | J43: 74.96878917 | K43: 1165.906884 | L43: 521.3688537 | M43: 33287.79444 | N43: 6886347.46 | O43: 22996348.61 | P43: 13282415.88 | Q43: 14388370.65
A44: 43
A45: 44 | B45: TRANSMISSION-TOTAL | C45: =+C46/$C46 -> 1 | D45: 0.3443337024 | E45: 0.2919402907 | F45: 0.08924475786 | G45: 0.002768529578 | H45: 0.1569314006 | I45: 0.007937374027 | J45: 0.0001944754751 | K45: 0.000533934079 | L45: 0.06616936825 | M45: 0.0006241695089 | N45: 0.007890564087 | O45: 0.01744867061 | P45: 0.01398276278 | Q45: 0.03932199748
A46: 45 | B46: Revenue Requirement | C46: =+C52+C58 -> 240667357 | D46: 82869882.08 | E46: 70260498.16 | F46: =+F52+F58 -> 21478300 | G46: 666294.6962 | H46: 37768265.41 | I46: 1910266.828 | J46: 46803.89858 | K46: 128500.5036 | L46: 15924806.97 | M46: 150217.226 | N46: 1899001.204 | O46: 4199325.438 | P46: 3365194.562 | Q46: =SUM(N46:P46) -> 9463521.204
A47: 46 | B47: Per NCP kW | C47: =C46/C$15 -> 2.539929515 | D47: 1.493986232 | E47: 4.41848291 | F47: 4.765071369 | G47: 2.721103928 | H47: 4.413141638 | I47: 2.352268474 | J47: 6.157597498 | K47: 3.019910742 | L47: 2.588975669 | M47: 1.472887332 | N47: 5.075955393 | O47: 2.996207361 | P47: 2.847670344 | Q47: 3.199946305
A48: 47 | B48: Per KWH | C48: =C46/C$16 -> 0.01104544043 | D48: 0.01256830122 | E48: 0.01212438109 | F48: =F46/F$16 -> 0.01084299484 | G48: 0.007554448657 | H48: 0.008905567858 | I48: 0.009255796378 | J48: 0.008443010921 | K48: 0.00832472868 | L48: 0.01204204378 | M48: 0.01245844842 | N48: 0.007862160978 | O48: 0.00515511629 | P48: 0.007125135903 | Q48: 0.006191663391
A49: 48 | B49: Per Customer | C49: =C46/C$17 -> 297.2254153 | D49: 117.9483366 | E49: 4800.116016 | F49: =F46/F$17 -> 77445.79326 | G49: 67.43475296 | H49: 236791.6327 | I49: 692.9835225 | J49: 21.06939202 | K49: 296.3686417 | L49: 207.5202105 | M49: 14082.86494 | N49: 1899001.204 | O49: 4199325.438 | P49: 3365194.562 | Q49: 3154507.068
A50: 49
A51: 50 | B51: TRANSMISSION-DEMAND | C51: =+C52/$C52 -> 1 | D51: 0.3523230957 | E51: 0.2942357123 | F51: 0.08885614061 | G51: 0.002200099824 | H51: 0.1513903029 | I51: 0.007729071688 | J51: 0.0001852839387 | K51: 0.0004366970471 | L51: 0.0664608864 | M51: 0.0006375373428 | N51: 0.007430150903 | O51: 0.0151503542 | P51: 0.01296466714 | Q51: 0.03554517224
A52: 51 | B52: Revenue Requirement | C52: ='Transmission Summary'!E$129 -> 183440043.1 | D52: ='Transmission Summary'!F$129 -> 64630163.88 | E52: ='Transmission Summary'!G$129 -> 53974611.75 | F52: ='Transmission Summary'!$H$129 -> 16299774.27 | G52: ='Transmission Summary'!I$129 -> 403586.4067 | H52: ='Transmission Summary'!J$129 -> 27771043.69 | I52: ='Transmission Summary'!K$129 -> 1417821.244 | J52: ='Transmission Summary'!L$129 -> 33988.49371 | K52: ='Transmission Summary'!M$129 -> 80107.72516 | L52: ='Transmission Summary'!N$129 -> 12191587.87 | M52: ='Transmission Summary'!O$129 -> 116949.8777 | N52: ='Transmission Summary'!P$129 -> 1362987.202 | O52: ='Transmission Summary'!Q$129 -> 2779181.628 | P52: ='Transmission Summary'!R$129 -> 2378239.099 | Q52: =SUM(N52:P52) -> 6520407.929
A53: 52 | B53: Per NCP kW | C53: =C52/C$15 -> 1.935969986 | D53: 1.165158832 | E53: 3.394309831 | F53: 3.61618879 | G53: 1.648220469 | H53: 3.244987503 | I53: 1.745879772 | J53: 4.471581859 | K53: 1.882624371 | L53: 1.982047533 | M53: 1.146699336 | N53: 3.643211087 | O53: 1.982938587 | P53: 2.012496107 | Q53: 2.204777145
A54: 53 | B54: Per KWH | C54: =C52/C$16 -> 0.008418989993 | D54: 0.009802009452 | E54: 0.009314035326 | F54: =F52/F$16 -> 0.008228694463 | G54: 0.004575862311 | H54: 0.006548273039 | I54: 0.006869754812 | J54: 0.006131224796 | K54: 0.005189668978 | L54: 0.009219052713 | M54: 0.009699380407 | N54: 0.005642979464 | O54: 0.003411739502 | P54: 0.005035452328 | Q54: 0.004266083438
A55: 54 | B55: Per Customer | C55: =C52/C$17 -> 226.5493903 | D55: 91.98782639 | E55: 3687.483083 | F55: =F52/F$17 -> 58773.22452 | G55: 40.84641494 | H55: 174113.1266 | I55: 514.3400625 | J55: 15.30036855 | K55: 184.7573903 | L55: 158.8716828 | M55: 10964.05103 | N55: 1362987.202 | O55: 2779181.628 | P55: 2378239.099 | Q55: 2173469.31
A56: 55
A57: 56 | B57: TRANSMISSION-ENERGY | C57: =+C58/$C58 -> 1 | D57: 0.3187239969 | E57: 0.2845824016 | F57: 0.09049045612 | G57: 0.004590610181 | H57: 0.1746931849 | I57: 0.008605079487 | J57: 0.0002239386058 | K57: 0.0008456237974 | L57: 0.06523491758 | M57: 0.0005813194105 | N57: 0.009366401561 | O57: 0.02481583907 | P57: 0.01724623081 | Q57: 0.05142847144
A58: 57 | B58: Revenue Requirement | C58: ='Transmission Summary'!E$197 -> 57227313.82 | D58: ='Transmission Summary'!F$197 -> 18239718.19 | E58: ='Transmission Summary'!G$197 -> 16285886.4 | F58: ='Transmission Summary'!$H$197 -> 5178525.73 | G58: ='Transmission Summary'!I$197 -> 262708.2895 | H58: ='Transmission Summary'!J$197 -> 9997221.716 | I58: ='Transmission Summary'!K$197 -> 492445.5843 | J58: ='Transmission Summary'!L$197 -> 12815.40487 | K58: ='Transmission Summary'!M$197 -> 48392.77843 | L58: ='Transmission Summary'!N$197 -> 3733219.1 | M58: ='Transmission Summary'!O$197 -> 33267.34834 | N58: ='Transmission Summary'!P$197 -> 536014.0015 | O58: ='Transmission Summary'!Q$197 -> 1420143.81 | P58: ='Transmission Summary'!R$197 -> 986955.4627 | Q58: =SUM(N58:P58) -> 2943113.275
A59: 58 | B59: Per NCP kW | C59: =C58/C$15 -> 0.6039595285 | D59: 0.3288273999 | E59: 1.024173079 | F59: 1.148882579 | G59: 1.072883459 | H59: 1.168154135 | I59: 0.6063887023 | J59: 1.686015639 | K59: 1.137286371 | L59: 0.6069281366 | M59: 0.3261879961 | N59: 1.432744306 | O59: 1.013268774 | P59: 0.8351742375 | Q59: 0.9951691603
A60: 59 | B60: Per KWH | C60: =C58/C$16 -> 0.002626450442 | D60: 0.002766291765 | E60: 0.00281034576 | F60: =F58/F$16 -> 0.002614300377 | G60: 0.002978586346 | H60: 0.002357294819 | I60: 0.002386041567 | J60: 0.002311786124 | K60: 0.003135059702 | L60: 0.002822991069 | M60: 0.002759068014 | N60: 0.002219181514 | O60: 0.001743376787 | P60: 0.002089683575 | Q60: 0.001925579953
A61: 60 | B61: Per Customer | C61: =C58/C$17 -> 70.6760249 | D61: 25.96051023 | E61: 1112.632933 | F61: =F58/F$17 -> 18672.56874 | G61: 26.58833802 | H61: 62678.50606 | I61: 178.6434599 | J61: 5.769023464 | K61: 111.6112514 | L61: 48.64852774 | M61: 3118.813907 | N61: 536014.0015 | O61: 1420143.81 | P61: 986955.4627 | Q61: 981037.7582
A62: 61
A63: 62 | B63: DISTRIBUTION-TOTAL | C63: =+C64/$C64 -> 1 | D63: 0.5852588258 | E63: 0.2325767726 | F63: 0.0617373585 | G63: 0.02007198819 | H63: -3.864767213e-05 | I63: 0.009407241879 | J63: 0.0004892482022 | K63: 0.00032275537 | L63: 0.08860611739 | M63: 0.00069408804 | N63: 0.0002098068953 | O63: 0.00037768104 | P63: 0.00028676384 | Q63: 0.0008742517753
A64: 63 | B64: Revenue Requirement | C64: =+C70+C76+C82+C88+C94 -> 294958250.2 | D64: 172626919.2 | E64: 68600437.87 | F64: =+F70+F76+F82+F88+F94 -> 18209943.23 | G64: 5920398.516 | H64: -11399.44975 | I64: 2774743.604 | J64: 144307.7936 | K64: 95199.35917 | L64: 26135105.34 | M64: 204726.9937 | N64: 61884.2747 | O64: 111400.1387 | P64: 84583.36047 | Q64: =SUM(N64:P64) -> 257867.7739
A65: 64 | B65: Per NCP kW | C65: =C64/C$15 -> 3.11289896 | D65: 3.112134759 | E65: 4.31408644 | F65: 4.039969604 | G65: 24.17852002 | H65: -0.001332001504 | I65: 3.416769744 | J65: 18.98536951 | K65: 2.237295259 | L65: 4.24891504 | M65: 2.007358301 | N65: 0.1654142279 | O65: 0.07948369814 | P65: 0.07157551303 | Q65: 0.08719408056
A66: 65 | B66: Per KWH | C66: =C64/C$16 -> 0.01353712371 | D66: 0.02618112954 | E66: 0.01183791566 | F66: =F64/F$16 -> 0.00919301437 | G66: 0.06712547296 | H66: -2.687933167e-06 | I66: 0.01344443688 | J66: 0.02603185449 | K66: 0.006167359766 | L66: 0.01976288211 | M66: 0.01697928233 | N66: 0.0002562105431 | O66: 0.0001367554571 | P66: 0.0001790885868 | Q66: 0.0001687142049
A67: 66 | B67: Per Customer | C67: =C64/C$17 -> 364.2749457 | D67: 245.6991305 | E67: 4686.702616 | F67: =F64/F$17 -> 65660.85301 | G67: 599.1952414 | H67: -71.46990436 | I67: 1006.587963 | J67: 64.96205588 | K67: 219.5641572 | L67: 340.5732059 | M67: 19193.15566 | N67: 61884.2747 | O67: 111400.1387 | P67: 84583.36047 | Q67: 85955.92462
A68: 67
A69: 68 | B69: DISTRIBUTION-SUBSTATION | C69: =+C70/$C70 -> 1 | D69: 0.5126653967 | E69: 0.3093846574 | F69: 0.08610460407 | G69: 0.002356327422 | H69: -0.001360372851 | I69: 0.009370637328 | J69: 0.0002246793111 | K69: 0.0001952526427 | L69: 0.07976655933 | M69: 0.0008259447431 | N69: 8.793208688e-05 | O69: 0.0002268890663 | P69: 0.0001514926813 | Q69: 0.0004663138344
A70: 69 | B70: Revenue Requirement | C70: ='Distribution Summary'!E$129 -> 66655136.3 | D70: ='Distribution Summary'!F$129 -> 34171781.9 | E70: ='Distribution Summary'!G$129 -> 20622076.51 | F70: ='Distribution Summary'!$H$129 -> 5739314.121 | G70: ='Distribution Summary'!I$129 -> 157061.3255 | H70: ='Distribution Summary'!J$129 -> -90675.83778 | I70: ='Distribution Summary'!K$129 -> 624601.1083 | J70: ='Distribution Summary'!L$129 -> 14976.0301 | K70: ='Distribution Summary'!M$129 -> 13014.59151 | L70: ='Distribution Summary'!N$129 -> 5316850.885 | M70: ='Distribution Summary'!O$129 -> 55053.45943 | N70: ='Distribution Summary'!P$129 -> 5861.125236 | O70: ='Distribution Summary'!Q$129 -> 15123.32164 | P70: ='Distribution Summary'!R$129 -> 10097.76532 | Q70: =SUM(N70:P70) -> 31082.21219
A71: 70 | B71: Per NCP kW | C71: =C70/C$15 -> 0.7034578771 | D71: 0.616052182 | E71: 1.296863743 | F71: 1.273296369 | G71: 0.6414281729 | H71: -0.01059527916 | I71: 0.7691226556 | J71: 1.970271031 | K71: 0.305857982 | L71: 0.8643870915 | M71: 0.539801893 | N71: 0.01566655682 | O71: 0.01079044915 | P71: 0.008544857158 | Q71: 0.0105099791
A72: 71 | B72: Per KWH | C72: =C70/C$16 -> 0.003059140828 | D72: 0.005182597552 | E72: 0.00355861289 | F72: =F70/F$16 -> 0.002897405912 | G72: 0.001780761165 | H72: -2.138090849e-05 | I72: 0.003026373379 | J72: 0.002701543879 | K72: 0.0008431324407 | L72: 0.004020504064 | M72: 0.004565925646 | N72: 2.426597204e-05 | O72: 1.856547745e-05 | P72: 2.138002689e-05 | Q72: 2.033604524e-05
A73: 72 | B73: Per Customer | C73: =C70/C$17 -> 82.31943383 | D73: 48.63654603 | E73: 1408.876429 | F73: =F70/F$17 -> 20694.64226 | G73: 15.89595676 | H73: -568.5005503 | I73: 226.5852444 | J73: 6.741657397 | K73: 30.01635559 | L73: 69.28523637 | M73: 5161.261822 | N73: 5861.125236 | O73: 15123.32164 | P73: 10097.76532 | Q73: 10360.7374
A74: 73
A75: 74 | B75: DISTRIBUTION- P & C | C75: =+C76/$C76 -> 1 | D75: 0.5831792903 | E75: 0.2245193175 | F75: 0.06240601481 | G75: 0.03905725028 | H75: -0.002257757341 | I75: 0.005397189322 | J75: 0.0002204038886 | K75: 0.0001203584052 | L75: 0.08633162659 | M75: 0.0005505254635 | N75: 5.632621348e-05 | O75: 0.0002667166967 | P75: 0.0001527378884 | Q75: 0.0004757807986
A76: 75 | B76: Revenue Requirement | C76: ='Distribution Summary'!E$197 -> 127894550.5 | D76: ='Distribution Summary'!F$197 -> 74585453.2 | E76: ='Distribution Summary'!G$197 -> 28714797.2 | F76: ='Distribution Summary'!$H$197 -> 7981389.214 | G76: ='Distribution Summary'!I$197 -> 4995209.47 | H76: ='Distribution Summary'!J$197 -> -288754.8604 | I76: ='Distribution Summary'!K$197 -> 690271.1025 | J76: ='Distribution Summary'!L$197 -> 28188.45627 | K76: ='Distribution Summary'!M$197 -> 15393.18414 | L76: ='Distribution Summary'!N$197 -> 11041344.58 | M76: ='Distribution Summary'!O$197 -> 70409.20671 | N76: ='Distribution Summary'!P$197 -> 7203.815756 | O76: ='Distribution Summary'!Q$197 -> 34111.61204 | P76: ='Distribution Summary'!R$197 -> 19534.34359 | Q76: =SUM(N76:P76) -> 60849.77139
A77: 76 | B77: Per NCP kW | C77: =C76/C$15 -> 1.349759883 | D77: 1.344633749 | E77: 1.805791932 | F77: 1.770712264 | G77: 20.40010852 | H77: -0.03374039246 | I77: 0.8499875142 | J77: 3.708519441 | K77: 0.3617576651 | L77: 1.795046717 | M77: 0.6903657546 | N77: 0.01925551567 | O77: 0.02433854308 | P77: 0.01653020945 | Q77: 0.02057542821
A78: 77 | B78: Per KWH | C78: =C76/C$16 -> 0.005869726819 | D78: 0.01131185925 | E78: 0.004955119209 | F78: =F76/F$16 -> 0.004029283606 | G78: 0.0566356804 | H78: -6.808695013e-05 | I78: 0.003344563532 | J78: 0.005084949146 | K78: 0.0009972262981 | L78: 0.008349260062 | M78: 0.005839473231 | N78: 2.982492008e-05 | O78: 4.1875613e-05 | P78: 4.136012058e-05 | Q78: 3.981195728e-05
A79: 78 | B79: Per Customer | C79: =C76/C$17 -> 157.9504232 | D79: 106.1571456 | E79: 1961.761752 | F79: =F76/F$17 -> 28779.04764 | G79: 505.5581539 | H79: -1810.3753 | I79: 250.4082115 | J79: 12.68940523 | K79: 35.50225056 | L79: 143.8825699 | M79: 6600.863129 | N79: 7203.815756 | O79: 34111.61204 | P79: 19534.34359 | Q79: 20283.25713
A80: 79
A81: 80 | B81: DISTRIBUTION-TRANSFORMER | C81: =+C82/$C82 -> 1 | D81: 0.5861506336 | E81: 0.2404830235 | F81: 0.06244332789 | G81: 0.01009213506 | H81: -0.0009697944391 | I81: 0.02011600686 | J81: 0.0002317133682 | K81: 0.0006724885534 | L81: 0.07905678716 | M81: 0.001149842598 | N81: 0.0001188933687 | O81: 0.0002678673478 | P81: 0.0001870750653 | Q81: 0.0005738357818
A82: 81 | B82: Revenue Requirement | C82: ='Distribution Summary'!E$265 -> 61946654.01 | D82: ='Distribution Summary'!F$265 -> 36310070.5 | E82: ='Distribution Summary'!G$265 -> 14897118.65 | F82: ='Distribution Summary'!$H$265 -> 3868155.228 | G82: ='Distribution Summary'!I$265 -> 625173.9987 | H82: ='Distribution Summary'!J$265 -> -60075.52058 | I82: ='Distribution Summary'!K$265 -> 1246119.317 | J82: ='Distribution Summary'!L$265 -> 14353.86785 | K82: ='Distribution Summary'!M$265 -> 41658.41574 | L82: ='Distribution Summary'!N$265 -> 4897303.441 | M82: ='Distribution Summary'!O$265 -> 71228.90159 | N82: ='Distribution Summary'!P$265 -> 7365.046375 | O82: ='Distribution Summary'!Q$265 -> 16593.48591 | P82: ='Distribution Summary'!R$265 -> 11588.67435 | Q82: =SUM(N82:P82) -> 35547.20664
A83: 82 | B83: Per NCP kW | C83: =C82/C$15 -> 0.6537659982 | D83: 0.6546014553 | E83: 0.9368374251 | F83: 0.8581701405 | G83: 2.55316969 | H83: -0.00701969705 | I83: 1.534449083 | J83: 1.888418347 | K83: 0.9790210443 | L83: 0.7961791612 | M83: 0.6984029035 | N83: 0.01968647876 | O83: 0.01183940739 | P83: 0.009806483297 | Q83: 0.01201974932
A84: 83 | B84: Per KWH | C84: =C82/C$16 -> 0.002843044797 | D84: 0.005506896979 | E84: 0.00257069546 | F84: =F82/F$16 -> 0.001952779651 | G84: 0.007088222226 | H84: -1.416550692e-05 | I84: 0.006037809216 | J84: 0.00258931129 | K84: 0.002698783263 | L84: 0.003703250066 | M84: 0.005907455623 | N84: 3.049243997e-05 | O84: 2.037025965e-05 | P84: 2.453673276e-05 | Q84: 2.325734082e-05
A85: 84 | B85: Per Customer | C85: =C82/C$17 -> 76.50443414 | D85: 51.67996274 | E85: 1017.753926 | F85: =F82/F$17 -> 13947.6751 | G85: 63.27298476 | H85: -376.6490319 | I85: 452.0521117 | J85: 6.461582857 | K85: 96.07937515 | L85: 63.81800691 | M85: 6677.709524 | N85: 7365.046375 | O85: 16593.48591 | P85: 11588.67435 | Q85: 11849.06888
A86: =+A85+1 -> 85
A87: 86 | B87: DISTRIBUTION-METER | C87: =+C88/$C88 -> 1 | D87: 0.7679071327 | E87: 0.00561792778 | F87: -0.02921429833 | G87: -0.01291984554 | H87: 0.06553357288 | I87: 0.01177179391 | J87: 0.003293888698 | K87: 0.0007032807934 | L87: 0.1714606742 | M87: -0.0001962875541 | N87: 0.005399444463 | O87: 0.005290037663 | P87: 0.00535267833 | Q87: 0.01604216046
A88: 87 | B88: Revenue Requirement | C88: ='Distribution Summary'!E$333 -> 6943756.469 | D88: ='Distribution Summary'!F$333 -> 5332160.12 | E88: ='Distribution Summary'!G$333 -> 39009.52237 | F88: ='Distribution Summary'!$H$333 -> -202856.973 | G88: ='Distribution Summary'!I$333 -> -89712.26101 | H88: ='Distribution Summary'!J$333 -> 455049.1706 | I88: ='Distribution Summary'!K$333 -> 81740.4701 | J88: ='Distribution Summary'!L$333 -> 22871.96095 | K88: ='Distribution Summary'!M$333 -> 4883.410559 | L88: ='Distribution Summary'!N$333 -> 1190581.166 | M88: ='Distribution Summary'!O$333 -> -1362.972973 | N88: ='Distribution Summary'!P$333 -> 37492.42742 | O88: ='Distribution Summary'!Q$333 -> 36732.73324 | P88: ='Distribution Summary'!R$333 -> 37167.69478 | Q88: =SUM(N88:P88) -> 111392.8554
A89: 88 | B89: Per NCP kW | C89: =C88/C$15 -> 0.07328227734 | D89: 0.09612869726 | E89: 0.002453197919 | F89: -0.04500486324 | G89: -0.366379002 | H89: 0.0531715296 | I89: 0.1006537558 | J89: 3.009072616 | K89: 0.1147658071 | L89: 0.1935587462 | M89: -0.01336401743 | N89: 0.1002157812 | O89: 0.02620870598 | P89: 0.031451775 | Q89: 0.03766580626
A90: 89 | B90: Per KWH | C90: =C88/C$16 -> 0.0003186840519 | D90: 0.0008086918051 | E90: 6.731610614e-06 | F90: =F88/F$16 -> -0.0001024092741 | G90: -0.001017157533 | H90: 0.0001072983158 | I90: 0.000396056266 | J90: 0.004125900234 | K90: 0.0003163650476 | L90: 0.0009002954038 | M90: -0.000113039822 | N90: 0.0001552244934 | O90: 4.509331661e-05 | P90: 7.869526461e-05 | Q90: 7.288059595e-05
A91: 90 | B91: Per Customer | C91: =C88/C$17 -> 8.57557471 | D91: 7.589239914 | E91: 2.665085475 | F91: =F88/F$17 -> -731.4554315 | G91: -9.079652282 | H91: 2852.972856 | I91: 29.65282026 | J91: 10.29611477 | K91: 11.26291115 | L91: 15.51476603 | M91: -127.7787163 | N91: 37492.42742 | O91: 36732.73324 | P91: 37167.69478 | Q91: 37130.95182
A92: 91
A93: 92 | B93: DISTRIBUTION-SERVICE | C93: =+C94/$C94 -> 1 | D93: 0.7052270328 | E93: 0.1372997966 | F93: 0.02614181256 | G93: 0.007381967586 | H93: -0.0008548217187 | I93: 0.004188430911 | J93: 0.002027957625 | K93: 0.0006424791865 | L93: 0.1170444628 | M93: 0.0002981900312 | N93: 0.0001257008915 | O93: 0.0002804411119 | P93: 0.0001965496664 | Q93: 0.0006026916698
A94: 93 | B94: Revenue Requirement | C94: ='Distribution Summary'!E$401 -> 31518152.88 | D94: ='Distribution Summary'!F$401 -> 22227453.43 | E94: ='Distribution Summary'!G$401 -> 4327435.979 | F94: ='Distribution Summary'!H$401 -> 823941.6448 | G94: ='Distribution Summary'!I$401 -> 232665.9829 | H94: ='Distribution Summary'!J$401 -> -26942.40162 | I94: ='Distribution Summary'!K$401 -> 132011.6058 | J94: ='Distribution Summary'!L$401 -> 63917.47845 | K94: ='Distribution Summary'!M$401 -> 20249.75722 | L94: ='Distribution Summary'!N$401 -> 3689025.272 | M94: ='Distribution Summary'!O$401 -> 9398.398991 | N94: ='Distribution Summary'!P$401 -> 3961.859917 | O94: ='Distribution Summary'!Q$401 -> 8838.985838 | P94: ='Distribution Summary'!R$401 -> 6194.882434 | Q94: =SUM(N94:P94) -> 18995.72819
A95: 94 | B95: Per NCP kW | C95: =C94/C$15 -> 0.3326329244 | D95: 0.4007186757 | E95: 0.2721401416 | F95: 0.1827956934 | G95: 0.9501926453 | H95: -0.003148162435 | I95: 0.162556735 | J95: 8.409088074 | K95: 0.4758927604 | L95: 0.5997433245 | M95: 0.09215176701 | N95: 0.01058989545 | O95: 0.006306592528 | P95: 0.005242188132 | Q95: 0.006423117667
A96: 95 | B96: Per KWH | C96: =C94/C$16 -> 0.001446527209 | D96: 0.003371083958 | E96: 0.0007467564892 | F96: =F94/F$16 -> 0.0004159544752 | G96: 0.002637966702 | H96: -6.352883387e-06 | I96: 0.000639634487 | J96: 0.01153014994 | K96: 0.001311852717 | L96: 0.002789572516 | M96: 0.0007794676562 | N96: 1.640271758e-05 | O96: 1.085079034e-05 | P96: 1.311644199e-05 | Q96: 1.242826558e-05
A97: 96 | B97: Per Customer | C97: =C94/C$17 -> 38.92507981 | D97: 31.63623616 | E97: 295.6454238 | F97: =F94/F$17 -> 2970.943431 | G97: 23.54779825 | H97: -168.9178785 | I97: 47.88957555 | J97: 28.77329562 | K97: 46.70326478 | L97: 48.07262673 | M97: 881.0999054 | N97: 3961.859917 | O97: 8838.985838 | P97: 6194.882434 | Q97: 6331.909396
A98: 97
A99: 98 | B99: RETAIL-TOTAL | C99: =+C100/$C100 -> 1 | D99: 0.9722515934 | E99: 0.01650631333 | F99: -0.009725782577 | G99: 0.01060259228 | H99: -0.03512025501 | I99: 0.00124046074 | J99: 0.002724389788 | K99: 0.0005256804048 | L99: 0.05030672218 | M99: -2.189392992e-05 | N99: 6.174273418e-05 | O99: -0.009470227926 | P99: 0.0001186645831 | Q99: -0.009289820609
A100: 99 | B100: Revenue Requirement | C100: ='Retail Summary'!E$61 -> 43056804.7 | D100: ='Retail Summary'!F$61 -> 41862046.97 | E100: ='Retail Summary'!G$61 -> 710709.1092 | F100: ='Retail Summary'!H$61 -> -418761.1209 | G100: ='Retail Summary'!I$61 -> 456513.745 | H100: ='Retail Summary'!J$61 -> -1512165.961 | I100: ='Retail Summary'!K$61 -> 53410.2758 | J100: ='Retail Summary'!L$61 -> 117303.519 | K100: ='Retail Summary'!M$61 -> 22634.11852 | L100: ='Retail Summary'!N$61 -> 2166046.712 | M100: ='Retail Summary'!O$61 -> -942.6826644 | N100: ='Retail Summary'!P$61 -> 2658.444847 | O100: ='Retail Summary'!Q$61 -> -407757.7542 | P100: ='Retail Summary'!R$61 -> 5109.317779 | Q100: =SUM(N100:P100) -> -399989.9916
A101: 100 | B101: Per NCP kW | C101: =C100/C$15 -> 0.4544083188 | D101: 0.754693023 | E101: 0.04469447464 | F101: -0.09290430937 | G101: 1.864372254 | H101: -0.1766933825 | I101: 0.06576846024 | J101: 15.43264294 | K101: 0.531928014 | L101: 0.3521450681 | M101: -0.009243050156 | N101: 0.007105918327 | O101: -0.2909340566 | P101: 0.004323569544 | Q101: -0.1352505551
A102: 101 | B102: Per KWH | C102: =C100/C$16 -> 0.001976094214 | D102: 0.006348926808 | E102: 0.0001226422856 | F102: =F100/F$16 -> -0.0002114052171 | G102: 0.005175952423 | H102: -0.0003565611614 | I102: 0.0002587882645 | J102: 0.02116052128 | K102: 0.00146632029 | L102: 0.001637924365 | M102: -7.818253381e-05 | N102: 1.100637603e-05 | O102: -0.0005005657866 | P102: 1.081797289e-05 | Q102: -0.0002616999882
A103: 102 | B103: Per Customer | C103: =C100/C$17 -> 53.17537375 | D103: 59.5820663 | E103: 48.55482479 | F103: =F100/F$17 -> -1509.955965 | G103: 46.20311672 | H103: -9480.664331 | I103: 19.37553462 | J103: 52.80572563 | K103: 52.2024644 | L103: 28.22630569 | M103: -88.37649979 | N103: 2658.444847 | O103: -407757.7542 | P103: 5109.317779 | Q103: -133329.9972
A104: 103
A105: 104 | B105: MISC - Total | C105: =+C106/$C106 -> 1 | D105: 0.4014181447 | E105: 0.2739110908 | F105: 0.08349178207 | G105: 0.006341923818 | H105: 0.1227542132 | I105: 0.008780927904 | J105: 0.000268694114 | K105: 0.000462107349 | L105: 0.06972560045 | M105: 0.0006498633959 | N105: 0.006302342479 | O105: 0.01467560118 | P105: 0.01121767518 | Q105: 0.03219561883
A106: 105 | B106: Revenue Requirement | C106: ='Misc Summary'!E$61 -> 4324639.969 | D106: ='Misc Summary'!F$61 -> 1735988.953 | E106: ='Misc Summary'!G$61 -> 1184566.851 | F106: ='Misc Summary'!H$61 -> 361071.8978 | G106: ='Misc Summary'!I$61 -> 27426.53722 | H106: ='Misc Summary'!J$61 -> 530867.7769 | I106: ='Misc Summary'!K$61 -> 37974.35178 | J106: ='Misc Summary'!L$61 -> 1162.005305 | K106: ='Misc Summary'!M$61 -> 1998.447911 | L106: ='Misc Summary'!N$61 -> 301538.1186 | M106: ='Misc Summary'!O$61 -> 2810.425216 | N106: ='Misc Summary'!P$61 -> 27255.36218 | O106: ='Misc Summary'!Q$61 -> 63466.69141 | P106: ='Misc Summary'!R$61 -> 48512.40643 | Q106: =SUM(N106:P106) -> 139234.46
A107: 106 | B107: Per NCP kW | C107: =C106/C$15 -> 0.04564092462 | D107: 0.03129657638 | E107: 0.0744940404 | F107: 0.08010565838 | G107: 0.1120081828 | H107: 0.0620307728 | I107: 0.04676093893 | J107: 0.1528753197 | K107: 0.04696584174 | L107: 0.04902256296 | M107: 0.02755635827 | N107: 0.07285250919 | O107: 0.04528331295 | P107: 0.04105181397 | Q107: 0.047080023
A108: 107 | B108: Per KWH | C108: =C106/C$16 -> 0.0001984795686 | D108: 0.0002632854243 | E108: 0.0002044127255 | F108: =F106/F$16 -> 0.0001822816855 | G108: 0.000310962054 | H108: 0.0001251759635 | I108: 0.0001839967393 | J108: 0.0002096155187 | K108: 0.0001294667039 | L108: 0.0002280175347 | M108: 0.000233086035 | N108: 0.0001128414477 | O108: 7.791207888e-05 | P108: 0.0001027154545 | Q108: 9.10964207e-05
A109: 108 | B109: Per Customer | C109: =C106/C$17 -> 5.340952453 | D109: 2.470825398 | E109: 80.92823797 | F109: =F106/F$17 -> 1301.941939 | G109: 2.775801418 | H109: 3328.32462 | I109: 13.77587658 | J109: 0.523092008 | K109: 4.609143751 | L109: 3.929419927 | M109: 263.477364 | N109: 27255.36218 | O109: 63466.69141 | P109: 48512.40643 | Q109: 46411.48667

Sheet Unit Costs-target
B1: Unit Costs @ Target ROR
B2: =Inputs!$C$4 -> Rocky Mountain Power
B3: Cost Of Service By Rate Schedule
B4: =Inputs!$C$5 -> State of Utah
B5: =Inputs!$C$7 -> Monthly Wgt Factors
B6: =Inputs!$C$6 -> 12 Months Ended Dec 2010
G7: =TargetROR -> 0.06305604955 | H7: = Target Return On Rate Base
C10: ='Hot Sheet'!$H$10 -> Utah | E10: ='Hot Sheet'!$J$10 -> General | F10: ='Hot Sheet'!$K$10 -> General | G10: ='Hot Sheet'!$L$10 -> Street & Area | H10: ='Hot Sheet'!$M$10 -> General | J10: ='Hot Sheet'!$O$10 -> Traffic | K10: ='Hot Sheet'!$P$10 -> Outdoor | L10: ='Hot Sheet'!$Q$10 -> General | M10: ='Hot Sheet'!R$10 -> Mobile
C11: ='Hot Sheet'!$H$11 -> Jurisdiction | D11: ='Hot Sheet'!$I$11 -> Residential | E11: ='Hot Sheet'!$J$11 -> Large Dist. | F11: ='Hot Sheet'!$K$11 -> +1 MW | G11: ='Hot Sheet'!$L$11 -> Lighting | H11: ='Hot Sheet'!$M$11 -> Trans | I11: ='Hot Sheet'!$N$11 -> Irrigation | J11: ='Hot Sheet'!$O$11 -> Signals | K11: ='Hot Sheet'!$P$11 -> Lighting | L11: ='Hot Sheet'!$Q$11 -> Small Dist. | M11: ='Hot Sheet'!R$11 -> Home Park | N11: ='Hot Sheet'!S$11 -> Industrial | O11: ='Hot Sheet'!T$11 -> Industrial | P11: ='Hot Sheet'!U$11 -> Industrial | Q11: Aggregated
B12: Description | C12: ='Hot Sheet'!$H$12 -> Normalized | D12: ='Hot Sheet'!$I$12 -> Sch 1 | E12: ='Hot Sheet'!$J$12 -> Sch 6 | F12: ='Hot Sheet'!$K$12 -> Sch 8 | G12: ='Hot Sheet'!$L$12 -> Sch. 7,11,12 | H12: ='Hot Sheet'!$M$12 -> Sch 9 | I12: ='Hot Sheet'!$N$12 -> Sch 10 | J12: ='Hot Sheet'!$O$12 -> Sch 15 | K12: ='Hot Sheet'!$P$12 -> Sch 15 | L12: ='Hot Sheet'!$Q$12 -> Sch 23 | M12: ='Hot Sheet'!R$12 -> Sch 25 | N12: ='Hot Sheet'!S$12 -> Cust A | O12: ='Hot Sheet'!T$12 -> Cust B | P12: ='Hot Sheet'!U$12 -> Cust C | Q12: Industrial
A14: 14 | B14: UNITS
A15: =+A14+1 -> 15 | B15: NCP kW | C15: =SUM(D15:P15) -> 94753557.35 | D15: ='Dist. Factors'!P274 -> 55468973.08 | E15: ='Dist. Factors'!P281 -> 15901498.23 | F15: ='Dist. Factors'!P282 -> 4507445.605 | G15: ='Dist. Factors'!P275+'Dist. Factors'!P283+'Dist. Factors'!P295+'Dist. Factors'!P296 -> 244861.9068 | H15: ='Dist. Factors'!P284 -> 8558135.793 | I15: ='Dist. Factors'!P292 -> 812095.579 | J15: ='Dist. Factors'!P297 -> 7601 | K15: ='Dist. Factors'!P298 -> 42551.09324 | L15: ='Dist. Factors'!P285 -> 6151006.808 | M15: ='Dist. Factors'!P276 -> 101988.2667 | N15: ='Dist. Factors'!P286 -> 374117 | O15: ='Dist. Factors'!P287 -> 1401547 | P15: ='Dist. Factors'!P288 -> 1181736 | Q15: =SUM(N15:P15) -> 2957400
A16: =+A15+1 -> 16 | B16: Annual KWH | C16: =SUM(D16:P16) -> 2.178884205e+10 | D16: ='Energy Factor'!C25*1000 -> 6593562698 | E16: ='Energy Factor'!D25*1000 -> 5794976062 | F16: ='Energy Factor'!E25*1000 -> 1980845727 | G16: ='Energy Factor'!F25*1000 -> 88198984 | H16: ='Energy Factor'!G25*1000 -> 4240972166 | I16: ='Energy Factor'!H25*1000 -> 206386004 | J16: ='Energy Factor'!I25*1000 -> 5543508 | K16: ='Energy Factor'!J25*1000 -> 15435999 | L16: ='Energy Factor'!K25*1000 -> 1322433904 | M16: ='Energy Factor'!L25*1000 -> 12057458.6 | N16: ='Energy Factor'!M25*1000 -> 241536800 | O16: ='Energy Factor'!N25*1000 -> 814593736 | P16: ='Energy Factor'!O25*1000 -> 472299000 | Q16: =SUM(N16:P16) -> 1528429536
A17: =+A16+1 -> 17 | B17: Average Customers | C17: =SUM(D17:P17) -> 809713.25 | D17: ='Cust Factors'!D23 -> 702594.75 | E17: ='Cust Factors'!E23 -> 14637.25 | F17: ='Cust Factors'!F23 -> 277.3333333 | G17: ='Cust Factors'!G23 -> 9880.583333 | H17: ='Cust Factors'!H23 -> 159.5 | I17: ='Cust Factors'!I23 -> 2756.583333 | J17: ='Cust Factors'!J23 -> 2221.416667 | K17: ='Cust Factors'!K23 -> 433.5833333 | L17: ='Cust Factors'!L23 -> 76738.58333 | M17: ='Cust Factors'!M23 -> 10.66666667 | N17: ='Cust Factors'!N23 -> 1 | O17: ='Cust Factors'!O23 -> 1 | P17: ='Cust Factors'!P23 -> 1 | Q17: =SUM(N17:P17) -> 3
A18: =+A17+1 -> 18 | B18: Load Factor | C18: =+C16/(C15*730) -> 0.315003781 | D18: 0.1628347735 | E18: 0.4992185805 | F18: 0.6020011189 | G18: 0.4934231201 | H18: 0.6788336915 | I18: 0.3481370429 | J18: 0.9990588837 | K18: 0.4969367999 | L18: 0.2945132967 | M18: 0.1619506548 | N18: 0.8844086977 | O18: 0.7961786727 | P18: 0.5474868596 | Q18: 0.7079661495
B19: CP Load Factor | D19: ='Demand Factors'!D29*1000/730/'Demand Factors'!D27 -> 0.7078092891 | E19: ='Demand Factors'!E29*1000/730/'Demand Factors'!E27 -> 0.7926501232 | G19: ='Demand Factors'!G29*1000/730/'Demand Factors'!G27 -> 1.921022233 | H19: ='Demand Factors'!H29*1000/730/'Demand Factors'!H27 -> 1.070755306 | I19: ='Demand Factors'!I29*1000/730/'Demand Factors'!I27 -> 1.009344622 | J19: ='Demand Factors'!J29*1000/730/'Demand Factors'!J27 -> 1.131975811 | K19: ='Demand Factors'!K29*1000/730/'Demand Factors'!K27 -> 1.818310358 | L19: ='Demand Factors'!L29*1000/730/'Demand Factors'!L27 -> 0.811754324 | M19: ='Demand Factors'!M29*1000/730/'Demand Factors'!M27 -> 0.7157942778 | N19: ='Demand Factors'!N29*1000/730/'Demand Factors'!N27 -> 1.235857097 | O19: ='Demand Factors'!O29*1000/730/'Demand Factors'!O27 -> 2.174196276 | P19: ='Demand Factors'!P29*1000/730/'Demand Factors'!P27 -> 1.408107928 | Q19: =SUM('Demand Factors'!O29:P29)*1000/SUM('Demand Factors'!O27:P27)/730 -> 1.812325306
A20: =+A18+1 -> 19
A21: =+A20+1 -> 20 | B21: GTDRM TOTAL | C21: =+C22/$C22 -> 1 | D21: 0.3939126106 | E21: 0.2667026383 | F21: 0.08196791369 | G21: 0.006856252374 | H21: 0.1312870571 | I21: 0.008735534525 | J21: 0.0003449394342 | K21: 0.0005715911433 | L21: 0.06899500019 | M21: 0.0005964717994 | N21: 0.00715072926 | O21: 0.0197273952 | P21: 0.01315186624
A22: =+A21+1 -> 21 | B22: Revenue Requirement | C22: =C100+C106+C34+C40+C52+C58+C70+C76+C82+C88+C94 -> 1561145346 | D22: 614954839 | E22: 416361582.7 | F22: =F100+F106+F34+F40+F52+F58+F70+F76+F82+F88+F94 -> 127963827 | G22: 10703606.49 | H22: 204958178.3 | I22: 13637439.07 | J22: 538500.5924 | K22: 892336.8534 | L22: 107711223.5 | M22: 931179.1739 | N22: 11163327.71 | O22: 30797331.21 | P22: 20531974.78 | Q22: =SUM(N22:P22) -> 62492633.7
A23: 22 | B23: Per NCP kW | C23: =C22/C$15 -> 16.47584946 | D23: 11.08646519 | E23: 26.18379581 | F23: 28.38943345 | G23: 43.7128283 | H23: 23.94892805 | I23: 16.79289905 | J23: 70.84601927 | K23: 20.97095011 | L23: 17.51115335 | M23: 9.130257862 | N23: 29.8391351 | O23: 21.97381266 | P23: 17.37441762 | Q23: =Q22/'Unit Costs-earned'!Q$15 -> 21.13093721
A24: 23 | B24: Per KWH | C24: =C22/C$16 -> 0.07164884408 | D24: 0.09326594243 | E24: 0.07184871485 | F24: =F22/F$16 -> 0.06460060229 | G24: 0.1213574806 | H24: 0.04832811211 | I24: 0.06607734444 | J24: 0.09714076221 | K24: 0.05780881778 | L24: 0.08144923021 | M24: 0.07722847783 | N24: 0.04621791672 | O24: 0.03780698261 | P24: 0.0434724079 | Q24: =Q22/'Unit Costs-earned'!Q$16 -> 0.04088682679
A25: 24 | B25: Per Customer | C25: =C22/C$17 -> 1928.022478 | D25: 875.2625023 | E25: 28445.34203 | F25: =F22/F$17 -> 461408.0301 | G25: 1083.297021 | H25: 1285004.253 | I25: 4947.225396 | J25: 242.4131414 | K25: 2058.051555 | L25: 1403.612352 | M25: 87298.04756 | N25: 11163327.71 | O25: 30797331.21 | P25: 20531974.78 | Q25: =Q22/'Unit Costs-earned'!Q$17 -> 20830877.9
A26: 25
A27: 26 | B27: GENERATION-TOTAL | C27: =+C28/$C28 -> 1 | D27: 0.3229195744 | E27: 0.2817652393 | F27: 0.09030755006 | G27: 0.003714171108 | H27: 0.1719415459 | I27: 0.009059091196 | J27: 0.000234039887 | K27: 0.0006583981302 | L27: 0.06459590293 | M27: 0.0005872045035 | N27: 0.009377537381 | O27: 0.02743057586 | P27: 0.01740916926 | Q27: 0.05421728251
A28: 27 | B28: Revenue Requirement | C28: =+C34+C40 -> 978138294.6 | D28: 315860001.8 | E28: 275605370.7 | F28: =+F34+F40 -> 88333273.01 | G28: 3632972.993 | H28: 168182610.5 | I28: 8861044.014 | J28: 228923.3759 | K28: 644004.4242 | L28: 63183726.33 | M28: 574367.2116 | N28: 9172528.422 | O28: 26830896.7 | P28: 17028575.13 | Q28: =SUM(N28:P28) -> 53032000.25
A29: 28 | B29: Per NCP kW | C29: =C28/C$15 -> 10.32297174 | D29: 5.694354597 | E29: 17.33203795 | F29: 19.59719113 | G29: 14.83682391 | H29: 19.65178102 | I29: 10.91133143 | J29: 30.117534 | K29: 15.13485025 | L29: 10.27209501 | M29: 5.631698922 | N29: 24.51780706 | O29: 19.14377234 | P29: 14.40979638 | Q29: =Q28/'Unit Costs-earned'!Q$15 -> 17.93196735
A30: 29 | B30: Per KWH | C30: =C28/C$16 -> 0.04489170616 | D30: 0.04790429944 | E30: 0.0475593631 | F30: =F28/F$16 -> 0.04459371661 | G30: 0.04119064448 | H30: 0.03965661738 | I30: 0.04293432617 | J30: 0.04129576 | K30: 0.04172094234 | L30: 0.04777836241 | M30: 0.04763584358 | N30: 0.03797569738 | O30: 0.03293776457 | P30: 0.03605464998 | Q30: =Q28/'Unit Costs-earned'!Q$16 -> 0.03469705276
A31: 30 | B31: Per Customer | C31: =C28/C$17 -> 1208.00579 | D31: 449.5621435 | E31: 18829.04034 | F31: =F28/F$17 -> 318509.3979 | G31: 367.6881082 | H31: 1054436.43 | I31: 3214.502499 | J31: 103.0528758 | K31: 1485.307148 | L31: 823.3632103 | M31: 53846.92609 | N31: 9172528.422 | O31: 26830896.7 | P31: 17028575.13 | Q31: =Q28/'Unit Costs-earned'!Q$17 -> 17677333.42
A32: 31
A33: 32 | B33: GENERATION-DEMAND | C33: =+C34/$C34 -> 1 | D33: 0.3603207088 | E33: 0.300542802 | F33: 0.08851442054 | G33: 0.002231429766 | H33: 0.1409653986 | I33: 0.008429083684 | J33: 0.000184569931 | K33: 0.0004097117977 | L33: 0.06856195999 | M33: 0.0006487899453 | N33: 0.006763651517 | O33: 0.01134448558 | P33: 0.01108298781 | Q33: 0.02919112491
A34: 33 | B34: Revenue Requirement | C34: ='Generation Summary'!E$136 -> 338009868.8 | D34: ='Generation Summary'!F$136 -> 121791955.5 | E34: ='Generation Summary'!G$136 -> 101586433.1 | F34: ='Generation Summary'!H$136 -> 29918747.68 | G34: ='Generation Summary'!I$136 -> 754245.2825 | H34: ='Generation Summary'!J$136 -> 47647695.9 | I34: ='Generation Summary'!K$136 -> 2849113.47 | J34: ='Generation Summary'!L$136 -> 62386.45818 | K34: ='Generation Summary'!M$136 -> 138486.631 | L34: ='Generation Summary'!N$136 -> 23174619.1 | M34: ='Generation Summary'!O$136 -> 219297.4043 | N34: ='Generation Summary'!P$136 -> 2286180.962 | O34: ='Generation Summary'!Q$136 -> 3834548.082 | P34: ='Generation Summary'!R$136 -> 3746159.257 | Q34: =SUM(N34:P34) -> 9866888.301
A35: 34 | B35: Per NCP kW | C35: =C34/C$15 -> 3.567252547 | D35: 2.195677128 | E35: 6.388481867 | F35: 6.637628116 | G35: 3.080288365 | H35: 5.567532119 | I35: 3.50834747 | J35: 8.207664542 | K35: 3.254596309 | L35: 3.767613957 | M35: 2.150221897 | N35: 6.110871631 | O35: 2.735939702 | P35: 3.170047504 | Q35: =Q34/'Unit Costs-earned'!Q$15 -> 3.336338777
A36: 35 | B36: Per KWH | C36: =C34/C$16 -> 0.01551297991 | D36: 0.0184713426 | E36: 0.01753008675 | F36: =F34/F$16 -> 0.01510402717 | G36: 0.008551632323 | H36: 0.0112350881 | I36: 0.01380478044 | J36: 0.01125396738 | K36: 0.008971666233 | L36: 0.01752421731 | M36: 0.01818769706 | N36: 0.009465145527 | O36: 0.004707313489 | P36: 0.007931753522 | Q36: =Q34/'Unit Costs-earned'!Q$16 -> 0.006455572905
A37: 36 | B37: Per Customer | C37: =C34/C$17 -> 417.4439147 | D37: 173.3459516 | E37: 6940.267679 | F37: =F34/F$17 -> 107880.0998 | G37: 76.33610861 | H37: 298731.6357 | I37: 1033.566965 | J37: 28.08408666 | K37: 319.4002637 | L37: 301.9943566 | M37: 20559.13165 | N37: 2286180.962 | O37: 3834548.082 | P37: 3746159.257 | Q37: =Q34/'Unit Costs-earned'!Q$17 -> 3288962.767
A38: 37
A39: 38 | B39: GENERATION-ENERGY | C39: =+C40/$C40 -> 1 | D39: 0.3031704866 | E39: 0.2718500391 | F39: 0.09125438424 | G39: 0.004497109635 | H39: 0.1882980192 | I39: 0.009391756874 | J39: 0.0002601617285 | K39: 0.0007897130839 | L39: 0.06250168812 | M39: 0.0005546852679 | N39: 0.0107577592 | O39: 0.03592458589 | P39: 0.02074961108 | Q39: 0.06743195617
A40: 39 | B40: Revenue Requirement | C40: ='Generation Summary'!E$204 -> 640128425.8 | D40: ='Generation Summary'!F$204 -> 194068046.3 | E40: ='Generation Summary'!G$204 -> 174018937.6 | F40: ='Generation Summary'!H$204 -> 58414525.33 | G40: ='Generation Summary'!I$204 -> 2878727.711 | H40: ='Generation Summary'!J$204 -> 120534914.6 | I40: ='Generation Summary'!K$204 -> 6011930.543 | J40: ='Generation Summary'!L$204 -> 166536.9177 | K40: ='Generation Summary'!M$204 -> 505517.7932 | L40: ='Generation Summary'!N$204 -> 40009107.23 | M40: ='Generation Summary'!O$204 -> 355069.8073 | N40: ='Generation Summary'!P$204 -> 6886347.46 | O40: ='Generation Summary'!Q$204 -> 22996348.61 | P40: ='Generation Summary'!R$204 -> 13282415.88 | Q40: =SUM(N40:P40) -> 43165111.95
A41: 40 | B41: Per NCP kW | C41: =C40/C$15 -> 6.755719191 | D41: 3.498677469 | E41: 10.94355608 | F41: 12.95956301 | G41: 11.75653555 | H41: 14.0842489 | I41: 7.402983958 | J41: 21.90986946 | K41: 11.88025394 | L41: 6.50448105 | M41: 3.481477025 | N41: 18.40693542 | O41: 16.40783264 | P41: 11.23974887 | Q41: =Q40/'Unit Costs-earned'!Q$15 -> 14.59562858
A42: 41 | B42: Per KWH | C42: =C40/C$16 -> 0.02937872625 | D42: 0.02943295684 | E42: 0.03002927635 | F42: =F40/F$16 -> 0.02948968945 | G42: 0.03263901216 | H42: 0.02842152929 | I42: 0.02912954574 | J42: 0.03004179262 | K42: 0.03274927611 | L42: 0.03025414511 | M42: 0.02944814651 | N42: 0.02851055185 | O42: 0.02823045108 | P42: 0.02812289646 | Q42: =Q40/'Unit Costs-earned'!Q$16 -> 0.02824147985
A43: 42 | B43: Per Customer | C43: =C40/C$17 -> 790.5618758 | D43: 276.2161919 | E43: 11888.77266 | F43: =F40/F$17 -> 210629.2981 | G43: 291.3519996 | H43: 755704.7939 | I43: 2180.935534 | J43: 74.96878917 | K43: 1165.906884 | L43: 521.3688537 | M43: 33287.79444 | N43: 6886347.46 | O43: 22996348.61 | P43: 13282415.88 | Q43: =Q40/'Unit Costs-earned'!Q$17 -> 14388370.65
A44: 43
A45: 44 | B45: TRANSMISSION-TOTAL | C45: =+C46/$C46 -> 1 | D45: 0.3443337024 | E45: 0.2919402907 | F45: 0.08924475786 | G45: 0.002768529578 | H45: 0.1569314006 | I45: 0.007937374027 | J45: 0.0001944754751 | K45: 0.000533934079 | L45: 0.06616936825 | M45: 0.0006241695089 | N45: 0.007890564087 | O45: 0.01744867061 | P45: 0.01398276278 | Q45: 0.03932199748
A46: 45 | B46: Revenue Requirement | C46: =+C52+C58 -> 240667357 | D46: 82869882.08 | E46: 70260498.16 | F46: =+F52+F58 -> 21478300 | G46: 666294.6962 | H46: 37768265.41 | I46: 1910266.828 | J46: 46803.89858 | K46: 128500.5036 | L46: 15924806.97 | M46: 150217.226 | N46: 1899001.204 | O46: 4199325.438 | P46: 3365194.562 | Q46: =SUM(N46:P46) -> 9463521.204
A47: 46 | B47: Per NCP kW | C47: =C46/C$15 -> 2.539929515 | D47: 1.493986232 | E47: 4.41848291 | F47: 4.765071369 | G47: 2.721103928 | H47: 4.413141638 | I47: 2.352268474 | J47: 6.157597498 | K47: 3.019910742 | L47: 2.588975669 | M47: 1.472887332 | N47: 5.075955393 | O47: 2.996207361 | P47: 2.847670344 | Q47: =Q46/'Unit Costs-earned'!Q$15 -> 3.199946305
A48: 47 | B48: Per KWH | C48: =C46/C$16 -> 0.01104544043 | D48: 0.01256830122 | E48: 0.01212438109 | F48: =F46/F$16 -> 0.01084299484 | G48: 0.007554448657 | H48: 0.008905567858 | I48: 0.009255796378 | J48: 0.008443010921 | K48: 0.00832472868 | L48: 0.01204204378 | M48: 0.01245844842 | N48: 0.007862160978 | O48: 0.00515511629 | P48: 0.007125135903 | Q48: =Q46/'Unit Costs-earned'!Q$16 -> 0.006191663391
A49: 48 | B49: Per Customer | C49: =C46/C$17 -> 297.2254153 | D49: 117.9483366 | E49: 4800.116016 | F49: =F46/F$17 -> 77445.79326 | G49: 67.43475296 | H49: 236791.6327 | I49: 692.9835225 | J49: 21.06939202 | K49: 296.3686417 | L49: 207.5202105 | M49: 14082.86494 | N49: 1899001.204 | O49: 4199325.438 | P49: 3365194.562 | Q49: =Q46/'Unit Costs-earned'!Q$17 -> 3154507.068
A50: 49
A51: 50 | B51: TRANSMISSION-DEMAND | C51: =+C52/$C52 -> 1 | D51: 0.3523230957 | E51: 0.2942357123 | F51: 0.08885614061 | G51: 0.002200099824 | H51: 0.1513903029 | I51: 0.007729071688 | J51: 0.0001852839387 | K51: 0.0004366970471 | L51: 0.0664608864 | M51: 0.0006375373428 | N51: 0.007430150903 | O51: 0.0151503542 | P51: 0.01296466714 | Q51: 0.03554517224
A52: 51 | B52: Revenue Requirement | C52: ='Transmission Summary'!E$136 -> 183440043.1 | D52: ='Transmission Summary'!F$136 -> 64630163.88 | E52: ='Transmission Summary'!G$136 -> 53974611.75 | F52: ='Transmission Summary'!H$136 -> 16299774.27 | G52: ='Transmission Summary'!I$136 -> 403586.4067 | H52: ='Transmission Summary'!J$136 -> 27771043.69 | I52: ='Transmission Summary'!K$136 -> 1417821.244 | J52: ='Transmission Summary'!L$136 -> 33988.49371 | K52: ='Transmission Summary'!M$136 -> 80107.72516 | L52: ='Transmission Summary'!N$136 -> 12191587.87 | M52: ='Transmission Summary'!O$136 -> 116949.8777 | N52: ='Transmission Summary'!P$136 -> 1362987.202 | O52: ='Transmission Summary'!Q$136 -> 2779181.628 | P52: ='Transmission Summary'!R$136 -> 2378239.099 | Q52: =SUM(N52:P52) -> 6520407.929
A53: 52 | B53: Per NCP kW | C53: =C52/C$15 -> 1.935969986 | D53: 1.165158832 | E53: 3.394309831 | F53: 3.61618879 | G53: 1.648220469 | H53: 3.244987503 | I53: 1.745879772 | J53: 4.471581859 | K53: 1.882624371 | L53: 1.982047533 | M53: 1.146699336 | N53: 3.643211087 | O53: 1.982938587 | P53: 2.012496107 | Q53: =Q52/'Unit Costs-earned'!Q$15 -> 2.204777145
A54: 53 | B54: Per KWH | C54: =C52/C$16 -> 0.008418989993 | D54: 0.009802009452 | E54: 0.009314035326 | F54: =F52/F$16 -> 0.008228694463 | G54: 0.004575862311 | H54: 0.006548273039 | I54: 0.006869754812 | J54: 0.006131224796 | K54: 0.005189668978 | L54: 0.009219052713 | M54: 0.009699380407 | N54: 0.005642979464 | O54: 0.003411739502 | P54: 0.005035452328 | Q54: =Q52/'Unit Costs-earned'!Q$16 -> 0.004266083438
A55: 54 | B55: Per Customer | C55: =C52/C$17 -> 226.5493903 | D55: 91.98782639 | E55: 3687.483083 | F55: =F52/F$17 -> 58773.22452 | G55: 40.84641494 | H55: 174113.1266 | I55: 514.3400625 | J55: 15.30036855 | K55: 184.7573903 | L55: 158.8716828 | M55: 10964.05103 | N55: 1362987.202 | O55: 2779181.628 | P55: 2378239.099 | Q55: =Q52/'Unit Costs-earned'!Q$17 -> 2173469.31
A56: 55
A57: 56 | B57: TRANSMISSION-ENERGY | C57: =+C58/$C58 -> 1 | D57: 0.3187239969 | E57: 0.2845824016 | F57: 0.09049045612 | G57: 0.004590610181 | H57: 0.1746931849 | I57: 0.008605079487 | J57: 0.0002239386058 | K57: 0.0008456237974 | L57: 0.06523491758 | M57: 0.0005813194105 | N57: 0.009366401561 | O57: 0.02481583907 | P57: 0.01724623081 | Q57: 0.05142847144
A58: 57 | B58: Revenue Requirement | C58: ='Transmission Summary'!E$204 -> 57227313.82 | D58: ='Transmission Summary'!F$204 -> 18239718.19 | E58: ='Transmission Summary'!G$204 -> 16285886.4 | F58: ='Transmission Summary'!H$204 -> 5178525.73 | G58: ='Transmission Summary'!I$204 -> 262708.2895 | H58: ='Transmission Summary'!J$204 -> 9997221.716 | I58: ='Transmission Summary'!K$204 -> 492445.5843 | J58: ='Transmission Summary'!L$204 -> 12815.40487 | K58: ='Transmission Summary'!M$204 -> 48392.77843 | L58: ='Transmission Summary'!N$204 -> 3733219.1 | M58: ='Transmission Summary'!O$204 -> 33267.34834 | N58: ='Transmission Summary'!P$204 -> 536014.0015 | O58: ='Transmission Summary'!Q$204 -> 1420143.81 | P58: ='Transmission Summary'!R$204 -> 986955.4627 | Q58: =SUM(N58:P58) -> 2943113.275
A59: 58 | B59: Per NCP kW | C59: =C58/C$15 -> 0.6039595285 | D59: 0.3288273999 | E59: 1.024173079 | F59: 1.148882579 | G59: 1.072883459 | H59: 1.168154135 | I59: 0.6063887023 | J59: 1.686015639 | K59: 1.137286371 | L59: 0.6069281366 | M59: 0.3261879961 | N59: 1.432744306 | O59: 1.013268774 | P59: 0.8351742375 | Q59: =Q58/'Unit Costs-earned'!Q$15 -> 0.9951691603
A60: 59 | B60: Per KWH | C60: =C58/C$16 -> 0.002626450442 | D60: 0.002766291765 | E60: 0.00281034576 | F60: =F58/F$16 -> 0.002614300377 | G60: 0.002978586346 | H60: 0.002357294819 | I60: 0.002386041567 | J60: 0.002311786124 | K60: 0.003135059702 | L60: 0.002822991069 | M60: 0.002759068014 | N60: 0.002219181514 | O60: 0.001743376787 | P60: 0.002089683575 | Q60: =Q58/'Unit Costs-earned'!Q$16 -> 0.001925579953
A61: 60 | B61: Per Customer | C61: =C58/C$17 -> 70.6760249 | D61: 25.96051023 | E61: 1112.632933 | F61: =F58/F$17 -> 18672.56874 | G61: 26.58833802 | H61: 62678.50606 | I61: 178.6434599 | J61: 5.769023464 | K61: 111.6112514 | L61: 48.64852774 | M61: 3118.813907 | N61: 536014.0015 | O61: 1420143.81 | P61: 986955.4627 | Q61: =Q58/'Unit Costs-earned'!Q$17 -> 981037.7582
A62: 61
A63: 62 | B63: DISTRIBUTION-TOTAL | C63: =+C64/$C64 -> 1 | D63: 0.5852588258 | E63: 0.2325767726 | F63: 0.0617373585 | G63: 0.02007198819 | H63: -3.864767213e-05 | I63: 0.009407241879 | J63: 0.0004892482022 | K63: 0.00032275537 | L63: 0.08860611739 | M63: 0.00069408804 | N63: 0.0002098068953 | O63: 0.00037768104 | P63: 0.00028676384 | Q63: 0.0008742517753
A64: 63 | B64: Revenue Requirement | C64: =+C70+C76+C82+C88+C94 -> 294958250.2 | D64: 172626919.2 | E64: 68600437.87 | F64: =+F70+F76+F82+F88+F94 -> 18209943.23 | G64: 5920398.516 | H64: -11399.44975 | I64: 2774743.604 | J64: 144307.7936 | K64: 95199.35917 | L64: 26135105.34 | M64: 204726.9937 | N64: 61884.2747 | O64: 111400.1387 | P64: 84583.36047 | Q64: =SUM(N64:P64) -> 257867.7739
A65: 64 | B65: Per NCP kW | C65: =C64/C$15 -> 3.11289896 | D65: 3.112134759 | E65: 4.31408644 | F65: 4.039969604 | G65: 24.17852002 | H65: -0.001332001504 | I65: 3.416769744 | J65: 18.98536951 | K65: 2.237295259 | L65: 4.24891504 | M65: 2.007358301 | N65: 0.1654142279 | O65: 0.07948369814 | P65: 0.07157551303 | Q65: =Q64/'Unit Costs-earned'!Q$15 -> 0.08719408056
A66: 65 | B66: Per KWH | C66: =C64/C$16 -> 0.01353712371 | D66: 0.02618112954 | E66: 0.01183791566 | F66: =F64/F$16 -> 0.00919301437 | G66: 0.06712547296 | H66: -2.687933167e-06 | I66: 0.01344443688 | J66: 0.02603185449 | K66: 0.006167359766 | L66: 0.01976288211 | M66: 0.01697928233 | N66: 0.0002562105431 | O66: 0.0001367554571 | P66: 0.0001790885868 | Q66: =Q64/'Unit Costs-earned'!Q$16 -> 0.0001687142049
A67: 66 | B67: Per Customer | C67: =C64/C$17 -> 364.2749457 | D67: 245.6991305 | E67: 4686.702616 | F67: =F64/F$17 -> 65660.85301 | G67: 599.1952414 | H67: -71.46990436 | I67: 1006.587963 | J67: 64.96205588 | K67: 219.5641572 | L67: 340.5732059 | M67: 19193.15566 | N67: 61884.2747 | O67: 111400.1387 | P67: 84583.36047 | Q67: =Q64/'Unit Costs-earned'!Q$17 -> 85955.92462
A68: 67
A69: 68 | B69: DISTRIBUTION-SUBSTATION | C69: =+C70/$C70 -> 1 | D69: 0.5126653967 | E69: 0.3093846574 | F69: 0.08610460407 | G69: 0.002356327422 | H69: -0.001360372851 | I69: 0.009370637328 | J69: 0.0002246793111 | K69: 0.0001952526427 | L69: 0.07976655933 | M69: 0.0008259447431 | N69: 8.793208688e-05 | O69: 0.0002268890663 | P69: 0.0001514926813 | Q69: 0.0004663138344
A70: 69 | B70: Revenue Requirement | C70: ='Distribution Summary'!E$136 -> 66655136.3 | D70: ='Distribution Summary'!F$136 -> 34171781.9 | E70: ='Distribution Summary'!G$136 -> 20622076.51 | F70: ='Distribution Summary'!H$136 -> 5739314.121 | G70: ='Distribution Summary'!I$136 -> 157061.3255 | H70: ='Distribution Summary'!J$136 -> -90675.83778 | I70: ='Distribution Summary'!K$136 -> 624601.1083 | J70: ='Distribution Summary'!L$136 -> 14976.0301 | K70: ='Distribution Summary'!M$136 -> 13014.59151 | L70: ='Distribution Summary'!N$136 -> 5316850.885 | M70: ='Distribution Summary'!O$136 -> 55053.45943 | N70: ='Distribution Summary'!P$136 -> 5861.125236 | O70: ='Distribution Summary'!Q$136 -> 15123.32164 | P70: ='Distribution Summary'!R$136 -> 10097.76532 | Q70: =SUM(N70:P70) -> 31082.21219
A71: 70 | B71: Per NCP kW | C71: =C70/C$15 -> 0.7034578771 | D71: 0.616052182 | E71: 1.296863743 | F71: 1.273296369 | G71: 0.6414281729 | H71: -0.01059527916 | I71: 0.7691226556 | J71: 1.970271031 | K71: 0.305857982 | L71: 0.8643870915 | M71: 0.539801893 | N71: 0.01566655682 | O71: 0.01079044915 | P71: 0.008544857158 | Q71: =Q70/'Unit Costs-earned'!Q$15 -> 0.0105099791
A72: 71 | B72: Per KWH | C72: =C70/C$16 -> 0.003059140828 | D72: 0.005182597552 | E72: 0.00355861289 | F72: =F70/F$16 -> 0.002897405912 | G72: 0.001780761165 | H72: -2.138090849e-05 | I72: 0.003026373379 | J72: 0.002701543879 | K72: 0.0008431324407 | L72: 0.004020504064 | M72: 0.004565925646 | N72: 2.426597204e-05 | O72: 1.856547745e-05 | P72: 2.138002689e-05 | Q72: =Q70/'Unit Costs-earned'!Q$16 -> 2.033604524e-05
A73: 72 | B73: Per Customer | C73: =C70/C$17 -> 82.31943383 | D73: 48.63654603 | E73: 1408.876429 | F73: =F70/F$17 -> 20694.64226 | G73: 15.89595676 | H73: -568.5005503 | I73: 226.5852444 | J73: 6.741657397 | K73: 30.01635559 | L73: 69.28523637 | M73: 5161.261822 | N73: 5861.125236 | O73: 15123.32164 | P73: 10097.76532 | Q73: =Q70/'Unit Costs-earned'!Q$17 -> 10360.7374
A74: 73
A75: 74 | B75: DISTRIBUTION- P & C | C75: =+C76/$C76 -> 1 | D75: 0.5831792903 | E75: 0.2245193175 | F75: 0.06240601481 | G75: 0.03905725028 | H75: -0.002257757341 | I75: 0.005397189322 | J75: 0.0002204038886 | K75: 0.0001203584052 | L75: 0.08633162659 | M75: 0.0005505254635 | N75: 5.632621348e-05 | O75: 0.0002667166967 | P75: 0.0001527378884 | Q75: 0.0004757807986
A76: 75 | B76: Revenue Requirement | C76: ='Distribution Summary'!E$204 -> 127894550.5 | D76: ='Distribution Summary'!F$204 -> 74585453.2 | E76: ='Distribution Summary'!G$204 -> 28714797.2 | F76: ='Distribution Summary'!H$204 -> 7981389.214 | G76: ='Distribution Summary'!I$204 -> 4995209.47 | H76: ='Distribution Summary'!J$204 -> -288754.8604 | I76: ='Distribution Summary'!K$204 -> 690271.1025 | J76: ='Distribution Summary'!L$204 -> 28188.45627 | K76: ='Distribution Summary'!M$204 -> 15393.18414 | L76: ='Distribution Summary'!N$204 -> 11041344.58 | M76: ='Distribution Summary'!O$204 -> 70409.20671 | N76: ='Distribution Summary'!P$204 -> 7203.815756 | O76: ='Distribution Summary'!Q$204 -> 34111.61204 | P76: ='Distribution Summary'!R$204 -> 19534.34359 | Q76: =SUM(N76:P76) -> 60849.77139
A77: 76 | B77: Per NCP kW | C77: =C76/C$15 -> 1.349759883 | D77: 1.344633749 | E77: 1.805791932 | F77: 1.770712264 | G77: 20.40010852 | H77: -0.03374039246 | I77: 0.8499875142 | J77: 3.708519441 | K77: 0.3617576651 | L77: 1.795046717 | M77: 0.6903657546 | N77: 0.01925551567 | O77: 0.02433854308 | P77: 0.01653020945 | Q77: =Q76/'Unit Costs-earned'!Q$15 -> 0.02057542821
A78: 77 | B78: Per KWH | C78: =C76/C$16 -> 0.005869726819 | D78: 0.01131185925 | E78: 0.004955119209 | F78: =F76/F$16 -> 0.004029283606 | G78: 0.0566356804 | H78: -6.808695013e-05 | I78: 0.003344563532 | J78: 0.005084949146 | K78: 0.0009972262981 | L78: 0.008349260062 | M78: 0.005839473231 | N78: 2.982492008e-05 | O78: 4.1875613e-05 | P78: 4.136012058e-05 | Q78: =Q76/'Unit Costs-earned'!Q$16 -> 3.981195728e-05
A79: 78 | B79: Per Customer | C79: =C76/C$17 -> 157.9504232 | D79: 106.1571456 | E79: 1961.761752 | F79: =F76/F$17 -> 28779.04764 | G79: 505.5581539 | H79: -1810.3753 | I79: 250.4082115 | J79: 12.68940523 | K79: 35.50225056 | L79: 143.8825699 | M79: 6600.863129 | N79: 7203.815756 | O79: 34111.61204 | P79: 19534.34359 | Q79: =Q76/'Unit Costs-earned'!Q$17 -> 20283.25713
A80: 79
A81: 80 | B81: DISTRIBUTION-TRANSFORMER | C81: =+C82/$C82 -> 1 | D81: 0.5861506336 | E81: 0.2404830235 | F81: 0.06244332789 | G81: 0.01009213506 | H81: -0.0009697944391 | I81: 0.02011600686 | J81: 0.0002317133682 | K81: 0.0006724885534 | L81: 0.07905678716 | M81: 0.001149842598 | N81: 0.0001188933687 | O81: 0.0002678673478 | P81: 0.0001870750653 | Q81: 0.0005738357818
A82: 81 | B82: Revenue Requirement | C82: ='Distribution Summary'!E$272 -> 61946654.01 | D82: ='Distribution Summary'!F$272 -> 36310070.5 | E82: ='Distribution Summary'!G$272 -> 14897118.65 | F82: ='Distribution Summary'!H$272 -> 3868155.228 | G82: ='Distribution Summary'!I$272 -> 625173.9987 | H82: ='Distribution Summary'!J$272 -> -60075.52058 | I82: ='Distribution Summary'!K$272 -> 1246119.317 | J82: ='Distribution Summary'!L$272 -> 14353.86785 | K82: ='Distribution Summary'!M$272 -> 41658.41574 | L82: ='Distribution Summary'!N$272 -> 4897303.441 | M82: ='Distribution Summary'!O$272 -> 71228.90159 | N82: ='Distribution Summary'!P$272 -> 7365.046375 | O82: ='Distribution Summary'!Q$272 -> 16593.48591 | P82: ='Distribution Summary'!R$272 -> 11588.67435 | Q82: =SUM(N82:P82) -> 35547.20664
A83: 82 | B83: Per NCP kW | C83: =C82/C$15 -> 0.6537659982 | D83: 0.6546014553 | E83: 0.9368374251 | F83: 0.8581701405 | G83: 2.55316969 | H83: -0.00701969705 | I83: 1.534449083 | J83: 1.888418347 | K83: 0.9790210443 | L83: 0.7961791612 | M83: 0.6984029035 | N83: 0.01968647876 | O83: 0.01183940739 | P83: 0.009806483297 | Q83: =Q82/'Unit Costs-earned'!Q$15 -> 0.01201974932
A84: 83 | B84: Per KWH | C84: =C82/C$16 -> 0.002843044797 | D84: 0.005506896979 | E84: 0.00257069546 | F84: =F82/F$16 -> 0.001952779651 | G84: 0.007088222226 | H84: -1.416550692e-05 | I84: 0.006037809216 | J84: 0.00258931129 | K84: 0.002698783263 | L84: 0.003703250066 | M84: 0.005907455623 | N84: 3.049243997e-05 | O84: 2.037025965e-05 | P84: 2.453673276e-05 | Q84: =Q82/'Unit Costs-earned'!Q$16 -> 2.325734082e-05
A85: 84 | B85: Per Customer | C85: =C82/C$17 -> 76.50443414 | D85: 51.67996274 | E85: 1017.753926 | F85: =F82/F$17 -> 13947.6751 | G85: 63.27298476 | H85: -376.6490319 | I85: 452.0521117 | J85: 6.461582857 | K85: 96.07937515 | L85: 63.81800691 | M85: 6677.709524 | N85: 7365.046375 | O85: 16593.48591 | P85: 11588.67435 | Q85: =Q82/'Unit Costs-earned'!Q$17 -> 11849.06888
A86: =+A85+1 -> 85
A87: 86 | B87: DISTRIBUTION-METER | C87: =+C88/$C88 -> 1 | D87: 0.7679071327 | E87: 0.00561792778 | F87: -0.02921429833 | G87: -0.01291984554 | H87: 0.06553357288 | I87: 0.01177179391 | J87: 0.003293888698 | K87: 0.0007032807934 | L87: 0.1714606742 | M87: -0.0001962875541 | N87: 0.005399444463 | O87: 0.005290037663 | P87: 0.00535267833 | Q87: 0.01604216046
A88: 87 | B88: Revenue Requirement | C88: ='Distribution Summary'!E$340 -> 6943756.469 | D88: ='Distribution Summary'!F$340 -> 5332160.12 | E88: ='Distribution Summary'!G$340 -> 39009.52237 | F88: ='Distribution Summary'!H$340 -> -202856.973 | G88: ='Distribution Summary'!I$340 -> -89712.26101 | H88: ='Distribution Summary'!J$340 -> 455049.1706 | I88: ='Distribution Summary'!K$340 -> 81740.4701 | J88: ='Distribution Summary'!L$340 -> 22871.96095 | K88: ='Distribution Summary'!M$340 -> 4883.410559 | L88: ='Distribution Summary'!N$340 -> 1190581.166 | M88: ='Distribution Summary'!O$340 -> -1362.972973 | N88: ='Distribution Summary'!P$340 -> 37492.42742 | O88: ='Distribution Summary'!Q$340 -> 36732.73324 | P88: ='Distribution Summary'!R$340 -> 37167.69478 | Q88: =SUM(N88:P88) -> 111392.8554
A89: 88 | B89: Per NCP kW | C89: =C88/C$15 -> 0.07328227734 | D89: 0.09612869726 | E89: 0.002453197919 | F89: -0.04500486324 | G89: -0.366379002 | H89: 0.0531715296 | I89: 0.1006537558 | J89: 3.009072616 | K89: 0.1147658071 | L89: 0.1935587462 | M89: -0.01336401743 | N89: 0.1002157812 | O89: 0.02620870598 | P89: 0.031451775 | Q89: =Q88/'Unit Costs-earned'!Q$15 -> 0.03766580626
A90: 89 | B90: Per KWH | C90: =C88/C$16 -> 0.0003186840519 | D90: 0.0008086918051 | E90: 6.731610614e-06 | F90: =F88/F$16 -> -0.0001024092741 | G90: -0.001017157533 | H90: 0.0001072983158 | I90: 0.000396056266 | J90: 0.004125900234 | K90: 0.0003163650476 | L90: 0.0009002954038 | M90: -0.000113039822 | N90: 0.0001552244934 | O90: 4.509331661e-05 | P90: 7.869526461e-05 | Q90: =Q88/'Unit Costs-earned'!Q$16 -> 7.288059595e-05
A91: 90 | B91: Per Customer | C91: =C88/C$17 -> 8.57557471 | D91: 7.589239914 | E91: 2.665085475 | F91: =F88/F$17 -> -731.4554315 | G91: -9.079652282 | H91: 2852.972856 | I91: 29.65282026 | J91: 10.29611477 | K91: 11.26291115 | L91: 15.51476603 | M91: -127.7787163 | N91: 37492.42742 | O91: 36732.73324 | P91: 37167.69478 | Q91: =Q88/'Unit Costs-earned'!Q$17 -> 37130.95182
A92: 91
A93: 92 | B93: DISTRIBUTION-SERVICE | C93: =+C94/$C94 -> 1 | D93: 0.7052270328 | E93: 0.1372997966 | F93: 0.02614181256 | G93: 0.007381967586 | H93: -0.0008548217187 | I93: 0.004188430911 | J93: 0.002027957625 | K93: 0.0006424791865 | L93: 0.1170444628 | M93: 0.0002981900312 | N93: 0.0001257008915 | O93: 0.0002804411119 | P93: 0.0001965496664 | Q93: 0.0006026916698
A94: 93 | B94: Revenue Requirement | C94: ='Distribution Summary'!E$408 -> 31518152.88 | D94: ='Distribution Summary'!F$408 -> 22227453.43 | E94: ='Distribution Summary'!G$408 -> 4327435.979 | F94: ='Distribution Summary'!H$408 -> 823941.6448 | G94: ='Distribution Summary'!I$408 -> 232665.9829 | H94: ='Distribution Summary'!J$408 -> -26942.40162 | I94: ='Distribution Summary'!K$408 -> 132011.6058 | J94: ='Distribution Summary'!L$408 -> 63917.47845 | K94: ='Distribution Summary'!M$408 -> 20249.75722 | L94: ='Distribution Summary'!N$408 -> 3689025.272 | M94: ='Distribution Summary'!O$408 -> 9398.398991 | N94: ='Distribution Summary'!P$408 -> 3961.859917 | O94: ='Distribution Summary'!Q$408 -> 8838.985838 | P94: ='Distribution Summary'!R$408 -> 6194.882434 | Q94: =SUM(N94:P94) -> 18995.72819
A95: 94 | B95: Per NCP kW | C95: =C94/C$15 -> 0.3326329244 | D95: 0.4007186757 | E95: 0.2721401416 | F95: 0.1827956934 | G95: 0.9501926453 | H95: -0.003148162435 | I95: 0.162556735 | J95: 8.409088074 | K95: 0.4758927604 | L95: 0.5997433245 | M95: 0.09215176701 | N95: 0.01058989545 | O95: 0.006306592528 | P95: 0.005242188132 | Q95: =Q94/'Unit Costs-earned'!Q$15 -> 0.006423117667
A96: 95 | B96: Per KWH | C96: =C94/C$16 -> 0.001446527209 | D96: 0.003371083958 | E96: 0.0007467564892 | F96: =F94/F$16 -> 0.0004159544752 | G96: 0.002637966702 | H96: -6.352883387e-06 | I96: 0.000639634487 | J96: 0.01153014994 | K96: 0.001311852717 | L96: 0.002789572516 | M96: 0.0007794676562 | N96: 1.640271758e-05 | O96: 1.085079034e-05 | P96: 1.311644199e-05 | Q96: =Q94/'Unit Costs-earned'!Q$16 -> 1.242826558e-05
A97: 96 | B97: Per Customer | C97: =C94/C$17 -> 38.92507981 | D97: 31.63623616 | E97: 295.6454238 | F97: =F94/F$17 -> 2970.943431 | G97: 23.54779825 | H97: -168.9178785 | I97: 47.88957555 | J97: 28.77329562 | K97: 46.70326478 | L97: 48.07262673 | M97: 881.0999054 | N97: 3961.859917 | O97: 8838.985838 | P97: 6194.882434 | Q97: =Q94/'Unit Costs-earned'!Q$17 -> 6331.909396
A98: 97
A99: 98 | B99: RETAIL-TOTAL | C99: =+C100/$C100 -> 1 | D99: 0.9722515934 | E99: 0.01650631333 | F99: -0.009725782577 | G99: 0.01060259228 | H99: -0.03512025501 | I99: 0.00124046074 | J99: 0.002724389788 | K99: 0.0005256804048 | L99: 0.05030672218 | M99: -2.189392992e-05 | N99: 6.174273418e-05 | O99: -0.009470227926 | P99: 0.0001186645831 | Q99: -0.009289820609
A100: 99 | B100: Revenue Requirement | C100: ='Retail Summary'!E$68 -> 43056804.7 | D100: ='Retail Summary'!F$68 -> 41862046.97 | E100: ='Retail Summary'!G$68 -> 710709.1092 | F100: ='Retail Summary'!H$68 -> -418761.1209 | G100: ='Retail Summary'!I$68 -> 456513.745 | H100: ='Retail Summary'!J$68 -> -1512165.961 | I100: ='Retail Summary'!K$68 -> 53410.2758 | J100: ='Retail Summary'!L$68 -> 117303.519 | K100: ='Retail Summary'!M$68 -> 22634.11852 | L100: ='Retail Summary'!N$68 -> 2166046.712 | M100: ='Retail Summary'!O$68 -> -942.6826644 | N100: ='Retail Summary'!P$68 -> 2658.444847 | O100: ='Retail Summary'!Q$68 -> -407757.7542 | P100: ='Retail Summary'!R$68 -> 5109.317779 | Q100: =SUM(N100:P100) -> -399989.9916
A101: 100 | B101: Per NCP kW | C101: =C100/C$15 -> 0.4544083188 | D101: 0.754693023 | E101: 0.04469447464 | F101: -0.09290430937 | G101: 1.864372254 | H101: -0.1766933825 | I101: 0.06576846024 | J101: 15.43264294 | K101: 0.531928014 | L101: 0.3521450681 | M101: -0.009243050156 | N101: 0.007105918327 | O101: -0.2909340566 | P101: 0.004323569544 | Q101: =Q100/'Unit Costs-earned'!Q$15 -> -0.1352505551
A102: 101 | B102: Per KWH | C102: =C100/C$16 -> 0.001976094214 | D102: 0.006348926808 | E102: 0.0001226422856 | F102: =F100/F$16 -> -0.0002114052171 | G102: 0.005175952423 | H102: -0.0003565611614 | I102: 0.0002587882645 | J102: 0.02116052128 | K102: 0.00146632029 | L102: 0.001637924365 | M102: -7.818253381e-05 | N102: 1.100637603e-05 | O102: -0.0005005657866 | P102: 1.081797289e-05 | Q102: =Q100/'Unit Costs-earned'!Q$16 -> -0.0002616999882
A103: 102 | B103: Per Customer | C103: =C100/C$17 -> 53.17537375 | D103: 59.5820663 | E103: 48.55482479 | F103: =F100/F$17 -> -1509.955965 | G103: 46.20311672 | H103: -9480.664331 | I103: 19.37553462 | J103: 52.80572563 | K103: 52.2024644 | L103: 28.22630569 | M103: -88.37649979 | N103: 2658.444847 | O103: -407757.7542 | P103: 5109.317779 | Q103: =Q100/'Unit Costs-earned'!Q$17 -> -133329.9972
A104: 103
A105: 104 | B105: MISC - Total | C105: =+C106/$C106 -> 1 | D105: 0.4014181447 | E105: 0.2739110908 | F105: 0.08349178207 | G105: 0.006341923818 | H105: 0.1227542132 | I105: 0.008780927904 | J105: 0.000268694114 | K105: 0.000462107349 | L105: 0.06972560045 | M105: 0.0006498633959 | N105: 0.006302342479 | O105: 0.01467560118 | P105: 0.01121767518 | Q105: 0.03219561883
A106: 105 | B106: Revenue Requirement | C106: ='Misc Summary'!E$68 -> 4324639.969 | D106: ='Misc Summary'!F$68 -> 1735988.953 | E106: ='Misc Summary'!G$68 -> 1184566.851 | F106: ='Misc Summary'!H$68 -> 361071.8978 | G106: ='Misc Summary'!I$68 -> 27426.53722 | H106: ='Misc Summary'!J$68 -> 530867.7769 | I106: ='Misc Summary'!K$68 -> 37974.35178 | J106: ='Misc Summary'!L$68 -> 1162.005305 | K106: ='Misc Summary'!M$68 -> 1998.447911 | L106: ='Misc Summary'!N$68 -> 301538.1186 | M106: ='Misc Summary'!O$68 -> 2810.425216 | N106: ='Misc Summary'!P$68 -> 27255.36218 | O106: ='Misc Summary'!Q$68 -> 63466.69141 | P106: ='Misc Summary'!R$68 -> 48512.40643 | Q106: =SUM(N106:P106) -> 139234.46
A107: 106 | B107: Per NCP kW | C107: =C106/C$15 -> 0.04564092462 | D107: 0.03129657638 | E107: 0.0744940404 | F107: 0.08010565838 | G107: 0.1120081828 | H107: 0.0620307728 | I107: 0.04676093893 | J107: 0.1528753197 | K107: 0.04696584174 | L107: 0.04902256296 | M107: 0.02755635827 | N107: 0.07285250919 | O107: 0.04528331295 | P107: 0.04105181397 | Q107: =Q106/'Unit Costs-earned'!Q$15 -> 0.047080023
A108: 107 | B108: Per KWH | C108: =C106/C$16 -> 0.0001984795686 | D108: 0.0002632854243 | E108: 0.0002044127255 | F108: =F106/F$16 -> 0.0001822816855 | G108: 0.000310962054 | H108: 0.0001251759635 | I108: 0.0001839967393 | J108: 0.0002096155187 | K108: 0.0001294667039 | L108: 0.0002280175347 | M108: 0.000233086035 | N108: 0.0001128414477 | O108: 7.791207888e-05 | P108: 0.0001027154545 | Q108: =Q106/'Unit Costs-earned'!Q$16 -> 9.10964207e-05
A109: 108 | B109: Per Customer | C109: =C106/C$17 -> 5.340952453 | D109: 2.470825398 | E109: 80.92823797 | F109: =F106/F$17 -> 1301.941939 | G109: 2.775801418 | H109: 3328.32462 | I109: 13.77587658 | J109: 0.523092008 | K109: 4.609143751 | L109: 3.929419927 | M109: 263.477364 | N109: 27255.36218 | O109: 63466.69141 | P109: 48512.40643 | Q109: =Q106/'Unit Costs-earned'!Q$17 -> 46411.48667

Sheet Function Summary
C1: Function Summary
C2: =Inputs!$C$4 -> Rocky Mountain Power
C3: Cost Of Service - Function Summary
C4: =Inputs!$C$5 -> State of Utah
C5: =Inputs!$C$7 -> Monthly Wgt Factors
C6: =Inputs!$C$6 -> 12 Months Ended Dec 2010
C9: A | D9: B | E9: C | F9: D | G9: E | H9: F | I9: G | J9: H | L9: I | M9: J | N9: K | O9: L | P9: M
E10: ='Hot Sheet'!$H$10 -> Utah | L10: Distribution | M10: Distribution | N10: Distribution | O10: Distribution | P10: Distribution | Q10: Chk Total
E11: ='Hot Sheet'!$H$11 -> Jurisdiction | F11: Generation | G11: Transmission | H11: Distribution | I11: Retail | J11: MISC. | L11: Substations | M11: Poles & Wires | N11: Transformers | O11: Meters | P11: Services
C12: DESCRIPTION | E12: ='Hot Sheet'!$H$12 -> Normalized | F12: Function | G12: Function | H12: Function | I12: Function | J12: Function | L12: Function | M12: Function | N12: Function | O12: Function | P12: Function | Q12: =SUM(Q14:Q68) -> 0
A14: 14 | C14: Operating Expenses
A15: =A14+1 -> 15 | C15: Operation & Maintenance Expenses | E15: ='Class Summary'!E17 -> 1207658327 | F15: =Generation!$H17 -> 952768301.1 | G15: =Transmission!$H17 -> 94576557.91 | H15: =Distribution!$H17 -> 109580169.4 | I15: =Retail!$H17 -> 45094126.04 | J15: =Misc!$H17 -> 5639172.633 | L15: ='Distribution Summary'!E83 -> 19280464.65 | M15: ='Distribution Summary'!E151 -> 76952586.91 | N15: ='Distribution Summary'!E219 -> 5080908.002 | O15: ='Distribution Summary'!E287 -> 5812222.251 | P15: ='Distribution Summary'!E355 -> 2453987.593 | Q15: =ROUND(SUM(-E15,F15:J15),0) -> 0
A16: =A15+1 -> 16 | C16: Depreciation Expense | E16: ='Class Summary'!E18 -> 218663628.9 | F16: =Generation!$H18 -> 116108489.2 | G16: =Transmission!$H18 -> 39216109.26 | H16: =Distribution!$H18 -> 62514801.87 | I16: =Retail!$H18 -> 824228.5338 | J16: =Misc!$H18 -> 0 | L16: ='Distribution Summary'!E84 -> 10515779.26 | M16: ='Distribution Summary'!E152 -> 35730436.59 | N16: ='Distribution Summary'!E220 -> 9247693.022 | O16: ='Distribution Summary'!E288 -> 2748261.135 | P16: ='Distribution Summary'!E356 -> 4272631.857 | Q16: =ROUND(SUM(-E16,F16:J16),0) -> 0
A17: 17 | C17: Amortization Expense | E17: ='Class Summary'!E19 -> 20299322.52 | F17: =Generation!$H19 -> 13503539.36 | G17: =Transmission!$H19 -> 2093888.299 | H17: =Distribution!$H19 -> 1898189.174 | I17: =Retail!$H19 -> 2803705.686 | J17: =Misc!$H19 -> 0 | L17: ='Distribution Summary'!E85 -> 340344.2799 | M17: ='Distribution Summary'!E153 -> 977119.9932 | N17: ='Distribution Summary'!E221 -> 337866.792 | O17: ='Distribution Summary'!E289 -> 64751.68571 | P17: ='Distribution Summary'!E357 -> 178106.4232 | Q17: 0
A18: 18 | C18: Taxes Other Than Income | E18: ='Class Summary'!E20 -> 51721478.6 | F18: =Generation!$H20 -> 26300490.41 | G18: =Transmission!$H20 -> 11041812.49 | H18: =Distribution!$H20 -> 14042718.35 | I18: =Retail!$H20 -> 335005.6454 | J18: =Misc!$H20 -> 1451.71 | L18: ='Distribution Summary'!E86 -> 2517851.714 | M18: ='Distribution Summary'!E154 -> 7228689.873 | N18: ='Distribution Summary'!E222 -> 2499523.37 | O18: ='Distribution Summary'!E290 -> 479030.0659 | P18: ='Distribution Summary'!E358 -> 1317623.329 | Q18: 0
A19: 19 | C19: Income Taxes - Federal | E19: ='Class Summary'!E21 -> -274764962.5 | F19: =Generation!$H21 -> -224840321.5 | G19: =Transmission!$H21 -> -19448422.17 | H19: =Distribution!$H21 -> -27722404.99 | I19: =Retail!$H21 -> -940005.8321 | J19: =Misc!$H21 -> -1813808.171 | L19: ='Distribution Summary'!E87 -> 7602883.804 | M19: ='Distribution Summary'!E155 -> -58881389.17 | N19: ='Distribution Summary'!E223 -> 19676427.43 | O19: ='Distribution Summary'!E291 -> -6576909.465 | P19: ='Distribution Summary'!E359 -> 10456582.41 | Q19: 0
A20: 20 | C20: Income Taxes - State | E20: ='Class Summary'!E22 -> -32469332.41 | F20: =Generation!$H22 -> -25793262.02 | G20: =Transmission!$H22 -> -2472950.636 | H20: =Distribution!$H22 -> -3814565.068 | I20: =Retail!$H22 -> -151798.2475 | J20: =Misc!$H22 -> -236756.4439 | L20: ='Distribution Summary'!E88 -> -794939.7171 | M20: ='Distribution Summary'!E156 -> -1792522.952 | N20: ='Distribution Summary'!E224 -> -736861.1575 | O20: ='Distribution Summary'!E292 -> -120963.5016 | P20: ='Distribution Summary'!E360 -> -369277.7394 | Q20: 0
A21: 21 | C21: Income Taxes Deferred | E21: ='Class Summary'!E23 -> 382635216.7 | F21: =Generation!$H23 -> 242068423.9 | G21: =Transmission!$H23 -> 77202868.55 | H21: =Distribution!$H23 -> 61906684.88 | I21: =Retail!$H23 -> 1457239.38 | J21: =Misc!$H23 -> 0 | L21: ='Distribution Summary'!E89 -> 11076443.98 | M21: ='Distribution Summary'!E157 -> 31957676.33 | N21: ='Distribution Summary'!E225 -> 10968344.21 | O21: ='Distribution Summary'!E293 -> 2123263.189 | P21: ='Distribution Summary'!E361 -> 5780957.184 | Q21: 0
A22: 22 | C22: Investment Tax Credit Adj | E22: ='Class Summary'!E24 -> -1540597.912 | F22: =Generation!$H24 -> -772346.3784 | G22: =Transmission!$H24 -> -315650.1236 | H22: =Distribution!$H24 -> -452601.4098 | I22: =Retail!$H24 -> 0 | J22: =Misc!$H24 -> 0 | L22: ='Distribution Summary'!E90 -> -81151.18503 | M22: ='Distribution Summary'!E158 -> -232983.0411 | N22: ='Distribution Summary'!E226 -> -80560.4565 | O22: ='Distribution Summary'!E294 -> -15439.29585 | P22: ='Distribution Summary'!E362 -> -42467.43124 | Q22: 0
A23: 23 | C23: Misc Revenues & Expense | E23: ='Class Summary'!E25 -> -3051140.007 | F23: =Generation!$H25 -> -2167139.504 | G23: =Transmission!$H25 -> -512943.7997 | H23: =Distribution!$H25 -> -1178243.778 | I23: =Retail!$H25 -> 807187.0748 | J23: =Misc!$H25 -> 0 | L23: ='Distribution Summary'!E91 -> -211258.4645 | M23: ='Distribution Summary'!E159 -> -606517.8162 | N23: ='Distribution Summary'!E227 -> -209720.6385 | O23: ='Distribution Summary'!E295 -> -40192.65933 | P23: ='Distribution Summary'!E363 -> -110554.1997 | Q23: 0
A24: 24
A25: 25 | C25: Total Operating Expenses | E25: =SUM(E15:E23) -> 1569151941 | F25: 1097176175 | G25: =SUM(G15:G23) -> 201381269.8 | H25: 216774748.4 | I25: =SUM(I15:I23) -> 50229688.28 | J25: 3590059.728 | L25: =SUM(L15:L23) -> 50246418.32 | M25: =SUM(M15:M23) -> 91333096.72 | N25: =SUM(N15:N23) -> 46783620.57 | O25: =SUM(O15:O23) -> 4474023.404 | P25: =SUM(P15:P23) -> 23937589.42 | Q25: =ROUND(SUM(-E25,F25:J25),0) -> 0
A26: 26
A27: 27
A28: 28 | C28: Rate Base :
A29: 29 | C29: Electric Plant In Service | E29: ='Class Summary'!E33 -> 9277156858 | F29: =Generation!$H33 -> 4699369744 | G29: =Transmission!$H33 -> 1991369175 | H29: =Distribution!$H33 -> 2516577457 | I29: =Retail!$H33 -> 69840481.33 | J29: =Misc!$H33 -> 0 | L29: ='Distribution Summary'!E97 -> 457025381.3 | M29: ='Distribution Summary'!E165 -> 1312108544 | N29: ='Distribution Summary'!E233 -> 434863991.4 | O29: ='Distribution Summary'!E301 -> 83341059.74 | P29: ='Distribution Summary'!E369 -> 229238480.7 | Q29: =ROUND(SUM(-E29,F29:J29),0) -> 0
A30: 30 | C30: Plant Held For Future Use | E30: ='Class Summary'!E34 -> 7106712.136 | F30: =Generation!$H34 -> 4111915.569 | G30: =Transmission!$H34 -> 217988.7924 | H30: =Distribution!$H34 -> 2776807.775 | I30: =Retail!$H34 -> 0 | J30: =Misc!$H34 -> 0 | L30: ='Distribution Summary'!E98 -> 497880.1141 | M30: ='Distribution Summary'!E166 -> 1429401.469 | N30: ='Distribution Summary'!E234 -> 494255.8665 | O30: ='Distribution Summary'!E302 -> 94723.42735 | P30: ='Distribution Summary'!E370 -> 260546.8978 | Q30: 0
A31: =A30+1 -> 31 | C31: Electric Plant Acquisition Adj | E31: ='Class Summary'!E35 -> 24630737.7 | F31: =Generation!$H35 -> 24630737.7 | G31: =Transmission!$H35 -> 0 | H31: =Distribution!$H35 -> 0 | I31: =Retail!$H35 -> 0 | J31: =Misc!$H35 -> 0 | L31: ='Distribution Summary'!E99 -> 0 | M31: ='Distribution Summary'!E167 -> 0 | N31: ='Distribution Summary'!E235 -> 0 | O31: ='Distribution Summary'!E303 -> 0 | P31: ='Distribution Summary'!E371 -> 0 | Q31: 0
A32: 32 | C32: Nuclear Fuel | E32: ='Class Summary'!E36 -> 0 | F32: =Generation!$H36 -> 0 | G32: =Transmission!$H36 -> 0 | H32: =Distribution!$H36 -> 0 | I32: =Retail!$H36 -> 0 | J32: =Misc!$H36 -> 0 | L32: ='Distribution Summary'!E100 -> 0 | M32: ='Distribution Summary'!E168 -> 0 | N32: ='Distribution Summary'!E236 -> 0 | O32: ='Distribution Summary'!E304 -> 0 | P32: ='Distribution Summary'!E372 -> 0 | Q32: 0
A33: 33 | C33: Prepayments | E33: ='Class Summary'!E37 -> 19672361.66 | F33: =Generation!$H37 -> 10755596.42 | G33: =Transmission!$H37 -> 3373494.644 | H33: =Distribution!$H37 -> 3690822.033 | I33: =Retail!$H37 -> 28381.55359 | J33: =Misc!$H37 -> 1824067.01 | L33: ='Distribution Summary'!E101 -> 661762.3702 | M33: ='Distribution Summary'!E169 -> 1899903.365 | N33: ='Distribution Summary'!E237 -> 656945.165 | O33: ='Distribution Summary'!E305 -> 125902.5979 | P33: ='Distribution Summary'!E373 -> 346308.5345 | Q33: 0
A34: 34 | C34: Fuel Stock | E34: ='Class Summary'!E38 -> 83614228.64 | F34: =Generation!$H38 -> 83614228.64 | G34: =Transmission!$H38 -> 0 | H34: =Distribution!$H38 -> 0 | I34: =Retail!$H38 -> 0 | J34: =Misc!$H38 -> 0 | L34: ='Distribution Summary'!E102 -> 0 | M34: ='Distribution Summary'!E170 -> 0 | N34: ='Distribution Summary'!E238 -> 0 | O34: ='Distribution Summary'!E306 -> 0 | P34: ='Distribution Summary'!E374 -> 0 | Q34: 0
A35: 35 | C35: Materials & Supplies | E35: ='Class Summary'!E39 -> 75107335.01 | F35: =Generation!$H39 -> 62918516.33 | G35: =Transmission!$H39 -> 602211.512 | H35: =Distribution!$H39 -> 11586607.17 | I35: =Retail!$H39 -> 0 | J35: =Misc!$H39 -> 0 | L35: ='Distribution Summary'!E103 -> 2077472.324 | M35: ='Distribution Summary'!E171 -> 5964371.558 | N35: ='Distribution Summary'!E239 -> 2062349.659 | O35: ='Distribution Summary'!E307 -> 395246.3518 | P35: ='Distribution Summary'!E375 -> 1087167.28 | Q35: 0
A36: 36 | C36: Misc Deferred Debits | E36: ='Class Summary'!E40 -> 35066417.6 | F36: =Generation!$H40 -> 24864621.62 | G36: =Transmission!$H40 -> 7618696.269 | H36: =Distribution!$H40 -> 306532.8228 | I36: =Retail!$H40 -> 102897.1886 | J36: =Misc!$H40 -> 2173669.693 | L36: ='Distribution Summary'!E104 -> 54961.16733 | M36: ='Distribution Summary'!E172 -> 157792.1494 | N36: ='Distribution Summary'!E240 -> 54561.08532 | O36: ='Distribution Summary'!E308 -> 10456.55368 | P36: ='Distribution Summary'!E376 -> 28761.86705 | Q36: 0
A37: 37 | C37: Cash Working Capital | E37: ='Class Summary'!E41 -> 27738207.64 | F37: =Generation!$H41 -> 15266151.57 | G37: =Transmission!$H41 -> 5251371.908 | H37: =Distribution!$H41 -> 6369036.179 | I37: =Retail!$H41 -> 797470.3171 | J37: =Misc!$H41 -> 54177.66993 | L37: ='Distribution Summary'!E105 -> 1141964.701 | M37: ='Distribution Summary'!E173 -> 3278552.356 | N37: ='Distribution Summary'!E241 -> 1133651.931 | O37: ='Distribution Summary'!E309 -> 217262.7652 | P37: ='Distribution Summary'!E377 -> 597604.4267 | Q37: 0
A38: 38 | C38: Weatherization Loans | E38: ='Class Summary'!E42 -> 5209307.503 | F38: =Generation!$H42 -> 0 | G38: =Transmission!$H42 -> 0 | H38: =Distribution!$H42 -> 0 | I38: =Retail!$H42 -> 0 | J38: =Misc!$H42 -> 5209307.503 | L38: ='Distribution Summary'!E106 -> 0 | M38: ='Distribution Summary'!E174 -> 0 | N38: ='Distribution Summary'!E242 -> 0 | O38: ='Distribution Summary'!E310 -> 0 | P38: ='Distribution Summary'!E378 -> 0 | Q38: 0
A39: 39 | C39: Miscellaneous Rate Base | E39: ='Class Summary'!E43 -> 34157.4187 | F39: =Generation!$H43 -> 34157.4187 | G39: =Transmission!$H43 -> 0 | H39: =Distribution!$H43 -> 0 | I39: =Retail!$H43 -> 0 | J39: =Misc!$H43 -> 0 | L39: ='Distribution Summary'!E107 -> 0 | M39: ='Distribution Summary'!E175 -> 0 | N39: ='Distribution Summary'!E243 -> 0 | O39: ='Distribution Summary'!E311 -> 0 | P39: ='Distribution Summary'!E379 -> 0 | Q39: 0
A40: 40
A41: 41 | C41: Total Rate Base Additions | E41: =SUM(E29:E39) -> 9555336323 | F41: 4925565670 | G41: 2008432938 | H41: 2541307263 | I41: 70769230.39 | J41: 9261221.876 | L41: =SUM(L29:L39) -> 461459422 | M41: 1324838565 | N41: 439265755.1 | O41: 84184651.43 | P41: 231558869.7 | Q41: =ROUND(SUM(-E41,F41:J41),0) -> 0
A42: 42
A43: 43 | C43: Rate Base Deductions :
A44: 44 | C44: Accum Provision For Depreciation | E44: ='Class Summary'!E48 -> -2653344674 | F44: =Generation!$H48 -> -1385166144 | G44: =Transmission!$H48 -> -516852971.3 | H44: =Distribution!$H48 -> -747949250.5 | I44: =Retail!$H48 -> -3376308.098 | J44: =Misc!$H48 -> 0 | L44: ='Distribution Summary'!E112 -> -97460151.12 | M44: ='Distribution Summary'!E180 -> -467069880.7 | N44: ='Distribution Summary'!E248 -> -97948970.98 | O44: ='Distribution Summary'!E316 -> -26504549.95 | P44: ='Distribution Summary'!E384 -> -58965697.76 | Q44: =ROUND(SUM(-E44,F44:J44),0) -> 0
A45: 45 | C45: Accum Provision For Amortization | E45: ='Class Summary'!E49 -> -185265641.2 | F45: =Generation!$H49 -> -81527142.94 | G45: =Transmission!$H49 -> -25237026.6 | H45: =Distribution!$H49 -> -32724727.95 | I45: =Retail!$H49 -> -45776743.75 | J45: =Misc!$H49 -> 0 | L45: ='Distribution Summary'!E113 -> -5867525.809 | M45: ='Distribution Summary'!E181 -> -16845521.19 | N45: ='Distribution Summary'!E249 -> -5824813.988 | O45: ='Distribution Summary'!E317 -> -1116317.24 | P45: ='Distribution Summary'!E385 -> -3070549.725 | Q45: 0
A46: 46 | C46: Accum Deferred Income Taxes | E46: ='Class Summary'!E50 -> -1118397090 | F46: =Generation!$H50 -> -583329875.7 | G46: =Transmission!$H50 -> -239853520.5 | H46: =Distribution!$H50 -> -294024707 | I46: =Retail!$H50 -> -1188986.788 | J46: =Misc!$H50 -> 0 | L46: ='Distribution Summary'!E114 -> -52698787.4 | M46: ='Distribution Summary'!E182 -> -151429420.8 | N46: ='Distribution Summary'!E250 -> -52292059.72 | O46: ='Distribution Summary'!E318 -> -10039532.89 | P46: ='Distribution Summary'!E386 -> -27564906.09 | Q46: 0
A47: =A46+1 -> 47 | C47: Unamortized ITC | E47: ='Class Summary'!E51 -> -141518.9809 | F47: =Generation!$H51 -> -70947.56622 | G47: =Transmission!$H51 -> -28995.55002 | H47: =Distribution!$H51 -> -41575.86465 | I47: =Retail!$H51 -> 0 | J47: =Misc!$H51 -> 0 | L47: ='Distribution Summary'!E115 -> -7454.529774 | M47: ='Distribution Summary'!E183 -> -21401.77024 | N47: ='Distribution Summary'!E251 -> -7400.265583 | O47: ='Distribution Summary'!E319 -> -1418.250276 | P47: ='Distribution Summary'!E387 -> -3901.048771 | Q47: 0
A48: 48 | C48: Customer Advance For Construction | E48: ='Class Summary'!E52 -> -8076875.649 | F48: =Generation!$H52 -> 0 | G48: =Transmission!$H52 -> -5367859.744 | H48: =Distribution!$H52 -> -2709015.905 | I48: =Retail!$H52 -> 0 | J48: =Misc!$H52 -> 0 | L48: ='Distribution Summary'!E116 -> -485725.0689 | M48: ='Distribution Summary'!E184 -> -1394504.636 | N48: ='Distribution Summary'!E252 -> -482189.3022 | O48: ='Distribution Summary'!E320 -> -92410.88763 | P48: ='Distribution Summary'!E388 -> -254186.0105 | Q48: 0
A49: 49 | C49: Customer Service Deposits | E49: ='Class Summary'!E53 -> -14610438.07 | F49: =Generation!$H53 -> 0 | G49: =Transmission!$H53 -> 0 | H49: =Distribution!$H53 -> 0 | I49: =Retail!$H53 -> -14610438.07 | J49: =Misc!$H53 -> 0 | L49: ='Distribution Summary'!E117 -> 0 | M49: ='Distribution Summary'!E185 -> 0 | N49: ='Distribution Summary'!E253 -> 0 | O49: ='Distribution Summary'!E321 -> 0 | P49: ='Distribution Summary'!E389 -> 0 | Q49: 0
A50: 50 | C50: Misc Rate Base Deductions | E50: ='Class Summary'!E54 -> -23904674.06 | F50: =Generation!$H54 -> -16811450.94 | G50: =Transmission!$H54 -> -2773578.678 | H50: =Distribution!$H54 -> -4200618.768 | I50: =Retail!$H54 -> -119025.6811 | J50: =Misc!$H54 -> 0 | L50: ='Distribution Summary'!E118 -> -753168.6458 | M50: ='Distribution Summary'!E186 -> -2162328.517 | N50: ='Distribution Summary'!E254 -> -747686.0616 | O50: ='Distribution Summary'!E322 -> -143292.9605 | P50: ='Distribution Summary'!E390 -> -394142.583 | Q50: 0
A51: 51
A52: 52 | C52: Total Rate Base Deductions | E52: =SUM(E44:E50) -> -4003740912 | F52: -2066905562 | G52: -790113952.4 | H52: -1081649896 | I52: -65071502.39 | J52: 0 | L52: =SUM(L44:L50) -> -157272812.6 | M52: -638923057.7 | N52: -157303120.3 | O52: -37897522.19 | P52: -90253383.22 | Q52: =ROUND(SUM(-E52,F52:J52),0) -> 0
A53: 53
A54: 54 | C54: Total Rate Base | E54: =E41+E52 -> 5551595411 | F54: 2858660108 | G54: =G41+G52 -> 1218318986 | H54: 1459657367 | I54: =I41+I52 -> 5697727.999 | J54: 9261221.876 | L54: 304186609.4 | M54: 685915507.1 | N54: 281962634.8 | O54: 46287129.25 | P54: 141305486.5 | Q54: =ROUND(SUM(-E54,F54:J54),0) -> 0
A55: 55
A56: 56
A57: 57 | C57: Return On Rate Base | D57: =ActualROR -> 0.06305604955 | E57: =$D$57*E54 -> 350061675.3 | F57: 180255813.4 | G57: =$D$57*G54 -> 76822382.33 | H57: 92040227.27 | I57: =$D$57*I54 -> 359276.219 | J57: 583976.0655 | L57: =$D$57*L54 -> 19180805.92 | M57: =$D$57*M54 -> 43251122.2 | N57: =$D$57*N54 -> 17779449.87 | O57: =$D$57*O54 -> 2918683.516 | P57: =$D$57*P54 -> 8910165.76 | Q57: =ROUND(SUM(-E57,F57:J57),0) -> 0
A58: 58 | C58: Total Operating Expenses | E58: =E25 -> 1569151941 | F58: 1097176175 | G58: =G25 -> 201381269.8 | H58: 216774748.4 | I58: =I25 -> 50229688.28 | J58: 3590059.728 | L58: =L25 -> 50246418.32 | M58: =M25 -> 91333096.72 | N58: =N25 -> 46783620.57 | O58: =O25 -> 4474023.404 | P58: =P25 -> 23937589.42 | Q58: =ROUND(SUM(-E58,F58:J58),0) -> 0
A59: 59 | C59: Revenue Credits | E59: ='Class Summary'!E64 -> -358068269.7 | F59: =Generation!$H99 -> -299293693.4 | G59: =Transmission!$H99 -> -37536295.14 | H59: =Distribution!$H99 -> -13856725.53 | I59: =Retail!$H99 -> -7532159.803 | J59: =Misc!$H99 -> 150604.1749 | L59: ='Distribution Summary'!E127 -> -2772087.936 | M59: ='Distribution Summary'!E195 -> -6689668.4 | N59: ='Distribution Summary'!E263 -> -2616416.435 | O59: ='Distribution Summary'!E331 -> -448950.4509 | P59: ='Distribution Summary'!E399 -> -1329602.304 | Q59: =ROUND(SUM(-E59,F59:J59),0) -> 0
A60: 60
A61: 61 | C61: Total Revenue Requirements | E61: =E57+E58+E59 -> 1561145347 | F61: 978138294.6 | G61: =G57+G58+G59 -> 240667357 | H61: 294958250.2 | I61: =I57+I58+I59 -> 43056804.7 | J61: 4324639.969 | L61: 66655136.3 | M61: 127894550.5 | N61: 61946654.01 | O61: 6943756.469 | P61: 31518152.88 | Q61: =ROUND(SUM(-E61,F61:J61),0) -> 0
A62: 62
A63: 63
A64: 64 | C64: Return On Rate Base @ Target ROR | D64: =TargetROR -> 0.06305604955 | E64: =$D64*E54 -> 350061675.3 | F64: =$D64*F54 -> 180255813.4 | G64: =$D64*G54 -> 76822382.33 | H64: 92040227.27 | I64: =$D64*I54 -> 359276.219 | J64: 583976.0655 | L64: 19180805.92 | M64: 43251122.2 | N64: 17779449.87 | O64: 2918683.516 | P64: 8910165.76 | Q64: =ROUND(SUM(-E64,F64:J64),0) -> 0
A65: 65 | C65: Total Operating Expenses Adjusted for Taxes | E65: =E58+((E64-E57)*(1/NetToGross))-(E64-E57) -> 1569151941 | F65: 1097176175 | G65: =G58+((G64-G57)*(1/NetToGross))-(G64-G57) -> 201381269.8 | H65: 216774748.4 | I65: =I58+((I64-I57)*(1/NetToGross))-(I64-I57) -> 50229688.28 | J65: 3590059.728 | L65: =L58+((L64-L57)*(1/NetToGross))-(L64-L57) -> 50246418.32 | M65: =M58+((M64-M57)*(1/NetToGross))-(M64-M57) -> 91333096.72 | N65: =N58+((N64-N57)*(1/NetToGross))-(N64-N57) -> 46783620.57 | O65: =O58+((O64-O57)*(1/NetToGross))-(O64-O57) -> 4474023.404 | P65: =P58+((P64-P57)*(1/NetToGross))-(P64-P57) -> 23937589.42 | Q65: =ROUND(SUM(-E65,F65:J65),0) -> 0
A66: 66 | C66: Revenue Credits | E66: =E59 -> -358068269.7 | F66: =F59 -> -299293693.4 | G66: =G59 -> -37536295.14 | H66: -13856725.53 | I66: =I59 -> -7532159.803 | J66: 150604.1749 | L66: -2772087.936 | M66: -6689668.4 | N66: -2616416.435 | O66: -448950.4509 | P66: -1329602.304 | Q66: =ROUND(SUM(-E66,F66:J66),0) -> 0
A67: 67
A68: 68 | C68: Total Target Revenue Requirements | E68: =SUM(E64:E66) -> 1561145347 | F68: =SUM(F64:F66) -> 978138294.6 | G68: =SUM(G64:G66) -> 240667357 | H68: 294958250.2 | I68: =SUM(I64:I66) -> 43056804.7 | J68: 4324639.969 | L68: 66655136.3 | M68: 127894550.5 | N68: 61946654.01 | O68: 6943756.469 | P68: 31518152.88 | Q68: =ROUND(SUM(-E68,F68:J68),0) -> 0

Sheet Class Summary
C1: Class Summary
C2: =Inputs!$C$4 -> Rocky Mountain Power
C3: Cost Of Service By Rate Schedule - All Functions
C4: =Inputs!$C$5 -> State of Utah
C5: =Inputs!$C$7 -> Monthly Wgt Factors
C6: =Inputs!$C$6 -> 12 Months Ended Dec 2010
C9: A | D9: B | E9: C | F9: D | G9: E | H9: F | I9: G | J9: H | K9: I | L9: J | M9: K | N9: L | O9: M | P9: N | Q9: O | R9: P
E10: ='Hot Sheet'!$H$10 -> Utah | G10: ='Hot Sheet'!$K$10 -> General | H10: ='Hot Sheet'!$J$10 -> General | I10: ='Hot Sheet'!$L$10 -> Street & Area | J10: ='Hot Sheet'!$M$10 -> General | L10: ='Hot Sheet'!$O$10 -> Traffic | M10: ='Hot Sheet'!$P$10 -> Outdoor | N10: ='Hot Sheet'!$Q$10 -> General | O10: ='Hot Sheet'!$R$10 -> Mobile | S10: Chk Total
E11: ='Hot Sheet'!$H$11 -> Jurisdiction | F11: ='Hot Sheet'!$I$11 -> Residential | G11: ='Hot Sheet'!$J$11 -> Large Dist. | H11: ='Hot Sheet'!$K$11 -> +1 MW | I11: ='Hot Sheet'!$L$11 -> Lighting | J11: ='Hot Sheet'!$M$11 -> Trans | K11: ='Hot Sheet'!$N$11 -> Irrigation | L11: ='Hot Sheet'!$O$11 -> Signals | M11: ='Hot Sheet'!$P$11 -> Lighting | N11: ='Hot Sheet'!$Q$11 -> Small Dist. | O11: ='Hot Sheet'!$R$11 -> Home Park | P11: ='Hot Sheet'!S$11 -> Industrial | Q11: ='Hot Sheet'!T$11 -> Industrial | R11: ='Hot Sheet'!U$11 -> Industrial
C12: DESCRIPTION | E12: ='Hot Sheet'!$H$12 -> Normalized | F12: ='Hot Sheet'!$I$12 -> Sch 1 | G12: ='Hot Sheet'!$J$12 -> Sch 6 | H12: ='Hot Sheet'!$K$12 -> Sch 8 | I12: ='Hot Sheet'!$L$12 -> Sch. 7,11,12 | J12: ='Hot Sheet'!$M$12 -> Sch 9 | K12: ='Hot Sheet'!$N$12 -> Sch 10 | L12: ='Hot Sheet'!$O$12 -> Sch 15 | M12: ='Hot Sheet'!$P$12 -> Sch 15 | N12: ='Hot Sheet'!$Q$12 -> Sch 23 | O12: ='Hot Sheet'!$R$12 -> Sch 25 | P12: Cust A | Q12: Cust B | R12: Cust C | S12: =ROUND(SUM(S14:S68),0) -> 0
A14: 14 | C14: Operating Revenues | E14: ='G+T+D+R+M'!H$14 -> 1919213616 | F14: ='G+T+D+R+M'!I$14 -> 731088801.8 | G14: ='G+T+D+R+M'!J$14 -> 532839384.6 | H14: ='G+T+D+R+M'!K$14 -> 158980335.8 | I14: ='G+T+D+R+M'!L$14 -> 14493686.04 | J14: ='G+T+D+R+M'!M$14 -> 252318532.1 | K14: ='G+T+D+R+M'!N$14 -> 15863327.88 | L14: ='G+T+D+R+M'!O$14 -> 621447.7164 | M14: ='G+T+D+R+M'!P$14 -> 1286560.326 | N14: ='G+T+D+R+M'!Q$14 -> 138424502.7 | O14: ='G+T+D+R+M'!R$14 -> 1132382.769 | P14: ='G+T+D+R+M'!S$14 -> 13585006.8 | Q14: ='G+T+D+R+M'!T$14 -> 34549458.76 | R14: ='G+T+D+R+M'!U$14 -> 24030188.91 | S14: =ROUND(SUM(F14:R14)-E14,0) -> 0
A15: =A14+1 -> 15
A16: =A15+1 -> 16 | C16: Operating Expenses
A17: =A16+1 -> 17 | C17: Operation & Maintenance Expenses | E17: ='G+T+D+R+M'!$H17 -> 1207658327 | F17: ='G+T+D+R+M'!$I17 -> 445415434.5 | G17: ='G+T+D+R+M'!$J17 -> 318524962 | H17: ='G+T+D+R+M'!$K17 -> 102761604.5 | I17: ='G+T+D+R+M'!$L17 -> 7239583.248 | J17: ='G+T+D+R+M'!$M17 -> 183750632.1 | K17: ='G+T+D+R+M'!$N17 -> 10092083.19 | L17: ='G+T+D+R+M'!$O17 -> 413392.9781 | M17: ='G+T+D+R+M'!$P17 -> 651436.8071 | N17: ='G+T+D+R+M'!$Q17 -> 79342607.12 | O17: ='G+T+D+R+M'!$R17 -> 694850.5236 | P17: ='G+T+D+R+M'!S17 -> 10008438.78 | Q17: ='G+T+D+R+M'!T17 -> 29972955.89 | R17: ='G+T+D+R+M'!U17 -> 18790345.42 | S17: =ROUND(SUM(F17:R17)-E17,0) -> 0
A18: 18 | C18: Depreciation Expense | E18: ='G+T+D+R+M'!$H18 -> 218663628.9 | F18: ='G+T+D+R+M'!$I18 -> 91416240.86 | G18: ='G+T+D+R+M'!$J18 -> 58323383.17 | H18: ='G+T+D+R+M'!$K18 -> 17907358.81 | I18: ='G+T+D+R+M'!$L18 -> 2093018.287 | J18: ='G+T+D+R+M'!$M18 -> 24948573.13 | K18: ='G+T+D+R+M'!$N18 -> 1925161.629 | L18: ='G+T+D+R+M'!$O18 -> 61079.16402 | M18: ='G+T+D+R+M'!$P18 -> 81693.04509 | N18: ='G+T+D+R+M'!$Q18 -> 15144076.44 | O18: ='G+T+D+R+M'!$R18 -> 143344.1726 | P18: ='G+T+D+R+M'!S18 -> 1275994.525 | Q18: ='G+T+D+R+M'!T18 -> 3039174.178 | R18: ='G+T+D+R+M'!U18 -> 2304531.446 | S18: 0
A19: 19 | C19: Amortization Expense | E19: ='G+T+D+R+M'!$H19 -> 20299322.52 | F19: ='G+T+D+R+M'!$I19 -> 9039122.311 | G19: ='G+T+D+R+M'!$J19 -> 4896422.636 | H19: ='G+T+D+R+M'!$K19 -> 1519313.509 | I19: ='G+T+D+R+M'!$L19 -> 100947.6554 | J19: ='G+T+D+R+M'!$M19 -> 2488899.627 | K19: ='G+T+D+R+M'!$N19 -> 160497.3748 | L19: ='G+T+D+R+M'!$O19 -> 11270.64615 | M19: ='G+T+D+R+M'!$P19 -> 8576.313188 | N19: ='G+T+D+R+M'!$Q19 -> 1400543.306 | O19: ='G+T+D+R+M'!$R19 -> 11344.32447 | P19: ='G+T+D+R+M'!S19 -> 127559.5507 | Q19: ='G+T+D+R+M'!T19 -> 304931.3008 | R19: ='G+T+D+R+M'!U19 -> 229893.9665 | S19: 0
A20: 20 | C20: Taxes Other Than Income | E20: ='G+T+D+R+M'!$H20 -> 51721478.6 | F20: ='G+T+D+R+M'!$I20 -> 22165031.65 | G20: ='G+T+D+R+M'!$J20 -> 13786491.78 | H20: ='G+T+D+R+M'!$K20 -> 4173315.635 | I20: ='G+T+D+R+M'!$L20 -> 271129.5372 | J20: ='G+T+D+R+M'!$M20 -> 5778859.656 | K20: ='G+T+D+R+M'!$N20 -> 462527.8405 | L20: ='G+T+D+R+M'!$O20 -> 17554.94424 | M20: ='G+T+D+R+M'!$P20 -> 20474.93246 | N20: ='G+T+D+R+M'!$Q20 -> 3429319.233 | O20: ='G+T+D+R+M'!$R20 -> 34087.40826 | P20: ='G+T+D+R+M'!S20 -> 311303.8614 | Q20: ='G+T+D+R+M'!T20 -> 704580.3794 | R20: ='G+T+D+R+M'!U20 -> 566801.7525 | S20: 0
A21: 21 | C21: Income Taxes - Federal | E21: ='G+T+D+R+M'!$H21 -> -274764962.5 | F21: ='G+T+D+R+M'!$I21 -> -108502297.7 | G21: ='G+T+D+R+M'!$J21 -> -67369396.27 | H21: ='G+T+D+R+M'!$K21 -> -24317935.66 | I21: ='G+T+D+R+M'!$L21 -> -1027950.466 | J21: ='G+T+D+R+M'!$M21 -> -43066693.66 | K21: ='G+T+D+R+M'!$N21 -> -2519080.786 | L21: ='G+T+D+R+M'!$O21 -> -68799.53062 | M21: ='G+T+D+R+M'!$P21 -> 8872.297253 | N21: ='G+T+D+R+M'!$Q21 -> -14517147.95 | O21: ='G+T+D+R+M'!$R21 -> -185279.8305 | P21: ='G+T+D+R+M'!S21 -> -2211230.669 | Q21: ='G+T+D+R+M'!T21 -> -6581331.306 | R21: ='G+T+D+R+M'!U21 -> -4406690.98 | S21: 0
A22: 22 | C22: Income Taxes - State | E22: ='G+T+D+R+M'!$H22 -> -32469332.41 | F22: ='G+T+D+R+M'!$I22 -> -13029394.98 | G22: ='G+T+D+R+M'!$J22 -> -7811494.947 | H22: ='G+T+D+R+M'!$K22 -> -2864661.388 | I22: ='G+T+D+R+M'!$L22 -> -132666.8017 | J22: ='G+T+D+R+M'!$M22 -> -5049798.098 | K22: ='G+T+D+R+M'!$N22 -> -300408.6786 | L22: ='G+T+D+R+M'!$O22 -> -8350.485938 | M22: ='G+T+D+R+M'!$P22 -> 2705.813311 | N22: ='G+T+D+R+M'!$Q22 -> -1686519.092 | O22: ='G+T+D+R+M'!$R22 -> -22016.89159 | P22: ='G+T+D+R+M'!S22 -> -258756.2136 | Q22: ='G+T+D+R+M'!T22 -> -787083.9878 | R22: ='G+T+D+R+M'!U22 -> -520886.66 | S22: 0
A23: 23 | C23: Income Taxes Deferred | E23: ='G+T+D+R+M'!$H23 -> 382635216.7 | F23: ='G+T+D+R+M'!$I23 -> 151536485.8 | G23: ='G+T+D+R+M'!$J23 -> 104348055.3 | H23: ='G+T+D+R+M'!$K23 -> 32274986.84 | I23: ='G+T+D+R+M'!$L23 -> 1568914.644 | J23: ='G+T+D+R+M'!$M23 -> 50371488.43 | K23: ='G+T+D+R+M'!$N23 -> 3351354.48 | L23: ='G+T+D+R+M'!$O23 -> 109586.8812 | M23: ='G+T+D+R+M'!$P23 -> 158536.7532 | N23: ='G+T+D+R+M'!$Q23 -> 24888754.29 | O23: ='G+T+D+R+M'!$R23 -> 248011.4459 | P23: ='G+T+D+R+M'!S23 -> 2658727.625 | Q23: ='G+T+D+R+M'!T23 -> 6282049.553 | R23: ='G+T+D+R+M'!U23 -> 4838264.756 | S23: 0
A24: 24 | C24: Investment Tax Credit Adj | E24: ='G+T+D+R+M'!$H24 -> -1540597.912 | F24: ='G+T+D+R+M'!$I24 -> -647740.7792 | G24: ='G+T+D+R+M'!$J24 -> -411887.8669 | H24: ='G+T+D+R+M'!$K24 -> -126405.8653 | I24: ='G+T+D+R+M'!$L24 -> -8066.989569 | J24: ='G+T+D+R+M'!$M24 -> -175461.6771 | K24: ='G+T+D+R+M'!$N24 -> -13993.51221 | L24: ='G+T+D+R+M'!$O24 -> -444.9738301 | M24: ='G+T+D+R+M'!$P24 -> -591.9934243 | N24: ='G+T+D+R+M'!$Q24 -> -107166.8544 | O24: ='G+T+D+R+M'!$R24 -> -1025.004423 | P24: ='G+T+D+R+M'!S24 -> -9075.169868 | Q24: ='G+T+D+R+M'!T24 -> -22219.70935 | R24: ='G+T+D+R+M'!U24 -> -16517.51644 | S24: 0
A25: 25 | C25: Misc Revenues & Expense | E25: ='G+T+D+R+M'!$H25 -> -3051140.007 | F25: ='G+T+D+R+M'!$I25 -> -894577.4499 | G25: ='G+T+D+R+M'!$J25 -> -930857.4237 | H25: ='G+T+D+R+M'!$K25 -> -296257.5883 | I25: ='G+T+D+R+M'!$L25 -> -29702.31536 | J25: ='G+T+D+R+M'!$M25 -> -453002.675 | K25: ='G+T+D+R+M'!$N25 -> -31247.87279 | L25: ='G+T+D+R+M'!$O25 -> -1212.818474 | M25: ='G+T+D+R+M'!$P25 -> -2009.238716 | N25: ='G+T+D+R+M'!$Q25 -> -246854.7106 | O25: ='G+T+D+R+M'!$R25 -> -2417.086104 | P25: ='G+T+D+R+M'!S25 -> -26891.11505 | Q25: ='G+T+D+R+M'!T25 -> -84349.43683 | R25: ='G+T+D+R+M'!U25 -> -51760.27647 | S25: 0
A26: 26
A27: 27 | C27: Total Operating Expenses | E27: =SUM(E17:E25) -> 1569151941 | F27: =SUM(F17:F25) -> 596498304.2 | G27: 423355678.4 | H27: =SUM(H17:H25) -> 131031318.8 | I27: 10075206.8 | J27: 218593496.8 | K27: 13126893.66 | L27: 534076.8049 | M27: 929694.7295 | N27: 107647611.8 | O27: 920899.0621 | P27: 11876071.17 | Q27: =SUM(Q17:Q25) -> 32828706.86 | R27: =SUM(R17:R25) -> 21733981.9 | S27: =ROUND(SUM(F27:R27)-E27,0) -> 0
A28: 28
A29: 29 | C29: Operating Revenue For Return | E29: =E14-E27 -> 350061675.3 | F29: =F14-F27 -> 134590497.6 | G29: 109483706.2 | H29: =H14-H27 -> 27949017.01 | I29: 4418479.241 | J29: 33725035.31 | K29: 2736434.222 | L29: 87370.91153 | M29: 356865.5966 | N29: 30776890.95 | O29: 211483.7066 | P29: 1708935.625 | Q29: =Q14-Q27 -> 1720751.895 | R29: =R14-R27 -> 2296207.006 | S29: =ROUND(SUM(F29:R29)-E29,0) -> 0
A30: 30
A31: 31
A32: 32 | C32: Rate Base :
A33: =A32+1 -> 33 | C33: Electric Plant In Service | E33: ='G+T+D+R+M'!H33 -> 9277156858 | F33: ='G+T+D+R+M'!I33 -> 3880453478 | G33: ='G+T+D+R+M'!J33 -> 2468628546 | H33: ='G+T+D+R+M'!K33 -> 759102678.2 | I33: ='G+T+D+R+M'!L33 -> 59760225.48 | J33: ='G+T+D+R+M'!M33 -> 1081285323 | K33: ='G+T+D+R+M'!N33 -> 82411294.63 | L33: ='G+T+D+R+M'!O33 -> 2775851.312 | M33: ='G+T+D+R+M'!P33 -> 3609247.005 | N33: ='G+T+D+R+M'!Q33 -> 643042572.7 | O33: ='G+T+D+R+M'!R33 -> 6071229.281 | P33: ='G+T+D+R+M'!S33 -> 55357684.2 | Q33: ='G+T+D+R+M'!T33 -> 134085551.4 | R33: ='G+T+D+R+M'!U33 -> 100573176.9 | S33: =ROUND(SUM(F33:R33)-E33,0) -> 0
A34: 34 | C34: Plant Held For Future Use | E34: ='G+T+D+R+M'!H34 -> 7106712.136 | F34: ='G+T+D+R+M'!I34 -> 2882795.317 | G34: ='G+T+D+R+M'!J34 -> 2114802.016 | H34: ='G+T+D+R+M'!K34 -> 648367.1999 | I34: ='G+T+D+R+M'!L34 -> 12972.05038 | J34: ='G+T+D+R+M'!M34 -> 698361.8774 | K34: ='G+T+D+R+M'!N34 -> 63038.14178 | L34: ='G+T+D+R+M'!O34 -> 1413.899719 | M34: ='G+T+D+R+M'!P34 -> 2355.947209 | N34: ='G+T+D+R+M'!Q34 -> 483970.4985 | O34: ='G+T+D+R+M'!R34 -> 5113.517983 | P34: ='G+T+D+R+M'!S34 -> 36353.99946 | Q34: ='G+T+D+R+M'!T34 -> 91131.16352 | R34: ='G+T+D+R+M'!U34 -> 66036.50695 | S34: 0
A35: 35 | C35: Electric Plant Acquisition Adj | E35: ='G+T+D+R+M'!H35 -> 24630737.7 | F35: ='G+T+D+R+M'!I35 -> 8655051.241 | G35: ='G+T+D+R+M'!J35 -> 6964614.946 | H35: ='G+T+D+R+M'!K35 -> 2209451.864 | I35: ='G+T+D+R+M'!L35 -> 58619.66151 | J35: ='G+T+D+R+M'!M35 -> 3898044.869 | K35: ='G+T+D+R+M'!N35 -> 207647.8519 | L35: ='G+T+D+R+M'!O35 -> 5145.275133 | M35: ='G+T+D+R+M'!P35 -> 10588.8754 | N35: ='G+T+D+R+M'!Q35 -> 1562139.733 | O35: ='G+T+D+R+M'!R35 -> 15689.22822 | P35: ='G+T+D+R+M'!S35 -> 201156.2239 | Q35: ='G+T+D+R+M'!T35 -> 481593.1551 | R35: ='G+T+D+R+M'!U35 -> 360994.7711 | S35: 0
A36: 36 | C36: Nuclear Fuel | E36: ='G+T+D+R+M'!H36 -> 0 | F36: ='G+T+D+R+M'!I36 -> 0 | G36: ='G+T+D+R+M'!J36 -> 0 | H36: ='G+T+D+R+M'!K36 -> 0 | I36: ='G+T+D+R+M'!L36 -> 0 | J36: ='G+T+D+R+M'!M36 -> 0 | K36: ='G+T+D+R+M'!N36 -> 0 | L36: ='G+T+D+R+M'!O36 -> 0 | M36: ='G+T+D+R+M'!P36 -> 0 | N36: ='G+T+D+R+M'!Q36 -> 0 | O36: ='G+T+D+R+M'!R36 -> 0 | P36: ='G+T+D+R+M'!S36 -> 0 | Q36: ='G+T+D+R+M'!T36 -> 0 | R36: ='G+T+D+R+M'!U36 -> 0 | S36: 0
A37: 37 | C37: Prepayments | E37: ='G+T+D+R+M'!H37 -> 19672361.66 | F37: ='G+T+D+R+M'!I37 -> 7786540.798 | G37: ='G+T+D+R+M'!J37 -> 5304104.98 | H37: ='G+T+D+R+M'!K37 -> 1655884.847 | I37: ='G+T+D+R+M'!L37 -> 112600.9726 | J37: ='G+T+D+R+M'!M37 -> 2555475.469 | K37: ='G+T+D+R+M'!N37 -> 176055.7201 | L37: ='G+T+D+R+M'!O37 -> 5347.265086 | M37: ='G+T+D+R+M'!P37 -> 8465.584414 | N37: ='G+T+D+R+M'!Q37 -> 1331433.555 | O37: ='G+T+D+R+M'!R37 -> 12700.39917 | P37: ='G+T+D+R+M'!S37 -> 133246.5037 | Q37: ='G+T+D+R+M'!T37 -> 345195.4064 | R37: ='G+T+D+R+M'!U37 -> 245310.1552 | S37: 0
A38: 38 | C38: Fuel Stock | E38: ='G+T+D+R+M'!H38 -> 83614228.64 | F38: ='G+T+D+R+M'!I38 -> 25625314.81 | G38: ='G+T+D+R+M'!J38 -> 22540161.39 | H38: ='G+T+D+R+M'!K38 -> 7625454.457 | I38: ='G+T+D+R+M'!L38 -> 343776.4496 | J38: ='G+T+D+R+M'!M38 -> 15737990.42 | K38: ='G+T+D+R+M'!N38 -> 789595.7404 | L38: ='G+T+D+R+M'!O38 -> 21622.78344 | M38: ='G+T+D+R+M'!P38 -> 60238.83577 | N38: ='G+T+D+R+M'!Q38 -> 5149713.071 | O38: ='G+T+D+R+M'!R38 -> 46974.78959 | P38: ='G+T+D+R+M'!S38 -> 897160.2477 | Q38: ='G+T+D+R+M'!T38 -> 3025510.748 | R38: ='G+T+D+R+M'!U38 -> 1750714.894 | S38: 0
A39: 39 | C39: Materials & Supplies | E39: ='G+T+D+R+M'!H39 -> 75107335.01 | F39: ='G+T+D+R+M'!I39 -> 29148626.57 | G39: ='G+T+D+R+M'!J39 -> 20643721.31 | H39: ='G+T+D+R+M'!K39 -> 6434829.094 | I39: ='G+T+D+R+M'!L39 -> 347951.4003 | J39: ='G+T+D+R+M'!M39 -> 10071965.48 | K39: ='G+T+D+R+M'!N39 -> 653644.1287 | L39: ='G+T+D+R+M'!O39 -> 18768.29575 | M39: ='G+T+D+R+M'!P39 -> 30286.65836 | N39: ='G+T+D+R+M'!Q39 -> 5013136.181 | O39: ='G+T+D+R+M'!R39 -> 48904.56557 | P39: ='G+T+D+R+M'!S39 -> 519944.4971 | Q39: ='G+T+D+R+M'!T39 -> 1243085.929 | R39: ='G+T+D+R+M'!U39 -> 932470.9002 | S39: 0
A40: 40 | C40: Misc Deferred Debits | E40: ='G+T+D+R+M'!H40 -> 35066417.6 | F40: ='G+T+D+R+M'!I40 -> 12293156.1 | G40: ='G+T+D+R+M'!J40 -> 9780022.566 | H40: ='G+T+D+R+M'!K40 -> 3122207.911 | I40: ='G+T+D+R+M'!L40 -> 105774.9949 | J40: ='G+T+D+R+M'!M40 -> 5607569.033 | K40: ='G+T+D+R+M'!N40 -> 302694.1432 | L40: ='G+T+D+R+M'!O40 -> 7810.350932 | M40: ='G+T+D+R+M'!P40 -> 16356.81021 | N40: ='G+T+D+R+M'!Q40 -> 2230202.207 | O40: ='G+T+D+R+M'!R40 -> 21991.14231 | P40: ='G+T+D+R+M'!S40 -> 291575.8301 | Q40: ='G+T+D+R+M'!T40 -> 750640.598 | R40: ='G+T+D+R+M'!U40 -> 536415.912 | S40: 0
A41: 41 | C41: Cash Working Capital | E41: ='G+T+D+R+M'!H41 -> 27738207.64 | F41: ='G+T+D+R+M'!I41 -> 11101237.57 | G41: ='G+T+D+R+M'!J41 -> 7227327.77 | H41: ='G+T+D+R+M'!K41 -> 2279188.868 | I41: ='G+T+D+R+M'!L41 -> 267480.2391 | J41: ='G+T+D+R+M'!M41 -> 3575862.838 | K41: ='G+T+D+R+M'!N41 -> 225264.9873 | L41: ='G+T+D+R+M'!O41 -> 10028.74669 | M41: ='G+T+D+R+M'!P41 -> 13082.83645 | N41: ='G+T+D+R+M'!Q41 -> 1905869.885 | O41: ='G+T+D+R+M'!R41 -> 16267.46171 | P41: ='G+T+D+R+M'!S41 -> 193156.0843 | Q41: ='G+T+D+R+M'!T41 -> 563414.9127 | R41: ='G+T+D+R+M'!U41 -> 360025.4459 | S41: 0
A42: 42 | C42: Weatherization Loans | E42: ='G+T+D+R+M'!H42 -> 5209307.503 | F42: ='G+T+D+R+M'!I42 -> 1753160.634 | G42: ='G+T+D+R+M'!J42 -> 1449895.569 | H42: ='G+T+D+R+M'!K42 -> 469765.5966 | I42: ='G+T+D+R+M'!L42 -> 15392.51042 | J42: ='G+T+D+R+M'!M42 -> 876089.1768 | K42: ='G+T+D+R+M'!N42 -> 45955.70282 | L42: ='G+T+D+R+M'!O42 -> 1173.43704 | M42: ='G+T+D+R+M'!P42 -> 2740.374868 | N42: ='G+T+D+R+M'!Q42 -> 327122.5319 | O42: ='G+T+D+R+M'!R42 -> 3186.494666 | P42: ='G+T+D+R+M'!S42 -> 46956.28779 | Q42: ='G+T+D+R+M'!T42 -> 130611.7405 | R42: ='G+T+D+R+M'!U42 -> 87257.44714 | S42: 0
A43: 43 | C43: Miscellaneous Rate Base | E43: ='G+T+D+R+M'!H43 -> 34157.4187 | F43: ='G+T+D+R+M'!I43 -> 12002.65347 | G43: ='G+T+D+R+M'!J43 -> 9658.389926 | H43: ='G+T+D+R+M'!K43 -> 3064.02404 | I43: ='G+T+D+R+M'!L43 -> 81.29258438 | J43: ='G+T+D+R+M'!M43 -> 5405.731342 | K43: ='G+T+D+R+M'!N43 -> 287.9619242 | L43: ='G+T+D+R+M'!O43 -> 7.135365543 | M43: ='G+T+D+R+M'!P43 -> 14.68444247 | N43: ='G+T+D+R+M'!Q43 -> 2166.344411 | O43: ='G+T+D+R+M'!R43 -> 21.75751065 | P43: ='G+T+D+R+M'!S43 -> 278.9594632 | Q43: ='G+T+D+R+M'!T43 -> 667.8638394 | R43: ='G+T+D+R+M'!U43 -> 500.6203914 | S43: 0
A44: 44
A45: 45 | C45: Total Rate Base Additions | E45: =SUM(E33:E43) -> 9555336323 | F45: 3979711364 | G45: 2544662855 | H45: =SUM(H33:H43) -> 783550892 | I45: 61024875.05 | J45: 1124312088 | K45: 84875479.01 | L45: 2847168.502 | M45: 3753377.612 | N45: 661048326.7 | O45: 6242078.638 | P45: 57677512.83 | Q45: =SUM(Q33:Q43) -> 140717402.9 | R45: =SUM(R33:R43) -> 104912903.5 | S45: =ROUND(SUM(F45:R45)-E45,0) -> 0
A46: 46
A47: 47 | C47: Rate Base Deductions :
A48: 48 | C48: Accum Provision For Depreciation | E48: ='G+T+D+R+M'!H48 -> -2653344674 | F48: ='G+T+D+R+M'!I48 -> -1101589672 | G48: ='G+T+D+R+M'!J48 -> -707853397.4 | H48: ='G+T+D+R+M'!K48 -> -217923393.2 | I48: ='G+T+D+R+M'!L48 -> -25791396.26 | J48: ='G+T+D+R+M'!M48 -> -307450786.2 | K48: ='G+T+D+R+M'!N48 -> -23102484.48 | L48: ='G+T+D+R+M'!O48 -> -738345.8598 | M48: ='G+T+D+R+M'!P48 -> -1007210.39 | N48: ='G+T+D+R+M'!Q48 -> -183453221.3 | O48: ='G+T+D+R+M'!R48 -> -1723365.595 | P48: ='G+T+D+R+M'!S48 -> -15772526.12 | Q48: ='G+T+D+R+M'!T48 -> -38300796.72 | R48: ='G+T+D+R+M'!U48 -> -28638078.57 | S48: =ROUND(SUM(F48:R48)-E48,0) -> 0
A49: =A48+1 -> 49 | C49: Accum Provision For Amortization | E49: ='G+T+D+R+M'!H49 -> -185265641.2 | F49: ='G+T+D+R+M'!I49 -> -96573742.63 | G49: ='G+T+D+R+M'!J49 -> -38522392.58 | H49: ='G+T+D+R+M'!K49 -> -11658799.72 | I49: ='G+T+D+R+M'!L49 -> -1330276.881 | J49: ='G+T+D+R+M'!M49 -> -17227648.94 | K49: ='G+T+D+R+M'!N49 -> -1394037.219 | L49: ='G+T+D+R+M'!O49 -> -154311.7422 | M49: ='G+T+D+R+M'!P49 -> -77511.6385 | N49: ='G+T+D+R+M'!Q49 -> -13642123.55 | O49: ='G+T+D+R+M'!R49 -> -92183.54761 | P49: ='G+T+D+R+M'!S49 -> -879947.3517 | Q49: ='G+T+D+R+M'!T49 -> -2119372.219 | R49: ='G+T+D+R+M'!U49 -> -1593293.229 | S49: 0
A50: 50 | C50: Accum Deferred Income Taxes | E50: ='G+T+D+R+M'!H50 -> -1118397090 | F50: ='G+T+D+R+M'!I50 -> -462846067.4 | G50: ='G+T+D+R+M'!J50 -> -300193314.5 | H50: ='G+T+D+R+M'!K50 -> -92400974.24 | I50: ='G+T+D+R+M'!L50 -> -5581658.852 | J50: ='G+T+D+R+M'!M50 -> -132929872.2 | K50: ='G+T+D+R+M'!N50 -> -10056925.66 | L50: ='G+T+D+R+M'!O50 -> -319504.1793 | M50: ='G+T+D+R+M'!P50 -> -439839.2225 | N50: ='G+T+D+R+M'!Q50 -> -77240625.42 | O50: ='G+T+D+R+M'!R50 -> -739885.3559 | P50: ='G+T+D+R+M'!S50 -> -6806005.393 | Q50: ='G+T+D+R+M'!T50 -> -16479634.91 | R50: ='G+T+D+R+M'!U50 -> -12362782.61 | S50: 0
A51: 51 | C51: Unamortized ITC | E51: ='G+T+D+R+M'!H51 -> -141518.9809 | F51: ='G+T+D+R+M'!I51 -> -59554.60086 | G51: ='G+T+D+R+M'!J51 -> -37809.61651 | H51: ='G+T+D+R+M'!K51 -> -11592.44989 | I51: ='G+T+D+R+M'!L51 -> -746.7923647 | J51: ='G+T+D+R+M'!M51 -> -16145.66367 | K51: ='G+T+D+R+M'!N51 -> -1282.672441 | L51: ='G+T+D+R+M'!O51 -> -41.30259938 | M51: ='G+T+D+R+M'!P51 -> -54.92260296 | N51: ='G+T+D+R+M'!Q51 -> -9866.78801 | O51: ='G+T+D+R+M'!R51 -> -94.20428925 | P51: ='G+T+D+R+M'!S51 -> -826.9241902 | Q51: ='G+T+D+R+M'!T51 -> -2001.510088 | R51: ='G+T+D+R+M'!U51 -> -1501.533383 | S51: 0
A52: 52 | C52: Customer Advance For Construction | E52: ='G+T+D+R+M'!H52 -> -8076875.649 | F52: ='G+T+D+R+M'!I52 -> -1270983.021 | G52: ='G+T+D+R+M'!J52 -> -223781.3957 | H52: ='G+T+D+R+M'!K52 -> -118372.3156 | I52: ='G+T+D+R+M'!L52 -> -585596.1288 | J52: ='G+T+D+R+M'!M52 -> -4510660.371 | K52: ='G+T+D+R+M'!N52 -> -17860.43512 | L52: ='G+T+D+R+M'!O52 -> -22957.62481 | M52: ='G+T+D+R+M'!P52 -> -48680.93266 | N52: ='G+T+D+R+M'!Q52 -> -1277983.425 | O52: ='G+T+D+R+M'!R52 -> 0 | P52: ='G+T+D+R+M'!S52 -> 0 | Q52: ='G+T+D+R+M'!T52 -> 0 | R52: ='G+T+D+R+M'!U52 -> 0 | S52: 0
A53: 53 | C53: Customer Service Deposits | E53: ='G+T+D+R+M'!H53 -> -14610438.07 | F53: ='G+T+D+R+M'!I53 -> -3809804.122 | G53: ='G+T+D+R+M'!J53 -> -437853.0587 | H53: ='G+T+D+R+M'!K53 -> -1201727.627 | I53: ='G+T+D+R+M'!L53 -> -15626.43595 | J53: ='G+T+D+R+M'!M53 -> -4176190.879 | K53: ='G+T+D+R+M'!N53 -> -105091.9859 | L53: ='G+T+D+R+M'!O53 -> 0 | M53: ='G+T+D+R+M'!P53 -> -596.663376 | N53: ='G+T+D+R+M'!Q53 -> -3883103.248 | O53: ='G+T+D+R+M'!R53 -> 0 | P53: ='G+T+D+R+M'!S53 -> 0 | Q53: ='G+T+D+R+M'!T53 -> -980444.0507 | R53: ='G+T+D+R+M'!U53 -> 0 | S53: 0
A54: 54 | C54: Misc Rate Base Deductions | E54: ='G+T+D+R+M'!H54 -> -23904674.06 | F54: ='G+T+D+R+M'!I54 -> -9205314.947 | G54: ='G+T+D+R+M'!J54 -> -6518375.511 | H54: ='G+T+D+R+M'!K54 -> -2044128.441 | I54: ='G+T+D+R+M'!L54 -> -118378.7933 | J54: ='G+T+D+R+M'!M54 -> -3265585.378 | K54: ='G+T+D+R+M'!N54 -> -211305.6857 | L54: ='G+T+D+R+M'!O54 -> -6155.011598 | M54: ='G+T+D+R+M'!P54 -> -10345.25925 | N54: ='G+T+D+R+M'!Q54 -> -1593977.474 | O54: ='G+T+D+R+M'!R54 -> -15373.36214 | P54: ='G+T+D+R+M'!S54 -> -170284.6033 | Q54: ='G+T+D+R+M'!T54 -> -434195.1253 | R54: ='G+T+D+R+M'!U54 -> -311254.4711 | S54: 0
A55: 55
A56: 56 | C56: Total Rate Base Deductions | E56: =SUM(E48:E54) -> -4003740912 | F56: -1675355139 | G56: -1053786924 | H56: =SUM(H48:H54) -> -325358988 | I56: -33423680.14 | J56: -469576889.6 | K56: -34888988.13 | L56: -1241315.72 | M56: -1584239.029 | N56: -281100901.2 | O56: -2570902.065 | P56: -23629590.39 | Q56: =SUM(Q48:Q54) -> -58316444.54 | R56: =SUM(R48:R54) -> -42906910.42 | S56: =ROUND(SUM(F56:R56)-E56,0) -> 0
A57: 57
A58: 58 | C58: Total Rate Base | E58: =E45+E56 -> 5551595411 | F58: =F45+F56 -> 2304356224 | G58: 1490875931 | H58: =H45+H56 -> 458191904 | I58: 27601194.91 | J58: 654735198 | K58: 49986490.88 | L58: 1605852.781 | M58: 2169138.584 | N58: 379947425.5 | O58: 3671176.572 | P58: 34047922.45 | Q58: =Q45+Q56 -> 82400958.34 | R58: =R45+R56 -> 62005993.12 | S58: =ROUND(SUM(F58:R58)-E58,0) -> 0
A59: 59
A60: 60 | C60: Calculated Return On Rate Base | E60: ='G+T+D+R+M'!H61 -> 0.06305604955 | F60: ='G+T+D+R+M'!I61 -> 0.0584069842 | G60: ='G+T+D+R+M'!J61 -> 0.07343582652 | H60: ='G+T+D+R+M'!K61 -> 0.06099849596 | I60: ='G+T+D+R+M'!L61 -> 0.160082897 | J60: ='G+T+D+R+M'!M61 -> 0.05150942764 | K60: ='G+T+D+R+M'!N61 -> 0.05474347517 | L60: ='G+T+D+R+M'!O61 -> 0.05440779663 | M60: ='G+T+D+R+M'!P61 -> 0.1645195006 | N60: ='G+T+D+R+M'!Q61 -> 0.08100302539 | O60: ='G+T+D+R+M'!R61 -> 0.05760651998 | P60: ='G+T+D+R+M'!S61 -> 0.05019206759 | Q60: ='G+T+D+R+M'!T61 -> 0.02088266848 | R60: ='G+T+D+R+M'!U61 -> 0.03703201724
A61: 61
A62: 62 | C62: Return On RB @ Jurisdictional Ave. | D62: =ActualROR -> 0.06305604955 | E62: =$D$62*E58 -> 350061675.3 | F62: =$D$62*F58 -> 145303600.3 | G62: =$D$62*G58 -> 94008746.59 | H62: =$D$62*H58 -> 28891771.41 | I62: 1740422.314 | J62: 41285015.09 | K62: 3151950.646 | L62: 101258.7325 | M62: 136777.31 | N62: 23957983.69 | O62: 231489.8919 | P62: 2146927.485 | Q62: =$D$62*Q58 -> 5195878.912 | R62: =$D$62*R58 -> 3909852.975 | S62: =ROUND(SUM(F62:R62)-E62,0) -> 0
A63: 63 | C63: Total Operating Expenses | E63: =E27 -> 1569151941 | F63: 596498304.2 | G63: 423355678.4 | H63: =H27 -> 131031318.8 | I63: 10075206.8 | J63: 218593496.8 | K63: 13126893.66 | L63: 534076.8049 | M63: 929694.7295 | N63: 107647611.8 | O63: 920899.0621 | P63: 11876071.17 | Q63: =Q27 -> 32828706.86 | R63: =R27 -> 21733981.9 | S63: =ROUND(SUM(F63:R63)-E63,0) -> 0
A64: 64 | C64: Revenue Credits | E64: ='G+T+D+R+M'!H$99 -> -358068269.7 | F64: ='G+T+D+R+M'!I$99 -> -126847065.5 | G64: ='G+T+D+R+M'!J$99 -> -101002842.3 | H64: ='G+T+D+R+M'!K$99 -> -31959263.22 | I64: ='G+T+D+R+M'!L$99 -> -1112022.625 | J64: ='G+T+D+R+M'!M$99 -> -54920333.59 | K64: ='G+T+D+R+M'!N$99 -> -2641405.233 | L64: ='G+T+D+R+M'!O$99 -> -96834.94497 | M64: ='G+T+D+R+M'!P$99 -> -174135.1861 | N64: ='G+T+D+R+M'!Q$99 -> -23894371.99 | O64: ='G+T+D+R+M'!R$99 -> -221209.7801 | P64: ='G+T+D+R+M'!S$99 -> -2859670.95 | Q64: ='G+T+D+R+M'!T$99 -> -7227254.565 | R64: ='G+T+D+R+M'!U$99 -> -5111860.1 | S64: =ROUND(SUM(F64:R64)-E64,0) -> 0
A65: =A64+1 -> 65
A66: 66 | C66: Total Revenue Requirements | E66: ='G+T+D+R+M'!H$101 -> 1561145346 | F66: ='G+T+D+R+M'!I$101 -> 614954839 | G66: ='G+T+D+R+M'!J$101 -> 416361582.7 | H66: ='G+T+D+R+M'!K$101 -> 127963827 | I66: ='G+T+D+R+M'!L$101 -> 10703606.49 | J66: ='G+T+D+R+M'!M$101 -> 204958178.3 | K66: ='G+T+D+R+M'!N$101 -> 13637439.07 | L66: ='G+T+D+R+M'!O$101 -> 538500.5924 | M66: ='G+T+D+R+M'!P$101 -> 892336.8534 | N66: ='G+T+D+R+M'!Q$101 -> 107711223.5 | O66: ='G+T+D+R+M'!R$101 -> 931179.1739 | P66: ='G+T+D+R+M'!S$101 -> 11163327.71 | Q66: ='G+T+D+R+M'!T$101 -> 30797331.21 | R66: ='G+T+D+R+M'!U$101 -> 20531974.78 | S66: =ROUND(SUM(F66:R66)-E66,0) -> 0
A67: 67 | C67: Class Revenue | E67: ='G+T+D+R+M'!H$102 -> 1561145346 | F67: ='G+T+D+R+M'!I$102 -> 604241736.3 | G67: ='G+T+D+R+M'!J$102 -> 431836542.3 | H67: ='G+T+D+R+M'!K$102 -> 127021072.6 | I67: ='G+T+D+R+M'!L$102 -> 13381663.41 | J67: ='G+T+D+R+M'!M$102 -> 197398198.5 | K67: ='G+T+D+R+M'!N$102 -> 13221922.65 | L67: ='G+T+D+R+M'!O$102 -> 524612.7714 | M67: ='G+T+D+R+M'!P$102 -> 1112425.14 | N67: ='G+T+D+R+M'!Q$102 -> 114530130.7 | O67: ='G+T+D+R+M'!R$102 -> 911172.9886 | P67: ='G+T+D+R+M'!S$102 -> 10725335.85 | Q67: ='G+T+D+R+M'!T$102 -> 27322204.19 | R67: ='G+T+D+R+M'!U$102 -> 18918328.81 | S67: =ROUND(SUM(F67:R67)-E67,0) -> 0
A68: 68 | S68: =ROUND(SUM(-J68,K68:N68),0) -> 0
A69: 69 | C69: Increase / (Decrease) Required to
A70: 70 | C70: Earn Equal Rates of Return | E70: ='G+T+D+R+M'!H$105 -> 0.1438522339 | F70: ='G+T+D+R+M'!I$105 -> 10713102.68 | G70: ='G+T+D+R+M'!J$105 -> -15474959.66 | H70: ='G+T+D+R+M'!K$105 -> 942754.3997 | I70: ='G+T+D+R+M'!L$105 -> -2678056.927 | J70: ='G+T+D+R+M'!M$105 -> 7559979.781 | K70: ='G+T+D+R+M'!N$105 -> 415516.4235 | L70: ='G+T+D+R+M'!O$105 -> 13887.82102 | M70: ='G+T+D+R+M'!P$105 -> -220088.2866 | N70: ='G+T+D+R+M'!Q$105 -> -6818907.264 | O70: ='G+T+D+R+M'!R$105 -> 20006.18529 | P70: ='G+T+D+R+M'!S$105 -> 437991.8601 | Q70: ='G+T+D+R+M'!T$105 -> 3475127.017 | R70: ='G+T+D+R+M'!U$105 -> 1613645.969 | S70: =ROUND(SUM(F70:R70)-E70,0) -> 0
A71: 71
A72: 72 | C72: Percent % | E72: ='G+T+D+R+M'!H$111 -> 9.214531767e-11 | F72: ='G+T+D+R+M'!I$111 -> 0.01772982903 | G72: ='G+T+D+R+M'!J$111 -> -0.035835225 | H72: ='G+T+D+R+M'!K$111 -> 0.007422031481 | I72: ='G+T+D+R+M'!L$111 -> -0.2001288513 | J72: ='G+T+D+R+M'!M$111 -> 0.03829811942 | K72: ='G+T+D+R+M'!N$111 -> 0.03142632388 | L72: ='G+T+D+R+M'!O$111 -> 0.02647251796 | M72: ='G+T+D+R+M'!P$111 -> -0.1978454807 | N72: ='G+T+D+R+M'!Q$111 -> -0.05953810775 | O72: ='G+T+D+R+M'!R$111 -> 0.02195651709 | P72: ='G+T+D+R+M'!S$111 -> 0.04083712309 | Q72: ='G+T+D+R+M'!T$111 -> 0.1271905807 | R72: ='G+T+D+R+M'!U$111 -> 0.08529537598
A73: 73
A74: 74
A75: 75 | C75: Return On Rate Base @ Target ROR | D75: =TargetROR -> 0.06305604955 | E75: =$D75*E58 -> 350061675.3 | F75: =$D75*F58 -> 145303600.3 | G75: 94008746.59 | H75: =$D75*H58 -> 28891771.41 | I75: 1740422.314 | J75: 41285015.09 | K75: 3151950.646 | L75: 101258.7325 | M75: 136777.31 | N75: 23957983.69 | O75: 231489.8919 | P75: 2146927.485 | Q75: =$D75*Q58 -> 5195878.912 | R75: =$D75*R58 -> 3909852.975 | S75: =ROUND(SUM(F75:R75)-E75,0) -> 0
A76: 76 | C76: Total Operating Expenses Adjusted for Taxes | E76: =E63+((E75-E62)*(1/NetToGross))-(E75-E62) -> 1569151941 | F76: 596498304.2 | G76: 423355678.4 | H76: 131031318.8 | I76: 10075206.8 | J76: 218593496.8 | K76: 13126893.66 | L76: 534076.8049 | M76: 929694.7295 | N76: 107647611.8 | O76: 920899.0621 | P76: 11876071.17 | Q76: 32828706.86 | R76: 21733981.9 | S76: =ROUND(SUM(F76:R76)-E76,0) -> 0
A77: 77 | C77: Revenue Credits | E77: =E64 -> -358068269.7 | F77: =F64 -> -126847065.5 | G77: -101002842.3 | H77: =H64 -> -31959263.22 | I77: -1112022.625 | J77: -54920333.59 | K77: -2641405.233 | L77: -96834.94497 | M77: -174135.1861 | N77: -23894371.99 | O77: -221209.7801 | P77: -2859670.95 | Q77: =Q64 -> -7227254.565 | R77: =R64 -> -5111860.1 | S77: =ROUND(SUM(F77:R77)-E77,0) -> 0
A78: 78
A79: 79 | C79: Total Target Revenue Requirements | E79: =SUM(E75:E77) -> 1561145347 | F79: =SUM(F75:F77) -> 614954839 | G79: =SUM(G75:G77) -> 416361582.7 | H79: =SUM(H75:H77) -> 127963827 | I79: 10703606.49 | J79: 204958178.3 | K79: 13637439.07 | L79: 538500.5924 | M79: 892336.8534 | N79: 107711223.5 | O79: 931179.1739 | P79: 11163327.71 | Q79: =SUM(Q75:Q77) -> 30797331.21 | R79: =SUM(R75:R77) -> 20531974.78 | S79: =ROUND(SUM(F79:R79)-E79,0) -> 0
A80: 80 | C80: Class Revenue | E80: =E67 -> 1561145346 | F80: =F67 -> 604241736.3 | G80: 431836542.3 | H80: =H67 -> 127021072.6 | I80: 13381663.41 | J80: 197398198.5 | K80: 13221922.65 | L80: 524612.7714 | M80: 1112425.14 | N80: 114530130.7 | O80: 911172.9886 | P80: 10725335.85 | Q80: =Q67 -> 27322204.19 | R80: =R67 -> 18918328.81 | S80: =ROUND(SUM(F80:R80)-E80,0) -> 0
A81: 81
A82: 82 | C82: Increase / (Decrease) Required to
A83: 83 | C83: Earn Target Rate of Return | E83: =E79-E80 -> 0.2314879894 | F83: =F79-F80 -> 10713102.68 | G83: -15474959.66 | H83: =H79-H80 -> 942754.3997 | I83: -2678056.927 | J83: 7559979.781 | K83: 415516.4235 | L83: 13887.82102 | M83: -220088.2866 | N83: -6818907.264 | O83: 20006.18529 | P83: 437991.8601 | Q83: =Q79-Q80 -> 3475127.017 | R83: =R79-R80 -> 1613645.969 | S83: =ROUND(SUM(F83:R83)-E83,0) -> 0
A84: 84
A85: 85 | C85: Percent % | E85: =E83/E80 -> 1.482808695e-10 | F85: =F83/F80 -> 0.01772982903 | G85: -0.035835225 | H85: =H83/H80 -> 0.007422031481 | I85: -0.2001288513 | J85: 0.03829811942 | K85: 0.03142632388 | L85: 0.02647251796 | M85: -0.1978454807 | N85: -0.05953810775 | O85: 0.02195651709 | P85: 0.04083712309 | Q85: =Q83/Q80 -> 0.1271905807 | R85: =R83/R80 -> 0.08529537598

Sheet Generation Summary
C1: Generation Summary
C2: =Inputs!$C$4 -> Rocky Mountain Power
C3: Cost Of Service By Rate Schedule - Generation Function
C4: =Inputs!$C$5 -> State of Utah
C5: =Inputs!$C$7 -> Monthly Wgt Factors
C6: =Inputs!$C$6 -> 12 Months Ended Dec 2010
C9: A | D9: B | E9: C | F9: D | G9: E | H9: F | I9: G | J9: H | K9: I | L9: J | M9: K | N9: L | O9: M | P9: N | Q9: O | R9: P
E10: ='Hot Sheet'!$H$10 -> Utah | G10: ='Hot Sheet'!$J$10 -> General | H10: ='Hot Sheet'!$K$10 -> General | I10: ='Hot Sheet'!$L$10 -> Street & Area | J10: ='Hot Sheet'!$M$10 -> General | L10: ='Hot Sheet'!$O$10 -> Traffic | M10: ='Hot Sheet'!$P$10 -> Outdoor | N10: ='Hot Sheet'!$Q$10 -> General | O10: ='Hot Sheet'!$R$10 -> Mobile | S10: Chk Total
E11: ='Hot Sheet'!$H$11 -> Jurisdiction | F11: ='Hot Sheet'!$I$11 -> Residential | G11: ='Hot Sheet'!$J$11 -> Large Dist. | H11: ='Hot Sheet'!$K$11 -> +1 MW | I11: ='Hot Sheet'!$L$11 -> Lighting | J11: ='Hot Sheet'!$M$11 -> Trans | K11: ='Hot Sheet'!$N$11 -> Irrigation | L11: ='Hot Sheet'!$O$11 -> Signals | M11: ='Hot Sheet'!$P$11 -> Lighting | N11: ='Hot Sheet'!$Q$11 -> Small Dist. | O11: ='Hot Sheet'!$R$11 -> Home Park | P11: ='Hot Sheet'!S$11 -> Industrial | Q11: ='Hot Sheet'!T$11 -> Industrial | R11: ='Hot Sheet'!U$11 -> Industrial
C12: DESCRIPTION | E12: ='Hot Sheet'!$H$12 -> Normalized | F12: ='Hot Sheet'!$I$12 -> Sch 1 | G12: ='Hot Sheet'!$J$12 -> Sch 6 | H12: ='Hot Sheet'!$K$12 -> Sch 8 | I12: ='Hot Sheet'!$L$12 -> Sch. 7,11,12 | J12: ='Hot Sheet'!$M$12 -> Sch 9 | K12: ='Hot Sheet'!$N$12 -> Sch 10 | L12: ='Hot Sheet'!$O$12 -> Sch 15 | M12: ='Hot Sheet'!$P$12 -> Sch 15 | N12: ='Hot Sheet'!$Q$12 -> Sch 23 | O12: ='Hot Sheet'!$R$12 -> Sch 25 | P12: ='Hot Sheet'!S$12 -> Cust A | Q12: ='Hot Sheet'!T$12 -> Cust B | R12: ='Hot Sheet'!U$12 -> Cust C | S12: =ROUND(SUM(S15:S68),0) -> 0
A14: 14 | C14: Operating Expenses
A15: =A14+1 -> 15 | C15: Operation & Maintenance Expenses | E15: ='Function Summary'!$F15 -> 952768301.1 | F15: =Generation!$I$17 -> 309303313.3 | G15: =Generation!J17 -> 263541141.8 | H15: =Generation!K17 -> 86506282.43 | I15: =Generation!L17 -> 3195624.451 | J15: =Generation!M17 -> 166808324.5 | K15: =Generation!N17 -> 8338318.672 | L15: =Generation!O17 -> 226732.9449 | M15: =Generation!P17 -> 563430.5429 | N15: =Generation!Q17 -> 59564633.25 | O15: =Generation!R17 -> 564537.2051 | P15: =Generation!S17 -> 9142629.128 | Q15: =Generation!T17 -> 27781120.9 | R15: =Generation!U17 -> 17232212.05 | S15: =ROUND(SUM(F15:R15)-E15,0) -> 0
A16: =A15+1 -> 16 | C16: Depreciation Expense | E16: ='Function Summary'!$F16 -> 116108489.2 | F16: =Generation!$I$18 -> 40799211.29 | G16: =Generation!J18 -> 32830842.02 | H16: =Generation!K18 -> 10415296.9 | I16: =Generation!L18 -> 276347.2753 | J16: =Generation!M18 -> 18375533.62 | K16: =Generation!N18 -> 978856.1314 | L16: =Generation!O18 -> 24255.11676 | M16: =Generation!P18 -> 49918.30637 | N16: =Generation!Q18 -> 7363857.872 | O16: =Generation!R18 -> 73957.79819 | P16: =Generation!S18 -> 948267.5824 | Q16: =Generation!T18 -> 2270369.072 | R16: =Generation!U18 -> 1701776.204 | S16: 0
A17: 17 | C17: Amortization Expense | E17: ='Function Summary'!$F17 -> 13503539.36 | F17: =Generation!$I$19 -> 4744817.566 | G17: =Generation!J19 -> 3818209.612 | H17: =Generation!K19 -> 1211315.534 | I17: =Generation!L19 -> 32146.19974 | J17: =Generation!M19 -> 2137209.839 | K17: =Generation!N19 -> 113846.5733 | L17: =Generation!O19 -> 2821.086867 | M17: =Generation!P19 -> 5806.675633 | N17: =Generation!Q19 -> 856417.0866 | O17: =Generation!R19 -> 8601.074064 | P17: =Generation!S19 -> 110294.42 | Q17: =Generation!T19 -> 264110.8498 | R17: =Generation!U19 -> 197942.8439 | S17: 0
A18: 18 | C18: Taxes Other Than Income | E18: ='Function Summary'!$F18 -> 26300490.41 | F18: =Generation!$I$20 -> 9156820.564 | G18: =Generation!J20 -> 7411817.155 | H18: =Generation!K20 -> 2362029.902 | I18: =Generation!L20 -> 65868.65535 | J18: =Generation!M20 -> 4218873.621 | K18: =Generation!N20 -> 223778.7269 | L18: =Generation!O20 -> 5587.808893 | M18: =Generation!P20 -> 11854.98795 | N18: =Generation!Q20 -> 1664533.15 | O18: =Generation!R20 -> 16609.30405 | P18: =Generation!S20 -> 219626.582 | Q18: =Generation!T20 -> 545729.2012 | R18: =Generation!U20 -> 397360.7552 | S18: 0
A19: 19 | C19: Income Taxes - Federal | E19: ='Function Summary'!$F19 -> -224840321.5 | F19: =Generation!$I$21 -> -81417531.46 | G19: =Generation!J21 -> -58830018.27 | H19: =Generation!K21 -> -20336341.34 | I19: =Generation!L21 -> -146078.1953 | J19: =Generation!M21 -> -38036444.7 | K19: =Generation!N21 -> -1987438.772 | L19: =Generation!O21 -> -49198.25116 | M19: =Generation!P21 -> -23713.89985 | N19: =Generation!Q21 -> -12449299.13 | O19: =Generation!R21 -> -148286.1506 | P19: =Generation!S21 -> -1973905.379 | Q19: =Generation!T21 -> -5602997.222 | R19: =Generation!U21 -> -3839068.687 | S19: 0
A20: 20 | C20: Income Taxes - State | E20: ='Function Summary'!$F20 -> -25793262.02 | F20: =Generation!$I$22 -> -9376758.581 | G20: =Generation!J22 -> -6676623.885 | H20: =Generation!K22 -> -2335496.583 | I20: =Generation!L22 -> -10835.93837 | J20: =Generation!M22 -> -4400815.555 | K20: =Generation!N22 -> -229394.7518 | L20: =Generation!O22 -> -5677.87551 | M20: =Generation!P22 -> -1610.01188 | N20: =Generation!Q22 -> -1400598.871 | O20: =Generation!R22 -> -17088.25525 | P20: =Generation!S22 -> -228538.2642 | Q20: =Generation!T22 -> -661135.5957 | R20: =Generation!U22 -> -448687.8563 | S20: 0
A21: 21 | C21: Income Taxes Deferred | E21: ='Function Summary'!$F21 -> 242068423.9 | F21: =Generation!$I$23 -> 84278927.4 | G21: =Generation!J23 -> 68218001.6 | H21: =Generation!K23 -> 21740007.38 | I21: =Generation!L23 -> 606251.8735 | J21: =Generation!M23 -> 38830305.9 | K21: =Generation!N23 -> 2059648.428 | L21: =Generation!O23 -> 51429.91901 | M21: =Generation!P23 -> 109112.7277 | N21: =Generation!Q23 -> 15320281.48 | O21: =Generation!R23 -> 152871.2199 | P21: =Generation!S23 -> 2021432.289 | Q21: =Generation!T23 -> 5022864.804 | R21: =Generation!U23 -> 3657288.903 | S21: 0
A22: 22 | C22: Investment Tax Credit Adj | E22: ='Function Summary'!$F22 -> -772346.3784 | F22: =Generation!$I$24 -> -268901.3433 | G22: =Generation!J24 -> -217657.1633 | H22: =Generation!K24 -> -69363.92486 | I22: =Generation!L24 -> -1934.314403 | J22: =Generation!M24 -> -123892.4336 | K22: =Generation!N24 -> -6571.538653 | L22: =Generation!O24 -> -164.0929083 | M22: =Generation!P24 -> -348.1363603 | N22: =Generation!Q24 -> -48881.0714 | O22: =Generation!R24 -> -487.7527237 | P22: =Generation!S24 -> -6449.605788 | Q22: =Generation!T24 -> -16026.01189 | R22: =Generation!U24 -> -11668.98926 | S22: 0
A23: 23 | C23: Misc Revenues & Expense | E23: ='Function Summary'!$F23 -> -2167139.504 | F23: =Generation!$I$25 -> -675679.1213 | G23: =Generation!J25 -> -587154.7677 | H23: =Generation!K25 -> -197145.4597 | I23: =Generation!L25 -> -8480.923162 | J23: =Generation!M25 -> -400306.7751 | K23: =Generation!N25 -> -20532.62517 | L23: =Generation!O25 -> -547.2906472 | M23: =Generation!P25 -> -1487.489158 | N23: =Generation!Q25 -> -133822.8814 | O23: =Generation!R25 -> -1234.2492 | P23: =Generation!S25 -> -22595.4324 | Q23: =Generation!T25 -> -74284.96403 | R23: =Generation!U25 -> -43867.52513 | S23: 0
A24: 24
A25: 25 | C25: Total Operating Expenses | E25: =SUM(E15:E23) -> 1097176175 | F25: =SUM(F15:F23) -> 356544219.6 | G25: 309508558.1 | H25: 99296584.84 | I25: 4008909.084 | J25: 187408788 | K25: 9470510.845 | L25: 255239.3662 | M25: 712963.7032 | N25: 70737120.88 | O25: 649480.1936 | P25: 10210761.32 | Q25: =SUM(Q15:Q23) -> 29529751.03 | R25: =SUM(R15:R23) -> 18843287.7 | S25: =ROUND(SUM(F25:R25)-E25,0) -> 0
A26: 26
A27: 27
A28: 28 | C28: Rate Base :
A29: 29 | C29: Electric Plant In Service | E29: ='Function Summary'!$F29 -> 4699369744 | F29: =Generation!$I$33 -> 1642346892 | G29: =Generation!J33 -> 1326119299 | H29: =Generation!K33 -> 421834897 | I29: =Generation!L33 -> 11531705.82 | J29: =Generation!M33 -> 749714567.7 | K29: =Generation!N33 -> 39854329.32 | L29: =Generation!O33 -> 991571.812 | M29: =Generation!P33 -> 2078401.042 | N29: =Generation!Q33 -> 297666408.7 | O29: =Generation!R33 -> 2978109.256 | P29: =Generation!S33 -> 38891189.54 | Q29: =Generation!T33 -> 95221363.11 | R29: =Generation!U33 -> 70141010.31 | S29: =ROUND(SUM(F29:R29)-E29,0) -> 0
A30: 30 | C30: Plant Held For Future Use | E30: ='Function Summary'!$F30 -> 4111915.569 | F30: =Generation!$I$34 -> 1427392.846 | G30: =Generation!J34 -> 1157464.171 | H30: =Generation!K34 -> 369411.3151 | I30: =Generation!L34 -> 10463.73863 | J30: =Generation!M34 -> 662440.357 | K30: =Generation!N34 -> 35126.61427 | L30: =Generation!O34 -> 878.2506856 | M30: =Generation!P34 -> 1881.068148 | N30: =Generation!Q34 -> 260048.8343 | O30: =Generation!R34 -> 2589.393335 | P30: =Generation!S34 -> 34579.96586 | Q30: =Generation!T34 -> 86905.32891 | R30: =Generation!U34 -> 62733.68612 | S30: 0
A31: =A30+1 -> 31 | C31: Electric Plant Acquisition Adj | E31: ='Function Summary'!$F31 -> 24630737.7 | F31: =Generation!$I$35 -> 8655051.241 | G31: =Generation!J35 -> 6964614.946 | H31: =Generation!K35 -> 2209451.864 | I31: =Generation!L35 -> 58619.66151 | J31: =Generation!M35 -> 3898044.869 | K31: =Generation!N35 -> 207647.8519 | L31: =Generation!O35 -> 5145.275133 | M31: =Generation!P35 -> 10588.8754 | N31: =Generation!Q35 -> 1562139.733 | O31: =Generation!R35 -> 15689.22822 | P31: =Generation!S35 -> 201156.2239 | Q31: =Generation!T35 -> 481593.1551 | R31: =Generation!U35 -> 360994.7711 | S31: 0
A32: 32 | C32: Nuclear Fuel | E32: ='Function Summary'!$F32 -> 0 | F32: =Generation!$I$36 -> 0 | G32: =Generation!J36 -> 0 | H32: =Generation!K36 -> 0 | I32: =Generation!L36 -> 0 | J32: =Generation!M36 -> 0 | K32: =Generation!N36 -> 0 | L32: =Generation!O36 -> 0 | M32: =Generation!P36 -> 0 | N32: =Generation!Q36 -> 0 | O32: =Generation!R36 -> 0 | P32: =Generation!S36 -> 0 | Q32: =Generation!T36 -> 0 | R32: =Generation!U36 -> 0 | S32: 0
A33: 33 | C33: Prepayments | E33: ='Function Summary'!$F33 -> 10755596.42 | F33: =Generation!$I$37 -> 3663943.442 | G33: =Generation!J37 -> 3006783.011 | H33: =Generation!K37 -> 968504.8845 | I33: =Generation!L37 -> 30068.98186 | J33: =Generation!M37 -> 1779317.985 | K33: =Generation!N37 -> 93718.7286 | L33: =Generation!O37 -> 2374.063824 | M33: =Generation!P37 -> 5371.724105 | N33: =Generation!Q37 -> 677271.8273 | O33: =Generation!R37 -> 6654.408044 | P33: =Generation!S37 -> 94427.9104 | Q33: =Generation!T37 -> 253235.2659 | R33: =Generation!U37 -> 173924.1823 | S33: 0
A34: 34 | C34: Fuel Stock | E34: ='Function Summary'!$F34 -> 83614228.64 | F34: =Generation!$I$38 -> 25625314.81 | G34: =Generation!J38 -> 22540161.39 | H34: =Generation!K38 -> 7625454.457 | I34: =Generation!L38 -> 343776.4496 | J34: =Generation!M38 -> 15737990.42 | K34: =Generation!N38 -> 789595.7404 | L34: =Generation!O38 -> 21622.78344 | M34: =Generation!P38 -> 60238.83577 | N34: =Generation!Q38 -> 5149713.071 | O34: =Generation!R38 -> 46974.78959 | P34: =Generation!S38 -> 897160.2477 | Q34: =Generation!T38 -> 3025510.748 | R34: =Generation!U38 -> 1750714.894 | S34: 0
A35: 35 | C35: Materials & Supplies | E35: ='Function Summary'!$F35 -> 62918516.33 | F35: =Generation!$I$39 -> 22109081.33 | G35: =Generation!J39 -> 17790910.07 | H35: =Generation!K39 -> 5643981.715 | I35: =Generation!L39 -> 149742.2519 | J35: =Generation!M39 -> 9957444.344 | K35: =Generation!N39 -> 530430.5101 | L35: =Generation!O39 -> 13143.45845 | M35: =Generation!P39 -> 27048.97994 | N35: =Generation!Q39 -> 3990441.355 | O35: =Generation!R39 -> 40077.68563 | P35: =Generation!S39 -> 513847.8317 | Q35: =Generation!T39 -> 1230215.967 | R35: =Generation!U39 -> 922150.8376 | S35: 0
A36: 36 | C36: Misc Deferred Debits | E36: ='Function Summary'!$F36 -> 24864621.62 | F36: =Generation!$I$40 -> 8509749.508 | G36: =Generation!J40 -> 6962828.374 | H36: =Generation!K40 -> 2237710.718 | I36: =Generation!L40 -> 67983.6622 | J36: =Generation!M40 -> 4087013.843 | K36: =Generation!N40 -> 215616.2303 | L36: =Generation!O40 -> 5444.797647 | M36: =Generation!P40 -> 12162.48137 | N36: =Generation!Q40 -> 1567373.48 | O36: =Generation!R40 -> 15450.82432 | P36: =Generation!S40 -> 216043.5667 | Q36: =Generation!T40 -> 570739.7053 | R36: =Generation!U40 -> 396504.4323 | S36: 0
A37: 37 | C37: Cash Working Capital | E37: ='Function Summary'!$F37 -> 15266151.57 | F37: =Generation!$I$41 -> 4955949.159 | G37: =Generation!J41 -> 4222704.523 | H37: =Generation!K41 -> 1386085.177 | I37: =Generation!L41 -> 51203.30637 | J37: =Generation!M41 -> 2672760.168 | K37: =Generation!N41 -> 133604.3994 | L37: =Generation!O41 -> 3632.928906 | M37: =Generation!P41 -> 9027.81511 | N37: =Generation!Q41 -> 954400.6851 | O37: =Generation!R41 -> 9045.547096 | P37: =Generation!S41 -> 146491.8195 | Q37: =Generation!T41 -> 445135.2987 | R37: =Generation!U41 -> 276110.7403 | S37: 0
A38: 38 | C38: Weatherization Loans | E38: ='Function Summary'!$F38 -> 0 | F38: =Generation!$I$42 -> 0 | G38: =Generation!J42 -> 0 | H38: =Generation!K42 -> 0 | I38: =Generation!L42 -> 0 | J38: =Generation!M42 -> 0 | K38: =Generation!N42 -> 0 | L38: =Generation!O42 -> 0 | M38: =Generation!P42 -> 0 | N38: =Generation!Q42 -> 0 | O38: =Generation!R42 -> 0 | P38: =Generation!S42 -> 0 | Q38: =Generation!T42 -> 0 | R38: =Generation!U42 -> 0 | S38: 0
A39: 39 | C39: Miscellaneous Rate Base | E39: ='Function Summary'!$F39 -> 34157.4187 | F39: =Generation!$I$43 -> 12002.65347 | G39: =Generation!J43 -> 9658.389926 | H39: =Generation!K43 -> 3064.02404 | I39: =Generation!L43 -> 81.29258438 | J39: =Generation!M43 -> 5405.731342 | K39: =Generation!N43 -> 287.9619242 | L39: =Generation!O43 -> 7.135365543 | M39: =Generation!P43 -> 14.68444247 | N39: =Generation!Q43 -> 2166.344411 | O39: =Generation!R43 -> 21.75751065 | P39: =Generation!S43 -> 278.9594632 | Q39: =Generation!T43 -> 667.8638394 | R39: =Generation!U43 -> 500.6203914 | S39: 0
A40: 40
A41: 41 | C41: Total Rate Base Additions | E41: =SUM(E29:E39) -> 4925565670 | F41: 1717305377 | G41: 1388774424 | H41: 442278561.2 | I41: 12243645.16 | J41: 788514985.4 | K41: 41860357.35 | L41: 1043820.505 | M41: 2204735.507 | N41: 311829964 | O41: 3114612.89 | P41: 40995176.07 | Q41: =SUM(Q29:Q39) -> 101315366.4 | R41: =SUM(R29:R39) -> 74084644.47 | S41: =ROUND(SUM(F41:R41)-E41,0) -> 0
A42: 42
A43: 43 | C43: Rate Base Deductions :
A44: 44 | C44: Accum Provision For Depreciation | E44: ='Function Summary'!$F44 -> -1385166144 | F44: =Generation!$I$48 -> -483737220.7 | G44: =Generation!J48 -> -390775585.8 | H44: =Generation!K48 -> -124349576.2 | I44: =Generation!L48 -> -3412739.119 | J44: =Generation!M48 -> -221219078.2 | K44: =Generation!N48 -> -11756621.56 | L44: =Generation!O48 -> -292661.4627 | M44: =Generation!P48 -> -614912.4408 | N44: =Generation!Q48 -> -87723943.08 | O44: =Generation!R48 -> -877212.0558 | P44: =Generation!S48 -> -11483591.25 | Q44: =Generation!T48 -> -28198624.29 | R44: =Generation!U48 -> -20724378.35 | S44: =ROUND(SUM(F44:R44)-E44,0) -> 0
A45: 45 | C45: Accum Provision For Amortization | E45: ='Function Summary'!$F45 -> -81527142.94 | F45: =Generation!$I$49 -> -28561156.17 | G45: =Generation!J49 -> -23026774.77 | H45: =Generation!K49 -> -7316010.937 | I45: =Generation!L49 -> -197392.2537 | J45: =Generation!M49 -> -12960449.08 | K45: =Generation!N49 -> -689598.8192 | L45: =Generation!O49 -> -17126.43792 | M45: =Generation!P49 -> -35611.32452 | N45: =Generation!Q49 -> -5166979.422 | O45: =Generation!R49 -> -51783.06368 | P45: =Generation!S49 -> -670776.8402 | Q45: =Generation!T49 -> -1626351.279 | R45: =Generation!U49 -> -1207132.544 | S45: 0
A46: 46 | C46: Accum Deferred Income Taxes | E46: ='Function Summary'!$F46 -> -583329875.7 | F46: =Generation!$I$50 -> -203915387.8 | G46: =Generation!J50 -> -164625864 | H46: =Generation!K50 -> -52360446.81 | I46: =Generation!L50 -> -1429414.973 | J46: =Generation!M50 -> -93026954.1 | K46: =Generation!N50 -> -4945724.467 | L46: =Generation!O50 -> -123026.0371 | M46: =Generation!P50 -> -257654.7095 | N46: =Generation!Q50 -> -36951337.98 | O46: =Generation!R50 -> -369759.2179 | P46: =Generation!S50 -> -4824579.804 | Q46: =Generation!T50 -> -11800482.14 | R46: =Generation!U50 -> -8699243.65 | S46: 0
A47: =A46+1 -> 47 | C47: Unamortized ITC | E47: ='Function Summary'!$F47 -> -70947.56622 | F47: =Generation!$I$51 -> -24801.18037 | G47: =Generation!J51 -> -20022.62436 | H47: =Generation!K51 -> -6368.347282 | I47: =Generation!L51 -> -173.8548336 | J47: =Generation!M51 -> -11314.45009 | K47: =Generation!N51 -> -601.5259027 | L47: =Generation!O51 -> -14.96311488 | M47: =Generation!P51 -> -31.33762968 | N47: =Generation!Q51 -> -4494.208611 | O47: =Generation!R51 -> -44.97191811 | P47: =Generation!S51 -> -586.793153 | Q47: =Generation!T51 -> -1435.254841 | R47: =Generation!U51 -> -1058.054122 | S47: 0
A48: 48 | C48: Customer Advance For Construction | E48: ='Function Summary'!$F48 -> 0 | F48: =Generation!$I$52 -> 0 | G48: =Generation!J52 -> 0 | H48: =Generation!K52 -> 0 | I48: =Generation!L52 -> 0 | J48: =Generation!M52 -> 0 | K48: =Generation!N52 -> 0 | L48: =Generation!O52 -> 0 | M48: =Generation!P52 -> 0 | N48: =Generation!Q52 -> 0 | O48: =Generation!R52 -> 0 | P48: =Generation!S52 -> 0 | Q48: =Generation!T52 -> 0 | R48: =Generation!U52 -> 0 | S48: 0
A49: 49 | C49: Customer Service Deposits | E49: ='Function Summary'!$F49 -> 0 | F49: =Generation!$I$53 -> 0 | G49: =Generation!J53 -> 0 | H49: =Generation!K53 -> 0 | I49: =Generation!L53 -> 0 | J49: =Generation!M53 -> 0 | K49: =Generation!N53 -> 0 | L49: =Generation!O53 -> 0 | M49: =Generation!P53 -> 0 | N49: =Generation!Q53 -> 0 | O49: =Generation!R53 -> 0 | P49: =Generation!S53 -> 0 | Q49: =Generation!T53 -> 0 | R49: =Generation!U53 -> 0 | S49: 0
A50: 50 | C50: Misc Rate Base Deductions | E50: ='Function Summary'!$F50 -> -16811450.94 | F50: =Generation!$I$54 -> -5791162.445 | G50: =Generation!J54 -> -4718915.832 | H50: =Generation!K54 -> -1511757.767 | I50: =Generation!L54 -> -44511.03295 | J50: =Generation!M54 -> -2738222.37 | K50: =Generation!N54 -> -144792.2962 | L50: =Generation!O54 -> -3639.949854 | M50: =Generation!P54 -> -7980.09718 | N50: =Generation!Q54 -> -1061316.33 | O50: =Generation!R54 -> -10510.55488 | P50: =Generation!S54 -> -143928.7783 | Q50: =Generation!T54 -> -371925.6521 | R50: =Generation!U54 -> -262787.8296 | S50: 0
A51: 51
A52: 52 | C52: Total Rate Base Deductions | E52: =SUM(E44:E50) -> -2066905562 | F52: -722029728.3 | G52: -583167163.1 | H52: -185544160 | I52: -5084231.234 | J52: -329956018.2 | K52: -17537338.67 | L52: -436468.8507 | M52: -916189.9096 | N52: -130908071 | O52: -1309309.864 | P52: -17123463.46 | Q52: =SUM(Q44:Q50) -> -41998818.62 | R52: =SUM(R44:R50) -> -30894600.43 | S52: =ROUND(SUM(F52:R52)-E52,0) -> 0
A53: 53
A54: 54 | C54: Total Rate Base | E54: =E41+E52 -> 2858660108 | F54: =F41+F52 -> 995275648.9 | G54: 805607260.4 | H54: 256734401.1 | I54: 7159413.929 | J54: 458558967.2 | K54: 24323018.69 | L54: 607351.6547 | M54: 1288545.597 | N54: 180921893 | O54: 1805303.026 | P54: 23871712.61 | Q54: =Q41+Q52 -> 59316547.82 | R54: =R41+R52 -> 43190044.04 | S54: =ROUND(SUM(F54:R54)-E54,0) -> 0
A55: 55
A56: 56
A57: 57 | C57: Return On Rate Base | D57: =ActualROR -> 0.06305604955 | E57: =$D$57*E54 -> 180255813.4 | F57: =$D$57*F54 -> 62758150.64 | G57: 50798411.33 | H57: =$D$57*H54 -> 16188657.12 | I57: 451444.3595 | J57: 28914916.96 | K57: 1533713.472 | L57: 38297.19604 | M57: 81250.59502 | N57: 11408219.85 | O57: 113835.277 | P57: 1505255.893 | Q57: =$D$57*Q54 -> 3740267.179 | R57: =$D$57*R54 -> 2723393.557 | S57: =ROUND(SUM(F57:R57)-E57,0) -> 0
A58: 58 | C58: Total Operating Expenses | E58: =E25 -> 1097176175 | F58: 356544219.6 | G58: 309508558.1 | H58: =H25 -> 99296584.84 | I58: 4008909.084 | J58: 187408788 | K58: 9470510.845 | L58: 255239.3662 | M58: 712963.7032 | N58: 70737120.88 | O58: 649480.1936 | P58: 10210761.32 | Q58: =Q25 -> 29529751.03 | R58: =R25 -> 18843287.7 | S58: =ROUND(SUM(F58:R58)-E58,0) -> 0
A59: 59 | C59: Revenue Credits | E59: ='Function Summary'!$F$59 -> -299293693.4 | F59: =Generation!I$99 -> -103442368.4 | G59: =Generation!J99 -> -84701598.75 | H59: =Generation!K99 -> -27151968.95 | I59: =Generation!L99 -> -827380.4499 | J59: =Generation!M99 -> -48141094.46 | K59: =Generation!N99 -> -2143180.303 | L59: =Generation!O99 -> -64613.18632 | M59: =Generation!P99 -> -150209.874 | N59: =Generation!Q99 -> -18961614.41 | O59: =Generation!R99 -> -188948.259 | P59: =Generation!S99 -> -2543488.792 | Q59: =Generation!T99 -> -6439121.514 | R59: =Generation!U99 -> -4538106.124 | S59: =ROUND(SUM(F59:R59)-E59,0) -> 0
A60: 60
A61: 61 | C61: Total Revenue Requirements | E61: =E57+E58+E59 -> 978138294.6 | F61: =F57+F58+F59 -> 315860001.8 | G61: 275605370.7 | H61: 88333273.01 | I61: 3632972.993 | J61: 168182610.5 | K61: 8861044.014 | L61: 228923.3759 | M61: 644004.4242 | N61: 63183726.33 | O61: 574367.2116 | P61: 9172528.422 | Q61: =Q57+Q58+Q59 -> 26830896.7 | R61: =R57+R58+R59 -> 17028575.13 | S61: =ROUND(SUM(F61:R61)-E61,0) -> 0
A62: 62 | S62: =ROUND(SUM(F62:R62)-E62,0) -> 0
A63: 63
A64: 64 | C64: Return On Rate Base @ Target ROR | D64: =TargetROR -> 0.06305604955 | E64: =$D64*E54 -> 180255813.4 | F64: =$D64*F54 -> 62758150.64 | G64: 50798411.33 | H64: =$D64*H54 -> 16188657.12 | I64: 451444.3595 | J64: 28914916.96 | K64: 1533713.472 | L64: 38297.19604 | M64: 81250.59502 | N64: 11408219.85 | O64: 113835.277 | P64: 1505255.893 | Q64: =$D64*Q54 -> 3740267.179 | R64: =$D64*R54 -> 2723393.557 | S64: =ROUND(SUM(F64:R64)-E64,0) -> 0
A65: 65 | C65: Total Op. exp. Adjusted for Taxes | E65: =E58+((E64-E57)*(1/NetToGross))-(E64-E57) -> 1097176175 | F65: 356544219.6 | G65: 309508558.1 | H65: 99296584.84 | I65: 4008909.084 | J65: 187408788 | K65: 9470510.845 | L65: 255239.3662 | M65: 712963.7032 | N65: 70737120.88 | O65: 649480.1936 | P65: 10210761.32 | Q65: 29529751.03 | R65: 18843287.7 | S65: =ROUND(SUM(F65:R65)-E65,0) -> 0
A66: 66 | C66: Revenue Credits | E66: =E59 -> -299293693.4 | F66: =F59 -> -103442368.4 | G66: -84701598.75 | H66: =H59 -> -27151968.95 | I66: -827380.4499 | J66: -48141094.46 | K66: -2143180.303 | L66: -64613.18632 | M66: -150209.874 | N66: -18961614.41 | O66: -188948.259 | P66: -2543488.792 | Q66: =Q59 -> -6439121.514 | R66: =R59 -> -4538106.124 | S66: =ROUND(SUM(F66:R66)-E66,0) -> 0
A67: 67
A68: 68 | C68: Total Target Revenue Requirements | E68: =SUM(E64:E66) -> 978138294.6 | F68: =SUM(F64:F66) -> 315860001.8 | G68: 275605370.7 | H68: =SUM(H64:H66) -> 88333273.01 | I68: 3632972.993 | J68: 168182610.5 | K68: 8861044.014 | L68: 228923.3759 | M68: 644004.4242 | N68: 63183726.33 | O68: 574367.2116 | P68: 9172528.422 | Q68: =SUM(Q64:Q66) -> 26830896.7 | R68: =SUM(R64:R66) -> 17028575.13 | S68: =ROUND(SUM(F68:R68)-E68,0) -> 0
C69: Generation Demand Summary
C70: =Inputs!$C$4 -> Rocky Mountain Power
C71: ="Cost Of Service By Rate Schedule - "&C69 -> Cost Of Service By Rate Schedule - Generation Demand Summary
C72: =Inputs!$C$5 -> State of Utah
C73: =Inputs!$C$7 -> Monthly Wgt Factors
C74: =Inputs!$C$6 -> 12 Months Ended Dec 2010
C77: A | D77: B | E77: C | F77: D | G77: E | H77: F | I77: G | J77: H | K77: I | L77: J | M77: K | N77: L | O77: M | P77: N | Q77: O | R77: P | S77: Q
E78: ='Hot Sheet'!$H$10 -> Utah | G78: ='Hot Sheet'!$J$10 -> General | H78: ='Hot Sheet'!$K$10 -> General | I78: ='Hot Sheet'!$L$10 -> Street & Area | J78: ='Hot Sheet'!$M$10 -> General | L78: ='Hot Sheet'!$O$10 -> Traffic | M78: ='Hot Sheet'!$P$10 -> Outdoor | N78: ='Hot Sheet'!$Q$10 -> General | O78: ='Hot Sheet'!$R$10 -> Mobile | S78: Chk Total
E79: ='Hot Sheet'!$H$11 -> Jurisdiction | F79: ='Hot Sheet'!$I$11 -> Residential | G79: ='Hot Sheet'!$J$11 -> Large Dist. | H79: ='Hot Sheet'!$K$11 -> +1 MW | I79: ='Hot Sheet'!$L$11 -> Lighting | J79: ='Hot Sheet'!$M$11 -> Trans | K79: ='Hot Sheet'!$N$11 -> Irrigation | L79: ='Hot Sheet'!$O$11 -> Signals | M79: ='Hot Sheet'!$P$11 -> Lighting | N79: ='Hot Sheet'!$Q$11 -> Small Dist. | O79: ='Hot Sheet'!$R$11 -> Home Park | P79: ='Hot Sheet'!S$11 -> Industrial | Q79: ='Hot Sheet'!T$11 -> Industrial | R79: ='Hot Sheet'!U$11 -> Industrial
C80: DESCRIPTION | E80: ='Hot Sheet'!$H$12 -> Normalized | F80: ='Hot Sheet'!$I$12 -> Sch 1 | G80: ='Hot Sheet'!$J$12 -> Sch 6 | H80: ='Hot Sheet'!$K$12 -> Sch 8 | I80: ='Hot Sheet'!$L$12 -> Sch. 7,11,12 | J80: ='Hot Sheet'!$M$12 -> Sch 9 | K80: ='Hot Sheet'!$N$12 -> Sch 10 | L80: ='Hot Sheet'!$O$12 -> Sch 15 | M80: ='Hot Sheet'!$P$12 -> Sch 15 | N80: ='Hot Sheet'!$Q$12 -> Sch 23 | O80: ='Hot Sheet'!$R$12 -> Sch 25 | P80: ='Hot Sheet'!S$12 -> Cust A | Q80: ='Hot Sheet'!T$12 -> Cust B | R80: ='Hot Sheet'!U$12 -> Cust C | S80: =ROUND(SUM(S83:S136),0) -> 0
A81: 13
A82: =A81+1 -> 14 | C82: Operating Expenses
A83: =A82+1 -> 15 | C83: Operation & Maintenance Expenses | E83: =SUM(F83:R83) -> 324029222.5 | F83: 114755404.4 | G83: 93069720.18 | H83: 29163257.31 | I83: 695892.5825 | J83: 49903394.37 | K83: 2601399.501 | L83: 66034.01778 | M83: 124365.4916 | N83: 20717585.51 | O83: 208509.8891 | P83: 2516995.136 | Q83: 5762150.732 | R83: 4444513.383 | S83: =ROUND(SUM(F83:R83)-E83,0) -> 0
A84: 16 | C84: Depreciation Expense | E84: =SUM(F84:R84) -> 87074358.9 | F84: 31691911.19 | G84: 24948069.56 | H84: 7775809.09 | I84: 164851.1289 | J84: 13049135.57 | K84: 705219.3269 | L84: 16983.3442 | M84: 30345.42472 | N84: 5568655.442 | O84: 57328.47968 | P84: 648679.9068 | Q84: 1295560.772 | R84: 1121809.666 | S84: 0
A85: 17 | C85: Amortization Expense | E85: 10123916.61 | F85: 3583304.618 | G85: 2870364.463 | H85: 907319.2848 | I85: 23093.94812 | J85: 1584945.278 | K85: 84667.91857 | L85: 2086.379802 | M85: 4185.008636 | N85: 643173.1308 | O85: 6492.707846 | P85: 81206.80777 | Q85: 188342.1147 | R85: 144734.9513 | S85: 0
A86: 18 | C86: Taxes Other Than Income | E86: 19725367.81 | F86: 6867615.423 | G86: 5558862.866 | H86: 1771522.427 | I86: 49401.49151 | J86: 3164155.216 | K86: 167834.0452 | L86: 4190.85667 | M86: 8891.24096 | N86: 1248399.862 | O86: 12456.97804 | P86: 164719.9365 | Q86: 409296.9009 | R86: 298020.5664 | S86: 0
A87: 19 | C87: Income Taxes - Federal | E87: -168917930.4 | F87: -60164626.65 | G87: -44204749.08 | H87: -15347093.79 | I87: -257089.3652 | J87: -29104634.67 | K87: -1516895.528 | L87: -37981.42061 | M87: -43545.07439 | N87: -9424337.923 | O87: -109689.0083 | P87: -1528058.898 | Q87: -4237443.785 | R87: -2941785.182 | S87: 0
A88: 20 | C88: Income Taxes - State | E88: -19344946.52 | F88: -7032568.936 | G88: -5007467.914 | H88: -1751622.437 | I88: -8126.953774 | J88: -3300611.666 | K88: -172046.0638 | L88: -4258.406632 | M88: -1207.50891 | N88: -1050449.153 | O88: -12816.19144 | P88: -171403.6982 | Q88: -495851.6968 | R88: -336515.8922 | S88: 0
A89: 21 | C89: Income Taxes Deferred | E89: 181551317.9 | F89: 63209195.55 | G89: 51163501.2 | H89: 16305005.54 | I89: 454688.9051 | J89: 29122729.43 | K89: 1544736.321 | L89: 38572.43926 | M89: 81834.54575 | N89: 11490211.11 | O89: 114653.415 | P89: 1516074.217 | Q89: 3767148.603 | R89: 2742966.677 | S89: 0
A90: 22 | C90: Investment Tax Credit Adj | E90: -579259.7838 | F90: -201676.0074 | G90: -163242.8725 | H90: -52022.94364 | I90: -1450.735802 | J90: -92919.3252 | K90: -4928.653989 | L90: -123.0696812 | M90: -261.1022702 | N90: -36660.80355 | O90: -365.8145428 | P90: -4837.204341 | Q90: -12019.50892 | R90: -8751.741946 | S90: 0
A91: 23 | C91: Misc Revenues & Expense | E91: -1625354.628 | F91: -506759.341 | G91: -440366.0758 | H91: -147859.0948 | I91: -6360.692371 | J91: -300230.0814 | K91: -15399.46888 | L91: -410.4679854 | M91: -1115.616869 | N91: -100367.161 | O91: -925.6869001 | P91: -16946.5743 | Q91: -55713.72302 | R91: -32900.64385 | S91: 0
A92: 24
A93: 25 | C93: Total Operating Expenses | E93: =SUM(E83:E91) -> 432036692.5 | F93: =SUM(F83:F91) -> 152201800.2 | G93: 127794692.3 | H93: 38624315.39 | I93: 1114900.309 | J93: 64025964.12 | K93: 3394587.398 | L93: 85093.67281 | M93: 203492.4092 | N93: 29056210.01 | O93: 275644.7684 | P93: 3206429.63 | Q93: =SUM(Q83:Q91) -> 6621470.409 | R93: =SUM(R83:R91) -> 5432091.784 | S93: =ROUND(SUM(F93:R93)-E93,0) -> 0
A94: 26
A95: 27
A96: 28 | C96: Rate Base :
A97: 29 | C97: Electric Plant In Service | E97: =SUM(F97:R97) -> 3373410137 | F97: 1232282701 | G97: 967869709.9 | H97: 301104731.3 | I97: 6213026.501 | J97: 502550956.4 | K97: 27203216.4 | L97: 653023.4172 | M97: 1146600.549 | N97: 215928477.2 | O97: 2228638.848 | P97: 24875197.68 | Q97: 48525343.08 | R97: 42828514.81 | S97: 0
A98: 30 | C98: Plant Held For Future Use | E98: 2789248.735 | F98: 1021536.351 | G98: 801056.4688 | H98: 248878.9116 | I98: 5034.787371 | J98: 413760.1168 | K98: 22422.84484 | L98: 537.028674 | M98: 930.929241 | N98: 178648.4725 | O98: 1847.215227 | P98: 20416.83838 | Q98: 39139.54362 | R98: 35039.22736 | S98: 0
A99: 31 | C99: Electric Plant Acquisition Adj | E99: 18473053.27 | F99: 6765583.573 | G99: 5305356.47 | H99: 1648312.441 | I99: 33345.14206 | J99: 2740312.323 | K99: 148505.3671 | L99: 3556.713741 | M99: 6165.49727 | N99: 1183179.796 | O99: 12234.01301 | P99: 135219.6878 | Q99: 259219.2174 | R99: 232063.0303 | S99: 0
A100: 32 | C100: Nuclear Fuel | E100: 0 | F100: 0 | G100: 0 | H100: 0 | I100: 0 | J100: 0 | K100: 0 | L100: 0 | M100: 0 | N100: 0 | O100: 0 | P100: 0 | Q100: 0 | R100: 0 | S100: 0
A101: 33 | C101: Prepayments | E101: 8066697.311 | F101: 2747957.582 | G101: 2255087.258 | H101: 726378.6634 | I101: 22551.73639 | J101: 1334488.489 | K101: 70289.04645 | L101: 1780.547868 | M101: 4028.793079 | N101: 507953.8705 | O101: 4990.806033 | P101: 70820.9328 | Q101: 189926.4494 | R101: 130443.1367 | S101: 0
A102: 34 | C102: Fuel Stock | E102: 0 | F102: 0 | G102: 0 | H102: 0 | I102: 0 | J102: 0 | K102: 0 | L102: 0 | M102: 0 | N102: 0 | O102: 0 | P102: 0 | Q102: 0 | R102: 0 | S102: 0
A103: 35 | C103: Materials & Supplies | E103: 47188887.25 | F103: 16581810.99 | G103: 13343182.55 | H103: 4232986.286 | I103: 112306.689 | J103: 7468083.258 | K103: 397822.8826 | L103: 9857.593836 | M103: 20286.73495 | N103: 2992831.016 | O103: 30058.26422 | P103: 385385.8738 | Q103: 922661.9753 | R103: 691613.1282 | S103: 0
A104: 36 | C104: Misc Deferred Debits | E104: 18648466.22 | F104: 6382312.131 | G104: 5222121.28 | H104: 1678283.038 | I104: 50987.74665 | J104: 3065260.383 | K104: 161712.1727 | L104: 4083.598235 | M104: 9121.861026 | N104: 1175530.11 | O104: 11588.11824 | P104: 162032.675 | Q104: 428054.779 | R104: 297378.3242 | S104: 0
A105: 37 | C105: Cash Working Capital | E105: 11449613.68 | F105: 3716961.869 | G105: 3167028.392 | H105: 1039563.883 | I105: 38402.47978 | J105: 2004570.126 | K105: 100203.2996 | L105: 2724.69668 | M105: 6770.861333 | N105: 715800.5138 | O105: 6784.160322 | P105: 109868.8646 | Q105: 333851.4741 | R105: 207083.0553 | S105: 0
A106: 38 | C106: Weatherization Loans | E106: 0 | F106: 0 | G106: 0 | H106: 0 | I106: 0 | J106: 0 | K106: 0 | L106: 0 | M106: 0 | N106: 0 | O106: 0 | P106: 0 | Q106: 0 | R106: 0 | S106: 0
A107: 39 | C107: Miscellaneous Rate Base | E107: 17078.70935 | F107: 6001.326733 | G107: 4829.194963 | H107: 1532.01202 | I107: 40.64629219 | J107: 2702.865671 | K107: 143.9809621 | L107: 3.567682772 | M107: 7.342221234 | N107: 1083.172205 | O107: 10.87875532 | P107: 139.4797316 | Q107: 333.9319197 | R107: 250.3101957 | S107: 0
A108: 40
A109: 41 | C109: Total Rate Base Additions | E109: =SUM(E97:E107) -> 3480043182 | F109: 1269504865 | G109: 997968371.5 | H109: 310680666.5 | I109: 6475695.729 | J109: 519580133.9 | K109: 28104316 | L109: 675567.1639 | M109: 1193912.569 | N109: 222683504.2 | O109: 2296152.304 | P109: 25759082.04 | Q109: =SUM(Q97:Q107) -> 50698530.45 | R109: =SUM(R97:R107) -> 44422385.03 | S109: =ROUND(SUM(F109:R109)-E109,0) -> 0
A110: 42
A111: 43 | C111: Rate Base Deductions :
A112: 44 | C112: Accum Provision For Depreciation | E112: =SUM(F112:R112) -> -988372874.7 | F112: -361661467.5 | G112: -283759296.7 | H112: -88200740.19 | I112: -1796504.958 | J112: -146830623.1 | K112: -7954014.51 | L112: -190650.1881 | M112: -331953.4864 | N112: -63290710.77 | O112: -654015.9989 | P112: -7253030.872 | Q112: -13988430.18 | R112: -12461436.21 | S112: =ROUND(SUM(F112:R112)-E112,0) -> 0
A113: 45 | C113: Accum Provision For Amortization | E113: -60788045.31 | F113: -21313925.96 | G113: -17174605.12 | H113: -5454360.614 | I113: -146473.0931 | J113: -9651354.25 | K113: -513696.1084 | L113: -12749.67505 | M113: -26434.34134 | N113: -3853358.555 | O113: -38641.39802 | P113: -499102.5663 | Q113: -1205856.368 | R113: -897487.2612 | S113: 0
A114: 46 | C114: Accum Deferred Income Taxes | E114: -437497406.8 | F114: -152936540.8 | G114: -123469398 | H114: -39270335.11 | I114: -1072061.23 | J114: -69770215.58 | K114: -3709293.35 | L114: -92269.52784 | M114: -193241.0321 | N114: -27713503.48 | O114: -277319.4135 | P114: -3618434.853 | Q114: -8850361.607 | R114: -6524432.737 | S114: 0
A115: 47 | C115: Unamortized ITC | E115: -53210.67467 | F115: -18600.88527 | G115: -15016.96827 | H115: -4776.260462 | I115: -130.3911252 | J115: -8485.837565 | K115: -451.144427 | L115: -11.22233616 | M115: -23.50322226 | N115: -3370.656458 | O115: -33.72893858 | P115: -440.0948647 | Q115: -1076.441131 | R115: -793.5405919 | S115: 0
A116: 48 | C116: Customer Advance For Construction | E116: 0 | F116: 0 | G116: 0 | H116: 0 | I116: 0 | J116: 0 | K116: 0 | L116: 0 | M116: 0 | N116: 0 | O116: 0 | P116: 0 | Q116: 0 | R116: 0 | S116: 0
A117: 49 | C117: Customer Service Deposits | E117: 0 | F117: 0 | G117: 0 | H117: 0 | I117: 0 | J117: 0 | K117: 0 | L117: 0 | M117: 0 | N117: 0 | O117: 0 | P117: 0 | Q117: 0 | R117: 0 | S117: 0
A118: 50 | C118: Misc Rate Base Deductions | E118: -10642676.38 | F118: -3792062.348 | G118: -3024952.468 | H118: -953006.679 | I118: -23303.77049 | J118: -1649362.966 | K118: -88343.54234 | L118: -2165.580421 | M118: -4236.626207 | N118: -677191.0942 | O118: -6868.220677 | P118: -83933.4697 | Q118: -188644.5037 | R118: -148605.1115 | S118: 0
A119: 51
A120: 52 | C120: Total Rate Base Deductions | E120: =SUM(E112:E118) -> -1497354214 | F120: -539722597.5 | G120: -427443269.3 | H120: -133883218.9 | I120: -3038473.442 | J120: -227910041.8 | K120: -12265798.66 | L120: -297846.1938 | M120: -555888.9893 | N120: -95538134.55 | O120: -976878.76 | P120: -11454941.86 | Q120: =SUM(Q112:Q118) -> -24234369.1 | R120: =SUM(R112:R118) -> -20032754.86 | S120: =ROUND(SUM(F120:R120)-E120,0) -> 0
A121: 53
A122: 54 | C122: Total Rate Base | E122: =E109+E120 -> 1982688968 | F122: =F109+F120 -> 729782267.1 | G122: 570525102.2 | H122: 176797447.7 | I122: 3437222.286 | J122: 291670092.2 | K122: 15838517.34 | L122: 377720.9701 | M122: 638023.5792 | N122: 127145369.6 | O122: 1319273.544 | P122: 14304140.18 | Q122: =Q109+Q120 -> 26464161.35 | R122: =R109+R120 -> 24389630.16 | S122: =ROUND(SUM(F122:R122)-E122,0) -> 0
A123: 55
A124: 56
A125: 57 | C125: Return On Rate Base | D125: =ActualROR -> 0.06305604955 | E125: =$D$57*E122 -> 125020533.8 | F125: =$D$57*F122 -> 46017186.8 | G125: 35975059.11 | H125: =$D$57*H122 -> 11148148.62 | I125: 216737.6588 | J125: 18391563.79 | K125: 998714.3344 | L125: 23817.59221 | M125: 40231.24643 | N125: 8017284.727 | O125: 83188.17797 | P125: 901962.5721 | Q125: =$D$57*Q122 -> 1668725.469 | R125: =$D$57*R122 -> 1537913.728 | S125: =ROUND(SUM(F125:R125)-E125,0) -> 0
A126: 58 | C126: Total Operating Expenses | E126: =E93 -> 432036692.5 | F126: 152201800.2 | G126: 127794692.3 | H126: =H93 -> 38624315.39 | I126: 1114900.309 | J126: 64025964.12 | K126: 3394587.398 | L126: 85093.67281 | M126: 203492.4092 | N126: 29056210.01 | O126: 275644.7684 | P126: 3206429.63 | Q126: =Q93 -> 6621470.409 | R126: =R93 -> 5432091.784 | S126: =ROUND(SUM(F126:R126)-E126,0) -> 0
A127: 59 | C127: Revenue Credits | E127: =SUM(F127:R127) -> -219047357.5 | F127: -76427031.51 | G127: -62183318.36 | H127: -19853716.33 | I127: -577392.6853 | J127: -34769832 | K127: -1544188.262 | L127: -46524.80683 | M127: -105237.0247 | N127: -13898875.63 | O127: -139535.5421 | P127: -1822211.24 | Q127: -4455647.797 | R127: -3223846.256 | S127: =ROUND(SUM(F127:R127)-E127,0) -> 0
A128: 60
A129: 61 | C129: Total Revenue Requirements | E129: =E125+E126+E127 -> 338009868.8 | F129: =F125+F126+F127 -> 121791955.5 | G129: 101586433.1 | H129: 29918747.68 | I129: 754245.2825 | J129: 47647695.9 | K129: 2849113.47 | L129: 62386.45818 | M129: 138486.631 | N129: 23174619.1 | O129: 219297.4043 | P129: 2286180.962 | Q129: =Q125+Q126+Q127 -> 3834548.082 | R129: =R125+R126+R127 -> 3746159.257 | S129: =ROUND(SUM(F129:R129)-E129,0) -> 0
A130: 62 | S130: =ROUND(SUM(F130:R130)-E130,0) -> 0
A131: 63
A132: 64 | C132: Return On Rate Base @ Target ROR | D132: =TargetROR -> 0.06305604955 | E132: =$D132*E122 -> 125020533.8 | F132: =$D132*F122 -> 46017186.8 | G132: 35975059.11 | H132: =$D132*H122 -> 11148148.62 | I132: 216737.6588 | J132: 18391563.79 | K132: 998714.3344 | L132: 23817.59221 | M132: 40231.24643 | N132: 8017284.727 | O132: 83188.17797 | P132: 901962.5721 | Q132: =$D132*Q122 -> 1668725.469 | R132: =$D132*R122 -> 1537913.728 | S132: =ROUND(SUM(F132:R132)-E132,0) -> 0
A133: 65 | C133: Total Operating Expenses Adjusted for Taxes | E133: =E126+((E132-E125)*(1/NetToGross))-(E132-E125) -> 432036692.5 | F133: 152201800.2 | G133: 127794692.3 | H133: 38624315.39 | I133: 1114900.309 | J133: 64025964.12 | K133: 3394587.398 | L133: 85093.67281 | M133: 203492.4092 | N133: 29056210.01 | O133: 275644.7684 | P133: 3206429.63 | Q133: 6621470.409 | R133: 5432091.784 | S133: =ROUND(SUM(F133:R133)-E133,0) -> 0
A134: 66 | C134: Revenue Credits | E134: =E127 -> -219047357.5 | F134: =F127 -> -76427031.51 | G134: -62183318.36 | H134: =H127 -> -19853716.33 | I134: -577392.6853 | J134: -34769832 | K134: -1544188.262 | L134: -46524.80683 | M134: -105237.0247 | N134: -13898875.63 | O134: -139535.5421 | P134: -1822211.24 | Q134: =Q127 -> -4455647.797 | R134: =R127 -> -3223846.256 | S134: =ROUND(SUM(F134:R134)-E134,0) -> 0
A135: 67
A136: 68 | C136: Total Target Revenue Requirements | E136: =SUM(E132:E134) -> 338009868.8 | F136: =SUM(F132:F134) -> 121791955.5 | G136: 101586433.1 | H136: =SUM(H132:H134) -> 29918747.68 | I136: 754245.2825 | J136: 47647695.9 | K136: 2849113.47 | L136: 62386.45818 | M136: 138486.631 | N136: 23174619.1 | O136: 219297.4043 | P136: 2286180.962 | Q136: =SUM(Q132:Q134) -> 3834548.082 | R136: =SUM(R132:R134) -> 3746159.257 | S136: =ROUND(SUM(F136:R136)-E136,0) -> 0
C137: Generation Energy Summary
C138: =Inputs!$C$4 -> Rocky Mountain Power
C139: ="Cost Of Service By Rate Schedule - "&C137 -> Cost Of Service By Rate Schedule - Generation Energy Summary
C140: =Inputs!$C$5 -> State of Utah
C141: =Inputs!$C$7 -> Monthly Wgt Factors
C142: =Inputs!$C$6 -> 12 Months Ended Dec 2010
C145: A | D145: B | E145: C | F145: D | G145: E | H145: F | I145: G | J145: H | K145: I | L145: J | M145: K | N145: L | O145: M | P145: N | Q145: O | R145: P
E146: ='Hot Sheet'!$H$10 -> Utah | G146: ='Hot Sheet'!$J$10 -> General | H146: ='Hot Sheet'!$K$10 -> General | I146: ='Hot Sheet'!$L$10 -> Street & Area | J146: ='Hot Sheet'!$M$10 -> General | L146: ='Hot Sheet'!$O$10 -> Traffic | M146: ='Hot Sheet'!$P$10 -> Outdoor | N146: ='Hot Sheet'!$Q$10 -> General | O146: ='Hot Sheet'!$R$10 -> Mobile | S146: Chk Total
E147: ='Hot Sheet'!$H$11 -> Jurisdiction | F147: ='Hot Sheet'!$I$11 -> Residential | G147: ='Hot Sheet'!$J$11 -> Large Dist. | H147: ='Hot Sheet'!$K$11 -> +1 MW | I147: ='Hot Sheet'!$L$11 -> Lighting | J147: ='Hot Sheet'!$M$11 -> Trans | K147: ='Hot Sheet'!$N$11 -> Irrigation | L147: ='Hot Sheet'!$O$11 -> Signals | M147: ='Hot Sheet'!$P$11 -> Lighting | N147: ='Hot Sheet'!$Q$11 -> Small Dist. | O147: ='Hot Sheet'!$R$11 -> Home Park | P147: ='Hot Sheet'!S$11 -> Industrial | Q147: ='Hot Sheet'!T$11 -> Industrial | R147: ='Hot Sheet'!U$11 -> Industrial
C148: DESCRIPTION | E148: ='Hot Sheet'!$H$12 -> Normalized | F148: ='Hot Sheet'!$I$12 -> Sch 1 | G148: ='Hot Sheet'!$J$12 -> Sch 6 | H148: ='Hot Sheet'!$K$12 -> Sch 8 | I148: ='Hot Sheet'!$L$12 -> Sch. 7,11,12 | J148: ='Hot Sheet'!$M$12 -> Sch 9 | K148: ='Hot Sheet'!$N$12 -> Sch 10 | L148: ='Hot Sheet'!$O$12 -> Sch 15 | M148: ='Hot Sheet'!$P$12 -> Sch 15 | N148: ='Hot Sheet'!$Q$12 -> Sch 23 | O148: ='Hot Sheet'!$R$12 -> Sch 25 | P148: ='Hot Sheet'!S$12 -> Cust A | Q148: ='Hot Sheet'!T$12 -> Cust B | R148: ='Hot Sheet'!U$12 -> Cust C | S148: =ROUND(SUM(S151:S204),0) -> 0
A149: 13
A150: =A149+1 -> 14 | C150: Operating Expenses
A151: =A150+1 -> 15 | C151: Operation & Maintenance Expenses | E151: =SUM(F151:R151) -> 628739078.6 | F151: 194547908.9 | G151: 170471421.6 | H151: 57343025.12 | I151: 2499731.869 | J151: 116904930.1 | K151: 5736919.172 | L151: 160698.9271 | M151: 439065.0513 | N151: 38847047.75 | O151: 356027.3161 | P151: 6625633.991 | Q151: 22018970.17 | R151: 12787698.67 | S151: =ROUND(SUM(F151:R151)-E151,0) -> 0
A152: 16 | C152: Depreciation Expense | E152: 29034130.28 | F152: 9107300.099 | G152: 7882772.463 | H152: 2639487.807 | I152: 111496.1464 | J152: 5326398.047 | K152: 273636.8046 | L152: 7271.772559 | M152: 19572.88165 | N152: 1795202.429 | O152: 16629.31851 | P152: 299587.6756 | Q152: 974808.2998 | R152: 579966.5373 | S152: 0
A153: 17 | C153: Amortization Expense | E153: 3379622.749 | F153: 1161512.948 | G153: 947845.1494 | H153: 303996.2488 | I153: 9052.251621 | J153: 552264.5606 | K153: 29178.65478 | L153: 734.7070654 | M153: 1621.666997 | N153: 213243.9558 | O153: 2108.366217 | P153: 29087.61221 | Q153: 75768.73505 | R153: 53207.8926 | S153: 0
A154: 18 | C154: Taxes Other Than Income | E154: 6575122.603 | F154: 2289205.141 | G154: 1852954.289 | H154: 590507.4756 | I154: 16467.16384 | J154: 1054718.405 | K154: 55944.68174 | L154: 1396.952223 | M154: 2963.746987 | N154: 416133.2874 | O154: 4152.326013 | P154: 54906.64549 | Q154: 136432.3003 | R154: 99340.18879 | S154: 0
A155: 19 | C155: Income Taxes - Federal | E155: -55922391.08 | F155: -21252904.81 | G155: -14625269.19 | H155: -4989247.552 | I155: 111011.17 | J155: -8931810.026 | K155: -470543.2439 | L155: -11216.83055 | M155: 19831.17455 | N155: -3024961.207 | O155: -38597.14236 | P155: -445846.4811 | Q155: -1365553.437 | R155: -897283.5046 | S155: 0
A156: 20 | C156: Income Taxes - State | E156: -6448315.506 | F156: -2344189.645 | G156: -1669155.971 | H156: -583874.1458 | I156: -2708.984591 | J156: -1100203.889 | K156: -57348.68795 | L156: -1419.468877 | M156: -402.50297 | N156: -350149.7177 | O156: -4272.063813 | P156: -57134.56605 | Q156: -165283.8989 | R156: -112171.9641 | S156: 0
A157: 21 | C157: Income Taxes Deferred | E157: 60517105.98 | F157: 21069731.85 | G157: 17054500.4 | H157: 5435001.845 | I157: 151562.9684 | J157: 9707576.476 | K157: 514912.1071 | L157: 12857.47975 | M157: 27278.18192 | N157: 3830070.369 | O157: 38217.80498 | P157: 505358.0724 | Q157: 1255716.201 | R157: 914322.2258 | S157: 0
A158: 22 | C158: Investment Tax Credit Adj | E158: -193086.5946 | F158: -67225.33582 | G158: -54414.29083 | H158: -17340.98121 | I158: -483.5786007 | J158: -30973.1084 | K158: -1642.884663 | L158: -41.02322708 | M158: -87.03409008 | N158: -12220.26785 | O158: -121.9381809 | P158: -1612.401447 | Q158: -4006.502974 | R158: -2917.247315 | S158: 0
A159: 23 | C159: Misc Revenues & Expense | E159: -541784.876 | F159: -168919.7803 | G159: -146788.6919 | H159: -49286.36493 | I159: -2120.23079 | J159: -100076.6938 | K159: -5133.156293 | L159: -136.8226618 | M159: -371.8722895 | N159: -33455.72034 | O159: -308.5623 | P159: -5648.858099 | Q159: -18571.24101 | R159: -10966.88128 | S159: 0
A160: 24
A161: 25 | C161: Total Operating Expenses | E161: =SUM(E151:E159) -> 665139482.2 | F161: =SUM(F151:F159) -> 204342419.3 | G161: 181713865.8 | H161: 60672269.45 | I161: 2894008.775 | J161: 123382823.9 | K161: 6075923.447 | L161: 170145.6934 | M161: 509471.294 | N161: 41680910.87 | O161: 373835.4251 | P161: 7004331.69 | Q161: =SUM(Q151:Q159) -> 22908280.62 | R161: =SUM(R151:R159) -> 13411195.91 | S161: =ROUND(SUM(F161:R161)-E161,0) -> 0
A162: 26
A163: 27
A164: 28 | C164: Rate Base :
A165: 29 | C165: Electric Plant In Service | E165: =SUM(F165:R165) -> 1325959608 | F165: 410064191.4 | G165: 358249588.7 | H165: 120730165.7 | I165: 5318679.317 | J165: 247163611.3 | K165: 12651112.91 | L165: 338548.3949 | M165: 931800.493 | N165: 81737931.49 | O165: 749470.4077 | P165: 14015991.86 | Q165: 46696020.03 | R165: 27312495.5 | S165: =ROUND(SUM(F165:R165)-E165,0) -> 0
A166: 30 | C166: Plant Held For Future Use | E166: 1322666.834 | F166: 405856.4951 | G166: 356407.702 | H166: 120532.4035 | I166: 5428.951259 | J166: 248680.2402 | K166: 12703.76943 | L166: 341.2220116 | M166: 950.1389065 | N166: 81400.3618 | O166: 742.1781075 | P166: 14163.12748 | Q166: 47765.7853 | R166: 27694.45876 | S166: 0
A167: 31 | C167: Electric Plant Acquisition Adj | E167: 6157684.424 | F167: 1889467.668 | G167: 1659258.476 | H167: 561139.4226 | I167: 25274.51944 | J167: 1157732.546 | K167: 59142.48481 | L167: 1588.561391 | M167: 4423.378129 | N167: 378959.937 | O167: 3455.215218 | P167: 65936.53615 | Q167: 222373.9377 | R167: 128931.7408 | S167: 0
A168: 32 | C168: Nuclear Fuel | E168: 0 | F168: 0 | G168: 0 | H168: 0 | I168: 0 | J168: 0 | K168: 0 | L168: 0 | M168: 0 | N168: 0 | O168: 0 | P168: 0 | Q168: 0 | R168: 0 | S168: 0
A169: 33 | C169: Prepayments | E169: 2688899.104 | F169: 915985.8606 | G169: 751695.7527 | H169: 242126.2211 | I169: 7517.245464 | J169: 444829.4963 | K169: 23429.68215 | L169: 593.5159559 | M169: 1342.931026 | N169: 169317.9568 | O169: 1663.602011 | P169: 23606.9776 | Q169: 63308.81646 | R169: 43481.04557 | S169: 0
A170: 34 | C170: Fuel Stock | E170: 83614228.64 | F170: 25625314.81 | G170: 22540161.39 | H170: 7625454.457 | I170: 343776.4496 | J170: 15737990.42 | K170: 789595.7404 | L170: 21622.78344 | M170: 60238.83577 | N170: 5149713.071 | O170: 46974.78959 | P170: 897160.2477 | Q170: 3025510.748 | R170: 1750714.894 | S170: 0
A171: 35 | C171: Materials & Supplies | E171: 15729629.08 | F171: 5527270.331 | G171: 4447727.516 | H171: 1410995.429 | I171: 37435.56299 | J171: 2489361.086 | K171: 132607.6275 | L171: 3285.864612 | M171: 6762.244984 | N171: 997610.3386 | O171: 10019.42141 | P171: 128461.9579 | Q171: 307553.9918 | R171: 230537.7094 | S171: 0
A172: 36 | C172: Misc Deferred Debits | E172: 6216155.406 | F172: 2127437.377 | G172: 1740707.093 | H172: 559427.6795 | I172: 16995.91555 | J172: 1021753.461 | K172: 53904.05758 | L172: 1361.199412 | M172: 3040.620342 | N172: 391843.37 | O172: 3862.706081 | P172: 54010.89168 | Q172: 142684.9263 | R172: 99126.10808 | S172: 0
A173: 37 | C173: Cash Working Capital | E173: 3816537.892 | F173: 1238987.29 | G173: 1055676.131 | H173: 346521.2942 | I173: 12800.82659 | J173: 668190.042 | K173: 33401.09986 | L173: 908.2322265 | M173: 2256.953778 | N173: 238600.1713 | O173: 2261.386774 | P173: 36622.95488 | Q173: 111283.8247 | R173: 69027.68509 | S173: 0
A174: 38 | C174: Weatherization Loans | E174: 0 | F174: 0 | G174: 0 | H174: 0 | I174: 0 | J174: 0 | K174: 0 | L174: 0 | M174: 0 | N174: 0 | O174: 0 | P174: 0 | Q174: 0 | R174: 0 | S174: 0
A175: 39 | C175: Miscellaneous Rate Base | E175: 17078.70935 | F175: 6001.326733 | G175: 4829.194963 | H175: 1532.01202 | I175: 40.64629219 | J175: 2702.865671 | K175: 143.9809621 | L175: 3.567682772 | M175: 7.342221234 | N175: 1083.172205 | O175: 10.87875532 | P175: 139.4797316 | Q175: 333.9319197 | R175: 250.3101957 | S175: 0
A176: 40
A177: 41 | C177: Total Rate Base Additions | E177: =SUM(E165:E175) -> 1445522488 | F177: =SUM(F165:F175) -> 447800512.6 | G177: 390806052 | H177: 131597894.7 | I177: 5767949.435 | J177: 268934851.5 | K177: 13756041.36 | L177: 368253.3416 | M177: 1010822.938 | N177: 89146459.87 | O177: 818460.5856 | P177: 15236094.03 | Q177: =SUM(Q165:Q175) -> 50616835.99 | R177: =SUM(R165:R175) -> 29662259.45 | S177: =ROUND(SUM(F177:R177)-E177,0) -> 0
A178: 42
A179: 43 | C179: Rate Base Deductions :
A180: 44 | C180: Accum Provision For Depreciation | E180: =SUM(F180:R180) -> -396793269.8 | F180: -122075753.2 | G180: -107016289.1 | H180: -36148835.99 | I180: -1616234.162 | J180: -74388455.06 | K180: -3802607.05 | L180: -102011.2746 | M180: -282958.9543 | N180: -24433232.31 | O180: -223196.0569 | P180: -4230560.374 | Q180: -14210194.11 | R180: -8262942.143 | S180: =ROUND(SUM(F180:R180)-E180,0) -> 0
A181: 45 | C181: Accum Provision For Amortization | E181: -20739097.63 | F181: -7247230.207 | G181: -5852169.651 | H181: -1861650.323 | I181: -50919.16052 | J181: -3309094.834 | K181: -175902.7107 | L181: -4376.762867 | M181: -9176.983171 | N181: -1313620.867 | O181: -13141.66566 | P181: -171674.274 | Q181: -420494.9112 | R181: -309645.2833 | S181: 0
A182: 46 | C182: Accum Deferred Income Taxes | E182: -145832468.9 | F182: -50978846.94 | G182: -41156466.01 | H182: -13090111.7 | I182: -357353.7433 | J182: -23256738.53 | K182: -1236431.117 | L182: -30756.50928 | M182: -64413.67737 | N182: -9237834.494 | O182: -92439.80448 | P182: -1206144.951 | Q182: -2950120.536 | R182: -2174810.912 | S182: 0
A183: 47 | C183: Unamortized ITC | E183: -17736.89156 | F183: -6200.295091 | G183: -5005.65609 | H183: -1592.086821 | I183: -43.4637084 | J183: -2828.612522 | K183: -150.3814757 | L183: -3.740778721 | M183: -7.83440742 | N183: -1123.552153 | O183: -11.24297953 | P183: -146.6982882 | Q183: -358.8137104 | R183: -264.5135306 | S183: 0
A184: 48 | C184: Customer Advance For Construction | E184: 0 | F184: 0 | G184: 0 | H184: 0 | I184: 0 | J184: 0 | K184: 0 | L184: 0 | M184: 0 | N184: 0 | O184: 0 | P184: 0 | Q184: 0 | R184: 0 | S184: 0
A185: 49 | C185: Customer Service Deposits | E185: 0 | F185: 0 | G185: 0 | H185: 0 | I185: 0 | J185: 0 | K185: 0 | L185: 0 | M185: 0 | N185: 0 | O185: 0 | P185: 0 | Q185: 0 | R185: 0 | S185: 0
A186: 50 | C186: Misc Rate Base Deductions | E186: -6168774.554 | F186: -1999100.097 | G186: -1693963.364 | H186: -558751.0876 | I186: -21207.26246 | J186: -1088859.405 | K186: -56448.7539 | L186: -1474.369434 | M186: -3743.470974 | N186: -384125.2353 | O186: -3642.334202 | P186: -59995.30861 | Q186: -183281.1485 | R186: -114182.7181 | S186: 0
A187: 51
A188: 52 | C188: Total Rate Base Deductions | E188: =SUM(E180:E186) -> -569551347.8 | F188: =SUM(F180:F186) -> -182307130.8 | G188: -155723893.7 | H188: =SUM(H180:H186) -> -51660941.19 | I188: -2045757.792 | J188: -102045976.4 | K188: -5271540.013 | L188: -138622.6569 | M188: -360300.9202 | N188: -35369936.46 | O188: -332431.1042 | P188: -5668521.606 | Q188: =SUM(Q180:Q186) -> -17764449.52 | R188: =SUM(R180:R186) -> -10861845.57 | S188: =ROUND(SUM(F188:R188)-E188,0) -> 0
A189: 53
A190: 54 | C190: Total Rate Base | E190: =E177+E188 -> 875971139.9 | F190: =F177+F188 -> 265493381.8 | G190: 235082158.2 | H190: =H177+H188 -> 79936953.47 | I190: 3722191.643 | J190: 166888875 | K190: 8484501.343 | L190: 229630.6847 | M190: 650522.0179 | N190: 53776523.4 | O190: 486029.4814 | P190: 9567572.424 | Q190: =Q177+Q188 -> 32852386.47 | R190: =R177+R188 -> 18800413.88 | S190: =ROUND(SUM(F190:R190)-E190,0) -> 0
A191: 55
A192: 56
A193: 57 | C193: Return On Rate Base | D193: =ActualROR -> 0.06305604955 | E193: =$D$57*E190 -> 55235279.6 | F193: =$D$57*F190 -> 16740963.84 | G193: 14823352.22 | H193: =$D$57*H190 -> 5040508.499 | I193: 234706.7007 | J193: 10523353.17 | K193: 534999.1371 | L193: 14479.60383 | M193: 41019.3486 | N193: 3390935.125 | O193: 30647.09906 | P193: 603293.3209 | Q193: =$D$57*Q190 -> 2071541.709 | R193: =$D$57*R190 -> 1185479.829 | S193: =ROUND(SUM(F193:R193)-E193,0) -> 0
A194: 58 | C194: Total Operating Expenses | E194: =E161 -> 665139482.2 | F194: =F161 -> 204342419.3 | G194: 181713865.8 | H194: =H161 -> 60672269.45 | I194: 2894008.775 | J194: 123382823.9 | K194: 6075923.447 | L194: 170145.6934 | M194: 509471.294 | N194: 41680910.87 | O194: 373835.4251 | P194: 7004331.69 | Q194: =Q161 -> 22908280.62 | R194: =R161 -> 13411195.91 | S194: =ROUND(SUM(F194:R194)-E194,0) -> 0
A195: 59 | C195: Revenue Credits | E195: =SUM(F195:R195) -> -80246335.98 | F195: -27015336.86 | G195: -22518280.39 | H195: -7298252.616 | I195: -249987.7646 | J195: -13371262.45 | K195: -598992.0407 | L195: -18088.37949 | M195: -44972.84936 | N195: -5062738.773 | O195: -49412.71687 | P195: -721277.5513 | Q195: -1983473.718 | R195: -1314259.868 | S195: =ROUND(SUM(F195:R195)-E195,0) -> 0
A196: 60
A197: 61 | C197: Total Revenue Requirements | E197: =E193+E194+E195 -> 640128425.8 | F197: =F193+F194+F195 -> 194068046.3 | G197: 174018937.6 | H197: 58414525.33 | I197: 2878727.711 | J197: 120534914.6 | K197: 6011930.543 | L197: 166536.9177 | M197: 505517.7932 | N197: 40009107.23 | O197: 355069.8073 | P197: 6886347.46 | Q197: =Q193+Q194+Q195 -> 22996348.61 | R197: =R193+R194+R195 -> 13282415.88 | S197: =ROUND(SUM(F197:R197)-E197,0) -> 0
A198: 62 | S198: =ROUND(SUM(F198:R198)-E198,0) -> 0
A199: 63
A200: 64 | C200: Return On Rate Base @ Target ROR | D200: =TargetROR -> 0.06305604955 | E200: =$D200*E190 -> 55235279.6 | F200: =$D200*F190 -> 16740963.84 | G200: 14823352.22 | H200: =$D200*H190 -> 5040508.499 | I200: 234706.7007 | J200: 10523353.17 | K200: 534999.1371 | L200: 14479.60383 | M200: 41019.3486 | N200: 3390935.125 | O200: 30647.09906 | P200: 603293.3209 | Q200: =$D200*Q190 -> 2071541.709 | R200: =$D200*R190 -> 1185479.829 | S200: =ROUND(SUM(F200:R200)-E200,0) -> 0
A201: 65 | C201: Total Operating Expenses Adjusted for Taxes | E201: =E194+((E200-E193)*(1/NetToGross))-(E200-E193) -> 665139482.2 | F201: 204342419.3 | G201: 181713865.8 | H201: 60672269.45 | I201: 2894008.775 | J201: 123382823.9 | K201: 6075923.447 | L201: 170145.6934 | M201: 509471.294 | N201: 41680910.87 | O201: 373835.4251 | P201: 7004331.69 | Q201: 22908280.62 | R201: 13411195.91 | S201: =ROUND(SUM(F201:R201)-E201,0) -> 0
A202: 66 | C202: Revenue Credits | E202: =E195 -> -80246335.98 | F202: =F195 -> -27015336.86 | G202: -22518280.39 | H202: =H195 -> -7298252.616 | I202: -249987.7646 | J202: -13371262.45 | K202: -598992.0407 | L202: -18088.37949 | M202: -44972.84936 | N202: -5062738.773 | O202: -49412.71687 | P202: -721277.5513 | Q202: =Q195 -> -1983473.718 | R202: =R195 -> -1314259.868 | S202: =ROUND(SUM(F202:R202)-E202,0) -> 0
A203: 67
A204: 68 | C204: Total Target Revenue Requirements | E204: =SUM(E200:E202) -> 640128425.8 | F204: =SUM(F200:F202) -> 194068046.3 | G204: 174018937.6 | H204: =SUM(H200:H202) -> 58414525.33 | I204: 2878727.711 | J204: 120534914.6 | K204: 6011930.543 | L204: 166536.9177 | M204: 505517.7932 | N204: 40009107.23 | O204: 355069.8073 | P204: 6886347.46 | Q204: =SUM(Q200:Q202) -> 22996348.61 | R204: =SUM(R200:R202) -> 13282415.88 | S204: =ROUND(SUM(F204:R204)-E204,0) -> 0

Sheet Transmission Summary
C1: Transmission Summary
C2: =Inputs!$C$4 -> Rocky Mountain Power
C3: Cost Of Service By Rate Schedule - Transmission Function
C4: =Inputs!$C$5 -> State of Utah
C5: =Inputs!$C$7 -> Monthly Wgt Factors
C6: =Inputs!$C$6 -> 12 Months Ended Dec 2010
C9: A | D9: B | E9: C | F9: D | G9: E | H9: F | I9: G | J9: H | K9: I | L9: J | M9: K | N9: L | O9: M | P9: N | Q9: O | R9: P
E10: ='Hot Sheet'!$H$10 -> Utah | G10: ='Hot Sheet'!$J$10 -> General | H10: ='Hot Sheet'!$K$10 -> General | I10: ='Hot Sheet'!$L$10 -> Street & Area | J10: ='Hot Sheet'!$M$10 -> General | L10: ='Hot Sheet'!$O$10 -> Traffic | M10: ='Hot Sheet'!$P$10 -> Outdoor | N10: ='Hot Sheet'!$Q$10 -> General | O10: ='Hot Sheet'!$R$10 -> Mobile | S10: Chk Total
E11: ='Hot Sheet'!$H$11 -> Jurisdiction | F11: ='Hot Sheet'!$I$11 -> Residential | G11: ='Hot Sheet'!$J$11 -> Large Dist. | H11: ='Hot Sheet'!$K$11 -> +1 MW | I11: ='Hot Sheet'!$L$11 -> Lighting | J11: ='Hot Sheet'!$M$11 -> Trans | K11: ='Hot Sheet'!$N$11 -> Irrigation | L11: ='Hot Sheet'!$O$11 -> Signals | M11: ='Hot Sheet'!$P$11 -> Lighting | N11: ='Hot Sheet'!$Q$11 -> Small Dist. | O11: ='Hot Sheet'!$R$11 -> Home Park | P11: ='Hot Sheet'!S$11 -> Industrial | Q11: ='Hot Sheet'!T$11 -> Industrial | R11: ='Hot Sheet'!U$11 -> Industrial
C12: DESCRIPTION | E12: ='Hot Sheet'!$H$12 -> Normalized | F12: ='Hot Sheet'!$I$12 -> Sch 1 | G12: ='Hot Sheet'!$J$12 -> Sch 6 | H12: ='Hot Sheet'!$K$12 -> Sch 8 | I12: ='Hot Sheet'!$L$12 -> Sch. 7,11,12 | J12: ='Hot Sheet'!$M$12 -> Sch 9 | K12: ='Hot Sheet'!$N$12 -> Sch 10 | L12: ='Hot Sheet'!$O$12 -> Sch 15 | M12: ='Hot Sheet'!$P$12 -> Sch 15 | N12: ='Hot Sheet'!$Q$12 -> Sch 23 | O12: ='Hot Sheet'!$R$12 -> Sch 25 | P12: ='Hot Sheet'!S$12 -> Cust A | Q12: ='Hot Sheet'!T$12 -> Cust B | R12: ='Hot Sheet'!U$12 -> Cust C | S12: =ROUND(SUM(S15:S68),0) -> 0
A14: 14 | C14: Operating Expenses
A15: =A14+1 -> 15 | C15: Operation & Maintenance Expenses | E15: ='Function Summary'!$G15 -> 94576557.91 | F15: =Transmission!$I$17 -> 32669373.61 | G15: =Transmission!J17 -> 26784232.75 | H15: =Transmission!K17 -> 8523095.92 | I15: =Transmission!L17 -> 255167.6949 | J15: =Transmission!M17 -> 15271264.53 | K15: =Transmission!N17 -> 735683.5058 | L15: =Transmission!O17 -> 20614.48497 | M15: =Transmission!P17 -> 43427.78283 | N15: =Transmission!Q17 -> 5994355.572 | O15: =Transmission!R17 -> 59308.40066 | P15: =Transmission!S17 -> 785195.9892 | Q15: =Transmission!T17 -> 2009845.059 | R15: =Transmission!U17 -> 1424992.608 | S15: =ROUND(SUM(F15:R15)-E15,0) -> 0
A16: =A15+1 -> 16 | C16: Depreciation Expense | E16: ='Function Summary'!$G16 -> 39216109.26 | F16: =Transmission!$I$18 -> 13662562.8 | G16: =Transmission!J18 -> 10994098.87 | H16: =Transmission!K18 -> 3487763.851 | I16: =Transmission!L18 -> 92534.95842 | J16: =Transmission!M18 -> 6462269.238 | K16: =Transmission!N18 -> 327785.6755 | L16: =Transmission!O18 -> 8122.152333 | M16: =Transmission!P18 -> 16715.23034 | N16: =Transmission!Q18 -> 2465939.439 | O16: =Transmission!R18 -> 24766.46989 | P16: =Transmission!S18 -> 319148.0377 | Q16: =Transmission!T18 -> 760226.2013 | R16: =Transmission!U18 -> 594176.3375 | S16: 0
A17: 17 | C17: Amortization Expense | E17: ='Function Summary'!$G17 -> 2093888.299 | F17: =Transmission!$I$19 -> 729499.8681 | G17: =Transmission!J19 -> 587019.7117 | H17: =Transmission!K19 -> 186225.9158 | I17: =Transmission!L19 -> 4940.818275 | J17: =Transmission!M19 -> 345028.9002 | K17: =Transmission!N19 -> 17501.81211 | L17: =Transmission!O19 -> 433.6747902 | M17: =Transmission!P19 -> 892.4942202 | N17: =Transmission!Q19 -> 131666.5491 | O17: =Transmission!R19 -> 1322.382688 | P17: =Transmission!S19 -> 17040.5198 | Q17: =Transmission!T19 -> 40591.57287 | R17: =Transmission!U19 -> 31724.07958 | S17: 0
A18: 18 | C18: Taxes Other Than Income | E18: ='Function Summary'!$G18 -> 11041812.49 | F18: =Transmission!$I$20 -> 3856029.705 | G18: =Transmission!J20 -> 3107962.236 | H18: =Transmission!K20 -> 985696.5245 | I18: =Transmission!L20 -> 22658.11165 | J18: =Transmission!M20 -> 1800221.362 | K18: =Transmission!N20 -> 92563.90269 | L18: =Transmission!O20 -> 2159.211584 | M18: =Transmission!P20 -> 4435.479139 | N18: =Transmission!Q20 -> 689703.4236 | O18: =Transmission!R20 -> 7003.843265 | P18: =Transmission!S20 -> 90264.08881 | Q18: =Transmission!T20 -> 215083.7331 | R18: =Transmission!U20 -> 168030.8637 | S18: 0
A19: 19 | C19: Income Taxes - Federal | E19: ='Function Summary'!$G19 -> -19448422.17 | F19: =Transmission!$I$21 -> -7611533.77 | G19: =Transmission!J21 -> -3318032.199 | H19: =Transmission!K21 -> -1782663.144 | I19: =Transmission!L21 -> 66670.46497 | J19: =Transmission!M21 -> -4454878.714 | K19: =Transmission!N21 -> -202378.4414 | L19: =Transmission!O21 -> -5753.785927 | M19: =Transmission!P21 -> 17133.76505 | N19: =Transmission!Q21 -> -480796.2372 | O19: =Transmission!R21 -> -14043.92533 | P19: =Transmission!S21 -> -220633.8308 | Q19: =Transmission!T21 -> -899837.2237 | R19: =Transmission!U21 -> -541675.126 | S19: 0
A20: 20 | C20: Income Taxes - State | E20: ='Function Summary'!$G20 -> -2472950.636 | F20: =Transmission!$I$22 -> -967839.2991 | G20: =Transmission!J22 -> -421902.0837 | H20: =Transmission!K22 -> -226673.2961 | I20: =Transmission!L22 -> 8477.436746 | J20: =Transmission!M22 -> -566457.014 | K20: =Transmission!N22 -> -25733.29039 | L20: =Transmission!O22 -> -731.6186602 | M20: =Transmission!P22 -> 2178.632015 | N20: =Transmission!Q22 -> -61135.31218 | O20: =Transmission!R22 -> -1785.745588 | P20: =Transmission!S22 -> -28054.54178 | Q20: =Transmission!T22 -> -114418.1783 | R20: =Transmission!U22 -> -68876.32507 | S20: 0
A21: 21 | C21: Income Taxes Deferred | E21: ='Function Summary'!$G21 -> 77202868.55 | F21: =Transmission!$I$23 -> 26960841.33 | G21: =Transmission!J23 -> 21730454.15 | H21: =Transmission!K23 -> 6891857.592 | I21: =Transmission!L23 -> 158422.4707 | J21: =Transmission!M23 -> 12586905.76 | K21: =Transmission!N23 -> 647194.3643 | L21: =Transmission!O23 -> 15096.91713 | M21: =Transmission!P23 -> 31012.27388 | N21: =Transmission!Q23 -> 4822313.621 | O21: =Transmission!R23 -> 48969.93058 | P21: =Transmission!S23 -> 631114.3748 | Q21: =Transmission!T23 -> 1503836.548 | R21: =Transmission!U23 -> 1174849.21 | S21: 0
A22: 22 | C22: Investment Tax Credit Adj | E22: ='Function Summary'!$G22 -> -315650.1236 | F22: =Transmission!$I$24 -> -110231.5634 | G22: =Transmission!J24 -> -88846.70569 | H22: =Transmission!K24 -> -28177.91284 | I22: =Transmission!L24 -> -647.722985 | J22: =Transmission!M24 -> -51462.57429 | K22: =Transmission!N24 -> -2646.106096 | L22: =Transmission!O24 -> -61.72495723 | M22: =Transmission!P24 -> -126.7961705 | N22: =Transmission!Q24 -> -19716.41623 | O22: =Transmission!R24 -> -200.217491 | P22: =Transmission!S24 -> -2580.361769 | Q22: =Transmission!T24 -> -6148.556412 | R22: =Transmission!U24 -> -4803.465279 | S22: 0
A23: 23 | C23: Misc Revenues & Expense | E23: ='Function Summary'!$G23 -> -512943.7997 | F23: =Transmission!$I$25 -> -178705.3078 | G23: =Transmission!J25 -> -143801.9976 | H23: =Transmission!K25 -> -45619.69241 | I23: =Transmission!L25 -> -1210.350391 | J23: =Transmission!M25 -> -84526.00218 | K23: =Transmission!N25 -> -4287.412316 | L23: =Transmission!O25 -> -106.2371499 | M23: =Transmission!P25 -> -218.6339728 | N23: =Transmission!Q25 -> -32254.30492 | O23: =Transmission!R25 -> -323.9435886 | P23: =Transmission!S25 -> -4174.432655 | Q23: =Transmission!T25 -> -9943.70231 | R23: =Transmission!U25 -> -7771.782412 | S23: 0
A24: 24
A25: 25 | C25: Total Operating Expenses | E25: =SUM(E15:E23) -> 201381269.8 | F25: =SUM(F15:F23) -> 69009997.38 | G25: 59231184.74 | H25: 17991505.76 | I25: 607013.8823 | J25: 31308365.48 | K25: 1585684.01 | L25: 39773.07412 | M25: 115450.2273 | N25: 13510076.34 | O25: 125017.1951 | P25: 1587319.843 | Q25: =SUM(Q15:Q23) -> 3499235.454 | R25: =SUM(R15:R23) -> 2770646.4 | S25: =ROUND(SUM(F25:R25)-E25,0) -> 0
A26: 26
A27: 27
A28: 28 | C28: Rate Base :
A29: 29 | C29: Electric Plant In Service | E29: ='Function Summary'!$G29 -> 1991369175 | F29: =Transmission!$I$33 -> 693776800.8 | G29: =Transmission!J33 -> 558273792 | H29: =Transmission!K33 -> 177106570.8 | I29: =Transmission!L33 -> 4698870.069 | J29: =Transmission!M33 -> 328148804.3 | K29: =Transmission!N33 -> 16644761.35 | L29: =Transmission!O33 -> 412438.0574 | M29: =Transmission!P33 -> 848789.4403 | N29: =Transmission!Q33 -> 125218935.9 | O29: =Transmission!R33 -> 1257626.588 | P29: =Transmission!S33 -> 16206140.07 | Q29: =Transmission!T33 -> 38603833.66 | R29: =Transmission!U33 -> 30171811.98 | S29: =ROUND(SUM(F29:R29)-E29,0) -> 0
A30: 30 | C30: Plant Held For Future Use | E30: ='Function Summary'!$G30 -> 217988.7924 | F30: =Transmission!$I$34 -> 75945.46277 | G30: =Transmission!J34 -> 61112.39441 | H30: =Transmission!K34 -> 19387.27335 | I30: =Transmission!L34 -> 514.3698398 | J30: =Transmission!M34 -> 35921.52036 | K30: =Transmission!N34 -> 1822.047238 | L30: =Transmission!O34 -> 45.14823658 | M30: =Transmission!P34 -> 92.91418619 | N30: =Transmission!Q34 -> 13707.30474 | O30: =Transmission!R34 -> 137.6682431 | P30: =Transmission!S34 -> 1774.033596 | Q30: =Transmission!T34 -> 4225.834604 | R30: =Transmission!U34 -> 3302.820823 | S30: 0
A31: =A30+1 -> 31 | C31: Electric Plant Acquisition Adj | E31: ='Function Summary'!$G31 -> 0 | F31: =Transmission!$I$35 -> 0 | G31: =Transmission!J35 -> 0 | H31: =Transmission!K35 -> 0 | I31: =Transmission!L35 -> 0 | J31: =Transmission!M35 -> 0 | K31: =Transmission!N35 -> 0 | L31: =Transmission!O35 -> 0 | M31: =Transmission!P35 -> 0 | N31: =Transmission!Q35 -> 0 | O31: =Transmission!R35 -> 0 | P31: =Transmission!S35 -> 0 | Q31: =Transmission!T35 -> 0 | R31: =Transmission!U35 -> 0 | S31: 0
A32: 32 | C32: Nuclear Fuel | E32: ='Function Summary'!$G32 -> 0 | F32: =Transmission!$I$36 -> 0 | G32: =Transmission!J36 -> 0 | H32: =Transmission!K36 -> 0 | I32: =Transmission!L36 -> 0 | J32: =Transmission!M36 -> 0 | K32: =Transmission!N36 -> 0 | L32: =Transmission!O36 -> 0 | M32: =Transmission!P36 -> 0 | N32: =Transmission!Q36 -> 0 | O32: =Transmission!R36 -> 0 | P32: =Transmission!S36 -> 0 | Q32: =Transmission!T36 -> 0 | R32: =Transmission!U36 -> 0 | S32: 0
A33: 33 | C33: Prepayments | E33: ='Function Summary'!$G33 -> 3373494.644 | F33: =Transmission!$I$37 -> 1175297.175 | G33: =Transmission!J37 -> 945747.4071 | H33: =Transmission!K37 -> 300028.5569 | I33: =Transmission!L37 -> 7960.151897 | J33: =Transmission!M37 -> 555904.9857 | K33: =Transmission!N37 -> 28197.16798 | L33: =Transmission!O37 -> 698.6934172 | M33: =Transmission!P37 -> 1437.897361 | N33: =Transmission!Q37 -> 212127.9659 | O33: =Transmission!R37 -> 2130.490634 | P33: =Transmission!S37 -> 27454.13086 | Q33: =Transmission!T37 -> 65397.07957 | R33: =Transmission!U37 -> 51112.94133 | S33: 0
A34: 34 | C34: Fuel Stock | E34: ='Function Summary'!$G34 -> 0 | F34: =Transmission!$I$38 -> 0 | G34: =Transmission!J38 -> 0 | H34: =Transmission!K38 -> 0 | I34: =Transmission!L38 -> 0 | J34: =Transmission!M38 -> 0 | K34: =Transmission!N38 -> 0 | L34: =Transmission!O38 -> 0 | M34: =Transmission!P38 -> 0 | N34: =Transmission!Q38 -> 0 | O34: =Transmission!R38 -> 0 | P34: =Transmission!S38 -> 0 | Q34: =Transmission!T38 -> 0 | R34: =Transmission!U38 -> 0 | S34: 0
A35: 35 | C35: Materials & Supplies | E35: ='Function Summary'!$G35 -> 602211.512 | F35: =Transmission!$I$39 -> 209805.4283 | G35: =Transmission!J39 -> 168827.8881 | H35: =Transmission!K39 -> 53558.89663 | I35: =Transmission!L39 -> 1420.987912 | J35: =Transmission!M39 -> 99236.0793 | K35: =Transmission!N39 -> 5033.551541 | L35: =Transmission!O39 -> 124.7256224 | M35: =Transmission!P39 -> 256.6828869 | N35: =Transmission!Q39 -> 37867.52807 | O35: =Transmission!R39 -> 380.3195563 | P35: =Transmission!S39 -> 4900.910007 | Q35: =Transmission!T39 -> 11674.20682 | R35: =Transmission!U39 -> 9124.307264 | S35: 0
A36: 36 | C36: Misc Deferred Debits | E36: ='Function Summary'!$G36 -> 7618696.269 | F36: =Transmission!$I$40 -> 2654289.734 | G36: =Transmission!J40 -> 2135874.813 | H36: =Transmission!K40 -> 677584.1341 | I36: =Transmission!L40 -> 17977.19753 | J36: =Transmission!M40 -> 1255455.155 | K36: =Transmission!N40 -> 63680.45044 | L36: =Transmission!O40 -> 1577.928378 | M36: =Transmission!P40 -> 3247.345681 | N36: =Transmission!Q40 -> 479069.5446 | O36: =Transmission!R40 -> 4811.497501 | P36: =Transmission!S40 -> 62002.37631 | Q36: =Transmission!T40 -> 147692.6863 | R36: =Transmission!U40 -> 115433.4056 | S36: 0
A37: 37 | C37: Cash Working Capital | E37: ='Function Summary'!$G37 -> 5251371.908 | F37: =Transmission!$I$41 -> 1813969.916 | G37: =Transmission!J41 -> 1487196.939 | H37: =Transmission!K41 -> 473245.6697 | I37: =Transmission!L41 -> 14168.20927 | J37: =Transmission!M41 -> 847938.3405 | K37: =Transmission!N41 -> 40848.89302 | L37: =Transmission!O41 -> 1144.621138 | M37: =Transmission!P41 -> 2411.331559 | N37: =Transmission!Q41 -> 332837.1338 | O37: =Transmission!R41 -> 3293.104296 | P37: =Transmission!S41 -> 43598.07813 | Q37: =Transmission!T41 -> 111596.8282 | R37: =Transmission!U41 -> 79122.84307 | S37: 0
A38: 38 | C38: Weatherization Loans | E38: ='Function Summary'!$G38 -> 0 | F38: =Transmission!$I$42 -> 0 | G38: =Transmission!J42 -> 0 | H38: =Transmission!K42 -> 0 | I38: =Transmission!L42 -> 0 | J38: =Transmission!M42 -> 0 | K38: =Transmission!N42 -> 0 | L38: =Transmission!O42 -> 0 | M38: =Transmission!P42 -> 0 | N38: =Transmission!Q42 -> 0 | O38: =Transmission!R42 -> 0 | P38: =Transmission!S42 -> 0 | Q38: =Transmission!T42 -> 0 | R38: =Transmission!U42 -> 0 | S38: 0
A39: 39 | C39: Miscellaneous Rate Base | E39: ='Function Summary'!$G39 -> 0 | F39: =Transmission!$I$43 -> 0 | G39: =Transmission!J43 -> 0 | H39: =Transmission!K43 -> 0 | I39: =Transmission!L43 -> 0 | J39: =Transmission!M43 -> 0 | K39: =Transmission!N43 -> 0 | L39: =Transmission!O43 -> 0 | M39: =Transmission!P43 -> 0 | N39: =Transmission!Q43 -> 0 | O39: =Transmission!R43 -> 0 | P39: =Transmission!S43 -> 0 | Q39: =Transmission!T43 -> 0 | R39: =Transmission!U43 -> 0 | S39: 0
A40: 40
A41: 41 | C41: Total Rate Base Additions | E41: =SUM(E29:E39) -> 2008432938 | F41: 699706108.5 | G41: 563072551.4 | H41: 178630375.4 | I41: 4740910.986 | J41: 330943260.4 | K41: 16784343.46 | L41: 416029.1742 | M41: 856235.612 | N41: 126294545.3 | O41: 1268379.669 | P41: 16345869.6 | Q41: =SUM(Q29:Q39) -> 38944420.3 | R41: =SUM(R29:R39) -> 30429908.3 | S41: =ROUND(SUM(F41:R41)-E41,0) -> 0
A42: 42
A43: 43 | C43: Rate Base Deductions :
A44: 44 | C44: Accum Provision For Depreciation | E44: ='Function Summary'!$G44 -> -516852971.3 | F44: =Transmission!$I$48 -> -180067230.3 | G44: =Transmission!J48 -> -144897920.2 | H44: =Transmission!K48 -> -45967362.48 | I44: =Transmission!L48 -> -1219574.535 | J44: =Transmission!M48 -> -85170179.29 | K44: =Transmission!N48 -> -4320086.911 | L44: =Transmission!O48 -> -107046.7888 | M44: =Transmission!P48 -> -220300.1938 | N44: =Transmission!Q48 -> -32500116.67 | O44: =Transmission!R48 -> -326412.3798 | P44: =Transmission!S48 -> -4206246.225 | Q44: =Transmission!T48 -> -10019483.79 | R44: =Transmission!U48 -> -7831011.574 | S44: =ROUND(SUM(F44:R44)-E44,0) -> 0
A45: 45 | C45: Accum Provision For Amortization | E45: ='Function Summary'!$G45 -> -25237026.6 | F45: =Transmission!$I$49 -> -8792372.376 | G45: =Transmission!J49 -> -7075115.601 | H45: =Transmission!K49 -> -2244507.051 | I45: =Transmission!L49 -> -59549.72168 | J45: =Transmission!M49 -> -4158701.182 | K45: =Transmission!N49 -> -210942.3949 | L45: =Transmission!O49 -> -5226.910123 | M45: =Transmission!P49 -> -10756.87861 | N45: =Transmission!Q49 -> -1586924.659 | O45: =Transmission!R49 -> -15938.15369 | P45: =Transmission!S49 -> -205383.689 | Q45: =Transmission!T49 -> -489234.1173 | R45: =Transmission!U49 -> -382373.8622 | S45: 0
A46: 46 | C46: Accum Deferred Income Taxes | E46: ='Function Summary'!$G46 -> -239853520.5 | F46: =Transmission!$I$50 -> -83563040.1 | G46: =Transmission!J50 -> -67242166.66 | H46: =Transmission!K50 -> -21331880.03 | I46: =Transmission!L50 -> -565962.8105 | J46: =Transmission!M50 -> -39524327.89 | K46: =Transmission!N50 -> -2004804.512 | L46: =Transmission!O50 -> -49676.75179 | M46: =Transmission!P50 -> -102233.7818 | N46: =Transmission!Q50 -> -15082192.06 | O46: =Transmission!R50 -> -151476.8163 | P46: =Transmission!S50 -> -1951973.705 | Q46: =Transmission!T50 -> -4649699.582 | R46: =Transmission!U50 -> -3634085.776 | S46: 0
A47: =A46+1 -> 47 | C47: Unamortized ITC | E47: ='Function Summary'!$G47 -> -28995.55002 | F47: =Transmission!$I$51 -> -10101.8162 | G47: =Transmission!J51 -> -8128.809194 | H47: =Transmission!K51 -> -2578.780416 | I47: =Transmission!L51 -> -68.41843334 | J47: =Transmission!M51 -> -4778.040806 | K47: =Transmission!N51 -> -242.3579453 | L47: =Transmission!O51 -> -6.005351356 | M47: =Transmission!P51 -> -12.35889541 | N47: =Transmission!Q51 -> -1823.264591 | O47: =Transmission!R51 -> -18.31181532 | P47: =Transmission!S51 -> -235.9713122 | Q47: =Transmission!T51 -> -562.0955211 | R47: =Transmission!U51 -> -439.3195358 | S47: 0
A48: 48 | C48: Customer Advance For Construction | E48: ='Function Summary'!$G48 -> -5367859.744 | F48: =Transmission!$I$52 -> -844690.3094 | G48: =Transmission!J52 -> -148724.2341 | H48: =Transmission!K52 -> -78669.77473 | I48: =Transmission!L52 -> -389184.8807 | J48: =Transmission!M52 -> -2997767.116 | K48: =Transmission!N52 -> -11869.97484 | L48: =Transmission!O52 -> -15257.54703 | M48: =Transmission!P52 -> -32353.15611 | N48: =Transmission!Q52 -> -849342.7509 | O48: =Transmission!R52 -> 0 | P48: =Transmission!S52 -> 0 | Q48: =Transmission!T52 -> 0 | R48: =Transmission!U52 -> 0 | S48: 0
A49: 49 | C49: Customer Service Deposits | E49: ='Function Summary'!$G49 -> 0 | F49: =Transmission!$I$53 -> 0 | G49: =Transmission!J53 -> 0 | H49: =Transmission!K53 -> 0 | I49: =Transmission!L53 -> 0 | J49: =Transmission!M53 -> 0 | K49: =Transmission!N53 -> 0 | L49: =Transmission!O53 -> 0 | M49: =Transmission!P53 -> 0 | N49: =Transmission!Q53 -> 0 | O49: =Transmission!R53 -> 0 | P49: =Transmission!S53 -> 0 | Q49: =Transmission!T53 -> 0 | R49: =Transmission!U53 -> 0 | S49: 0
A50: 50 | C50: Misc Rate Base Deductions | E50: ='Function Summary'!$G50 -> -2773578.678 | F50: =Transmission!$I$54 -> -966440.2941 | G50: =Transmission!J54 -> -777682.8039 | H50: =Transmission!K54 -> -246711.8044 | I50: =Transmission!L54 -> -6545.588389 | J50: =Transmission!M54 -> -456723.5325 | K50: =Transmission!N54 -> -23186.37354 | L50: =Transmission!O54 -> -574.5316895 | M50: =Transmission!P54 -> -1182.374959 | N50: =Transmission!Q54 -> -174431.6401 | O50: =Transmission!R54 -> -1751.890534 | P50: =Transmission!S54 -> -22573.32515 | Q50: =Transmission!T54 -> -53775.6528 | R50: =Transmission!U54 -> -41998.86546 | S50: 0
A51: 51
A52: 52 | C52: Total Rate Base Deductions | E52: =SUM(E44:E50) -> -790113952.4 | F52: -274243875.2 | G52: -220149738.3 | H52: -69871709.92 | I52: -2240885.954 | J52: -132312477.1 | K52: -6571132.524 | L52: -177788.5348 | M52: -366838.7441 | N52: -50194831.05 | O52: -495597.5521 | P52: -6386412.916 | Q52: =SUM(Q44:Q50) -> -15212755.24 | R52: =SUM(R44:R50) -> -11889909.4 | S52: =ROUND(SUM(F52:R52)-E52,0) -> 0
A53: 53
A54: 54 | C54: Total Rate Base | E54: =E41+E52 -> 1218318986 | F54: =F41+F52 -> 425462233.3 | G54: 342922813.1 | H54: 108758665.4 | I54: 2500025.031 | J54: 198630783.3 | K54: 10213210.94 | L54: 238240.6394 | M54: 489396.8679 | N54: 76099714.3 | O54: 772782.1165 | P54: 9959456.681 | Q54: =Q41+Q52 -> 23731665.06 | R54: =R41+R52 -> 18539998.9 | S54: =ROUND(SUM(F54:R54)-E54,0) -> 0
A55: 55
A56: 56
A57: 57 | C57: Return On Rate Base | D57: =ActualROR -> 0.06305604955 | E57: =$D$57*E54 -> 76822382.33 | F57: =$D$57*F54 -> 26827967.66 | G57: 21623357.9 | H57: =$D$57*H54 -> 6857891.798 | I57: 157641.7022 | J57: 12524872.52 | K57: 644004.735 | L57: 15022.51356 | M57: 30859.43315 | N57: 4798547.356 | O57: 48728.58743 | P57: 628003.994 | Q57: =$D$57*Q54 -> 1496425.048 | R57: =$D$57*R54 -> 1169059.09 | S57: =ROUND(SUM(F57:R57)-E57,0) -> 0
A58: 58 | C58: Total Operating Expenses | E58: =E25 -> 201381269.8 | F58: 69009997.38 | G58: 59231184.74 | H58: =H25 -> 17991505.76 | I58: 607013.8823 | J58: 31308365.48 | K58: 1585684.01 | L58: 39773.07412 | M58: 115450.2273 | N58: 13510076.34 | O58: 125017.1951 | P58: 1587319.843 | Q58: =Q25 -> 3499235.454 | R58: =R25 -> 2770646.4 | S58: =ROUND(SUM(F58:R58)-E58,0) -> 0
A59: 59 | C59: Revenue Credits | E59: ='Function Summary'!$G$59 -> -37536295.14 | F59: =Transmission!$I$99 -> -12968082.96 | G59: =Transmission!J99 -> -10594044.48 | H59: =Transmission!K99 -> -3371097.559 | I59: =Transmission!L99 -> -98360.8883 | J59: =Transmission!M99 -> -6064972.588 | K59: =Transmission!N99 -> -319421.9168 | L59: =Transmission!O99 -> -7991.689098 | M59: =Transmission!P99 -> -17809.15691 | N59: =Transmission!Q99 -> -2383816.721 | O59: =Transmission!R99 -> -23528.5565 | P59: =Transmission!S99 -> -316322.6335 | Q59: =Transmission!T99 -> -796335.0643 | R59: =Transmission!U99 -> -574510.9276 | S59: =ROUND(SUM(F59:R59)-E59,0) -> 0
A60: 60
A61: 61 | C61: Total Revenue Requirements | E61: =E57+E58+E59 -> 240667357 | F61: =F57+F58+F59 -> 82869882.08 | G61: 70260498.16 | H61: 21478300 | I61: 666294.6962 | J61: 37768265.41 | K61: 1910266.828 | L61: 46803.89858 | M61: 128500.5036 | N61: 15924806.97 | O61: 150217.226 | P61: 1899001.204 | Q61: =Q57+Q58+Q59 -> 4199325.438 | R61: =R57+R58+R59 -> 3365194.562 | S61: =ROUND(SUM(F61:R61)-E61,0) -> 0
A62: 62 | S62: =ROUND(SUM(F62:R62)-E62,0) -> 0
A63: 63
A64: 64 | C64: Return On Rate Base @ Target ROR | D64: =TargetROR -> 0.06305604955 | E64: =$D64*E54 -> 76822382.33 | F64: =$D64*F54 -> 26827967.66 | G64: 21623357.9 | H64: =$D64*H54 -> 6857891.798 | I64: 157641.7022 | J64: 12524872.52 | K64: 644004.735 | L64: 15022.51356 | M64: 30859.43315 | N64: 4798547.356 | O64: 48728.58743 | P64: 628003.994 | Q64: =$D64*Q54 -> 1496425.048 | R64: =$D64*R54 -> 1169059.09 | S64: =ROUND(SUM(F64:R64)-E64,0) -> 0
A65: 65 | C65: Total Operating Expenses Adjusted for Taxes | E65: =E58+((E64-E57)*(1/NetToGross))-(E64-E57) -> 201381269.8 | F65: 69009997.38 | G65: 59231184.74 | H65: 17991505.76 | I65: 607013.8823 | J65: 31308365.48 | K65: 1585684.01 | L65: 39773.07412 | M65: 115450.2273 | N65: 13510076.34 | O65: 125017.1951 | P65: 1587319.843 | Q65: 3499235.454 | R65: 2770646.4 | S65: =ROUND(SUM(F65:R65)-E65,0) -> 0
A66: 66 | C66: Revenue Credits | E66: =E59 -> -37536295.14 | F66: =F59 -> -12968082.96 | G66: -10594044.48 | H66: -3371097.559 | I66: -98360.8883 | J66: -6064972.588 | K66: -319421.9168 | L66: -7991.689098 | M66: -17809.15691 | N66: -2383816.721 | O66: -23528.5565 | P66: -316322.6335 | Q66: =Q59 -> -796335.0643 | R66: =R59 -> -574510.9276 | S66: =ROUND(SUM(F66:R66)-E66,0) -> 0
A67: 67
A68: 68 | C68: Total Target Revenue Requirements | E68: =SUM(E64:E66) -> 240667357 | F68: =SUM(F64:F66) -> 82869882.08 | G68: 70260498.16 | H68: 21478300 | I68: 666294.6962 | J68: 37768265.41 | K68: 1910266.828 | L68: 46803.89858 | M68: 128500.5036 | N68: 15924806.97 | O68: 150217.226 | P68: 1899001.204 | Q68: =SUM(Q64:Q66) -> 4199325.438 | R68: =SUM(R64:R66) -> 3365194.562 | S68: =ROUND(SUM(F68:R68)-E68,0) -> 0
C69: Transmission Demand Summary
C70: =Inputs!$C$4 -> Rocky Mountain Power
C71: ="Cost Of Service By Rate Schedule - "&C69 -> Cost Of Service By Rate Schedule - Transmission Demand Summary
C72: =Inputs!$C$5 -> State of Utah
C73: =Inputs!$C$7 -> Monthly Wgt Factors
C74: =Inputs!$C$6 -> 12 Months Ended Dec 2010
C77: A | D77: B | E77: C | F77: D | G77: E | H77: F | I77: G | J77: H | K77: I | L77: J | M77: K | N77: L | O77: M | P77: N | Q77: O | R77: P
E78: ='Hot Sheet'!$H$10 -> Utah | G78: ='Hot Sheet'!$J$10 -> General | H78: ='Hot Sheet'!$K$10 -> General | I78: ='Hot Sheet'!$L$10 -> Street & Area | J78: ='Hot Sheet'!$M$10 -> General | L78: ='Hot Sheet'!$O$10 -> Traffic | M78: ='Hot Sheet'!$P$10 -> Outdoor | N78: ='Hot Sheet'!$Q$10 -> General | O78: ='Hot Sheet'!$R$10 -> Mobile | S78: Chk Total
E79: ='Hot Sheet'!$H$11 -> Jurisdiction | F79: ='Hot Sheet'!$I$11 -> Residential | G79: ='Hot Sheet'!$J$11 -> Large Dist. | H79: ='Hot Sheet'!$K$11 -> +1 MW | I79: ='Hot Sheet'!$L$11 -> Lighting | J79: ='Hot Sheet'!$M$11 -> Trans | K79: ='Hot Sheet'!$N$11 -> Irrigation | L79: ='Hot Sheet'!$O$11 -> Signals | M79: ='Hot Sheet'!$P$11 -> Lighting | N79: ='Hot Sheet'!$Q$11 -> Small Dist. | O79: ='Hot Sheet'!$R$11 -> Home Park | P79: ='Hot Sheet'!S$11 -> Industrial | Q79: ='Hot Sheet'!T$11 -> Industrial | R79: ='Hot Sheet'!U$11 -> Industrial
C80: DESCRIPTION | E80: ='Hot Sheet'!$H$12 -> Normalized | F80: ='Hot Sheet'!$I$12 -> Sch 1 | G80: ='Hot Sheet'!$J$12 -> Sch 6 | H80: ='Hot Sheet'!$K$12 -> Sch 8 | I80: ='Hot Sheet'!$L$12 -> Sch. 7,11,12 | J80: ='Hot Sheet'!$M$12 -> Sch 9 | K80: ='Hot Sheet'!$N$12 -> Sch 10 | L80: ='Hot Sheet'!$O$12 -> Sch 15 | M80: ='Hot Sheet'!$P$12 -> Sch 15 | N80: ='Hot Sheet'!$Q$12 -> Sch 23 | O80: ='Hot Sheet'!$R$12 -> Sch 25 | P80: ='Hot Sheet'!S$12 -> Cust A | Q80: ='Hot Sheet'!T$12 -> Cust B | R80: ='Hot Sheet'!U$12 -> Cust C | S80: =ROUND(SUM(S83:S136),0) -> 0
A81: 13
A82: =A81+1 -> 14 | C82: Operating Expenses
A83: =A82+1 -> 15 | C83: Operation & Maintenance Expenses | E83: =SUM(F83:R83) -> 69269125.19 | F83: 23990463.15 | G83: 19639965.35 | H83: 6241319.028 | I83: 184447.1964 | J83: 11140584.6 | K83: 538329.8124 | L83: 15020.91502 | M83: 31358.86137 | N83: 4392496.946 | O83: 43525.58848 | P83: 570950.1484 | Q83: 1446765.232 | R83: 1033898.369 | S83: =ROUND(SUM(F83:R83)-E83,0) -> 0
A84: 16 | C84: Depreciation Expense | E84: =SUM(F84:R84) -> 29412081.95 | F84: 10246922.1 | G84: 8245574.154 | H84: 2615822.888 | I84: 69401.21881 | J84: 4846701.928 | K84: 245839.2566 | L84: 6091.61425 | M84: 12536.42276 | N84: 1849454.58 | O84: 18574.85241 | P84: 239361.0283 | Q84: 570169.6509 | R84: 445632.2531 | S84: 0
A85: 17 | C85: Amortization Expense | E85: 1570416.224 | F85: 547150.0882 | G85: 440272.3038 | H85: 139668.6309 | I85: 3704.638561 | J85: 258754.8509 | K85: 13125.69514 | L85: 325.2283392 | M85: 669.2075693 | N85: 98750.9747 | O85: 991.8299064 | P85: 12778.95302 | Q85: 30434.31574 | R85: 23789.50761 | S85: 0
A86: 18 | C86: Taxes Other Than Income | E86: 8281359.364 | F86: 2892022.279 | G86: 2330971.677 | H86: 739272.3934 | I86: 16993.58374 | J86: 1350166.021 | K86: 69422.92702 | L86: 1619.408688 | M86: 3326.609354 | N86: 517277.5677 | O86: 5252.882448 | P86: 67698.06661 | Q86: 161312.7999 | R86: 126023.1477 | S86: 0
A87: 19 | C87: Income Taxes - Federal | E87: -14336233.74 | F87: -5068532.95 | G87: -2248331.207 | H87: -1358458.728 | I87: -17947.31548 | J87: -3718506.34 | K87: -167611.3819 | L87: -4972.788656 | M87: 1170.492608 | N87: -323162.673 | O87: -9457.872763 | P87: -196873.9576 | Q87: -760020.9847 | R87: -463528.0316 | S87: 0
A88: 20 | C88: Income Taxes - State | E88: -1854712.977 | F88: -725879.4743 | G88: -316426.5628 | H88: -170004.9721 | I88: 6358.077559 | J88: -424842.7605 | K88: -19299.96779 | L88: -548.7139951 | M88: 1633.974012 | N88: -45851.48413 | O88: -1339.309191 | P88: -21040.90634 | Q88: -85813.6337 | R88: -51657.2438 | S88: 0
A89: 21 | C89: Income Taxes Deferred | E89: 57902151.41 | F89: 20220631 | G89: 16297840.62 | H89: 5168893.194 | I89: 118816.853 | J89: 9440179.317 | K89: 485395.7732 | L89: 11322.68785 | M89: 23259.20541 | N89: 3616735.216 | O89: 36727.44793 | P89: 473335.7811 | Q89: 1127877.411 | R89: 881136.9078 | S89: 0
A90: 22 | C90: Investment Tax Credit Adj | E90: -236737.5927 | F90: -82673.67256 | G90: -66635.02927 | H90: -21133.43463 | I90: -485.7922388 | J90: -38596.93072 | K90: -1984.579572 | L90: -46.29371792 | M90: -95.09712789 | N90: -14787.31217 | O90: -150.1631183 | P90: -1935.271326 | Q90: -4611.417309 | R90: -3602.598959 | S90: 0
A91: 23 | C91: Misc Revenues & Expense | E91: -384707.8497 | F91: -134028.9808 | G91: -107851.4982 | H91: -34214.76931 | I91: -907.7627931 | J91: -63394.50164 | K91: -3215.559237 | L91: -79.67786244 | M91: -163.9754796 | N91: -24190.72869 | O91: -242.9576915 | P91: -3130.824491 | Q91: -7457.776732 | R91: -5828.836809 | S91: 0
A92: 24
A93: 25 | C93: Total Operating Expenses | E93: =SUM(E83:E91) -> 149622742 | F93: =SUM(F83:F91) -> 51886073.54 | G93: 44215379.8 | H93: 13321164.23 | I93: 380380.6976 | J93: 22791046.19 | K93: 1160001.976 | L93: 28732.37991 | M93: 73695.70048 | N93: 10066723.09 | O93: 93882.29842 | P93: 1141143.018 | Q93: =SUM(Q83:Q91) -> 2478655.597 | R93: =SUM(R83:R91) -> 1985863.474 | S93: =ROUND(SUM(F93:R93)-E93,0) -> 0
A94: 26
A95: 27
A96: 28 | C96: Rate Base :
A97: 29 | C97: Electric Plant In Service | E97: =SUM(F97:R97) -> 1493526881 | F97: 540693437.4 | G97: 424784401.8 | H97: 132178454.7 | I97: 2735862.887 | J97: 232511145.1 | K97: 11946851.79 | L97: 286893.1752 | M97: 504748.3699 | N97: 94773410.01 | O97: 977892.0125 | P97: 10993097.82 | Q97: 21383256.87 | R97: 19757429.25 | S97: =ROUND(SUM(F97:R97)-E97,0) -> 0
A98: 30 | C98: Plant Held For Future Use | E98: 163491.5943 | F98: 56959.09708 | G98: 45834.29581 | H98: 14540.45501 | I98: 385.7773799 | J98: 26941.14027 | K98: 1366.535428 | L98: 33.86117743 | M98: 69.68563964 | N98: 10280.47856 | O98: 103.2511823 | P98: 1330.525197 | Q98: 3169.375953 | R98: 2477.115618 | S98: 0
A99: 31 | C99: Electric Plant Acquisition Adj | E99: 0 | F99: 0 | G99: 0 | H99: 0 | I99: 0 | J99: 0 | K99: 0 | L99: 0 | M99: 0 | N99: 0 | O99: 0 | P99: 0 | Q99: 0 | R99: 0 | S99: 0
A100: 32 | C100: Nuclear Fuel | E100: 0 | F100: 0 | G100: 0 | H100: 0 | I100: 0 | J100: 0 | K100: 0 | L100: 0 | M100: 0 | N100: 0 | O100: 0 | P100: 0 | Q100: 0 | R100: 0 | S100: 0
A101: 33 | C101: Prepayments | E101: 2530120.983 | F101: 881472.8811 | G101: 709310.5554 | H101: 225021.4177 | I101: 5970.113923 | J101: 416928.7393 | K101: 21147.87598 | L101: 524.0200629 | M101: 1078.423021 | N101: 159095.9745 | O101: 1597.867976 | P101: 20590.59815 | Q101: 49047.80968 | R101: 38334.706 | S101: 0
A102: 34 | C102: Fuel Stock | E102: 0 | F102: 0 | G102: 0 | H102: 0 | I102: 0 | J102: 0 | K102: 0 | L102: 0 | M102: 0 | N102: 0 | O102: 0 | P102: 0 | Q102: 0 | R102: 0 | S102: 0
A103: 35 | C103: Materials & Supplies | E103: 451658.634 | F103: 157354.0713 | G103: 126620.916 | H103: 40169.17247 | I103: 1065.740934 | J103: 74427.05947 | K103: 3775.163656 | L103: 93.54421682 | M103: 192.5121652 | N103: 28400.64605 | O103: 285.2396673 | P103: 3675.682505 | Q103: 8755.655113 | R103: 6843.230448 | S103: 0
A104: 36 | C104: Misc Deferred Debits | E104: 5714022.202 | F104: 1990717.301 | G104: 1601906.11 | H104: 508188.1006 | I104: 13482.89814 | J104: 941591.3661 | K104: 47760.33783 | L104: 1183.446283 | M104: 2435.509261 | N104: 359302.1584 | O104: 3608.623125 | P104: 46501.78223 | Q104: 110769.5147 | R104: 86575.05418 | S104: 0
A105: 37 | C105: Cash Working Capital | E105: 3938528.931 | F105: 1360477.437 | G105: 1115397.704 | H105: 354934.2523 | I105: 10626.15695 | J105: 635953.7554 | K105: 30636.66976 | L105: 858.4658532 | M105: 1808.498669 | N105: 249627.8504 | O105: 2469.828222 | P105: 32698.55859 | Q105: 83697.62115 | R105: 59342.1323 | S105: 0
A106: 38 | C106: Weatherization Loans | E106: 0 | F106: 0 | G106: 0 | H106: 0 | I106: 0 | J106: 0 | K106: 0 | L106: 0 | M106: 0 | N106: 0 | O106: 0 | P106: 0 | Q106: 0 | R106: 0 | S106: 0
A107: 39 | C107: Miscellaneous Rate Base | E107: 0 | F107: 0 | G107: 0 | H107: 0 | I107: 0 | J107: 0 | K107: 0 | L107: 0 | M107: 0 | N107: 0 | O107: 0 | P107: 0 | Q107: 0 | R107: 0 | S107: 0
A108: 40
A109: 41 | C109: Total Rate Base Additions | E109: =SUM(E97:E107) -> 1506324704 | F109: =SUM(F97:F107) -> 545140418.2 | G109: 428383471.4 | H109: 133321308.1 | I109: 2767393.574 | J109: 234606987.2 | K109: 12051538.37 | L109: 289586.5128 | M109: 510332.9986 | N109: 95580117.12 | O109: 985956.8227 | P109: 11097894.97 | Q109: =SUM(Q97:Q107) -> 21638696.85 | R109: =SUM(R97:R107) -> 19951001.49 | S109: =ROUND(SUM(F109:R109)-E109,0) -> 0
A110: 42
A111: 43 | C111: Rate Base Deductions :
A112: 44 | C112: Accum Provision For Depreciation | E112: =SUM(F112:R112) -> -387639728.5 | F112: -135050422.8 | G112: -108673440.1 | H112: -34475521.86 | I112: -914680.9011 | J112: -63877634.47 | K112: -3240065.183 | L112: -80285.09162 | M112: -165225.1453 | N112: -24375087.5 | O112: -244809.2848 | P112: -3154684.669 | Q112: -7514612.841 | R112: -5873258.681 | S112: =ROUND(SUM(F112:R112)-E112,0) -> 0
A113: 45 | C113: Accum Provision For Amortization | E113: -18927769.95 | F113: -6594279.282 | G113: -5306336.701 | H113: -1683380.288 | I113: -44662.29126 | J113: -3119025.887 | K113: -158206.7962 | L113: -3920.182592 | M113: -8067.658958 | N113: -1190193.494 | O113: -11953.61527 | P113: -154037.7667 | Q113: -366925.588 | R113: -286780.3966 | S113: 0
A114: 46 | C114: Accum Deferred Income Taxes | E114: -179890140.4 | F114: -62672280.08 | G114: -50431625 | H114: -15998910.02 | I114: -424472.1079 | J114: -29643245.92 | K114: -1503603.384 | L114: -37257.56384 | M114: -76675.33632 | N114: -11311644.05 | O114: -113607.6123 | P114: -1463980.279 | Q114: -3487274.686 | R114: -2725564.332 | S114: 0
A115: 47 | C115: Unamortized ITC | E115: -21746.66252 | F115: -7576.362152 | G115: -6096.606896 | H115: -1934.085312 | I115: -51.31382501 | J115: -3583.530604 | K115: -181.7684589 | L115: -4.504013517 | M115: -9.26917156 | N115: -1367.448444 | O115: -13.73386149 | P115: -176.9784841 | Q115: -421.5716408 | R115: -329.4896519 | S115: 0
A116: 48 | C116: Customer Advance For Construction | E116: -4025894.808 | F116: -633517.7321 | G116: -111543.1756 | H116: -59002.33105 | I116: -291888.6605 | J116: -2248325.337 | K116: -8902.481128 | L116: -11443.16027 | M116: -24264.86708 | N116: -637007.0632 | O116: 0 | P116: 0 | Q116: 0 | R116: 0 | S116: 0
A117: 49 | C117: Customer Service Deposits | E117: 0 | F117: 0 | G117: 0 | H117: 0 | I117: 0 | J117: 0 | K117: 0 | L117: 0 | M117: 0 | N117: 0 | O117: 0 | P117: 0 | Q117: 0 | R117: 0 | S117: 0
A118: 50 | C118: Misc Rate Base Deductions | E118: -2076669.315 | F118: -724157.9586 | G118: -582441.6474 | H118: -184703.5977 | I118: -4879.517931 | J118: -341594.6045 | K118: -17345.84586 | L118: -429.5623364 | M118: -881.7072661 | N118: -130626.0269 | O118: -1312.638615 | P118: -16869.88817 | Q118: -40058.30171 | R118: -31368.01774 | S118: 0
A119: 51
A120: 52 | C120: Total Rate Base Deductions | E120: =SUM(E112:E118) -> -592581949.6 | F120: =SUM(F112:F118) -> -205682234.2 | G120: -165111483.2 | H120: -52403452.19 | I120: -1680634.792 | J120: -99233409.75 | K120: -4928305.458 | L120: -133340.0647 | M120: -275123.9841 | N120: -37645925.58 | O120: -371696.8848 | P120: -4789749.581 | Q120: =SUM(Q112:Q118) -> -11409292.99 | R120: =SUM(R112:R118) -> -8917300.917 | S120: =ROUND(SUM(F120:R120)-E120,0) -> 0
A121: 53
A122: 54 | C122: Total Rate Base | E122: =E109+E120 -> 913742754 | F122: =F109+F120 -> 339458184.1 | G122: 263271988.1 | H122: 80917855.89 | I122: 1086758.782 | J122: 135373577.4 | K122: 7123232.916 | L122: 156246.4481 | M122: 235209.0145 | N122: 57934191.54 | O122: 614259.9378 | P122: 6308145.387 | Q122: =Q109+Q120 -> 10229403.86 | R122: =R109+R120 -> 11033700.57 | S122: =ROUND(SUM(F122:R122)-E122,0) -> 0
A123: 55
A124: 56
A125: 57 | C125: Return On Rate Base | D125: =ActualROR -> 0.06305604955 | E125: =$D$57*E122 -> 57617008.37 | F125: =$D$57*F122 -> 21404892.07 | G125: 16600891.53 | H125: =$D$57*H122 -> 5102360.331 | I125: 68526.7156 | J125: 8536123.007 | K125: 449162.9277 | L125: 9852.283772 | M125: 14831.35127 | N125: 3653101.252 | O125: 38732.80508 | P125: 397766.7281 | Q125: =$D$57*Q122 -> 645025.7966 | R125: =$D$57*R122 -> 695741.5699 | S125: =ROUND(SUM(F125:R125)-E125,0) -> 0
A126: 58 | C126: Total Operating Expenses | E126: =E93 -> 149622742 | F126: =F93 -> 51886073.54 | G126: 44215379.8 | H126: =H93 -> 13321164.23 | I126: 380380.6976 | J126: 22791046.19 | K126: 1160001.976 | L126: 28732.37991 | M126: 73695.70048 | N126: 10066723.09 | O126: 93882.29842 | P126: 1141143.018 | Q126: =Q93 -> 2478655.597 | R126: =R93 -> 1985863.474 | S126: =ROUND(SUM(F126:R126)-E126,0) -> 0
A127: 59 | C127: Revenue Credits | E127: =SUM(F127:R127) -> -23799707.2 | F127: -8660801.726 | G127: -6841659.573 | H127: -2123750.295 | I127: -45321.00651 | J127: -3556125.5 | K127: -191343.6596 | L127: -4596.169976 | M127: -8419.326597 | N127: -1528236.468 | O127: -15665.22583 | P127: -175922.5435 | Q127: -344499.7664 | R127: -303365.9447 | S127: =ROUND(SUM(F127:R127)-E127,0) -> 0
A128: 60
A129: 61 | C129: Total Revenue Requirements | E129: =E125+E126+E127 -> 183440043.1 | F129: =F125+F126+F127 -> 64630163.88 | G129: 53974611.75 | H129: 16299774.27 | I129: 403586.4067 | J129: 27771043.69 | K129: 1417821.244 | L129: 33988.49371 | M129: 80107.72516 | N129: 12191587.87 | O129: 116949.8777 | P129: 1362987.202 | Q129: =Q125+Q126+Q127 -> 2779181.628 | R129: =R125+R126+R127 -> 2378239.099 | S129: =ROUND(SUM(F129:R129)-E129,0) -> 0
A130: 62 | S130: =ROUND(SUM(F130:R130)-E130,0) -> 0
A131: 63
A132: 64 | C132: Return On Rate Base @ Target ROR | D132: =TargetROR -> 0.06305604955 | E132: =$D132*E122 -> 57617008.37 | F132: =$D132*F122 -> 21404892.07 | G132: 16600891.53 | H132: =$D132*H122 -> 5102360.331 | I132: 68526.7156 | J132: 8536123.007 | K132: 449162.9277 | L132: 9852.283772 | M132: 14831.35127 | N132: 3653101.252 | O132: 38732.80508 | P132: 397766.7281 | Q132: =$D132*Q122 -> 645025.7966 | R132: =$D132*R122 -> 695741.5699 | S132: =ROUND(SUM(F132:R132)-E132,0) -> 0
A133: 65 | C133: Total Operating Expenses Adjusted for Taxes | E133: =E126+((E132-E125)*(1/NetToGross))-(E132-E125) -> 149622742 | F133: 51886073.54 | G133: 44215379.8 | H133: 13321164.23 | I133: 380380.6976 | J133: 22791046.19 | K133: 1160001.976 | L133: 28732.37991 | M133: 73695.70048 | N133: 10066723.09 | O133: 93882.29842 | P133: 1141143.018 | Q133: 2478655.597 | R133: 1985863.474 | S133: =ROUND(SUM(F133:R133)-E133,0) -> 0
A134: 66 | C134: Revenue Credits | E134: =E127 -> -23799707.2 | F134: =F127 -> -8660801.726 | G134: -6841659.573 | H134: =H127 -> -2123750.295 | I134: -45321.00651 | J134: -3556125.5 | K134: -191343.6596 | L134: -4596.169976 | M134: -8419.326597 | N134: -1528236.468 | O134: -15665.22583 | P134: -175922.5435 | Q134: =Q127 -> -344499.7664 | R134: =R127 -> -303365.9447 | S134: =ROUND(SUM(F134:R134)-E134,0) -> 0
A135: 67
A136: 68 | C136: Total Target Revenue Requirements | E136: =SUM(E132:E134) -> 183440043.1 | F136: =SUM(F132:F134) -> 64630163.88 | G136: 53974611.75 | H136: =SUM(H132:H134) -> 16299774.27 | I136: 403586.4067 | J136: 27771043.69 | K136: 1417821.244 | L136: 33988.49371 | M136: 80107.72516 | N136: 12191587.87 | O136: 116949.8777 | P136: 1362987.202 | Q136: =SUM(Q132:Q134) -> 2779181.628 | R136: =SUM(R132:R134) -> 2378239.099 | S136: =ROUND(SUM(F136:R136)-E136,0) -> 0
C137: Transmission Energy Summary
C138: =Inputs!$C$4 -> Rocky Mountain Power
C139: ="Cost Of Service By Rate Schedule - "&C137 -> Cost Of Service By Rate Schedule - Transmission Energy Summary
C140: =Inputs!$C$5 -> State of Utah
C141: =Inputs!$C$7 -> Monthly Wgt Factors
C142: =Inputs!$C$6 -> 12 Months Ended Dec 2010
C145: A | D145: B | E145: C | F145: D | G145: E | H145: F | I145: G | J145: H | K145: I | L145: J | M145: K | N145: L | O145: M | P145: N | Q145: O | R145: P | S145: Q
E146: ='Hot Sheet'!$H$10 -> Utah | G146: ='Hot Sheet'!$J$10 -> General | H146: ='Hot Sheet'!$K$10 -> General | I146: ='Hot Sheet'!$L$10 -> Street & Area | J146: ='Hot Sheet'!$M$10 -> General | L146: ='Hot Sheet'!$O$10 -> Traffic | M146: ='Hot Sheet'!$P$10 -> Outdoor | N146: ='Hot Sheet'!$Q$10 -> General | O146: ='Hot Sheet'!$R$10 -> Mobile | S146: Chk Total
E147: ='Hot Sheet'!$H$11 -> Jurisdiction | F147: ='Hot Sheet'!$I$11 -> Residential | G147: ='Hot Sheet'!$J$11 -> Large Dist. | H147: ='Hot Sheet'!$K$11 -> +1 MW | I147: ='Hot Sheet'!$L$11 -> Lighting | J147: ='Hot Sheet'!$M$11 -> Trans | K147: ='Hot Sheet'!$N$11 -> Irrigation | L147: ='Hot Sheet'!$O$11 -> Signals | M147: ='Hot Sheet'!$P$11 -> Lighting | N147: ='Hot Sheet'!$Q$11 -> Small Dist. | O147: ='Hot Sheet'!$R$11 -> Home Park | P147: ='Hot Sheet'!S$11 -> Industrial | Q147: ='Hot Sheet'!T$11 -> Industrial | R147: ='Hot Sheet'!U$11 -> Industrial
C148: DESCRIPTION | E148: ='Hot Sheet'!$H$12 -> Normalized | F148: ='Hot Sheet'!$I$12 -> Sch 1 | G148: ='Hot Sheet'!$J$12 -> Sch 6 | H148: ='Hot Sheet'!$K$12 -> Sch 8 | I148: ='Hot Sheet'!$L$12 -> Sch. 7,11,12 | J148: ='Hot Sheet'!$M$12 -> Sch 9 | K148: ='Hot Sheet'!$N$12 -> Sch 10 | L148: ='Hot Sheet'!$O$12 -> Sch 15 | M148: ='Hot Sheet'!$P$12 -> Sch 15 | N148: ='Hot Sheet'!$Q$12 -> Sch 23 | O148: ='Hot Sheet'!$R$12 -> Sch 25 | P148: ='Hot Sheet'!S$12 -> Cust A | Q148: ='Hot Sheet'!T$12 -> Cust B | R148: ='Hot Sheet'!U$12 -> Cust C | S148: =ROUND(SUM(S151:S204),0) -> 0
A149: 13
A150: =A149+1 -> 14 | C150: Operating Expenses
A151: =A150+1 -> 15 | C151: Operation & Maintenance Expenses | E151: =SUM(F151:R151) -> 25307432.72 | F151: 8678910.464 | G151: 7144267.402 | H151: 2281776.892 | I151: 70720.49844 | J151: 4130679.929 | K151: 197353.6934 | L151: 5593.569954 | M151: 12068.92146 | N151: 1601858.627 | O151: 15782.81218 | P151: 214245.8408 | Q151: 563079.8271 | R151: 391094.2385 | S151: =ROUND(SUM(F151:R151)-E151,0) -> 0
A152: 16 | C152: Depreciation Expense | E152: 9804027.316 | F152: 3415640.7 | G152: 2748524.718 | H152: 871940.9628 | I152: 23133.7396 | J152: 1615567.309 | K152: 81946.41886 | L152: 2030.538083 | M152: 4178.807586 | N152: 616484.8598 | O152: 6191.617471 | P152: 79787.00942 | Q152: 190056.5503 | R152: 148544.0844 | S152: 0
A153: 17 | C153: Amortization Expense | E153: 523472.0748 | F153: 182349.7799 | G153: 146747.4079 | H153: 46557.28484 | I153: 1236.179714 | J153: 86274.04936 | K153: 4376.116969 | L153: 108.446451 | M153: 223.2866508 | N153: 32915.5744 | O153: 330.5527812 | P153: 4261.566781 | Q153: 10157.25713 | R153: 7934.571964 | S153: 0
A154: 18 | C154: Taxes Other Than Income | E154: 2760453.121 | F154: 964007.4263 | G154: 776990.5591 | H154: 246424.1311 | I154: 5664.527912 | J154: 450055.3404 | K154: 23140.97567 | L154: 539.8028959 | M154: 1108.869785 | N154: 172425.8559 | O154: 1750.960816 | P154: 22566.0222 | Q154: 53770.93328 | R154: 42007.71592 | S154: 0
A155: 19 | C155: Income Taxes - Federal | E155: -5112188.429 | F155: -2543000.82 | G155: -1069700.992 | H155: -424204.4161 | I155: 84617.78044 | J155: -736372.3734 | K155: -34767.05952 | L155: -780.9972712 | M155: 15963.27244 | N155: -157633.5642 | O155: -4586.052566 | P155: -23759.87318 | Q155: -139816.239 | R155: -78147.09435 | S155: 0
A156: 20 | C156: Income Taxes - State | E156: -618237.659 | F156: -241959.8248 | G156: -105475.5209 | H156: -56668.32402 | I156: 2119.359186 | J156: -141614.2535 | K156: -6433.322598 | L156: -182.904665 | M156: 544.6580039 | N156: -15283.82804 | O156: -446.436397 | P156: -7013.635445 | Q156: -28604.54457 | R156: -17219.08127 | S156: 0
A157: 21 | C157: Income Taxes Deferred | E157: 19300717.14 | F157: 6740210.333 | G157: 5432613.538 | H157: 1722964.398 | I157: 39605.61768 | J157: 3146726.439 | K157: 161798.5911 | L157: 3774.229283 | M157: 7753.06847 | N157: 1205578.405 | O157: 12242.48264 | P157: 157778.5937 | Q157: 375959.1371 | R157: 293712.3026 | S157: 0
A158: 22 | C158: Investment Tax Credit Adj | E158: -78912.53091 | F158: -27557.89085 | G158: -22211.67642 | H158: -7044.478211 | I158: -161.9307463 | J158: -12865.64357 | K158: -661.526524 | L158: -15.43123931 | M158: -31.69904263 | N158: -4929.104058 | O158: -50.05437276 | P158: -645.0904421 | Q158: -1537.139103 | R158: -1200.86632 | S158: 0
A159: 23 | C159: Misc Revenues & Expense | E159: -128235.9499 | F159: -44676.32695 | G159: -35950.49939 | H159: -11404.9231 | I159: -302.5875977 | J159: -21131.50055 | K159: -1071.853079 | L159: -26.55928748 | M159: -54.6584932 | N159: -8063.576229 | O159: -80.98589716 | P159: -1043.608164 | Q159: -2485.925577 | R159: -1942.945603 | S159: 0
A160: 24
A161: 25 | C161: Total Operating Expenses | E161: =SUM(E151:E159) -> 51758527.8 | F161: =SUM(F151:F159) -> 17123923.84 | G161: 15015804.94 | H161: 4670341.528 | I161: 226633.1846 | J161: 8517319.296 | K161: 425682.0342 | L161: 11040.6942 | M161: 41754.52686 | N161: 3443353.25 | O161: 31134.89666 | P161: 446176.8257 | Q161: =SUM(Q151:Q159) -> 1020579.857 | R161: =SUM(R151:R159) -> 784782.9258 | S161: =ROUND(SUM(F161:R161)-E161,0) -> 0
A162: 26
A163: 27
A164: 28 | C164: Rate Base :
A165: 29 | C165: Electric Plant In Service | E165: =SUM(F165:R165) -> 497842293.7 | F165: 153083363.4 | G165: 133489390.2 | H165: 44928116.15 | I165: 1963007.182 | J165: 95637659.17 | K165: 4697909.559 | L165: 125544.8823 | M165: 344041.0705 | N165: 30445525.86 | O165: 279734.5759 | P165: 5213042.246 | Q165: 17220576.79 | R165: 10414382.74 | S165: =ROUND(SUM(F165:R165)-E165,0) -> 0
A166: 30 | C166: Plant Held For Future Use | E166: 54497.1981 | F166: 18986.36569 | G166: 15278.0986 | H166: 4846.818338 | I166: 128.59246 | J166: 8980.38009 | K166: 455.5118094 | L166: 11.28705914 | M166: 23.22854655 | N166: 3426.826186 | O166: 34.41706077 | P166: 443.508399 | Q166: 1056.458651 | R166: 825.7052058 | S166: 0
A167: 31 | C167: Electric Plant Acquisition Adj | E167: 0 | F167: 0 | G167: 0 | H167: 0 | I167: 0 | J167: 0 | K167: 0 | L167: 0 | M167: 0 | N167: 0 | O167: 0 | P167: 0 | Q167: 0 | R167: 0 | S167: 0
A168: 32 | C168: Nuclear Fuel | E168: 0 | F168: 0 | G168: 0 | H168: 0 | I168: 0 | J168: 0 | K168: 0 | L168: 0 | M168: 0 | N168: 0 | O168: 0 | P168: 0 | Q168: 0 | R168: 0 | S168: 0
A169: 33 | C169: Prepayments | E169: 843373.6609 | F169: 293824.2937 | G169: 236436.8518 | H169: 75007.13923 | I169: 1990.037974 | J169: 138976.2464 | K169: 7049.291995 | L169: 174.6733543 | M169: 359.4743404 | N169: 53031.99148 | O169: 532.6226586 | P169: 6863.532715 | Q169: 16349.26989 | R169: 12778.23533 | S169: 0
A170: 34 | C170: Fuel Stock | E170: 0 | F170: 0 | G170: 0 | H170: 0 | I170: 0 | J170: 0 | K170: 0 | L170: 0 | M170: 0 | N170: 0 | O170: 0 | P170: 0 | Q170: 0 | R170: 0 | S170: 0
A171: 35 | C171: Materials & Supplies | E171: 150552.878 | F171: 52451.35709 | G171: 42206.97201 | H171: 13389.72416 | I171: 355.246978 | J171: 24809.01982 | K171: 1258.387885 | L171: 31.18140561 | M171: 64.17072173 | N171: 9466.882017 | O171: 95.07988909 | P171: 1225.227502 | Q171: 2918.551704 | R171: 2281.076816 | S171: 0
A172: 36 | C172: Misc Deferred Debits | E172: 1904674.067 | F172: 663572.4335 | G172: 533968.7033 | H172: 169396.0335 | I172: 4494.299381 | J172: 313863.7887 | K172: 15920.11261 | L172: 394.4820944 | M172: 811.8364204 | N172: 119767.3861 | O172: 1202.874375 | P172: 15500.59408 | Q172: 36923.17157 | R172: 28858.35139 | S172: 0
A173: 37 | C173: Cash Working Capital | E173: 1312842.977 | F173: 453492.4791 | G173: 371799.2348 | H173: 118311.4174 | I173: 3542.052318 | J173: 211984.5851 | K173: 10212.22325 | L173: 286.1552844 | M173: 602.8328897 | N173: 83209.28346 | O173: 823.2760741 | P173: 10899.51953 | Q173: 27899.20705 | R173: 19780.71077 | S173: 0
A174: 38 | C174: Weatherization Loans | E174: 0 | F174: 0 | G174: 0 | H174: 0 | I174: 0 | J174: 0 | K174: 0 | L174: 0 | M174: 0 | N174: 0 | O174: 0 | P174: 0 | Q174: 0 | R174: 0 | S174: 0
A175: 39 | C175: Miscellaneous Rate Base | E175: 0 | F175: 0 | G175: 0 | H175: 0 | I175: 0 | J175: 0 | K175: 0 | L175: 0 | M175: 0 | N175: 0 | O175: 0 | P175: 0 | Q175: 0 | R175: 0 | S175: 0
A176: 40
A177: 41 | C177: Total Rate Base Additions | E177: =SUM(E165:E175) -> 502108234.5 | F177: =SUM(F165:F175) -> 154565690.3 | G177: 134689080 | H177: 45309067.29 | I177: 1973517.411 | J177: 96336273.19 | K177: 4732805.087 | L177: 126442.6615 | M177: 345902.6134 | N177: 30714428.23 | O177: 282422.8459 | P177: 5247974.628 | Q177: =SUM(Q165:Q175) -> 17305723.45 | R177: =SUM(R165:R175) -> 10478906.82 | S177: =ROUND(SUM(F177:R177)-E177,0) -> 0
A178: 42
A179: 43 | C179: Rate Base Deductions :
A180: 44 | C180: Accum Provision For Depreciation | E180: =SUM(F180:R180) -> -129213242.8 | F180: -45016807.58 | G180: -36224480.04 | H180: -11491840.62 | I180: -304893.6337 | J180: -21292544.82 | K180: -1080021.728 | L180: -26761.69721 | M180: -55075.04845 | N180: -8125029.167 | O180: -81603.09494 | P180: -1051561.556 | Q180: -2504870.947 | R180: -1957752.894 | S180: =ROUND(SUM(F180:R180)-E180,0) -> 0
A181: 45 | C181: Accum Provision For Amortization | E181: -6309256.649 | F181: -2198093.094 | G181: -1768778.9 | H181: -561126.7627 | I181: -14887.43042 | J181: -1039675.296 | K181: -52735.59874 | L181: -1306.727531 | M181: -2689.219653 | N181: -396731.1647 | O181: -3984.538422 | P181: -51345.92225 | Q181: -122308.5293 | R181: -95593.46554 | S181: 0
A182: 46 | C182: Accum Deferred Income Taxes | E182: -59963380.12 | F182: -20890760.03 | G182: -16810541.67 | H182: -5332970.007 | I182: -141490.7026 | J182: -9881081.974 | K182: -501201.1279 | L182: -12419.18795 | M182: -25558.44544 | N182: -3770548.016 | O182: -37869.20409 | P182: -487993.4262 | Q182: -1162424.895 | R182: -908521.4441 | S182: 0
A183: 47 | C183: Unamortized ITC | E183: -7248.887505 | F183: -2525.454051 | G183: -2032.202299 | H183: -644.695104 | I183: -17.10460834 | J183: -1194.510201 | K183: -60.58948631 | L183: -1.501337839 | M183: -3.089723853 | N183: -455.8161479 | O183: -4.577953829 | P183: -58.99282804 | Q183: -140.5238803 | R183: -109.829884 | S183: 0
A184: 48 | C184: Customer Advance For Construction | E184: -1341964.936 | F184: -211172.5774 | G184: -37181.05854 | H184: -19667.44368 | I184: -97296.22018 | J184: -749441.7791 | K184: -2967.493709 | L184: -3814.386757 | M184: -8088.289026 | N184: -212335.6877 | O184: 0 | P184: 0 | Q184: 0 | R184: 0 | S184: 0
A185: 49 | C185: Customer Service Deposits | E185: 0 | F185: 0 | G185: 0 | H185: 0 | I185: 0 | J185: 0 | K185: 0 | L185: 0 | M185: 0 | N185: 0 | O185: 0 | P185: 0 | Q185: 0 | R185: 0 | S185: 0
A186: 50 | C186: Misc Rate Base Deductions | E186: -696909.3628 | F186: -242282.3355 | G186: -195241.1564 | H186: -62008.20676 | I186: -1666.070458 | J186: -115128.9281 | K186: -5840.527682 | L186: -144.9693531 | M186: -300.6676928 | N186: -43805.61319 | O186: -439.2519188 | P186: -5703.43698 | Q186: -13717.35108 | R186: -10630.84772 | S186: 0
A187: 51
A188: 52 | C188: Total Rate Base Deductions | E188: =SUM(E180:E186) -> -197532002.8 | F188: =SUM(F180:F186) -> -68561641.07 | G188: -55038255.02 | H188: -17468257.74 | I188: -560251.162 | J188: -33079067.31 | K188: -1642827.065 | L188: -44448.47013 | M188: -91714.75998 | N188: -12548905.47 | O188: -123900.6673 | P188: -1596663.335 | Q188: =SUM(Q180:Q186) -> -3803462.247 | R188: =SUM(R180:R186) -> -2972608.481 | S188: =ROUND(SUM(F188:R188)-E188,0) -> 0
A189: 53
A190: 54 | C190: Total Rate Base | E190: =E177+E188 -> 304576231.7 | F190: =F177+F188 -> 86004049.21 | G190: 79650825 | H190: 27840809.55 | I190: 1413266.249 | J190: 63257205.88 | K190: 3089978.022 | L190: 81994.19132 | M190: 254187.8534 | N190: 18165522.76 | O190: 158522.1786 | P190: 3651311.294 | Q190: =Q177+Q188 -> 13502261.2 | R190: =R177+R188 -> 7506298.335 | S190: =ROUND(SUM(F190:R190)-E190,0) -> 0
A191: 55
A192: 56
A193: 57 | C193: Return On Rate Base | D193: =ActualROR -> 0.06305604955 | E193: =$D$57*E190 -> 19205373.96 | F193: =$D$57*F190 -> 5423075.589 | G193: 5022466.368 | H193: =$D$57*H190 -> 1755531.466 | I193: 89114.98664 | J193: 3988749.508 | K193: 194841.8073 | L193: 5170.229791 | M193: 16028.08188 | N193: 1145446.103 | O193: 9995.782351 | P193: 230237.2659 | Q193: =$D$57*Q190 -> 851399.2516 | R193: =$D$57*R190 -> 473317.5198 | S193: =ROUND(SUM(F193:R193)-E193,0) -> 0
A194: 58 | C194: Total Operating Expenses | E194: =E161 -> 51758527.8 | F194: =F161 -> 17123923.84 | G194: 15015804.94 | H194: =H161 -> 4670341.528 | I194: 226633.1846 | J194: 8517319.296 | K194: 425682.0342 | L194: 11040.6942 | M194: 41754.52686 | N194: 3443353.25 | O194: 31134.89666 | P194: 446176.8257 | Q194: =Q161 -> 1020579.857 | R194: =R161 -> 784782.9258 | S194: =ROUND(SUM(F194:R194)-E194,0) -> 0
A195: 59 | C195: Revenue Credits | E195: =SUM(F195:R195) -> -13736587.93 | F195: -4307281.237 | G195: -3752384.902 | H195: -1247347.264 | I195: -53039.88179 | J195: -2508847.088 | K195: -128078.2572 | L195: -3395.519122 | M195: -9389.830313 | N195: -855580.2528 | O195: -7863.330677 | P195: -140400.0901 | Q195: -451835.2979 | R195: -271144.9829 | S195: =ROUND(SUM(F195:R195)-E195,0) -> 0
A196: 60
A197: 61 | C197: Total Revenue Requirements | E197: =E193+E194+E195 -> 57227313.82 | F197: =F193+F194+F195 -> 18239718.19 | G197: 16285886.4 | H197: 5178525.73 | I197: 262708.2895 | J197: 9997221.716 | K197: 492445.5843 | L197: 12815.40487 | M197: 48392.77843 | N197: 3733219.1 | O197: 33267.34834 | P197: 536014.0015 | Q197: =Q193+Q194+Q195 -> 1420143.81 | R197: =R193+R194+R195 -> 986955.4627 | S197: =ROUND(SUM(F197:R197)-E197,0) -> 0
A198: 62 | S198: =ROUND(SUM(F198:R198)-E198,0) -> 0
A199: 63
A200: 64 | C200: Return On Rate Base @ Target ROR | D200: =TargetROR -> 0.06305604955 | E200: =$D200*E190 -> 19205373.96 | F200: =$D200*F190 -> 5423075.589 | G200: 5022466.368 | H200: =$D200*H190 -> 1755531.466 | I200: 89114.98664 | J200: 3988749.508 | K200: 194841.8073 | L200: 5170.229791 | M200: 16028.08188 | N200: 1145446.103 | O200: 9995.782351 | P200: 230237.2659 | Q200: =$D200*Q190 -> 851399.2516 | R200: =$D200*R190 -> 473317.5198 | S200: =ROUND(SUM(F200:R200)-E200,0) -> 0
A201: 65 | C201: Total Operating Expenses Adjusted for Taxes | E201: =E194+((E200-E193)*(1/NetToGross))-(E200-E193) -> 51758527.8 | F201: 17123923.84 | G201: 15015804.94 | H201: 4670341.528 | I201: 226633.1846 | J201: 8517319.296 | K201: 425682.0342 | L201: 11040.6942 | M201: 41754.52686 | N201: 3443353.25 | O201: 31134.89666 | P201: 446176.8257 | Q201: 1020579.857 | R201: 784782.9258 | S201: =ROUND(SUM(F201:R201)-E201,0) -> 0
A202: 66 | C202: Revenue Credits | E202: =E195 -> -13736587.93 | F202: =F195 -> -4307281.237 | G202: -3752384.902 | H202: =H195 -> -1247347.264 | I202: -53039.88179 | J202: -2508847.088 | K202: -128078.2572 | L202: -3395.519122 | M202: -9389.830313 | N202: -855580.2528 | O202: -7863.330677 | P202: -140400.0901 | Q202: =Q195 -> -451835.2979 | R202: =R195 -> -271144.9829 | S202: =ROUND(SUM(F202:R202)-E202,0) -> 0
A203: 67
A204: 68 | C204: Total Target Revenue Requirements | E204: =SUM(E200:E202) -> 57227313.82 | F204: =SUM(F200:F202) -> 18239718.19 | G204: 16285886.4 | H204: 5178525.73 | I204: 262708.2895 | J204: 9997221.716 | K204: 492445.5843 | L204: 12815.40487 | M204: 48392.77843 | N204: 3733219.1 | O204: 33267.34834 | P204: 536014.0015 | Q204: =SUM(Q200:Q202) -> 1420143.81 | R204: =SUM(R200:R202) -> 986955.4627 | S204: =ROUND(SUM(F204:R204)-E204,0) -> 0

Sheet Distribution Summary
C1: Distribution Summary
C2: =Inputs!$C$4 -> Rocky Mountain Power
C3: Cost Of Service By Rate Schedule - Distribution Function
C4: =Inputs!$C$5 -> State of Utah
C5: =Inputs!$C$7 -> Monthly Wgt Factors
C6: =Inputs!$C$6 -> 12 Months Ended Dec 2010
C9: A | D9: B | E9: C | F9: D | G9: E | H9: F | I9: G | J9: H | K9: I | L9: J | M9: K | N9: L | O9: M | P9: N | Q9: O | R9: P
E10: ='Hot Sheet'!$H$10 -> Utah | G10: ='Hot Sheet'!$J$10 -> General | H10: ='Hot Sheet'!$K$10 -> General | I10: ='Hot Sheet'!$L$10 -> Street & Area | J10: ='Hot Sheet'!$M$10 -> General | L10: ='Hot Sheet'!$O$10 -> Traffic | M10: ='Hot Sheet'!$P$10 -> Outdoor | N10: ='Hot Sheet'!$Q$10 -> General | O10: ='Hot Sheet'!$R$10 -> Mobile | S10: Chk Total
E11: ='Hot Sheet'!$H$11 -> Jurisdiction | F11: ='Hot Sheet'!$I$11 -> Residential | G11: ='Hot Sheet'!$J$11 -> Large Dist. | H11: ='Hot Sheet'!$K$11 -> +1 MW | I11: ='Hot Sheet'!$L$11 -> Lighting | J11: ='Hot Sheet'!$M$11 -> Trans | K11: ='Hot Sheet'!$N$11 -> Irrigation | L11: ='Hot Sheet'!$O$11 -> Signals | M11: ='Hot Sheet'!$P$11 -> Lighting | N11: ='Hot Sheet'!$Q$11 -> Small Dist. | O11: ='Hot Sheet'!$R$11 -> Home Park | P11: ='Hot Sheet'!S$11 -> Industrial | Q11: ='Hot Sheet'!T$11 -> Industrial | R11: ='Hot Sheet'!U$11 -> Industrial
C12: DESCRIPTION | E12: ='Hot Sheet'!$H$12 -> Normalized | F12: ='Hot Sheet'!$I$12 -> Sch 1 | G12: ='Hot Sheet'!$J$12 -> Sch 6 | H12: ='Hot Sheet'!$K$12 -> Sch 8 | I12: ='Hot Sheet'!$L$12 -> Sch. 7,11,12 | J12: ='Hot Sheet'!$M$12 -> Sch 9 | K12: ='Hot Sheet'!$N$12 -> Sch 10 | L12: ='Hot Sheet'!$O$12 -> Sch 15 | M12: ='Hot Sheet'!$P$12 -> Sch 15 | N12: ='Hot Sheet'!$Q$12 -> Sch 23 | O12: ='Hot Sheet'!$R$12 -> Sch 25 | P12: ='Hot Sheet'!S$12 -> Cust A | Q12: ='Hot Sheet'!T$12 -> Cust B | R12: ='Hot Sheet'!U$12 -> Cust C | S12: =ROUND(SUM(S15:S68),0) -> 0
A14: 14 | C14: Operating Expenses
A15: =A14+1 -> 15 | C15: Operation & Maintenance Expenses | E15: ='Function Summary'!$H15 -> 109580169.4 | F15: =Distribution!$I$17 -> 62341838.81 | G15: =Distribution!J17 -> 25494585.95 | H15: =Distribution!K17 -> 7094055.326 | I15: =Distribution!L17 -> 3348316.509 | J15: =Distribution!M17 -> 764352.6642 | K15: =Distribution!N17 -> 821338.3167 | L15: =Distribution!O17 -> 57560.292 | M15: =Distribution!P17 -> 21581.58868 | N15: =Distribution!Q17 -> 9348479.687 | O15: =Distribution!R17 -> 66849.61977 | P15: =Distribution!S17 -> 47249.02149 | Q15: =Distribution!T17 -> 101592.3179 | R15: =Distribution!U17 -> 72369.30703 | S15: =ROUND(SUM(F15:R15)-E15,0) -> 0
A16: =A15+1 -> 16 | C16: Depreciation Expense | E16: ='Function Summary'!$H16 -> 62514801.87 | F16: =Distribution!$I$18 -> 36235394.71 | G16: =Distribution!J18 -> 14483311.95 | H16: =Distribution!K18 -> 4004011.387 | I16: =Distribution!L18 -> 1714838.383 | J16: =Distribution!M18 -> 109565.5556 | K16: =Distribution!N18 -> 615642.1668 | L16: =Distribution!O18 -> 26610.26249 | M16: =Distribution!P18 -> 14651.25675 | N16: =Distribution!Q18 -> 5240453.157 | O16: =Distribution!R18 -> 44608.98767 | P16: =Distribution!S18 -> 8571.351832 | Q16: =Distribution!T18 -> 8571.351832 | R16: =Distribution!U18 -> 8571.351832 | S16: 0
A17: 17 | C17: Amortization Expense | E17: ='Function Summary'!$H17 -> 1898189.174 | F17: =Distribution!$I$19 -> 1118800.714 | G17: =Distribution!J19 -> 439725.8016 | H17: =Distribution!K19 -> 120796.9001 | I17: =Distribution!L19 -> 32233.57189 | J17: =Distribution!M19 -> 2562.912699 | K17: =Distribution!N19 -> 19360.32155 | L17: =Distribution!O19 -> 900.9624666 | M17: =Distribution!P19 -> 488.4297034 | N17: =Distribution!Q19 -> 161332.3727 | O17: =Distribution!R19 -> 1383.73293 | P17: =Distribution!S19 -> 198.9182326 | Q17: =Distribution!T19 -> 203.1855505 | R17: =Distribution!U19 -> 201.350444 | S17: 0
A18: 18 | C18: Taxes Other Than Income | E18: ='Function Summary'!$H18 -> 14042718.35 | F18: =Distribution!$I$20 -> 8334010.056 | G18: =Distribution!J20 -> 3269715.402 | H18: =Distribution!K20 -> 895554.8989 | I18: =Distribution!L20 -> 170179.8469 | J18: =Distribution!M20 -> 3309.589724 | K18: =Distribution!N20 -> 148179.3034 | L18: =Distribution!O20 -> 6799.681617 | M18: =Distribution!P20 -> 3632.010685 | N18: =Distribution!Q20 -> 1196679.335 | O18: =Distribution!R20 -> 10457.05198 | P18: =Distribution!S20 -> 1402.477584 | Q18: =Distribution!T20 -> 1400.576695 | R18: =Distribution!U20 -> 1398.12114 | S18: 0
A19: 19 | C19: Income Taxes - Federal | E19: ='Function Summary'!$H19 -> -27722404.99 | F19: =Distribution!$I$21 -> -18242302.92 | G19: =Distribution!J21 -> -4842381.537 | H19: =Distribution!K21 -> -2009753.341 | I19: =Distribution!L21 -> -944218.7668 | J19: =Distribution!M21 -> -163875.7566 | K19: =Distribution!N21 -> -308936.9643 | L19: =Distribution!O21 -> -11667.3644 | M19: =Distribution!P21 -> 15549.77261 | N19: =Distribution!Q21 -> -1162181.92 | O19: =Distribution!R21 -> -21989.51276 | P19: =Distribution!S21 -> -8474.938712 | Q19: =Distribution!T21 -> -11954.7085 | R19: =Distribution!U21 -> -10217.02794 | S19: 0
A20: 20 | C20: Income Taxes - State | E20: ='Function Summary'!$H20 -> -3814565.068 | F20: =Distribution!$I$22 -> -2510115.97 | G20: =Distribution!J22 -> -666305.0866 | H20: =Distribution!K22 -> -276539.3152 | I20: =Distribution!L22 -> -129923.2128 | J20: =Distribution!M22 -> -22549.08031 | K20: =Distribution!N22 -> -42509.3044 | L20: =Distribution!O22 -> -1605.413408 | M20: =Distribution!P22 -> 2139.627476 | N20: =Distribution!Q22 -> -159914.645 | O20: =Distribution!R22 -> -3025.726926 | P20: =Distribution!S22 -> -1166.139993 | Q20: =Distribution!T22 -> -1644.951564 | R20: =Distribution!U22 -> -1405.849091 | S20: 0
A21: 21 | C21: Income Taxes Deferred | E21: ='Function Summary'!$H21 -> 61906684.88 | F21: =Distribution!$I$23 -> 36740104.12 | G21: =Distribution!J23 -> 14414391.57 | H21: =Distribution!K23 -> 3948013.023 | I21: =Distribution!L23 -> 750230.1118 | J21: =Distribution!M23 -> 14590.1757 | K21: =Distribution!N23 -> 653241.7166 | L21: =Distribution!O23 -> 29976.08701 | M21: =Distribution!P23 -> 16011.55384 | N21: =Distribution!Q23 -> 5275506.396 | O21: =Distribution!R23 -> 46099.43783 | P21: =Distribution!S23 -> 6182.758613 | Q21: =Distribution!T23 -> 6174.378633 | R21: =Distribution!U23 -> 6163.55343 | S21: 0
A22: 22 | C22: Investment Tax Credit Adj | E22: ='Function Summary'!$H22 -> -452601.4098 | F22: =Distribution!$I$24 -> -268607.8725 | G22: =Distribution!J24 -> -105383.9978 | H22: =Distribution!K24 -> -28864.02758 | I22: =Distribution!L24 -> -5484.952181 | J22: =Distribution!M24 -> -106.6691603 | K22: =Distribution!N24 -> -4775.86746 | L22: =Distribution!O24 -> -219.1559646 | M22: =Distribution!P24 -> -117.0608934 | N22: =Distribution!Q24 -> -38569.36673 | O22: =Distribution!R24 -> -337.0342087 | P22: =Distribution!S24 -> -45.20231167 | Q22: =Distribution!T24 -> -45.14104541 | R22: =Distribution!U24 -> -45.06190207 | S22: 0
A23: 23 | C23: Misc Revenues & Expense | E23: ='Function Summary'!$H23 -> -1178243.778 | F23: =Distribution!$I$25 -> -694517.2411 | G23: =Distribution!J25 -> -272934.6601 | H23: =Distribution!K25 -> -74974.97365 | I23: =Distribution!L25 -> -20011.41683 | J23: =Distribution!M25 -> -1554.339619 | K23: =Distribution!N25 -> -12017.74831 | L23: =Distribution!O25 -> -559.3071613 | M23: =Distribution!P25 -> -303.1378721 | N23: =Distribution!Q25 -> -100147.2321 | O23: =Distribution!R25 -> -858.9319613 | P23: =Distribution!S25 -> -121.5965335 | Q23: =Distribution!T25 -> -121.5965335 | R23: =Distribution!U25 -> -121.5965335 | S23: 0
A24: 24
A25: 25 | C25: Total Operating Expenses | E25: =SUM(E15:E23) -> 216774748.4 | F25: =SUM(F15:F23) -> 123054604.4 | G25: 52214725.39 | H25: 13672299.88 | I25: 4916160.075 | J25: 706295.0522 | K25: 1889521.941 | L25: 107796.0446 | M25: 73634.04098 | N25: 19761637.78 | O25: 143187.6243 | P25: 53796.65021 | Q25: 104175.4129 | R25: 76914.14842 | S25: =ROUND(SUM(F25:R25)-E25,0) -> 0
A26: 26
A27: 27
A28: 28 | C28: Rate Base :
A29: 29 | C29: Electric Plant In Service | E29: ='Function Summary'!$H29 -> 2516577457 | F29: =Distribution!$I$33 -> 1483399671 | G29: =Distribution!J33 -> 582953396.7 | H29: =Distribution!K33 -> 160136919 | I29: =Distribution!L33 -> 42741817.44 | J29: =Distribution!M33 -> 3319869.894 | K29: =Distribution!N33 -> 25668367.65 | L29: =Distribution!O33 -> 1194608.297 | M29: =Distribution!P33 -> 647463.5805 | N29: =Distribution!Q33 -> 213901631.7 | O29: =Distribution!R33 -> 1834568.407 | P29: =Distribution!S33 -> 259714.5859 | Q29: =Distribution!T33 -> 259714.5859 | R29: =Distribution!U33 -> 259714.5859 | S29: =ROUND(SUM(F29:R29)-E29,0) -> 0
A30: 30 | C30: Plant Held For Future Use | E30: ='Function Summary'!$H30 -> 2776807.775 | F30: =Distribution!$I$34 -> 1379457.009 | G30: =Distribution!J34 -> 896225.4512 | H30: =Distribution!K34 -> 259568.6115 | I30: =Distribution!L34 -> 1993.941906 | J30: =Distribution!M34 -> 0 | K30: =Distribution!N34 -> 26089.48027 | L30: =Distribution!O34 -> 490.5007965 | M30: =Distribution!P34 -> 381.9648755 | N30: =Distribution!Q34 -> 210214.3595 | O30: =Distribution!R34 -> 2386.456405 | P30: =Distribution!S34 -> 0 | Q30: =Distribution!T34 -> 0 | R30: =Distribution!U34 -> 0 | S30: 0
A31: =A30+1 -> 31 | C31: Electric Plant Acquisition Adj | E31: ='Function Summary'!$H31 -> 0 | F31: =Distribution!$I$35 -> 0 | G31: =Distribution!J35 -> 0 | H31: =Distribution!K35 -> 0 | I31: =Distribution!L35 -> 0 | J31: =Distribution!M35 -> 0 | K31: =Distribution!N35 -> 0 | L31: =Distribution!O35 -> 0 | M31: =Distribution!P35 -> 0 | N31: =Distribution!Q35 -> 0 | O31: =Distribution!R35 -> 0 | P31: =Distribution!S35 -> 0 | Q31: =Distribution!T35 -> 0 | R31: =Distribution!U35 -> 0 | S31: 0
A32: 32 | C32: Nuclear Fuel | E32: ='Function Summary'!$H32 -> 0 | F32: =Distribution!$I$36 -> 0 | G32: =Distribution!J36 -> 0 | H32: =Distribution!K36 -> 0 | I32: =Distribution!L36 -> 0 | J32: =Distribution!M36 -> 0 | K32: =Distribution!N36 -> 0 | L32: =Distribution!O36 -> 0 | M32: =Distribution!P36 -> 0 | N32: =Distribution!Q36 -> 0 | O32: =Distribution!R36 -> 0 | P32: =Distribution!S36 -> 0 | Q32: =Distribution!T36 -> 0 | R32: =Distribution!U36 -> 0 | S32: 0
A33: 33 | C33: Prepayments | E33: ='Function Summary'!$H33 -> 3690822.033 | F33: =Distribution!$I$37 -> 2175559.577 | G33: =Distribution!J37 -> 854961.6603 | H33: =Distribution!K37 -> 234857.4122 | I33: =Distribution!L37 -> 62685.31139 | J33: =Distribution!M37 -> 4868.933764 | K33: =Distribution!N37 -> 37645.32524 | L33: =Distribution!O37 -> 1752.017055 | M33: =Distribution!P37 -> 949.5725402 | N33: =Distribution!Q37 -> 313708.9434 | O33: =Distribution!R37 -> 2690.584976 | P33: =Distribution!S37 -> 380.8983956 | Q33: =Distribution!T37 -> 380.8983956 | R33: =Distribution!U37 -> 380.8983956 | S33: 0
A34: 34 | C34: Fuel Stock | E34: ='Function Summary'!$H34 -> 0 | F34: =Distribution!$I$38 -> 0 | G34: =Distribution!J38 -> 0 | H34: =Distribution!K38 -> 0 | I34: =Distribution!L38 -> 0 | J34: =Distribution!M38 -> 0 | K34: =Distribution!N38 -> 0 | L34: =Distribution!O38 -> 0 | M34: =Distribution!P38 -> 0 | N34: =Distribution!Q38 -> 0 | O34: =Distribution!R38 -> 0 | P34: =Distribution!S38 -> 0 | Q34: =Distribution!T38 -> 0 | R34: =Distribution!U38 -> 0 | S34: 0
A35: 35 | C35: Materials & Supplies | E35: ='Function Summary'!$H35 -> 11586607.17 | F35: =Distribution!$I$39 -> 6829739.817 | G35: =Distribution!J39 -> 2683983.355 | H35: =Distribution!K39 -> 737288.4825 | I35: =Distribution!L39 -> 196788.1605 | J35: =Distribution!M39 -> 15285.05638 | K35: =Distribution!N39 -> 118180.0671 | L35: =Distribution!O39 -> 5500.111679 | M35: =Distribution!P39 -> 2980.995536 | N35: =Distribution!Q39 -> 984827.2988 | O35: =Distribution!R39 -> 8446.560386 | P35: =Distribution!S39 -> 1195.75532 | Q35: =Distribution!T39 -> 1195.75532 | R35: =Distribution!U39 -> 1195.75532 | S35: 0
A36: 36 | C36: Misc Deferred Debits | E36: ='Function Summary'!$H36 -> 306532.8228 | F36: =Distribution!$I$40 -> 180686.1486 | G36: =Distribution!J40 -> 71006.8946 | H36: =Distribution!K40 -> 19505.54778 | I36: =Distribution!L40 -> 5206.185852 | J36: =Distribution!M40 -> 404.3782109 | K36: =Distribution!N40 -> 3126.546798 | L36: =Distribution!O40 -> 145.5097885 | M36: =Distribution!P40 -> 78.86458588 | N36: =Distribution!Q40 -> 26054.38222 | O36: =Distribution!R40 -> 223.4604108 | P36: =Distribution!S40 -> 31.63464924 | Q36: =Distribution!T40 -> 31.63464924 | R36: =Distribution!U40 -> 31.63464924 | S36: 0
A37: 37 | C37: Cash Working Capital | E37: ='Function Summary'!$H37 -> 6369036.179 | F37: =Distribution!$I$41 -> 3623442.352 | G37: =Distribution!J41 -> 1481800.413 | H37: =Distribution!K41 -> 412321.8213 | I37: =Distribution!L41 -> 194611.3891 | J37: =Distribution!M41 -> 44425.82812 | K37: =Distribution!N41 -> 47737.95736 | L37: =Distribution!O41 -> 3345.528522 | M37: =Distribution!P41 -> 1254.368558 | N37: =Distribution!Q41 -> 543353.8355 | O37: =Distribution!R41 -> 3885.44432 | P37: =Distribution!S41 -> 2746.215204 | Q37: =Distribution!T41 -> 5904.764992 | R37: =Distribution!U41 -> 4206.260469 | S37: 0
A38: 38 | C38: Weatherization Loans | E38: ='Function Summary'!$H38 -> 0 | F38: =Distribution!$I$42 -> 0 | G38: =Distribution!J42 -> 0 | H38: =Distribution!K42 -> 0 | I38: =Distribution!L42 -> 0 | J38: =Distribution!M42 -> 0 | K38: =Distribution!N42 -> 0 | L38: =Distribution!O42 -> 0 | M38: =Distribution!P42 -> 0 | N38: =Distribution!Q42 -> 0 | O38: =Distribution!R42 -> 0 | P38: =Distribution!S42 -> 0 | Q38: =Distribution!T42 -> 0 | R38: =Distribution!U42 -> 0 | S38: 0
A39: 39 | C39: Miscellaneous Rate Base | E39: ='Function Summary'!$H39 -> 0 | F39: =Distribution!$I$43 -> 0 | G39: =Distribution!J43 -> 0 | H39: =Distribution!K43 -> 0 | I39: =Distribution!L43 -> 0 | J39: =Distribution!M43 -> 0 | K39: =Distribution!N43 -> 0 | L39: =Distribution!O43 -> 0 | M39: =Distribution!P43 -> 0 | N39: =Distribution!Q43 -> 0 | O39: =Distribution!R43 -> 0 | P39: =Distribution!S43 -> 0 | Q39: =Distribution!T43 -> 0 | R39: =Distribution!U43 -> 0 | S39: 0
A40: 40
A41: 41 | C41: Total Rate Base Additions | E41: =SUM(E29:E39) -> 2541307263 | F41: 1497588555 | G41: 588941374.5 | H41: 161800460.9 | I41: 43203102.43 | J41: 3384854.09 | K41: 25901147.02 | L41: 1205841.965 | M41: 653109.3466 | N41: 215979790.5 | O41: 1852200.913 | P41: 264069.0895 | Q41: 267227.6393 | R41: 265529.1347 | S41: =ROUND(SUM(F41:R41)-E41,0) -> 0
A42: 42
A43: 43 | C43: Rate Base Deductions :
A44: 44 | C44: Accum Provision For Depreciation | E44: ='Function Summary'!$H44 -> -747949250.5 | F44: =Distribution!$I$48 -> -434839668.3 | G44: =Distribution!J48 -> -172117912.7 | H44: =Distribution!K48 -> -47605280.22 | I44: =Distribution!L48 -> -21120996.33 | J44: =Distribution!M48 -> -1056593.81 | K44: =Distribution!N48 -> -7013988.194 | L44: =Distribution!O48 -> -330069.6017 | M44: =Distribution!P48 -> -170325.4241 | N44: =Distribution!Q48 -> -62926746.36 | O44: =Distribution!R48 -> -519696.4409 | P44: =Distribution!S48 -> -82657.70428 | Q44: =Distribution!T48 -> -82657.70428 | R44: =Distribution!U48 -> -82657.70428 | S44: =ROUND(SUM(F44:R44)-E44,0) -> 0
A45: 45 | C45: Accum Provision For Amortization | E45: ='Function Summary'!$H45 -> -32724727.95 | F45: =Distribution!$I$49 -> -19289631.05 | G45: =Distribution!J49 -> -7580530.162 | H45: =Distribution!K49 -> -2082366.706 | I45: =Distribution!L49 -> -555800.2374 | J45: =Distribution!M49 -> -43170.47298 | K45: =Distribution!N49 -> -333782.8311 | L45: =Distribution!O49 -> -15534.28504 | M45: =Distribution!P49 -> -8419.398923 | N45: =Distribution!Q49 -> -2781504.97 | O45: =Distribution!R49 -> -23856.11134 | P45: =Distribution!S49 -> -3377.241239 | Q45: =Distribution!T49 -> -3377.241239 | R45: =Distribution!U49 -> -3377.241239 | S45: 0
A46: 46 | C46: Accum Deferred Income Taxes | E46: ='Function Summary'!$H46 -> -294024707 | F46: =Distribution!$I$50 -> -174331459.4 | G46: =Distribution!J50 -> -68302552.89 | H46: =Distribution!K50 -> -18707858.78 | I46: =Distribution!L50 -> -3573164.456 | J46: =Distribution!M50 -> -376328.5914 | K46: =Distribution!N50 -> -3102262.571 | L46: =Distribution!O50 -> -143815.3856 | M46: =Distribution!P50 -> -79367.91317 | N46: =Distribution!Q50 -> -25100942.24 | O46: =Distribution!R50 -> -218633.747 | P46: =Distribution!S50 -> -29440.31766 | Q46: =Distribution!T50 -> -29440.31766 | R46: =Distribution!U50 -> -29440.31766 | S46: 0
A47: =A46+1 -> 47 | C47: Unamortized ITC | E47: ='Function Summary'!$H47 -> -41575.86465 | F47: =Distribution!$I$51 -> -24651.60429 | G47: =Distribution!J51 -> -9658.182951 | H47: =Distribution!K51 -> -2645.322188 | I47: =Distribution!L51 -> -504.5190978 | J47: =Distribution!M51 -> -53.17277804 | K47: =Distribution!N51 -> -438.7885933 | L47: =Distribution!O51 -> -20.33413314 | M47: =Distribution!P51 -> -11.22607787 | N47: =Distribution!Q51 -> -3549.314808 | O47: =Distribution!R51 -> -30.92055583 | P47: =Distribution!S51 -> -4.159725071 | Q47: =Distribution!T51 -> -4.159725071 | R47: =Distribution!U51 -> -4.159725071 | S47: 0
A48: 48 | C48: Customer Advance For Construction | E48: ='Function Summary'!$H48 -> -2709015.905 | F48: =Distribution!$I$52 -> -426292.7111 | G48: =Distribution!J52 -> -75057.16151 | H48: =Distribution!K52 -> -39702.54089 | I48: =Distribution!L52 -> -196411.2481 | J48: =Distribution!M52 -> -1512893.254 | K48: =Distribution!N52 -> -5990.460287 | L48: =Distribution!O52 -> -7700.077785 | M48: =Distribution!P52 -> -16327.77655 | N48: =Distribution!Q52 -> -428640.6744 | O48: =Distribution!R52 -> 0 | P48: =Distribution!S52 -> 0 | Q48: =Distribution!T52 -> 0 | R48: =Distribution!U52 -> 0 | S48: 0
A49: 49 | C49: Customer Service Deposits | E49: ='Function Summary'!$H49 -> 0 | F49: =Distribution!$I$53 -> 0 | G49: =Distribution!J53 -> 0 | H49: =Distribution!K53 -> 0 | I49: =Distribution!L53 -> 0 | J49: =Distribution!M53 -> 0 | K49: =Distribution!N53 -> 0 | L49: =Distribution!O53 -> 0 | M49: =Distribution!P53 -> 0 | N49: =Distribution!Q53 -> 0 | O49: =Distribution!R53 -> 0 | P49: =Distribution!S53 -> 0 | Q49: =Distribution!T53 -> 0 | R49: =Distribution!U53 -> 0 | S49: 0
A50: 50 | C50: Misc Rate Base Deductions | E50: ='Function Summary'!$H50 -> -4200618.768 | F50: =Distribution!$I$54 -> -2405887.502 | G50: =Distribution!J54 -> -988121.0395 | H50: =Distribution!K54 -> -274981.9054 | I50: =Distribution!L54 -> -67038.89809 | J50: =Distribution!M54 -> -51802.54647 | K50: =Distribution!N54 -> -42323.5776 | L50: =Distribution!O54 -> -1915.666005 | M50: =Distribution!P54 -> -1131.617388 | N50: =Distribution!Q54 -> -350680.6133 | O50: =Distribution!R54 -> -3035.100034 | P50: =Distribution!S54 -> -2810.43165 | Q50: =Distribution!T54 -> -6166.567532 | R50: =Distribution!U54 -> -4723.3034 | S50: 0
A51: 51
A52: 52 | C52: Total Rate Base Deductions | E52: =SUM(E44:E50) -> -1081649896 | F52: -631317590.6 | G52: -249073832.1 | H52: -68712835.48 | I52: -25513915.69 | J52: -3040841.848 | K52: -10498786.42 | L52: -499055.3502 | M52: -275583.3562 | N52: -91592064.17 | O52: -765252.3198 | P52: -118289.8546 | Q52: -121645.9904 | R52: -120202.7263 | S52: =ROUND(SUM(F52:R52)-E52,0) -> 0
A53: 53
A54: 54 | C54: Total Rate Base | E54: =E41+E52 -> 1459657367 | F54: =F41+F52 -> 866270964.8 | G54: 339867542.4 | H54: =H41+H52 -> 93087625.43 | I54: 17689186.75 | J54: 344012.2419 | K54: 15402360.6 | L54: 706786.6148 | M54: 377525.9904 | N54: 124387726.3 | O54: 1086948.593 | P54: 145779.2349 | Q54: =Q41+Q52 -> 145581.6488 | R54: =R41+R52 -> 145326.4084 | S54: =ROUND(SUM(F54:R54)-E54,0) -> 0
A55: 55 | E55: =+E56-E59 -> 13856725.53 | F55: =+F56-F59 -> 5051310.136 | G55: 5044992.119 | H55: =+H56-H59 -> 1332094.564 | I55: 111171.7949 | J55: 739386.5549 | K55: 85990.35031 | L55: 8055.422823 | M55: 2239.979369 | N55: 1469931.075 | O55: 6999.31494 | P55: 1104.638163 | Q55: 1955.077934 | R55: 1494.497165
A56: 56
A57: 57 | C57: Return On Rate Base | D57: =ActualROR -> 0.06305604955 | E57: =$D$57*E54 -> 92040227.27 | F57: =$D$57*F54 -> 54623624.89 | G57: 21430704.59 | H57: =$D$57*H54 -> 5869737.922 | I57: 1115410.236 | J57: 21692.05297 | K57: 971212.0133 | L57: 44567.1718 | M57: 23805.29756 | N57: 7843398.634 | O57: 68538.68436 | P57: 9192.262661 | Q57: =$D$57*Q54 -> 9179.803662 | R57: =$D$57*R54 -> 9163.709211 | S57: =ROUND(SUM(F57:R57)-E57,0) -> 0
A58: 58 | C58: Total Operating Expenses | E58: =E25 -> 216774748.4 | F58: 123054604.4 | G58: 52214725.39 | H58: =H25 -> 13672299.88 | I58: 4916160.075 | J58: 706295.0522 | K58: 1889521.941 | L58: 107796.0446 | M58: 73634.04098 | N58: 19761637.78 | O58: 143187.6243 | P58: 53796.65021 | Q58: =Q25 -> 104175.4129 | R58: =R25 -> 76914.14842 | S58: =ROUND(SUM(F58:R58)-E58,0) -> 0
A59: 59 | C59: Revenue Credits | E59: ='Function Summary'!$H$59 -> -13856725.53 | F59: =Distribution!$I$99 -> -5051310.136 | G59: =Distribution!$J$99 -> -5044992.119 | H59: =Distribution!$K$99 -> -1332094.564 | I59: =Distribution!$L$99 -> -111171.7949 | J59: =Distribution!$M$99 -> -739386.5549 | K59: =Distribution!$N$99 -> -85990.35031 | L59: =Distribution!$O$99 -> -8055.422823 | M59: =Distribution!$P$99 -> -2239.979369 | N59: =Distribution!$Q$99 -> -1469931.075 | O59: =Distribution!$R$99 -> -6999.31494 | P59: =Distribution!$S$99 -> -1104.638163 | Q59: =Distribution!$T$99 -> -1955.077934 | R59: =Distribution!$U$99 -> -1494.497165 | S59: =ROUND(SUM(F59:R59)-E59,0) -> 0
A60: 60
A61: 61 | C61: Total Revenue Requirements | E61: =E57+E58+E59 -> 294958250.2 | F61: =F57+F58+F59 -> 172626919.2 | G61: 68600437.87 | H61: 18209943.23 | I61: 5920398.516 | J61: -11399.44978 | K61: 2774743.604 | L61: 144307.7936 | M61: 95199.35917 | N61: 26135105.34 | O61: 204726.9937 | P61: 61884.2747 | Q61: =Q57+Q58+Q59 -> 111400.1387 | R61: =R57+R58+R59 -> 84583.36046 | S61: =ROUND(SUM(F61:R61)-E61,0) -> 0
A62: 62 | S62: =ROUND(SUM(F62:R62)-E62,0) -> 0
A63: 63
A64: 64 | C64: Return On Rate Base @ Target ROR | D64: =TargetROR -> 0.06305604955 | E64: =$D64*E54 -> 92040227.27 | F64: =$D64*F54 -> 54623624.89 | G64: 21430704.59 | H64: =$D64*H54 -> 5869737.922 | I64: 1115410.236 | J64: 21692.05297 | K64: 971212.0133 | L64: 44567.1718 | M64: 23805.29756 | N64: 7843398.634 | O64: 68538.68436 | P64: 9192.262661 | Q64: =$D64*Q54 -> 9179.803662 | R64: =$D64*R54 -> 9163.709211 | S64: =ROUND(SUM(F64:R64)-E64,0) -> 0
A65: 65 | C65: Total Operating Expenses Adjusted for Taxes | E65: =E58+((E64-E57)*(1/NetToGross))-(E64-E57) -> 216774748.4 | F65: 123054604.4 | G65: 52214725.39 | H65: 13672299.88 | I65: 4916160.075 | J65: 706295.0522 | K65: 1889521.941 | L65: 107796.0446 | M65: 73634.04098 | N65: 19761637.78 | O65: 143187.6243 | P65: 53796.65021 | Q65: 104175.4129 | R65: 76914.14842 | S65: =ROUND(SUM(F65:R65)-E65,0) -> 0
A66: 66 | C66: Revenue Credits | E66: =E59 -> -13856725.53 | F66: =F59 -> -5051310.136 | G66: -5044992.119 | H66: =H59 -> -1332094.564 | I66: -111171.7949 | J66: -739386.5549 | K66: -85990.35031 | L66: -8055.422823 | M66: -2239.979369 | N66: -1469931.075 | O66: -6999.31494 | P66: -1104.638163 | Q66: =Q59 -> -1955.077934 | R66: =R59 -> -1494.497165 | S66: =ROUND(SUM(F66:R66)-E66,0) -> 0
A67: 67
A68: 68 | C68: Total Target Revenue Requirements | E68: =SUM(E64:E66) -> 294958250.2 | F68: =SUM(F64:F66) -> 172626919.2 | G68: 68600437.87 | H68: 18209943.23 | I68: 5920398.516 | J68: -11399.44978 | K68: 2774743.604 | L68: 144307.7936 | M68: 95199.35917 | N68: 26135105.34 | O68: 204726.9937 | P68: 61884.2747 | Q68: =SUM(Q64:Q66) -> 111400.1387 | R68: =SUM(R64:R66) -> 84583.36046 | S68: =ROUND(SUM(F68:R68)-E68,0) -> 0
C70: =Inputs!$C$4 -> Rocky Mountain Power
C71: Cost Of Service By Rate Schedule - Distribution Substations
C72: =Inputs!$C$5 -> State of Utah
C73: =Inputs!$C$7 -> Monthly Wgt Factors
C74: =Inputs!$C$6 -> 12 Months Ended Dec 2010
C77: A | D77: B | E77: C | F77: D | G77: E | H77: F | I77: G | J77: H | K77: I | L77: J | M77: K | N77: L | O77: M | P77: N | Q77: O | R77: P
E78: ='Hot Sheet'!$H$10 -> Utah | G78: ='Hot Sheet'!$J$10 -> General | H78: ='Hot Sheet'!$K$10 -> General | I78: ='Hot Sheet'!$L$10 -> Street & Area | J78: ='Hot Sheet'!$M$10 -> General | L78: ='Hot Sheet'!$O$10 -> Traffic | M78: ='Hot Sheet'!$P$10 -> Outdoor | N78: ='Hot Sheet'!$Q$10 -> General | O78: ='Hot Sheet'!$R$10 -> Mobile
E79: ='Hot Sheet'!$H$11 -> Jurisdiction | F79: ='Hot Sheet'!$I$11 -> Residential | G79: ='Hot Sheet'!$J$11 -> Large Dist. | H79: ='Hot Sheet'!$K$11 -> +1 MW | I79: ='Hot Sheet'!$L$11 -> Lighting | J79: ='Hot Sheet'!$M$11 -> Trans | K79: ='Hot Sheet'!$N$11 -> Irrigation | L79: ='Hot Sheet'!$O$11 -> Signals | M79: ='Hot Sheet'!$P$11 -> Lighting | N79: ='Hot Sheet'!$Q$11 -> Small Dist. | O79: ='Hot Sheet'!$R$11 -> Home Park | P79: ='Hot Sheet'!S$11 -> Industrial | Q79: ='Hot Sheet'!T$11 -> Industrial | R79: ='Hot Sheet'!U$11 -> Industrial
C80: DESCRIPTION | E80: ='Hot Sheet'!$H$12 -> Normalized | F80: ='Hot Sheet'!$I$12 -> Sch 1 | G80: ='Hot Sheet'!$J$12 -> Sch 6 | H80: ='Hot Sheet'!$K$12 -> Sch 8 | I80: ='Hot Sheet'!$L$12 -> Sch. 7,11,12 | J80: ='Hot Sheet'!$M$12 -> Sch 9 | K80: ='Hot Sheet'!$N$12 -> Sch 10 | L80: ='Hot Sheet'!$O$12 -> Sch 15 | M80: ='Hot Sheet'!$P$12 -> Sch 15 | N80: ='Hot Sheet'!$Q$12 -> Sch 23 | O80: ='Hot Sheet'!$R$12 -> Sch 25 | P80: ='Hot Sheet'!S$12 -> Cust A | Q80: ='Hot Sheet'!T$12 -> Cust B | R80: ='Hot Sheet'!U$12 -> Cust C
A81: 13
A82: =A81+1 -> 14 | C82: Operating Expenses
A83: 15 | C83: Operation & Maintenance Expenses | E83: =SUM(F83:R83) -> 19280464.65 | F83: 9954295.396 | G83: 5688300.43 | H83: 1635496.274 | I83: 160209.2669 | J83: 103772.7469 | K83: 174829.6755 | L83: 5342.030174 | M83: 3280.921856 | N83: 1507839.843 | O83: 15244.5249 | P83: 5868.587857 | Q83: 15612.31115 | R83: 10372.6413 | S83: =ROUND(SUM(F83:R83)-E83,0) -> 0
A84: 16 | C84: Depreciation Expense | E84: =SUM(F84:R84) -> 10515779.26 | F84: 5299700.617 | G84: 3319593.583 | H84: 958610.9474 | I84: 20836.69665 | J84: 1077.485118 | K84: 99457.80219 | L84: 2100.969663 | M84: 1544.289275 | N84: 803673.0125 | O84: 8930.985163 | P84: 84.29203861 | Q84: 84.29203861 | R84: 84.29203861 | S84: 0
A85: 17 | C85: Amortization Expense | E85: 340344.2799 | F85: 200600.3557 | G85: 78842.59552 | H85: 21658.81807 | I85: 5779.461796 | J85: 459.528844 | K85: 3471.295057 | L85: 161.5420771 | M85: 87.57517846 | N85: 28926.80611 | O85: 248.1025569 | P85: 35.66593022 | Q85: 36.43105799 | R85: 36.10202439 | S85: 0
A86: 18 | C86: Taxes Other Than Income | E86: 2517851.714 | F86: 1494283.441 | G86: 586258.1818 | H86: 160572.5032 | I86: 30513.15341 | J86: 593.4076259 | K86: 26568.46799 | L86: 1219.179192 | M86: 651.2175278 | N86: 214563.9497 | O86: 1874.943696 | P86: 251.4634631 | Q86: 251.1226348 | R86: 250.6823552 | S86: 0
A87: 19 | C87: Income Taxes - Federal | E87: 7602883.804 | F87: 2946548.72 | G87: 3258103.81 | H87: 759100.209 | I87: -140341.8012 | J87: -20742.39482 | K87: 55053.82067 | L87: 184.6520585 | M87: 2471.170906 | N87: 739176.4431 | O87: 6090.598526 | P87: -810.9559764 | Q87: -1012.174373 | R87: -938.2942521 | S87: 0
A88: 20 | C88: Income Taxes - State | E88: -794939.7171 | F88: -523097.8744 | G88: -138855.2476 | H88: -57629.65923 | I88: -27075.46476 | J88: -4699.135866 | K88: -8858.764711 | L88: -334.5615707 | M88: 445.8895916 | N88: -33325.55623 | O88: -630.5490833 | P88: -243.0187924 | Q88: -342.8011602 | R88: -292.9731854 | S88: 0
A89: 21 | C89: Income Taxes Deferred | E89: 11076443.98 | F89: 6573598.728 | G89: 2579046.205 | H89: 706384.8621 | I89: 134232.3825 | J89: 2610.497786 | K89: 116879.0623 | L89: 5363.369869 | M89: 2864.813056 | N89: 943902.119 | O89: 8248.185822 | P89: 1106.22915 | Q89: 1104.72979 | R89: 1102.792928 | S89: 0
A90: 22 | C90: Investment Tax Credit Adj | E90: -81151.18503 | F90: -48161.24451 | G90: -18895.29313 | H90: -5175.304346 | I90: -983.4489237 | J90: -19.12572205 | K90: -856.3104213 | L90: -39.29454449 | M90: -20.98895412 | N90: -6915.466342 | O90: -60.43004913 | P90: -8.10474974 | Q90: -8.093764733 | R90: -8.079574375 | S90: 0
A91: 23 | C91: Misc Revenues & Expense | E91: -211258.4645 | F91: -124526.5612 | G91: -48937.03515 | H91: -13442.97174 | I91: -3588.036084 | J91: -278.692243 | K91: -2154.775694 | L91: -100.2834679 | M91: -54.35245455 | N91: -17956.3439 | O91: -154.0060305 | P91: -21.80219189 | Q91: -21.80219189 | R91: -21.80219189 | S91: 0
A92: 24
A93: 25 | C93: Total Operating Expenses | E93: =SUM(E83:E91) -> 50246418.32 | F93: 25773241.58 | G93: 15303457.23 | H93: 4165575.679 | I93: 179582.2103 | J93: 82774.31766 | K93: 464390.2728 | L93: 13897.60345 | M93: 11270.53598 | N93: 4179884.807 | O93: 39792.3555 | P93: 6262.356729 | Q93: =SUM(Q83:Q91) -> 15704.01518 | R93: =SUM(R83:R91) -> 10585.36145 | S93: =ROUND(SUM(F93:R93)-E93,0) -> 0
A94: 26
A95: 27
A96: 28 | C96: Rate Base :
A97: 29 | C97: Electric Plant In Service | E97: =SUM(F97:R97) -> 457025381.3 | F97: 230802885.6 | G97: 143877337.3 | H97: 41545892.07 | I97: 913022.1839 | J97: 47494.91784 | K97: 4312767.677 | L97: 91269.51151 | M97: 67027.87524 | N97: 34969384.55 | O97: 387153.0213 | P97: 3715.544077 | Q97: 3715.544077 | R97: 3715.544077 | S97: =ROUND(SUM(F97:R97)-E97,0) -> 0
A98: 30 | C98: Plant Held For Future Use | E98: 497880.1141 | F98: 247335.8866 | G98: 160692.7328 | H98: 46540.50995 | I98: 357.5126923 | J98: 0 | K98: 4677.829532 | L98: 87.94652432 | M98: 68.4860931 | N98: 37691.31959 | O98: 427.8903272 | P98: 0 | Q98: 0 | R98: 0 | S98: 0
A99: 31 | C99: Electric Plant Acquisition Adj | E99: 0 | F99: 0 | G99: 0 | H99: 0 | I99: 0 | J99: 0 | K99: 0 | L99: 0 | M99: 0 | N99: 0 | O99: 0 | P99: 0 | Q99: 0 | R99: 0 | S99: 0
A100: 32 | C100: Nuclear Fuel | E100: 0 | F100: 0 | G100: 0 | H100: 0 | I100: 0 | J100: 0 | K100: 0 | L100: 0 | M100: 0 | N100: 0 | O100: 0 | P100: 0 | Q100: 0 | R100: 0 | S100: 0
A101: 33 | C101: Prepayments | E101: 661762.3702 | F101: 390076.6413 | G101: 153294.1577 | H101: 42109.80544 | I101: 11239.44202 | J101: 872.9971587 | K101: 6749.786209 | L101: 314.1356989 | M101: 170.2578367 | N101: 56247.84183 | O101: 482.4204134 | P101: 68.29487384 | Q101: 68.29487384 | R101: 68.29487384 | S101: 0
A102: 34 | C102: Fuel Stock | E102: 0 | F102: 0 | G102: 0 | H102: 0 | I102: 0 | J102: 0 | K102: 0 | L102: 0 | M102: 0 | N102: 0 | O102: 0 | P102: 0 | Q102: 0 | R102: 0 | S102: 0
A103: 35 | C103: Materials & Supplies | E103: 2077472.324 | F103: 1224568.611 | G103: 481236.7465 | H103: 132195.4213 | I103: 35284.00946 | J103: 2740.602242 | K103: 21189.62134 | L103: 986.1670134 | M103: 534.4908679 | N103: 176578.9956 | O103: 1514.463654 | P103: 214.3982744 | Q103: 214.3982744 | R103: 214.3982744 | S103: 0
A104: 36 | C104: Misc Deferred Debits | E104: 54961.16733 | F104: 32396.92754 | G104: 12731.49733 | H104: 3497.334039 | I104: 933.4662734 | J104: 72.50479187 | K104: 560.5881295 | L104: 26.08982542 | M104: 14.14037708 | N104: 4671.53647 | O104: 40.06632933 | P104: 5.672075292 | Q104: 5.672075292 | R104: 5.672075292 | S104: 0
A105: 37 | C105: Cash Working Capital | E105: 1141964.701 | F105: 649681.2304 | G105: 265686.0029 | H105: 73929.07686 | I105: 34893.71554 | J105: 7965.526665 | K105: 8559.389623 | L105: 599.8514327 | M105: 224.9075958 | N105: 97423.04529 | O105: 696.6580398 | P105: 492.3948829 | Q105: 1058.721131 | R105: 754.1801996 | S105: 0
A106: 38 | C106: Weatherization Loans | E106: 0 | F106: 0 | G106: 0 | H106: 0 | I106: 0 | J106: 0 | K106: 0 | L106: 0 | M106: 0 | N106: 0 | O106: 0 | P106: 0 | Q106: 0 | R106: 0 | S106: 0
A107: 39 | C107: Miscellaneous Rate Base | E107: 0 | F107: 0 | G107: 0 | H107: 0 | I107: 0 | J107: 0 | K107: 0 | L107: 0 | M107: 0 | N107: 0 | O107: 0 | P107: 0 | Q107: 0 | R107: 0 | S107: 0
A108: 40
A109: 41 | C109: Total Rate Base Additions | E109: =SUM(E97:E107) -> 461459422 | F109: 233346944.9 | G109: 144950978.4 | H109: 41844164.22 | I109: 995730.3299 | J109: 59146.5487 | K109: 4354504.891 | L109: 93283.70201 | M109: 68040.15801 | N109: 35341997.29 | O109: 390314.52 | P109: 4496.304184 | Q109: =SUM(Q97:Q107) -> 5062.630431 | R109: =SUM(R97:R107) -> 4758.0895 | S109: =ROUND(SUM(F109:R109)-E109,0) -> 0
A110: 42
A111: 43 | C111: Rate Base Deductions :
A112: 44 | C112: Accum Provision For Depreciation | E112: =SUM(F112:R112) -> -97460151.12 | F112: -49172641.6 | G112: -30711832.04 | H112: -8866665.706 | I112: -202778.8579 | J112: -10769.9312 | K112: -922251.8793 | L112: -19648.85847 | M112: -14383.59416 | N112: -7453956.25 | O112: -82694.79699 | P112: -842.5354946 | Q112: -842.5354946 | R112: -842.5354946 | S112: =ROUND(SUM(F112:R112)-E112,0) -> 0
A113: 45 | C113: Accum Provision For Amortization | E113: -5867525.809 | F113: -3458620.289 | G113: -1359184.909 | H113: -373367.2106 | I113: -99654.67833 | J113: -7740.442175 | K113: -59847.0789 | L113: -2785.288804 | M113: -1509.593618 | N113: -498722.3186 | O113: -4277.387705 | P113: -605.5375055 | Q113: -605.5375055 | R113: -605.5375055 | S113: 0
A114: =A113+1 -> 46 | C114: Accum Deferred Income Taxes | E114: -52698787.4 | F114: -31246245.39 | G114: -12242051.05 | H114: -3353046.433 | I114: -640015.7202 | J114: -67427.3461 | K114: -556093.7379 | L114: -25775.4201 | M114: -14227.1267 | N114: -4498891.415 | O114: -39189.1683 | P114: -5274.864928 | Q114: -5274.864928 | R114: -5274.864928 | S114: 0
A115: 47 | C115: Unamortized ITC | E115: -7454.529774 | F115: -4420.019155 | G115: -1731.706916 | H115: -474.3048203 | I115: -90.45999807 | J115: -9.533849997 | K115: -78.67455459 | L115: -3.645898942 | M115: -2.012829617 | N115: -636.3902023 | O115: -5.544038735 | P115: -0.7458364283 | Q115: -0.7458364283 | R115: -0.7458364283 | S115: 0
A116: 48 | C116: Customer Advance For Construction | E116: -485725.0689 | F116: -76434.04975 | G116: -13457.70797 | H116: -7118.643849 | I116: -35216.42927 | J116: -271260.9324 | K116: -1074.08625 | L116: -1380.619732 | M116: -2927.561398 | N116: -76855.0383 | O116: 0 | P116: 0 | Q116: 0 | R116: 0 | S116: 0
A117: 49 | C117: Customer Service Deposits | E117: 0 | F117: 0 | G117: 0 | H117: 0 | I117: 0 | J117: 0 | K117: 0 | L117: 0 | M117: 0 | N117: 0 | O117: 0 | P117: 0 | Q117: 0 | R117: 0 | S117: 0
A118: 50 | C118: Misc Rate Base Deductions | E118: -753168.6458 | F118: -431374.3122 | G118: -177169.5615 | H118: -49304.10511 | I118: -12020.03773 | J118: -9288.168227 | K118: -7588.594297 | L118: -343.477866 | M118: -202.8983782 | N118: -62876.842 | O118: -544.1917748 | P118: -503.9088566 | Q118: -1105.662183 | R118: -846.8857143 | S118: 0
A119: 51
A120: 52 | C120: Total Rate Base Deductions | E120: =SUM(E112:E118) -> -157272812.6 | F120: -84389735.66 | G120: -44505426.97 | H120: -12649976.4 | I120: -989776.1834 | J120: -366496.3539 | K120: -1546934.051 | L120: -49937.31087 | M120: -33252.78708 | N120: -12591938.25 | O120: -126711.0888 | P120: -7227.592621 | Q120: =SUM(Q112:Q118) -> -7829.345948 | R120: =SUM(R112:R118) -> -7570.569479 | S120: =ROUND(SUM(F120:R120)-E120,0) -> 0
A121: 53
A122: 54 | C122: Total Rate Base | E122: =E109+E120 -> 304186609.4 | F122: 148957209.2 | G122: 100445551.4 | H122: 29194187.82 | I122: 5954.146466 | J122: -307349.8052 | K122: 2807570.84 | L122: 43346.39114 | M122: 34787.37093 | N122: 22750059.04 | O122: 263603.4312 | P122: -2731.288438 | Q122: =Q109+Q120 -> -2766.715517 | R122: =R109+R120 -> -2812.479979 | S122: =ROUND(SUM(F122:R122)-E122,0) -> 0
A123: 55
A124: 56
A125: 57 | C125: Return On Rate Base | D125: =ActualROR -> 0.06305604955 | E125: =$D$125*E122 -> 19180805.92 | F125: 9392653.167 | G125: 6333699.669 | H125: =$D$125*H122 -> 1840870.154 | I125: 375.4449546 | J125: -19380.26455 | K125: 177034.326 | L125: 2733.252187 | M125: 2193.554185 | N125: 1434528.85 | O125: 16621.79102 | P125: -172.2242591 | Q125: =$D$125*Q122 -> -174.4581507 | R125: =$D$125*R122 -> -177.3438769 | S125: =ROUND(SUM(F125:R125)-E125,0) -> 0
A126: 58 | C126: Total Operating Expenses | E126: =E93 -> 50246418.32 | F126: 25773241.58 | G126: 15303457.23 | H126: =H93 -> 4165575.679 | I126: 179582.2103 | J126: 82774.31766 | K126: 464390.2728 | L126: 13897.60345 | M126: 11270.53598 | N126: 4179884.807 | O126: 39792.3555 | P126: 6262.356729 | Q126: =Q93 -> 15704.01518 | R126: =R93 -> 10585.36145 | S126: =ROUND(SUM(F126:R126)-E126,0) -> 0
A127: 59 | C127: Revenue Credits | E127: =SUM(F127:R127) -> -2772087.936 | F127: -994112.8486 | G127: -1015080.386 | H127: -267131.7114 | I127: -22896.32974 | J127: -154069.8909 | K127: -16823.49056 | L127: -1654.825536 | M127: -449.4986547 | N127: -297562.772 | O127: -1360.687089 | P127: -229.0072336 | Q127: -406.2353943 | R127: -310.2522508 | S127: =ROUND(SUM(F127:R127)-E127,0) -> 0
A128: 60
A129: 61 | C129: Total Revenue Requirements | E129: =E125+E126+E127 -> 66655136.3 | F129: 34171781.9 | G129: 20622076.51 | H129: 5739314.121 | I129: 157061.3255 | J129: -90675.83778 | K129: 624601.1083 | L129: 14976.0301 | M129: 13014.59151 | N129: 5316850.885 | O129: 55053.45943 | P129: 5861.125236 | Q129: =Q125+Q126+Q127 -> 15123.32164 | R129: =R125+R126+R127 -> 10097.76532 | S129: =ROUND(SUM(F129:R129)-E129,0) -> 0
A130: 62
A131: 63
A132: 64 | C132: Return On Rate Base @ Target ROR | D132: =TargetROR -> 0.06305604955 | E132: =$D132*E122 -> 19180805.92 | F132: 9392653.167 | G132: 6333699.669 | H132: =$D132*H122 -> 1840870.154 | I132: 375.4449546 | J132: -19380.26455 | K132: 177034.326 | L132: 2733.252187 | M132: 2193.554185 | N132: 1434528.85 | O132: 16621.79102 | P132: -172.2242591 | Q132: =$D132*Q122 -> -174.4581507 | R132: =$D132*R122 -> -177.3438769 | S132: =ROUND(SUM(F132:R132)-E132,0) -> 0
A133: 65 | C133: Total Operating Expenses Adjusted for Taxes | E133: =E126+((E132-E125)*(1/NetToGross))-(E132-E125) -> 50246418.32 | F133: 25773241.58 | G133: 15303457.23 | H133: 4165575.679 | I133: 179582.2103 | J133: 82774.31766 | K133: 464390.2728 | L133: 13897.60345 | M133: 11270.53598 | N133: 4179884.807 | O133: 39792.3555 | P133: 6262.356729 | Q133: 15704.01518 | R133: 10585.36145 | S133: =ROUND(SUM(F133:R133)-E133,0) -> 0
A134: 66 | C134: Revenue Credits | E134: =E127 -> -2772087.936 | F134: -994112.8486 | G134: -1015080.386 | H134: =H127 -> -267131.7114 | I134: -22896.32974 | J134: -154069.8909 | K134: -16823.49056 | L134: -1654.825536 | M134: -449.4986547 | N134: -297562.772 | O134: -1360.687089 | P134: -229.0072336 | Q134: =Q127 -> -406.2353943 | R134: =R127 -> -310.2522508 | S134: =ROUND(SUM(F134:R134)-E134,0) -> 0
A135: 67
A136: 68 | C136: Total Target Revenue Requirements | E136: =SUM(E132:E134) -> 66655136.3 | F136: 34171781.9 | G136: 20622076.51 | H136: =SUM(H132:H134) -> 5739314.121 | I136: 157061.3255 | J136: -90675.83778 | K136: 624601.1083 | L136: 14976.0301 | M136: 13014.59151 | N136: 5316850.885 | O136: 55053.45943 | P136: 5861.125236 | Q136: =SUM(Q132:Q134) -> 15123.32164 | R136: =SUM(R132:R134) -> 10097.76532 | S136: =ROUND(SUM(F136:R136)-E136,0) -> 0
C138: =Inputs!$C$4 -> Rocky Mountain Power
C139: Cost Of Service By Rate Schedule - Distribution Poles & Wires
C140: =Inputs!$C$5 -> State of Utah
C141: =Inputs!$C$7 -> Monthly Wgt Factors
C142: =Inputs!$C$6 -> 12 Months Ended Dec 2010
C145: A | D145: B | E145: C | F145: D | G145: E | H145: F | I145: G | J145: H | K145: I | L145: J | M145: K | N145: L | O145: M | P145: N | Q145: O | R145: P
E146: ='Hot Sheet'!$H$10 -> Utah | G146: ='Hot Sheet'!$J$10 -> General | H146: ='Hot Sheet'!$K$10 -> General | I146: ='Hot Sheet'!$L$10 -> Street & Area | J146: ='Hot Sheet'!$M$10 -> General | L146: ='Hot Sheet'!$O$10 -> Traffic | M146: ='Hot Sheet'!$P$10 -> Outdoor | N146: ='Hot Sheet'!$Q$10 -> General | O146: ='Hot Sheet'!$R$10 -> Mobile | S146: Chk Total
E147: ='Hot Sheet'!$H$11 -> Jurisdiction | F147: ='Hot Sheet'!$I$11 -> Residential | G147: ='Hot Sheet'!$J$11 -> Large Dist. | H147: ='Hot Sheet'!$K$11 -> +1 MW | I147: ='Hot Sheet'!$L$11 -> Lighting | J147: ='Hot Sheet'!$M$11 -> Trans | K147: ='Hot Sheet'!$N$11 -> Irrigation | L147: ='Hot Sheet'!$O$11 -> Signals | M147: ='Hot Sheet'!$P$11 -> Lighting | N147: ='Hot Sheet'!$Q$11 -> Small Dist. | O147: ='Hot Sheet'!$R$11 -> Home Park | P147: ='Hot Sheet'!S$11 -> Industrial | Q147: ='Hot Sheet'!T$11 -> Industrial | R147: ='Hot Sheet'!U$11 -> Industrial
C148: DESCRIPTION | E148: ='Hot Sheet'!$H$12 -> Normalized | F148: ='Hot Sheet'!$I$12 -> Sch 1 | G148: ='Hot Sheet'!$J$12 -> Sch 6 | H148: ='Hot Sheet'!$K$12 -> Sch 8 | I148: ='Hot Sheet'!$L$12 -> Sch. 7,11,12 | J148: ='Hot Sheet'!$M$12 -> Sch 9 | K148: ='Hot Sheet'!$N$12 -> Sch 10 | L148: ='Hot Sheet'!$O$12 -> Sch 15 | M148: ='Hot Sheet'!$P$12 -> Sch 15 | N148: ='Hot Sheet'!$Q$12 -> Sch 23 | O148: ='Hot Sheet'!$R$12 -> Sch 25 | P148: ='Hot Sheet'!S$12 -> Cust A | Q148: ='Hot Sheet'!T$12 -> Cust B | R148: ='Hot Sheet'!U$12 -> Cust C | S148: =ROUND(SUM(S151:S204),0) -> 0
A149: 13
A150: =A149+1 -> 14 | C150: Operating Expenses
A151: 15 | C151: Operation & Maintenance Expenses | E151: =SUM(F151:R151) -> 76952586.91 | F151: 44397077.31 | G151: 17287707 | H151: 4830981.883 | I151: 2907270.346 | J151: 299958.1691 | K151: 512341.7512 | L151: 38457.78023 | M151: 14014.18117 | N151: 6528092.045 | O151: 44759.48779 | P151: 17007.31411 | Q151: 44981.30222 | R151: 29938.33993 | S151: =ROUND(SUM(F151:R151)-E151,0) -> 0
A152: 16 | C152: Depreciation Expense | E152: 35730436.59 | F152: 20356234.71 | G152: 8207453.255 | H152: 2368970.296 | I152: 1638091.952 | J152: 3093.433072 | K152: 247027.3138 | L152: 5307.749283 | M152: 3869.755578 | N152: 2877544.404 | O152: 22117.72445 | P152: 242.000354 | Q152: 242.000354 | R152: 242.000354 | S152: 0
A153: 17 | C153: Amortization Expense | E153: 977119.9932 | F153: 575918.6498 | G153: 226355.1379 | H153: 62181.92993 | I153: 16592.69159 | J153: 1319.295923 | K153: 9966.002085 | L153: 463.7833 | M153: 251.4261671 | N153: 83048.14348 | O153: 712.2962926 | P153: 102.3960018 | Q153: 104.5926647 | R153: 103.6480174 | S153: 0
A154: 18 | C154: Taxes Other Than Income | E154: 7228689.873 | F154: 4290050.729 | G154: 1683132.711 | H154: 460999.6773 | I154: 87602.50726 | J154: 1703.658588 | K154: 76277.41319 | L154: 3500.233247 | M154: 1869.629384 | N154: 616007.7822 | O154: 5382.916886 | P154: 721.9453708 | Q154: 720.9668613 | R154: 719.7028293 | S154: 0
A155: 19 | C155: Income Taxes - Federal | E155: -58881389.17 | F155: -35440983.57 | G155: -13102367.56 | H155: -3841912.058 | I155: -980166.0496 | J155: -187776.6836 | K155: -689124.9802 | L155: -33351.29345 | M155: -15356.19627 | N155: -4505845.669 | O155: -46561.84044 | P155: -12410.69582 | Q155: -12842.76224 | R155: -12689.81934 | S155: 0
A156: 20 | C156: Income Taxes - State | E156: -1792522.952 | F156: -1179542.204 | G156: -313107.0357 | H156: -129950.0889 | I156: -61052.92135 | J156: -10596.16058 | K156: -19975.7777 | L156: -754.4085186 | M156: 1005.443947 | N156: -75146.35785 | O156: -1421.835744 | P156: -547.9871665 | Q156: -772.9881078 | R156: -660.6301684 | S156: 0
A157: 21 | C157: Income Taxes Deferred | E157: 31957676.33 | F157: 18966099.67 | G157: 7441045.521 | H157: 2038056.513 | I157: 387286.3024 | J157: 7531.789395 | K157: 337218.628 | L157: 15474.35609 | M157: 8265.537981 | N157: 2723339.59 | O157: 23797.60628 | P157: 3191.68437 | Q157: 3187.358429 | R157: 3181.770206 | S157: 0
A158: 22 | C158: Investment Tax Credit Adj | E158: -232983.0411 | F158: -138269.7395 | G158: -54247.91831 | H158: -14858.17052 | I158: -2823.457488 | J158: -54.90947404 | K158: -2458.445999 | L158: -112.8136634 | M158: -60.25876712 | N158: -19854.13249 | O158: -173.4931735 | P158: -23.26853565 | Q158: -23.23699797 | R158: -23.19625781 | S158: 0
A159: 23 | C159: Misc Revenues & Expense | E159: -606517.8162 | F159: -357512.6711 | G159: -140497.0152 | H159: -38594.43871 | I159: -10301.16268 | J159: -800.1185231 | K159: -6186.307617 | L159: -287.911351 | M159: -156.0445501 | N159: -51552.21833 | O159: -442.147497 | P159: -62.59355262 | Q159: -62.59355262 | R159: -62.59355262 | S159: 0
A160: 24
A161: 25 | C161: Total Operating Expenses | E161: =SUM(E151:E159) -> 91333096.72 | F161: 51469072.89 | G161: 21235474.1 | H161: 5735875.544 | I161: 3982500.207 | J161: 114378.4739 | K161: 465085.5967 | L161: 28697.47516 | M161: 13703.47464 | N161: 8175633.588 | O161: 48170.71485 | P161: 8220.795132 | Q161: =SUM(Q151:Q159) -> 35534.63963 | R161: =SUM(R151:R159) -> 20749.22202 | S161: =ROUND(SUM(F161:R161)-E161,0) -> 0
A162: 26
A163: 27
A164: 28 | C164: Rate Base :
